Workbook

Sheet Acute
B2: Acute Admissions
B3: Select CCG below
B4: Leeds South & East | C4: =OFFSET('CCG List'!$A$2,MATCH(B4,collabrange,0),0) -> 03G
B6: Select admissions cutoff for providers to be tabulated (up to 10 will be shown) | F6: =COLUMN() -> 6 | G6: =COLUMN() -> 7 | H6: =COLUMN() -> 8 | I6: =COLUMN() -> 9 | J6: =COLUMN() -> 10 | K6: =COLUMN() -> 11 | L6: =COLUMN() -> 12 | M6: =COLUMN() -> 13 | N6: =COLUMN() -> 14 | O6: =COLUMN() -> 15 | P6: =COLUMN() -> 16 | Q6: =COLUMN() -> 17 | R6: =COLUMN() -> 18 | S6: =COLUMN() -> 19 | T6: =COLUMN() -> 20 | U6: =COLUMN() -> 21 | V6: =COLUMN() -> 22 | W6: =COLUMN() -> 23 | X6: =COLUMN() -> 24 | Y6: =COLUMN() -> 25 | Z6: =COLUMN() -> 26 | AA6: =COLUMN() -> 27 | AB6: =COLUMN() -> 28 | AC6: =COLUMN() -> 29 | AD6: =COLUMN() -> 30 | AE6: =COLUMN() -> 31 | AF6: =COLUMN() -> 32 | AG6: =COLUMN() -> 33 | AH6: =COLUMN() -> 34
B7: 500 | C7: Admissions | F7: =VLOOKUP(F8,'CCG List'!$Q$3:$S$288,3,0) -> 204 | I7: =VLOOKUP(I8,'CCG List'!$Q$3:$S$288,3,0) -> 153 | L7: =VLOOKUP(L8,'CCG List'!$Q$3:$S$288,3,0) -> 189 | O7: =VLOOKUP(O8,'CCG List'!$Q$3:$S$288,3,0) -> 149 | R7: =VLOOKUP(R8,'CCG List'!$Q$3:$S$288,3,0) -> 165 | U7: =VLOOKUP(U8,'CCG List'!$Q$3:$S$288,3,0) -> 172 | X7: =VLOOKUP(X8,'CCG List'!$Q$3:$S$288,3,0) -> 194 | AA7: =VLOOKUP(AA8,'CCG List'!$Q$3:$S$288,3,0) -> 166 | AD7: =VLOOKUP(AD8,'CCG List'!$Q$3:$S$288,3,0) -> 164 | AG7: =VLOOKUP(AG8,'CCG List'!$Q$3:$S$288,3,0) -> 191
F8: =OFFSET($D$9,F6/3-1,0) -> RR8 | I8: =OFFSET($D$9,I6/3-1,0) -> RXF | L8: =OFFSET($D$9,L6/3-1,0) -> NT3 | O8: =OFFSET($D$9,O6/3-1,0) -> RCD | R8: =OFFSET($D$9,R6/3-1,0) -> RAE | U8: =OFFSET($D$9,U6/3-1,0) -> RCB | X8: =OFFSET($D$9,X6/3-1,0) -> RHQ | AA8: =OFFSET($D$9,AA6/3-1,0) -> RJL | AD8: =OFFSET($D$9,AD6/3-1,0) -> RCC | AG8: =OFFSET($D$9,AG6/3-1,0) -> NVC
B9: ="Providers (ordered by number of admissions) for "&B4&" CCG" -> Providers (ordered by number of admissions) for Leeds South & East CCG | C9: Number of Admissions / spells | D9: =COUNTIF(C10:C19,">="&B7) -> 4 | F9: =OFFSET($B$9,F6/3-1,0) -> Leeds Teaching Hospitals NHS Trust | G9: No. of Adm / spells | I9: =OFFSET($B$9,I6/3-1,0) -> Mid Yorkshire Hospitals NHS Trust | J9: No. of Adm / spells | L9: =OFFSET($B$9,L6/3-1,0) -> Spire Healthcare | M9: No. of Adm / spells | O9: =OFFSET($B$9,O6/3-1,0) -> Harrogate & District NHS FT | P9: No. of Adm / spells | R9: =OFFSET($B$9,R6/3-1,0) -> Bradford Teaching Hospitals NHS FT | S9: No. of Adm / spells | U9: =OFFSET($B$9,U6/3-1,0) -> York Teaching Hospital NHS FT | V9: No. of Adm / spells | X9: =OFFSET($B$9,X6/3-1,0) -> Sheffield Teaching Hospitals NHS FT | Y9: No. of Adm / spells | AA9: =OFFSET($B$9,AA6/3-1,0) -> Northern Lincolnshire & Goole Hospitals NHS FT | AB9: No. of Adm / spells | AD9: =OFFSET($B$9,AD6/3-1,0) -> Scarborough & NE Yorkshire Health Care NHS Trust | AE9: No. of Adm / spells | AG9: =OFFSET($B$9,AG6/3-1,0) -> Ramsay Healthcare UK Operations Ltd | AH9: No. of Adm / spells
A10: 1 | B10: =VLOOKUP(D10,provnames!$A$2:$B$331,2,0) -> Leeds Teaching Hospitals NHS Trust | C10: =IF(A10<=$A$21,OFFSET('CCG-Prov(Acute)'!$C$1,MATCH(Acute!$C$4,'CCG-Prov(Acute)'!$A$2:$A$29012,0)+$A10-1,0),"") -> 51443 | D10: =IF(A10<=$A$21,OFFSET('CCG-Prov(Acute)'!$B$1,MATCH(Acute!$C$4,'CCG-Prov(Acute)'!$A$2:$A$29012,0)+$A10-1,0),"") -> RR8 | F10: =IF($A10<=F$7,VLOOKUP(OFFSET('CCG-Prov(Acute)'!$G$1,MATCH(F$8,'CCG-Prov(Acute)'!$F$2:$F$29012,0)+$A10-1,0),'CCG List'!$A$3:$B$213,2,0),"") -> Leeds West | G10: =IF($A10<=F$7,OFFSET('CCG-Prov(Acute)'!$H$1,MATCH(F$8,'CCG-Prov(Acute)'!$F$2:$F$29012,0)+$A10-1,0),"") -> 56375 | I10: =IF($A10<=I$7,VLOOKUP(OFFSET('CCG-Prov(Acute)'!$G$1,MATCH(I$8,'CCG-Prov(Acute)'!$F$2:$F$29012,0)+$A10-1,0),'CCG List'!$A$3:$B$213,2,0),"") -> Wakefield | J10: =IF($A10<=I$7,OFFSET('CCG-Prov(Acute)'!$H$1,MATCH(I$8,'CCG-Prov(Acute)'!$F$2:$F$29012,0)+$A10-1,0),"") -> 68550 | L10: =IF($A10<=L$7,VLOOKUP(OFFSET('CCG-Prov(Acute)'!$G$1,MATCH(L$8,'CCG-Prov(Acute)'!$F$2:$F$29012,0)+$A10-1,0),'CCG List'!$A$3:$B$213,2,0),"") -> Liverpool | M10: =IF($A10<=L$7,OFFSET('CCG-Prov(Acute)'!$H$1,MATCH(L$8,'CCG-Prov(Acute)'!$F$2:$F$29012,0)+$A10-1,0),"") -> 1872 | O10: =IF($A10<=O$7,VLOOKUP(OFFSET('CCG-Prov(Acute)'!$G$1,MATCH(O$8,'CCG-Prov(Acute)'!$F$2:$F$29012,0)+$A10-1,0),'CCG List'!$A$3:$B$213,2,0),"") -> Harrogate & Rural District | P10: =IF($A10<=O$7,OFFSET('CCG-Prov(Acute)'!$H$1,MATCH(O$8,'CCG-Prov(Acute)'!$F$2:$F$29012,0)+$A10-1,0),"") -> 29025 | R10: =IF($A10<=R$7,VLOOKUP(OFFSET('CCG-Prov(Acute)'!$G$1,MATCH(R$8,'CCG-Prov(Acute)'!$F$2:$F$29012,0)+$A10-1,0),'CCG List'!$A$3:$B$213,2,0),"") -> Bradford Districts | S10: =IF($A10<=R$7,OFFSET('CCG-Prov(Acute)'!$H$1,MATCH(R$8,'CCG-Prov(Acute)'!$F$2:$F$29012,0)+$A10-1,0),"") -> 61249 | U10: =IF($A10<=U$7,VLOOKUP(OFFSET('CCG-Prov(Acute)'!$G$1,MATCH(U$8,'CCG-Prov(Acute)'!$F$2:$F$29012,0)+$A10-1,0),'CCG List'!$A$3:$B$213,2,0),"") -> Vale of York | V10: =IF($A10<=U$7,OFFSET('CCG-Prov(Acute)'!$H$1,MATCH(U$8,'CCG-Prov(Acute)'!$F$2:$F$29012,0)+$A10-1,0),"") -> 56913 | X10: =IF($A10<=X$7,VLOOKUP(OFFSET('CCG-Prov(Acute)'!$G$1,MATCH(X$8,'CCG-Prov(Acute)'!$F$2:$F$29012,0)+$A10-1,0),'CCG List'!$A$3:$B$213,2,0),"") -> Sheffield | Y10: =IF($A10<=X$7,OFFSET('CCG-Prov(Acute)'!$H$1,MATCH(X$8,'CCG-Prov(Acute)'!$F$2:$F$29012,0)+$A10-1,0),"") -> 105704 | AA10: =IF($A10<=AA$7,VLOOKUP(OFFSET('CCG-Prov(Acute)'!$G$1,MATCH(AA$8,'CCG-Prov(Acute)'!$F$2:$F$29012,0)+$A10-1,0),'CCG List'!$A$3:$B$213,2,0),"") -> North Lincolnshire | AB10: =IF($A10<=AA$7,OFFSET('CCG-Prov(Acute)'!$H$1,MATCH(AA$8,'CCG-Prov(Acute)'!$F$2:$F$29012,0)+$A10-1,0),"") -> 31749 | AD10: =IF($A10<=AD$7,VLOOKUP(OFFSET('CCG-Prov(Acute)'!$G$1,MATCH(AD$8,'CCG-Prov(Acute)'!$F$2:$F$29012,0)+$A10-1,0),'CCG List'!$A$3:$B$213,2,0),"") -> Scarborough & Ryedale | AE10: =IF($A10<=AD$7,OFFSET('CCG-Prov(Acute)'!$H$1,MATCH(AD$8,'CCG-Prov(Acute)'!$F$2:$F$29012,0)+$A10-1,0),"") -> 19517 | AG10: =IF($A10<=AG$7,VLOOKUP(OFFSET('CCG-Prov(Acute)'!$G$1,MATCH(AG$8,'CCG-Prov(Acute)'!$F$2:$F$29012,0)+$A10-1,0),'CCG List'!$A$3:$B$213,2,0),"") -> Kernow | AH10: =IF($A10<=AG$7,OFFSET('CCG-Prov(Acute)'!$H$1,MATCH(AG$8,'CCG-Prov(Acute)'!$F$2:$F$29012,0)+$A10-1,0),"") -> 6914
A11: 2 | B11: =VLOOKUP(D11,provnames!$A$2:$B$331,2,0) -> Mid Yorkshire Hospitals NHS Trust | C11: =IF(A11<=$A$21,OFFSET('CCG-Prov(Acute)'!$C$1,MATCH(Acute!$C$4,'CCG-Prov(Acute)'!$A$2:$A$29012,0)+$A11-1,0),"") -> 4875 | D11: =IF(A11<=$A$21,OFFSET('CCG-Prov(Acute)'!$B$1,MATCH(Acute!$C$4,'CCG-Prov(Acute)'!$A$2:$A$29012,0)+$A11-1,0),"") -> RXF | F11: =IF($A11<=F$7,VLOOKUP(OFFSET('CCG-Prov(Acute)'!$G$1,MATCH(F$8,'CCG-Prov(Acute)'!$F$2:$F$29012,0)+$A11-1,0),'CCG List'!$A$3:$B$213,2,0),"") -> Leeds South & East | G11: =IF($A11<=F$7,OFFSET('CCG-Prov(Acute)'!$H$1,MATCH(F$8,'CCG-Prov(Acute)'!$F$2:$F$29012,0)+$A11-1,0),"") -> 51443 | I11: =IF($A11<=I$7,VLOOKUP(OFFSET('CCG-Prov(Acute)'!$G$1,MATCH(I$8,'CCG-Prov(Acute)'!$F$2:$F$29012,0)+$A11-1,0),'CCG List'!$A$3:$B$213,2,0),"") -> North Kirklees | J11: =IF($A11<=I$7,OFFSET('CCG-Prov(Acute)'!$H$1,MATCH(I$8,'CCG-Prov(Acute)'!$F$2:$F$29012,0)+$A11-1,0),"") -> 30423 | L11: =IF($A11<=L$7,VLOOKUP(OFFSET('CCG-Prov(Acute)'!$G$1,MATCH(L$8,'CCG-Prov(Acute)'!$F$2:$F$29012,0)+$A11-1,0),'CCG List'!$A$3:$B$213,2,0),"") -> Hull | M11: =IF($A11<=L$7,OFFSET('CCG-Prov(Acute)'!$H$1,MATCH(L$8,'CCG-Prov(Acute)'!$F$2:$F$29012,0)+$A11-1,0),"") -> 1714 | O11: =IF($A11<=O$7,VLOOKUP(OFFSET('CCG-Prov(Acute)'!$G$1,MATCH(O$8,'CCG-Prov(Acute)'!$F$2:$F$29012,0)+$A11-1,0),'CCG List'!$A$3:$B$213,2,0),"") -> Leeds North | P11: =IF($A11<=O$7,OFFSET('CCG-Prov(Acute)'!$H$1,MATCH(O$8,'CCG-Prov(Acute)'!$F$2:$F$29012,0)+$A11-1,0),"") -> 6569 | R11: =IF($A11<=R$7,VLOOKUP(OFFSET('CCG-Prov(Acute)'!$G$1,MATCH(R$8,'CCG-Prov(Acute)'!$F$2:$F$29012,0)+$A11-1,0),'CCG List'!$A$3:$B$213,2,0),"") -> Bradford City | S11: =IF($A11<=R$7,OFFSET('CCG-Prov(Acute)'!$H$1,MATCH(R$8,'CCG-Prov(Acute)'!$F$2:$F$29012,0)+$A11-1,0),"") -> 18292 | U11: =IF($A11<=U$7,VLOOKUP(OFFSET('CCG-Prov(Acute)'!$G$1,MATCH(U$8,'CCG-Prov(Acute)'!$F$2:$F$29012,0)+$A11-1,0),'CCG List'!$A$3:$B$213,2,0),"") -> Scarborough & Ryedale | V11: =IF($A11<=U$7,OFFSET('CCG-Prov(Acute)'!$H$1,MATCH(U$8,'CCG-Prov(Acute)'!$F$2:$F$29012,0)+$A11-1,0),"") -> 2791 | X11: =IF($A11<=X$7,VLOOKUP(OFFSET('CCG-Prov(Acute)'!$G$1,MATCH(X$8,'CCG-Prov(Acute)'!$F$2:$F$29012,0)+$A11-1,0),'CCG List'!$A$3:$B$213,2,0),"") -> Barnsley | Y11: =IF($A11<=X$7,OFFSET('CCG-Prov(Acute)'!$H$1,MATCH(X$8,'CCG-Prov(Acute)'!$F$2:$F$29012,0)+$A11-1,0),"") -> 10154 | AA11: =IF($A11<=AA$7,VLOOKUP(OFFSET('CCG-Prov(Acute)'!$G$1,MATCH(AA$8,'CCG-Prov(Acute)'!$F$2:$F$29012,0)+$A11-1,0),'CCG List'!$A$3:$B$213,2,0),"") -> North East Lincolnshire | AB11: =IF($A11<=AA$7,OFFSET('CCG-Prov(Acute)'!$H$1,MATCH(AA$8,'CCG-Prov(Acute)'!$F$2:$F$29012,0)+$A11-1,0),"") -> 29927 | AD11: =IF($A11<=AD$7,VLOOKUP(OFFSET('CCG-Prov(Acute)'!$G$1,MATCH(AD$8,'CCG-Prov(Acute)'!$F$2:$F$29012,0)+$A11-1,0),'CCG List'!$A$3:$B$213,2,0),"") -> East Riding of Yorkshire | AE11: =IF($A11<=AD$7,OFFSET('CCG-Prov(Acute)'!$H$1,MATCH(AD$8,'CCG-Prov(Acute)'!$F$2:$F$29012,0)+$A11-1,0),"") -> 11135 | AG11: =IF($A11<=AG$7,VLOOKUP(OFFSET('CCG-Prov(Acute)'!$G$1,MATCH(AG$8,'CCG-Prov(Acute)'!$F$2:$F$29012,0)+$A11-1,0),'CCG List'!$A$3:$B$213,2,0),"") -> East & North Hertfordshire | AH11: =IF($A11<=AG$7,OFFSET('CCG-Prov(Acute)'!$H$1,MATCH(AG$8,'CCG-Prov(Acute)'!$F$2:$F$29012,0)+$A11-1,0),"") -> 4576
A12: 3 | B12: =VLOOKUP(D12,provnames!$A$2:$B$331,2,0) -> Spire Healthcare | C12: =IF(A12<=$A$21,OFFSET('CCG-Prov(Acute)'!$C$1,MATCH(Acute!$C$4,'CCG-Prov(Acute)'!$A$2:$A$29012,0)+$A12-1,0),"") -> 750 | D12: =IF(A12<=$A$21,OFFSET('CCG-Prov(Acute)'!$B$1,MATCH(Acute!$C$4,'CCG-Prov(Acute)'!$A$2:$A$29012,0)+$A12-1,0),"") -> NT3 | F12: =IF($A12<=F$7,VLOOKUP(OFFSET('CCG-Prov(Acute)'!$G$1,MATCH(F$8,'CCG-Prov(Acute)'!$F$2:$F$29012,0)+$A12-1,0),'CCG List'!$A$3:$B$213,2,0),"") -> Leeds North | G12: =IF($A12<=F$7,OFFSET('CCG-Prov(Acute)'!$H$1,MATCH(F$8,'CCG-Prov(Acute)'!$F$2:$F$29012,0)+$A12-1,0),"") -> 30965 | I12: =IF($A12<=I$7,VLOOKUP(OFFSET('CCG-Prov(Acute)'!$G$1,MATCH(I$8,'CCG-Prov(Acute)'!$F$2:$F$29012,0)+$A12-1,0),'CCG List'!$A$3:$B$213,2,0),"") -> Leeds South & East | J12: =IF($A12<=I$7,OFFSET('CCG-Prov(Acute)'!$H$1,MATCH(I$8,'CCG-Prov(Acute)'!$F$2:$F$29012,0)+$A12-1,0),"") -> 4875 | L12: =IF($A12<=L$7,VLOOKUP(OFFSET('CCG-Prov(Acute)'!$G$1,MATCH(L$8,'CCG-Prov(Acute)'!$F$2:$F$29012,0)+$A12-1,0),'CCG List'!$A$3:$B$213,2,0),"") -> East Riding of Yorkshire | M12: =IF($A12<=L$7,OFFSET('CCG-Prov(Acute)'!$H$1,MATCH(L$8,'CCG-Prov(Acute)'!$F$2:$F$29012,0)+$A12-1,0),"") -> 1303 | O12: =IF($A12<=O$7,VLOOKUP(OFFSET('CCG-Prov(Acute)'!$G$1,MATCH(O$8,'CCG-Prov(Acute)'!$F$2:$F$29012,0)+$A12-1,0),'CCG List'!$A$3:$B$213,2,0),"") -> Leeds West | P12: =IF($A12<=O$7,OFFSET('CCG-Prov(Acute)'!$H$1,MATCH(O$8,'CCG-Prov(Acute)'!$F$2:$F$29012,0)+$A12-1,0),"") -> 640 | R12: =IF($A12<=R$7,VLOOKUP(OFFSET('CCG-Prov(Acute)'!$G$1,MATCH(R$8,'CCG-Prov(Acute)'!$F$2:$F$29012,0)+$A12-1,0),'CCG List'!$A$3:$B$213,2,0),"") -> Airedale, Wharfedale & Craven | S12: =IF($A12<=R$7,OFFSET('CCG-Prov(Acute)'!$H$1,MATCH(R$8,'CCG-Prov(Acute)'!$F$2:$F$29012,0)+$A12-1,0),"") -> 4821 | U12: =IF($A12<=U$7,VLOOKUP(OFFSET('CCG-Prov(Acute)'!$G$1,MATCH(U$8,'CCG-Prov(Acute)'!$F$2:$F$29012,0)+$A12-1,0),'CCG List'!$A$3:$B$213,2,0),"") -> East Riding of Yorkshire | V12: =IF($A12<=U$7,OFFSET('CCG-Prov(Acute)'!$H$1,MATCH(U$8,'CCG-Prov(Acute)'!$F$2:$F$29012,0)+$A12-1,0),"") -> 1823 | X12: =IF($A12<=X$7,VLOOKUP(OFFSET('CCG-Prov(Acute)'!$G$1,MATCH(X$8,'CCG-Prov(Acute)'!$F$2:$F$29012,0)+$A12-1,0),'CCG List'!$A$3:$B$213,2,0),"") -> Rotherham | Y12: =IF($A12<=X$7,OFFSET('CCG-Prov(Acute)'!$H$1,MATCH(X$8,'CCG-Prov(Acute)'!$F$2:$F$29012,0)+$A12-1,0),"") -> 8950 | AA12: =IF($A12<=AA$7,VLOOKUP(OFFSET('CCG-Prov(Acute)'!$G$1,MATCH(AA$8,'CCG-Prov(Acute)'!$F$2:$F$29012,0)+$A12-1,0),'CCG List'!$A$3:$B$213,2,0),"") -> East Riding of Yorkshire | AB12: =IF($A12<=AA$7,OFFSET('CCG-Prov(Acute)'!$H$1,MATCH(AA$8,'CCG-Prov(Acute)'!$F$2:$F$29012,0)+$A12-1,0),"") -> 7771 | AD12: =IF($A12<=AD$7,VLOOKUP(OFFSET('CCG-Prov(Acute)'!$G$1,MATCH(AD$8,'CCG-Prov(Acute)'!$F$2:$F$29012,0)+$A12-1,0),'CCG List'!$A$3:$B$213,2,0),"") -> Hambleton, Richmondshire & Whitby | AE12: =IF($A12<=AD$7,OFFSET('CCG-Prov(Acute)'!$H$1,MATCH(AD$8,'CCG-Prov(Acute)'!$F$2:$F$29012,0)+$A12-1,0),"") -> 2223 | AG12: =IF($A12<=AG$7,VLOOKUP(OFFSET('CCG-Prov(Acute)'!$G$1,MATCH(AG$8,'CCG-Prov(Acute)'!$F$2:$F$29012,0)+$A12-1,0),'CCG List'!$A$3:$B$213,2,0),"") -> Bradford Districts | AH12: =IF($A12<=AG$7,OFFSET('CCG-Prov(Acute)'!$H$1,MATCH(AG$8,'CCG-Prov(Acute)'!$F$2:$F$29012,0)+$A12-1,0),"") -> 4104
A13: 4 | B13: =VLOOKUP(D13,provnames!$A$2:$B$331,2,0) -> Harrogate & District NHS FT | C13: =IF(A13<=$A$21,OFFSET('CCG-Prov(Acute)'!$C$1,MATCH(Acute!$C$4,'CCG-Prov(Acute)'!$A$2:$A$29012,0)+$A13-1,0),"") -> 555 | D13: =IF(A13<=$A$21,OFFSET('CCG-Prov(Acute)'!$B$1,MATCH(Acute!$C$4,'CCG-Prov(Acute)'!$A$2:$A$29012,0)+$A13-1,0),"") -> RCD | F13: =IF($A13<=F$7,VLOOKUP(OFFSET('CCG-Prov(Acute)'!$G$1,MATCH(F$8,'CCG-Prov(Acute)'!$F$2:$F$29012,0)+$A13-1,0),'CCG List'!$A$3:$B$213,2,0),"") -> Wakefield | G13: =IF($A13<=F$7,OFFSET('CCG-Prov(Acute)'!$H$1,MATCH(F$8,'CCG-Prov(Acute)'!$F$2:$F$29012,0)+$A13-1,0),"") -> 5286 | I13: =IF($A13<=I$7,VLOOKUP(OFFSET('CCG-Prov(Acute)'!$G$1,MATCH(I$8,'CCG-Prov(Acute)'!$F$2:$F$29012,0)+$A13-1,0),'CCG List'!$A$3:$B$213,2,0),"") -> Leeds West | J13: =IF($A13<=I$7,OFFSET('CCG-Prov(Acute)'!$H$1,MATCH(I$8,'CCG-Prov(Acute)'!$F$2:$F$29012,0)+$A13-1,0),"") -> 4256 | L13: =IF($A13<=L$7,VLOOKUP(OFFSET('CCG-Prov(Acute)'!$G$1,MATCH(L$8,'CCG-Prov(Acute)'!$F$2:$F$29012,0)+$A13-1,0),'CCG List'!$A$3:$B$213,2,0),"") -> Wirral | M13: =IF($A13<=L$7,OFFSET('CCG-Prov(Acute)'!$H$1,MATCH(L$8,'CCG-Prov(Acute)'!$F$2:$F$29012,0)+$A13-1,0),"") -> 1265 | O13: =IF($A13<=O$7,VLOOKUP(OFFSET('CCG-Prov(Acute)'!$G$1,MATCH(O$8,'CCG-Prov(Acute)'!$F$2:$F$29012,0)+$A13-1,0),'CCG List'!$A$3:$B$213,2,0),"") -> Leeds South & East | P13: =IF($A13<=O$7,OFFSET('CCG-Prov(Acute)'!$H$1,MATCH(O$8,'CCG-Prov(Acute)'!$F$2:$F$29012,0)+$A13-1,0),"") -> 555 | R13: =IF($A13<=R$7,VLOOKUP(OFFSET('CCG-Prov(Acute)'!$G$1,MATCH(R$8,'CCG-Prov(Acute)'!$F$2:$F$29012,0)+$A13-1,0),'CCG List'!$A$3:$B$213,2,0),"") -> Leeds West | S13: =IF($A13<=R$7,OFFSET('CCG-Prov(Acute)'!$H$1,MATCH(R$8,'CCG-Prov(Acute)'!$F$2:$F$29012,0)+$A13-1,0),"") -> 1938 | U13: =IF($A13<=U$7,VLOOKUP(OFFSET('CCG-Prov(Acute)'!$G$1,MATCH(U$8,'CCG-Prov(Acute)'!$F$2:$F$29012,0)+$A13-1,0),'CCG List'!$A$3:$B$213,2,0),"") -> Harrogate & Rural District | V13: =IF($A13<=U$7,OFFSET('CCG-Prov(Acute)'!$H$1,MATCH(U$8,'CCG-Prov(Acute)'!$F$2:$F$29012,0)+$A13-1,0),"") -> 1752 | X13: =IF($A13<=X$7,VLOOKUP(OFFSET('CCG-Prov(Acute)'!$G$1,MATCH(X$8,'CCG-Prov(Acute)'!$F$2:$F$29012,0)+$A13-1,0),'CCG List'!$A$3:$B$213,2,0),"") -> North Derbyshire | Y13: =IF($A13<=X$7,OFFSET('CCG-Prov(Acute)'!$H$1,MATCH(X$8,'CCG-Prov(Acute)'!$F$2:$F$29012,0)+$A13-1,0),"") -> 8828 | AA13: =IF($A13<=AA$7,VLOOKUP(OFFSET('CCG-Prov(Acute)'!$G$1,MATCH(AA$8,'CCG-Prov(Acute)'!$F$2:$F$29012,0)+$A13-1,0),'CCG List'!$A$3:$B$213,2,0),"") -> Lincolnshire East | AB13: =IF($A13<=AA$7,OFFSET('CCG-Prov(Acute)'!$H$1,MATCH(AA$8,'CCG-Prov(Acute)'!$F$2:$F$29012,0)+$A13-1,0),"") -> 7290 | AD13: =IF($A13<=AD$7,VLOOKUP(OFFSET('CCG-Prov(Acute)'!$G$1,MATCH(AD$8,'CCG-Prov(Acute)'!$F$2:$F$29012,0)+$A13-1,0),'CCG List'!$A$3:$B$213,2,0),"") -> Vale of York | AE13: =IF($A13<=AD$7,OFFSET('CCG-Prov(Acute)'!$H$1,MATCH(AD$8,'CCG-Prov(Acute)'!$F$2:$F$29012,0)+$A13-1,0),"") -> 1519 | AG13: =IF($A13<=AG$7,VLOOKUP(OFFSET('CCG-Prov(Acute)'!$G$1,MATCH(AG$8,'CCG-Prov(Acute)'!$F$2:$F$29012,0)+$A13-1,0),'CCG List'!$A$3:$B$213,2,0),"") -> Greater Preston | AH13: =IF($A13<=AG$7,OFFSET('CCG-Prov(Acute)'!$H$1,MATCH(AG$8,'CCG-Prov(Acute)'!$F$2:$F$29012,0)+$A13-1,0),"") -> 3361
A14: 5 | B14: =VLOOKUP(D14,provnames!$A$2:$B$331,2,0) -> Bradford Teaching Hospitals NHS FT | C14: =IF(A14<=$A$21,OFFSET('CCG-Prov(Acute)'!$C$1,MATCH(Acute!$C$4,'CCG-Prov(Acute)'!$A$2:$A$29012,0)+$A14-1,0),"") -> 126 | D14: =IF(A14<=$A$21,OFFSET('CCG-Prov(Acute)'!$B$1,MATCH(Acute!$C$4,'CCG-Prov(Acute)'!$A$2:$A$29012,0)+$A14-1,0),"") -> RAE | F14: =IF($A14<=F$7,VLOOKUP(OFFSET('CCG-Prov(Acute)'!$G$1,MATCH(F$8,'CCG-Prov(Acute)'!$F$2:$F$29012,0)+$A14-1,0),'CCG List'!$A$3:$B$213,2,0),"") -> Vale of York | G14: =IF($A14<=F$7,OFFSET('CCG-Prov(Acute)'!$H$1,MATCH(F$8,'CCG-Prov(Acute)'!$F$2:$F$29012,0)+$A14-1,0),"") -> 2857 | I14: =IF($A14<=I$7,VLOOKUP(OFFSET('CCG-Prov(Acute)'!$G$1,MATCH(I$8,'CCG-Prov(Acute)'!$F$2:$F$29012,0)+$A14-1,0),'CCG List'!$A$3:$B$213,2,0),"") -> Vale of York | J14: =IF($A14<=I$7,OFFSET('CCG-Prov(Acute)'!$H$1,MATCH(I$8,'CCG-Prov(Acute)'!$F$2:$F$29012,0)+$A14-1,0),"") -> 968 | L14: =IF($A14<=L$7,VLOOKUP(OFFSET('CCG-Prov(Acute)'!$G$1,MATCH(L$8,'CCG-Prov(Acute)'!$F$2:$F$29012,0)+$A14-1,0),'CCG List'!$A$3:$B$213,2,0),"") -> Wakefield | M14: =IF($A14<=L$7,OFFSET('CCG-Prov(Acute)'!$H$1,MATCH(L$8,'CCG-Prov(Acute)'!$F$2:$F$29012,0)+$A14-1,0),"") -> 1094 | O14: =IF($A14<=O$7,VLOOKUP(OFFSET('CCG-Prov(Acute)'!$G$1,MATCH(O$8,'CCG-Prov(Acute)'!$F$2:$F$29012,0)+$A14-1,0),'CCG List'!$A$3:$B$213,2,0),"") -> Vale of York | P14: =IF($A14<=O$7,OFFSET('CCG-Prov(Acute)'!$H$1,MATCH(O$8,'CCG-Prov(Acute)'!$F$2:$F$29012,0)+$A14-1,0),"") -> 420 | R14: =IF($A14<=R$7,VLOOKUP(OFFSET('CCG-Prov(Acute)'!$G$1,MATCH(R$8,'CCG-Prov(Acute)'!$F$2:$F$29012,0)+$A14-1,0),'CCG List'!$A$3:$B$213,2,0),"") -> Calderdale | S14: =IF($A14<=R$7,OFFSET('CCG-Prov(Acute)'!$H$1,MATCH(R$8,'CCG-Prov(Acute)'!$F$2:$F$29012,0)+$A14-1,0),"") -> 1888 | U14: =IF($A14<=U$7,VLOOKUP(OFFSET('CCG-Prov(Acute)'!$G$1,MATCH(U$8,'CCG-Prov(Acute)'!$F$2:$F$29012,0)+$A14-1,0),'CCG List'!$A$3:$B$213,2,0),"") -> Leeds North | V14: =IF($A14<=U$7,OFFSET('CCG-Prov(Acute)'!$H$1,MATCH(U$8,'CCG-Prov(Acute)'!$F$2:$F$29012,0)+$A14-1,0),"") -> 571 | X14: =IF($A14<=X$7,VLOOKUP(OFFSET('CCG-Prov(Acute)'!$G$1,MATCH(X$8,'CCG-Prov(Acute)'!$F$2:$F$29012,0)+$A14-1,0),'CCG List'!$A$3:$B$213,2,0),"") -> Doncaster | Y14: =IF($A14<=X$7,OFFSET('CCG-Prov(Acute)'!$H$1,MATCH(X$8,'CCG-Prov(Acute)'!$F$2:$F$29012,0)+$A14-1,0),"") -> 6376 | AA14: =IF($A14<=AA$7,VLOOKUP(OFFSET('CCG-Prov(Acute)'!$G$1,MATCH(AA$8,'CCG-Prov(Acute)'!$F$2:$F$29012,0)+$A14-1,0),'CCG List'!$A$3:$B$213,2,0),"") -> Lincolnshire West | AB14: =IF($A14<=AA$7,OFFSET('CCG-Prov(Acute)'!$H$1,MATCH(AA$8,'CCG-Prov(Acute)'!$F$2:$F$29012,0)+$A14-1,0),"") -> 2591 | AD14: =IF($A14<=AD$7,VLOOKUP(OFFSET('CCG-Prov(Acute)'!$G$1,MATCH(AD$8,'CCG-Prov(Acute)'!$F$2:$F$29012,0)+$A14-1,0),'CCG List'!$A$3:$B$213,2,0),"") -> Hull | AE14: =IF($A14<=AD$7,OFFSET('CCG-Prov(Acute)'!$H$1,MATCH(AD$8,'CCG-Prov(Acute)'!$F$2:$F$29012,0)+$A14-1,0),"") -> 64 | AG14: =IF($A14<=AG$7,VLOOKUP(OFFSET('CCG-Prov(Acute)'!$G$1,MATCH(AG$8,'CCG-Prov(Acute)'!$F$2:$F$29012,0)+$A14-1,0),'CCG List'!$A$3:$B$213,2,0),"") -> Chorley & South Ribble | AH14: =IF($A14<=AG$7,OFFSET('CCG-Prov(Acute)'!$H$1,MATCH(AG$8,'CCG-Prov(Acute)'!$F$2:$F$29012,0)+$A14-1,0),"") -> 3217
A15: 6 | B15: =VLOOKUP(D15,provnames!$A$2:$B$331,2,0) -> York Teaching Hospital NHS FT | C15: =IF(A15<=$A$21,OFFSET('CCG-Prov(Acute)'!$C$1,MATCH(Acute!$C$4,'CCG-Prov(Acute)'!$A$2:$A$29012,0)+$A15-1,0),"") -> 114 | D15: =IF(A15<=$A$21,OFFSET('CCG-Prov(Acute)'!$B$1,MATCH(Acute!$C$4,'CCG-Prov(Acute)'!$A$2:$A$29012,0)+$A15-1,0),"") -> RCB | F15: =IF($A15<=F$7,VLOOKUP(OFFSET('CCG-Prov(Acute)'!$G$1,MATCH(F$8,'CCG-Prov(Acute)'!$F$2:$F$29012,0)+$A15-1,0),'CCG List'!$A$3:$B$213,2,0),"") -> North Kirklees | G15: =IF($A15<=F$7,OFFSET('CCG-Prov(Acute)'!$H$1,MATCH(F$8,'CCG-Prov(Acute)'!$F$2:$F$29012,0)+$A15-1,0),"") -> 2689 | I15: =IF($A15<=I$7,VLOOKUP(OFFSET('CCG-Prov(Acute)'!$G$1,MATCH(I$8,'CCG-Prov(Acute)'!$F$2:$F$29012,0)+$A15-1,0),'CCG List'!$A$3:$B$213,2,0),"") -> Bradford Districts | J15: =IF($A15<=I$7,OFFSET('CCG-Prov(Acute)'!$H$1,MATCH(I$8,'CCG-Prov(Acute)'!$F$2:$F$29012,0)+$A15-1,0),"") -> 525 | L15: =IF($A15<=L$7,VLOOKUP(OFFSET('CCG-Prov(Acute)'!$G$1,MATCH(L$8,'CCG-Prov(Acute)'!$F$2:$F$29012,0)+$A15-1,0),'CCG List'!$A$3:$B$213,2,0),"") -> South Worcestershire | M15: =IF($A15<=L$7,OFFSET('CCG-Prov(Acute)'!$H$1,MATCH(L$8,'CCG-Prov(Acute)'!$F$2:$F$29012,0)+$A15-1,0),"") -> 1093 | O15: =IF($A15<=O$7,VLOOKUP(OFFSET('CCG-Prov(Acute)'!$G$1,MATCH(O$8,'CCG-Prov(Acute)'!$F$2:$F$29012,0)+$A15-1,0),'CCG List'!$A$3:$B$213,2,0),"") -> Airedale, Wharfedale & Craven | P15: =IF($A15<=O$7,OFFSET('CCG-Prov(Acute)'!$H$1,MATCH(O$8,'CCG-Prov(Acute)'!$F$2:$F$29012,0)+$A15-1,0),"") -> 389 | R15: =IF($A15<=R$7,VLOOKUP(OFFSET('CCG-Prov(Acute)'!$G$1,MATCH(R$8,'CCG-Prov(Acute)'!$F$2:$F$29012,0)+$A15-1,0),'CCG List'!$A$3:$B$213,2,0),"") -> Greater Huddersfield | S15: =IF($A15<=R$7,OFFSET('CCG-Prov(Acute)'!$H$1,MATCH(R$8,'CCG-Prov(Acute)'!$F$2:$F$29012,0)+$A15-1,0),"") -> 1150 | U15: =IF($A15<=U$7,VLOOKUP(OFFSET('CCG-Prov(Acute)'!$G$1,MATCH(U$8,'CCG-Prov(Acute)'!$F$2:$F$29012,0)+$A15-1,0),'CCG List'!$A$3:$B$213,2,0),"") -> Hambleton, Richmondshire & Whitby | V15: =IF($A15<=U$7,OFFSET('CCG-Prov(Acute)'!$H$1,MATCH(U$8,'CCG-Prov(Acute)'!$F$2:$F$29012,0)+$A15-1,0),"") -> 293 | X15: =IF($A15<=X$7,VLOOKUP(OFFSET('CCG-Prov(Acute)'!$G$1,MATCH(X$8,'CCG-Prov(Acute)'!$F$2:$F$29012,0)+$A15-1,0),'CCG List'!$A$3:$B$213,2,0),"") -> Bassetlaw | Y15: =IF($A15<=X$7,OFFSET('CCG-Prov(Acute)'!$H$1,MATCH(X$8,'CCG-Prov(Acute)'!$F$2:$F$29012,0)+$A15-1,0),"") -> 2830 | AA15: =IF($A15<=AA$7,VLOOKUP(OFFSET('CCG-Prov(Acute)'!$G$1,MATCH(AA$8,'CCG-Prov(Acute)'!$F$2:$F$29012,0)+$A15-1,0),'CCG List'!$A$3:$B$213,2,0),"") -> Doncaster | AB15: =IF($A15<=AA$7,OFFSET('CCG-Prov(Acute)'!$H$1,MATCH(AA$8,'CCG-Prov(Acute)'!$F$2:$F$29012,0)+$A15-1,0),"") -> 478 | AD15: =IF($A15<=AD$7,VLOOKUP(OFFSET('CCG-Prov(Acute)'!$G$1,MATCH(AD$8,'CCG-Prov(Acute)'!$F$2:$F$29012,0)+$A15-1,0),'CCG List'!$A$3:$B$213,2,0),"") -> South Tees | AE15: =IF($A15<=AD$7,OFFSET('CCG-Prov(Acute)'!$H$1,MATCH(AD$8,'CCG-Prov(Acute)'!$F$2:$F$29012,0)+$A15-1,0),"") -> 56 | AG15: =IF($A15<=AG$7,VLOOKUP(OFFSET('CCG-Prov(Acute)'!$G$1,MATCH(AG$8,'CCG-Prov(Acute)'!$F$2:$F$29012,0)+$A15-1,0),'CCG List'!$A$3:$B$213,2,0),"") -> South Tees | AH15: =IF($A15<=AG$7,OFFSET('CCG-Prov(Acute)'!$H$1,MATCH(AG$8,'CCG-Prov(Acute)'!$F$2:$F$29012,0)+$A15-1,0),"") -> 2963
A16: 7 | B16: =VLOOKUP(D16,provnames!$A$2:$B$331,2,0) -> Sheffield Teaching Hospitals NHS FT | C16: =IF(A16<=$A$21,OFFSET('CCG-Prov(Acute)'!$C$1,MATCH(Acute!$C$4,'CCG-Prov(Acute)'!$A$2:$A$29012,0)+$A16-1,0),"") -> 73 | D16: =IF(A16<=$A$21,OFFSET('CCG-Prov(Acute)'!$B$1,MATCH(Acute!$C$4,'CCG-Prov(Acute)'!$A$2:$A$29012,0)+$A16-1,0),"") -> RHQ | F16: =IF($A16<=F$7,VLOOKUP(OFFSET('CCG-Prov(Acute)'!$G$1,MATCH(F$8,'CCG-Prov(Acute)'!$F$2:$F$29012,0)+$A16-1,0),'CCG List'!$A$3:$B$213,2,0),"") -> Bradford Districts | G16: =IF($A16<=F$7,OFFSET('CCG-Prov(Acute)'!$H$1,MATCH(F$8,'CCG-Prov(Acute)'!$F$2:$F$29012,0)+$A16-1,0),"") -> 2673 | I16: =IF($A16<=I$7,VLOOKUP(OFFSET('CCG-Prov(Acute)'!$G$1,MATCH(I$8,'CCG-Prov(Acute)'!$F$2:$F$29012,0)+$A16-1,0),'CCG List'!$A$3:$B$213,2,0),"") -> Greater Huddersfield | J16: =IF($A16<=I$7,OFFSET('CCG-Prov(Acute)'!$H$1,MATCH(I$8,'CCG-Prov(Acute)'!$F$2:$F$29012,0)+$A16-1,0),"") -> 505 | L16: =IF($A16<=L$7,VLOOKUP(OFFSET('CCG-Prov(Acute)'!$G$1,MATCH(L$8,'CCG-Prov(Acute)'!$F$2:$F$29012,0)+$A16-1,0),'CCG List'!$A$3:$B$213,2,0),"") -> Sunderland | M16: =IF($A16<=L$7,OFFSET('CCG-Prov(Acute)'!$H$1,MATCH(L$8,'CCG-Prov(Acute)'!$F$2:$F$29012,0)+$A16-1,0),"") -> 976 | O16: =IF($A16<=O$7,VLOOKUP(OFFSET('CCG-Prov(Acute)'!$G$1,MATCH(O$8,'CCG-Prov(Acute)'!$F$2:$F$29012,0)+$A16-1,0),'CCG List'!$A$3:$B$213,2,0),"") -> Hambleton, Richmondshire & Whitby | P16: =IF($A16<=O$7,OFFSET('CCG-Prov(Acute)'!$H$1,MATCH(O$8,'CCG-Prov(Acute)'!$F$2:$F$29012,0)+$A16-1,0),"") -> 208 | R16: =IF($A16<=R$7,VLOOKUP(OFFSET('CCG-Prov(Acute)'!$G$1,MATCH(R$8,'CCG-Prov(Acute)'!$F$2:$F$29012,0)+$A16-1,0),'CCG List'!$A$3:$B$213,2,0),"") -> North Kirklees | S16: =IF($A16<=R$7,OFFSET('CCG-Prov(Acute)'!$H$1,MATCH(R$8,'CCG-Prov(Acute)'!$F$2:$F$29012,0)+$A16-1,0),"") -> 642 | U16: =IF($A16<=U$7,VLOOKUP(OFFSET('CCG-Prov(Acute)'!$G$1,MATCH(U$8,'CCG-Prov(Acute)'!$F$2:$F$29012,0)+$A16-1,0),'CCG List'!$A$3:$B$213,2,0),"") -> Wakefield | V16: =IF($A16<=U$7,OFFSET('CCG-Prov(Acute)'!$H$1,MATCH(U$8,'CCG-Prov(Acute)'!$F$2:$F$29012,0)+$A16-1,0),"") -> 267 | X16: =IF($A16<=X$7,VLOOKUP(OFFSET('CCG-Prov(Acute)'!$G$1,MATCH(X$8,'CCG-Prov(Acute)'!$F$2:$F$29012,0)+$A16-1,0),'CCG List'!$A$3:$B$213,2,0),"") -> Hardwick | Y16: =IF($A16<=X$7,OFFSET('CCG-Prov(Acute)'!$H$1,MATCH(X$8,'CCG-Prov(Acute)'!$F$2:$F$29012,0)+$A16-1,0),"") -> 1761 | AA16: =IF($A16<=AA$7,VLOOKUP(OFFSET('CCG-Prov(Acute)'!$G$1,MATCH(AA$8,'CCG-Prov(Acute)'!$F$2:$F$29012,0)+$A16-1,0),'CCG List'!$A$3:$B$213,2,0),"") -> Vale of York | AB16: =IF($A16<=AA$7,OFFSET('CCG-Prov(Acute)'!$H$1,MATCH(AA$8,'CCG-Prov(Acute)'!$F$2:$F$29012,0)+$A16-1,0),"") -> 427 | AD16: =IF($A16<=AD$7,VLOOKUP(OFFSET('CCG-Prov(Acute)'!$G$1,MATCH(AD$8,'CCG-Prov(Acute)'!$F$2:$F$29012,0)+$A16-1,0),'CCG List'!$A$3:$B$213,2,0),"") -> Leeds West | AE16: =IF($A16<=AD$7,OFFSET('CCG-Prov(Acute)'!$H$1,MATCH(AD$8,'CCG-Prov(Acute)'!$F$2:$F$29012,0)+$A16-1,0),"") -> 53 | AG16: =IF($A16<=AG$7,VLOOKUP(OFFSET('CCG-Prov(Acute)'!$G$1,MATCH(AG$8,'CCG-Prov(Acute)'!$F$2:$F$29012,0)+$A16-1,0),'CCG List'!$A$3:$B$213,2,0),"") -> East Lancashire | AH16: =IF($A16<=AG$7,OFFSET('CCG-Prov(Acute)'!$H$1,MATCH(AG$8,'CCG-Prov(Acute)'!$F$2:$F$29012,0)+$A16-1,0),"") -> 2910
A17: 8 | B17: =VLOOKUP(D17,provnames!$A$2:$B$331,2,0) -> Northern Lincolnshire & Goole Hospitals NHS FT | C17: =IF(A17<=$A$21,OFFSET('CCG-Prov(Acute)'!$C$1,MATCH(Acute!$C$4,'CCG-Prov(Acute)'!$A$2:$A$29012,0)+$A17-1,0),"") -> 58 | D17: =IF(A17<=$A$21,OFFSET('CCG-Prov(Acute)'!$B$1,MATCH(Acute!$C$4,'CCG-Prov(Acute)'!$A$2:$A$29012,0)+$A17-1,0),"") -> RJL | F17: =IF($A17<=F$7,VLOOKUP(OFFSET('CCG-Prov(Acute)'!$G$1,MATCH(F$8,'CCG-Prov(Acute)'!$F$2:$F$29012,0)+$A17-1,0),'CCG List'!$A$3:$B$213,2,0),"") -> Greater Huddersfield | G17: =IF($A17<=F$7,OFFSET('CCG-Prov(Acute)'!$H$1,MATCH(F$8,'CCG-Prov(Acute)'!$F$2:$F$29012,0)+$A17-1,0),"") -> 2202 | I17: =IF($A17<=I$7,VLOOKUP(OFFSET('CCG-Prov(Acute)'!$G$1,MATCH(I$8,'CCG-Prov(Acute)'!$F$2:$F$29012,0)+$A17-1,0),'CCG List'!$A$3:$B$213,2,0),"") -> Barnsley | J17: =IF($A17<=I$7,OFFSET('CCG-Prov(Acute)'!$H$1,MATCH(I$8,'CCG-Prov(Acute)'!$F$2:$F$29012,0)+$A17-1,0),"") -> 474 | L17: =IF($A17<=L$7,VLOOKUP(OFFSET('CCG-Prov(Acute)'!$G$1,MATCH(L$8,'CCG-Prov(Acute)'!$F$2:$F$29012,0)+$A17-1,0),'CCG List'!$A$3:$B$213,2,0),"") -> Southend | M17: =IF($A17<=L$7,OFFSET('CCG-Prov(Acute)'!$H$1,MATCH(L$8,'CCG-Prov(Acute)'!$F$2:$F$29012,0)+$A17-1,0),"") -> 912 | O17: =IF($A17<=O$7,VLOOKUP(OFFSET('CCG-Prov(Acute)'!$G$1,MATCH(O$8,'CCG-Prov(Acute)'!$F$2:$F$29012,0)+$A17-1,0),'CCG List'!$A$3:$B$213,2,0),"") -> Bradford Districts | P17: =IF($A17<=O$7,OFFSET('CCG-Prov(Acute)'!$H$1,MATCH(O$8,'CCG-Prov(Acute)'!$F$2:$F$29012,0)+$A17-1,0),"") -> 74 | R17: =IF($A17<=R$7,VLOOKUP(OFFSET('CCG-Prov(Acute)'!$G$1,MATCH(R$8,'CCG-Prov(Acute)'!$F$2:$F$29012,0)+$A17-1,0),'CCG List'!$A$3:$B$213,2,0),"") -> East Lancashire | S17: =IF($A17<=R$7,OFFSET('CCG-Prov(Acute)'!$H$1,MATCH(R$8,'CCG-Prov(Acute)'!$F$2:$F$29012,0)+$A17-1,0),"") -> 450 | U17: =IF($A17<=U$7,VLOOKUP(OFFSET('CCG-Prov(Acute)'!$G$1,MATCH(U$8,'CCG-Prov(Acute)'!$F$2:$F$29012,0)+$A17-1,0),'CCG List'!$A$3:$B$213,2,0),"") -> Leeds South & East | V17: =IF($A17<=U$7,OFFSET('CCG-Prov(Acute)'!$H$1,MATCH(U$8,'CCG-Prov(Acute)'!$F$2:$F$29012,0)+$A17-1,0),"") -> 114 | X17: =IF($A17<=X$7,VLOOKUP(OFFSET('CCG-Prov(Acute)'!$G$1,MATCH(X$8,'CCG-Prov(Acute)'!$F$2:$F$29012,0)+$A17-1,0),'CCG List'!$A$3:$B$213,2,0),"") -> North Lincolnshire | Y17: =IF($A17<=X$7,OFFSET('CCG-Prov(Acute)'!$H$1,MATCH(X$8,'CCG-Prov(Acute)'!$F$2:$F$29012,0)+$A17-1,0),"") -> 523 | AA17: =IF($A17<=AA$7,VLOOKUP(OFFSET('CCG-Prov(Acute)'!$G$1,MATCH(AA$8,'CCG-Prov(Acute)'!$F$2:$F$29012,0)+$A17-1,0),'CCG List'!$A$3:$B$213,2,0),"") -> Wakefield | AB17: =IF($A17<=AA$7,OFFSET('CCG-Prov(Acute)'!$H$1,MATCH(AA$8,'CCG-Prov(Acute)'!$F$2:$F$29012,0)+$A17-1,0),"") -> 189 | AD17: =IF($A17<=AD$7,VLOOKUP(OFFSET('CCG-Prov(Acute)'!$G$1,MATCH(AD$8,'CCG-Prov(Acute)'!$F$2:$F$29012,0)+$A17-1,0),'CCG List'!$A$3:$B$213,2,0),"") -> Wakefield | AE17: =IF($A17<=AD$7,OFFSET('CCG-Prov(Acute)'!$H$1,MATCH(AD$8,'CCG-Prov(Acute)'!$F$2:$F$29012,0)+$A17-1,0),"") -> 53 | AG17: =IF($A17<=AG$7,VLOOKUP(OFFSET('CCG-Prov(Acute)'!$G$1,MATCH(AG$8,'CCG-Prov(Acute)'!$F$2:$F$29012,0)+$A17-1,0),'CCG List'!$A$3:$B$213,2,0),"") -> Nene | AH17: =IF($A17<=AG$7,OFFSET('CCG-Prov(Acute)'!$H$1,MATCH(AG$8,'CCG-Prov(Acute)'!$F$2:$F$29012,0)+$A17-1,0),"") -> 2675
A18: 9 | B18: =VLOOKUP(D18,provnames!$A$2:$B$331,2,0) -> Scarborough & NE Yorkshire Health Care NHS Trust | C18: =IF(A18<=$A$21,OFFSET('CCG-Prov(Acute)'!$C$1,MATCH(Acute!$C$4,'CCG-Prov(Acute)'!$A$2:$A$29012,0)+$A18-1,0),"") -> 46 | D18: =IF(A18<=$A$21,OFFSET('CCG-Prov(Acute)'!$B$1,MATCH(Acute!$C$4,'CCG-Prov(Acute)'!$A$2:$A$29012,0)+$A18-1,0),"") -> RCC | F18: =IF($A18<=F$7,VLOOKUP(OFFSET('CCG-Prov(Acute)'!$G$1,MATCH(F$8,'CCG-Prov(Acute)'!$F$2:$F$29012,0)+$A18-1,0),'CCG List'!$A$3:$B$213,2,0),"") -> Airedale, Wharfedale & Craven | G18: =IF($A18<=F$7,OFFSET('CCG-Prov(Acute)'!$H$1,MATCH(F$8,'CCG-Prov(Acute)'!$F$2:$F$29012,0)+$A18-1,0),"") -> 1957 | I18: =IF($A18<=I$7,VLOOKUP(OFFSET('CCG-Prov(Acute)'!$G$1,MATCH(I$8,'CCG-Prov(Acute)'!$F$2:$F$29012,0)+$A18-1,0),'CCG List'!$A$3:$B$213,2,0),"") -> East Riding of Yorkshire | J18: =IF($A18<=I$7,OFFSET('CCG-Prov(Acute)'!$H$1,MATCH(I$8,'CCG-Prov(Acute)'!$F$2:$F$29012,0)+$A18-1,0),"") -> 458 | L18: =IF($A18<=L$7,VLOOKUP(OFFSET('CCG-Prov(Acute)'!$G$1,MATCH(L$8,'CCG-Prov(Acute)'!$F$2:$F$29012,0)+$A18-1,0),'CCG List'!$A$3:$B$213,2,0),"") -> Birmingham CrossCity | M18: =IF($A18<=L$7,OFFSET('CCG-Prov(Acute)'!$H$1,MATCH(L$8,'CCG-Prov(Acute)'!$F$2:$F$29012,0)+$A18-1,0),"") -> 893 | O18: =IF($A18<=O$7,VLOOKUP(OFFSET('CCG-Prov(Acute)'!$G$1,MATCH(O$8,'CCG-Prov(Acute)'!$F$2:$F$29012,0)+$A18-1,0),'CCG List'!$A$3:$B$213,2,0),"") -> Wakefield | P18: =IF($A18<=O$7,OFFSET('CCG-Prov(Acute)'!$H$1,MATCH(O$8,'CCG-Prov(Acute)'!$F$2:$F$29012,0)+$A18-1,0),"") -> 65 | R18: =IF($A18<=R$7,VLOOKUP(OFFSET('CCG-Prov(Acute)'!$G$1,MATCH(R$8,'CCG-Prov(Acute)'!$F$2:$F$29012,0)+$A18-1,0),'CCG List'!$A$3:$B$213,2,0),"") -> Leeds North | S18: =IF($A18<=R$7,OFFSET('CCG-Prov(Acute)'!$H$1,MATCH(R$8,'CCG-Prov(Acute)'!$F$2:$F$29012,0)+$A18-1,0),"") -> 294 | U18: =IF($A18<=U$7,VLOOKUP(OFFSET('CCG-Prov(Acute)'!$G$1,MATCH(U$8,'CCG-Prov(Acute)'!$F$2:$F$29012,0)+$A18-1,0),'CCG List'!$A$3:$B$213,2,0),"") -> Leeds West | V18: =IF($A18<=U$7,OFFSET('CCG-Prov(Acute)'!$H$1,MATCH(U$8,'CCG-Prov(Acute)'!$F$2:$F$29012,0)+$A18-1,0),"") -> 64 | X18: =IF($A18<=X$7,VLOOKUP(OFFSET('CCG-Prov(Acute)'!$G$1,MATCH(X$8,'CCG-Prov(Acute)'!$F$2:$F$29012,0)+$A18-1,0),'CCG List'!$A$3:$B$213,2,0),"") -> Wakefield | Y18: =IF($A18<=X$7,OFFSET('CCG-Prov(Acute)'!$H$1,MATCH(X$8,'CCG-Prov(Acute)'!$F$2:$F$29012,0)+$A18-1,0),"") -> 478 | AA18: =IF($A18<=AA$7,VLOOKUP(OFFSET('CCG-Prov(Acute)'!$G$1,MATCH(AA$8,'CCG-Prov(Acute)'!$F$2:$F$29012,0)+$A18-1,0),'CCG List'!$A$3:$B$213,2,0),"") -> Hull | AB18: =IF($A18<=AA$7,OFFSET('CCG-Prov(Acute)'!$H$1,MATCH(AA$8,'CCG-Prov(Acute)'!$F$2:$F$29012,0)+$A18-1,0),"") -> 165 | AD18: =IF($A18<=AD$7,VLOOKUP(OFFSET('CCG-Prov(Acute)'!$G$1,MATCH(AD$8,'CCG-Prov(Acute)'!$F$2:$F$29012,0)+$A18-1,0),'CCG List'!$A$3:$B$213,2,0),"") -> Leeds South & East | AE18: =IF($A18<=AD$7,OFFSET('CCG-Prov(Acute)'!$H$1,MATCH(AD$8,'CCG-Prov(Acute)'!$F$2:$F$29012,0)+$A18-1,0),"") -> 46 | AG18: =IF($A18<=AG$7,VLOOKUP(OFFSET('CCG-Prov(Acute)'!$G$1,MATCH(AG$8,'CCG-Prov(Acute)'!$F$2:$F$29012,0)+$A18-1,0),'CCG List'!$A$3:$B$213,2,0),"") -> Mid Essex | AH18: =IF($A18<=AG$7,OFFSET('CCG-Prov(Acute)'!$H$1,MATCH(AG$8,'CCG-Prov(Acute)'!$F$2:$F$29012,0)+$A18-1,0),"") -> 2362
A19: 10 | B19: =VLOOKUP(D19,provnames!$A$2:$B$331,2,0) -> Ramsay Healthcare UK Operations Ltd | C19: =IF(A19<=$A$21,OFFSET('CCG-Prov(Acute)'!$C$1,MATCH(Acute!$C$4,'CCG-Prov(Acute)'!$A$2:$A$29012,0)+$A19-1,0),"") -> 40 | D19: =IF(A19<=$A$21,OFFSET('CCG-Prov(Acute)'!$B$1,MATCH(Acute!$C$4,'CCG-Prov(Acute)'!$A$2:$A$29012,0)+$A19-1,0),"") -> NVC | F19: =IF($A19<=F$7,VLOOKUP(OFFSET('CCG-Prov(Acute)'!$G$1,MATCH(F$8,'CCG-Prov(Acute)'!$F$2:$F$29012,0)+$A19-1,0),'CCG List'!$A$3:$B$213,2,0),"") -> Harrogate & Rural District | G19: =IF($A19<=F$7,OFFSET('CCG-Prov(Acute)'!$H$1,MATCH(F$8,'CCG-Prov(Acute)'!$F$2:$F$29012,0)+$A19-1,0),"") -> 1896 | I19: =IF($A19<=I$7,VLOOKUP(OFFSET('CCG-Prov(Acute)'!$G$1,MATCH(I$8,'CCG-Prov(Acute)'!$F$2:$F$29012,0)+$A19-1,0),'CCG List'!$A$3:$B$213,2,0),"") -> Calderdale | J19: =IF($A19<=I$7,OFFSET('CCG-Prov(Acute)'!$H$1,MATCH(I$8,'CCG-Prov(Acute)'!$F$2:$F$29012,0)+$A19-1,0),"") -> 173 | L19: =IF($A19<=L$7,VLOOKUP(OFFSET('CCG-Prov(Acute)'!$G$1,MATCH(L$8,'CCG-Prov(Acute)'!$F$2:$F$29012,0)+$A19-1,0),'CCG List'!$A$3:$B$213,2,0),"") -> Leicester City | M19: =IF($A19<=L$7,OFFSET('CCG-Prov(Acute)'!$H$1,MATCH(L$8,'CCG-Prov(Acute)'!$F$2:$F$29012,0)+$A19-1,0),"") -> 783 | O19: =IF($A19<=O$7,VLOOKUP(OFFSET('CCG-Prov(Acute)'!$G$1,MATCH(O$8,'CCG-Prov(Acute)'!$F$2:$F$29012,0)+$A19-1,0),'CCG List'!$A$3:$B$213,2,0),"") -> Scarborough & Ryedale | P19: =IF($A19<=O$7,OFFSET('CCG-Prov(Acute)'!$H$1,MATCH(O$8,'CCG-Prov(Acute)'!$F$2:$F$29012,0)+$A19-1,0),"") -> 48 | R19: =IF($A19<=R$7,VLOOKUP(OFFSET('CCG-Prov(Acute)'!$G$1,MATCH(R$8,'CCG-Prov(Acute)'!$F$2:$F$29012,0)+$A19-1,0),'CCG List'!$A$3:$B$213,2,0),"") -> Wakefield | S19: =IF($A19<=R$7,OFFSET('CCG-Prov(Acute)'!$H$1,MATCH(R$8,'CCG-Prov(Acute)'!$F$2:$F$29012,0)+$A19-1,0),"") -> 142 | U19: =IF($A19<=U$7,VLOOKUP(OFFSET('CCG-Prov(Acute)'!$G$1,MATCH(U$8,'CCG-Prov(Acute)'!$F$2:$F$29012,0)+$A19-1,0),'CCG List'!$A$3:$B$213,2,0),"") -> Hull | V19: =IF($A19<=U$7,OFFSET('CCG-Prov(Acute)'!$H$1,MATCH(U$8,'CCG-Prov(Acute)'!$F$2:$F$29012,0)+$A19-1,0),"") -> 48 | X19: =IF($A19<=X$7,VLOOKUP(OFFSET('CCG-Prov(Acute)'!$G$1,MATCH(X$8,'CCG-Prov(Acute)'!$F$2:$F$29012,0)+$A19-1,0),'CCG List'!$A$3:$B$213,2,0),"") -> Lincolnshire West | Y19: =IF($A19<=X$7,OFFSET('CCG-Prov(Acute)'!$H$1,MATCH(X$8,'CCG-Prov(Acute)'!$F$2:$F$29012,0)+$A19-1,0),"") -> 420 | AA19: =IF($A19<=AA$7,VLOOKUP(OFFSET('CCG-Prov(Acute)'!$G$1,MATCH(AA$8,'CCG-Prov(Acute)'!$F$2:$F$29012,0)+$A19-1,0),'CCG List'!$A$3:$B$213,2,0),"") -> South West Lincolnshire | AB19: =IF($A19<=AA$7,OFFSET('CCG-Prov(Acute)'!$H$1,MATCH(AA$8,'CCG-Prov(Acute)'!$F$2:$F$29012,0)+$A19-1,0),"") -> 86 | AD19: =IF($A19<=AD$7,VLOOKUP(OFFSET('CCG-Prov(Acute)'!$G$1,MATCH(AD$8,'CCG-Prov(Acute)'!$F$2:$F$29012,0)+$A19-1,0),'CCG List'!$A$3:$B$213,2,0),"") -> Barnsley | AE19: =IF($A19<=AD$7,OFFSET('CCG-Prov(Acute)'!$H$1,MATCH(AD$8,'CCG-Prov(Acute)'!$F$2:$F$29012,0)+$A19-1,0),"") -> 44 | AG19: =IF($A19<=AG$7,VLOOKUP(OFFSET('CCG-Prov(Acute)'!$G$1,MATCH(AG$8,'CCG-Prov(Acute)'!$F$2:$F$29012,0)+$A19-1,0),'CCG List'!$A$3:$B$213,2,0),"") -> North East Essex | AH19: =IF($A19<=AG$7,OFFSET('CCG-Prov(Acute)'!$H$1,MATCH(AG$8,'CCG-Prov(Acute)'!$F$2:$F$29012,0)+$A19-1,0),"") -> 2123
B20: Others | C20: =C21-SUM(C10:C19) -> 643 | F20: Other | G20: =G21-SUM(G10:G19) -> 8766 | I20: Other | J20: =J21-SUM(J10:J19) -> 1091 | L20: Other | M20: =M21-SUM(M10:M19) -> 25819 | O20: Other | P20: =P21-SUM(P10:P19) -> 512 | R20: Other | S20: =S21-SUM(S10:S19) -> 1211 | U20: Other | V20: =V21-SUM(V10:V19) -> 798 | X20: Other | Y20: =Y21-SUM(Y10:Y19) -> 5886 | AA20: Other | AB20: =AB21-SUM(AB10:AB19) -> 715 | AD20: Other | AE20: =AE21-SUM(AE10:AE19) -> 742 | AG20: Other | AH20: =AH21-SUM(AH10:AH19) -> 51057
A21: =MIN(VLOOKUP(C4,'CCG List'!$A$3:$D$213,3,0),10) -> 10 | B21: Total | C21: =SUMIF('CCG-Prov(Acute)'!$A$2:$A$29012,C4,'CCG-Prov(Acute)'!$C$2:$C$29012) -> 58723 | F21: Total | G21: =SUMIF('CCG-Prov(Acute)'!$F$2:$F$29012,F8,'CCG-Prov(Acute)'!$H$2:$H$29012) -> 167109 | I21: Total | J21: =SUMIF('CCG-Prov(Acute)'!$F$2:$F$29012,I8,'CCG-Prov(Acute)'!$H$2:$H$29012) -> 112298 | L21: Total | M21: =SUMIF('CCG-Prov(Acute)'!$F$2:$F$29012,L8,'CCG-Prov(Acute)'!$H$2:$H$29012) -> 37724 | O21: Total | P21: =SUMIF('CCG-Prov(Acute)'!$F$2:$F$29012,O8,'CCG-Prov(Acute)'!$H$2:$H$29012) -> 38505 | R21: Total | S21: =SUMIF('CCG-Prov(Acute)'!$F$2:$F$29012,R8,'CCG-Prov(Acute)'!$H$2:$H$29012) -> 92077 | U21: Total | V21: =SUMIF('CCG-Prov(Acute)'!$F$2:$F$29012,U8,'CCG-Prov(Acute)'!$H$2:$H$29012) -> 65434 | X21: Total | Y21: =SUMIF('CCG-Prov(Acute)'!$F$2:$F$29012,X8,'CCG-Prov(Acute)'!$H$2:$H$29012) -> 151910 | AA21: Total | AB21: =SUMIF('CCG-Prov(Acute)'!$F$2:$F$29012,AA8,'CCG-Prov(Acute)'!$H$2:$H$29012) -> 81388 | AD21: Total | AE21: =SUMIF('CCG-Prov(Acute)'!$F$2:$F$29012,AD8,'CCG-Prov(Acute)'!$H$2:$H$29012) -> 35452 | AG21: Total | AH21: =SUMIF('CCG-Prov(Acute)'!$F$2:$F$29012,AG8,'CCG-Prov(Acute)'!$H$2:$H$29012) -> 86262
B27: 0
B28: 500
B29: 1000
B30: 5000
B31: The first table shows the providers that a CCG's population were admitted to. The other tables then show which other CCGs that those providers have treated.
L35: =IFERROR(RANK(F35,#REF!),"") ->  | M35: =IFERROR(RANK(G35,#REF!),"") ->  | O35: =IFERROR(RANK(I35,#REF!),"") ->  | P35: =IFERROR(RANK(J35,#REF!),"") -> 

Sheet Maternity
B2: Deliveries
B3: Select CCG below
B4: Leeds South & East | C4: =OFFSET('CCG List'!$A$2,MATCH(B4,collabrange,0),0) -> 03G
B6: Select deliveries cutoff for providers to be tabulated (up to 10 will be shown) | F6: =COLUMN() -> 6 | G6: =COLUMN() -> 7 | H6: =COLUMN() -> 8 | I6: =COLUMN() -> 9 | J6: =COLUMN() -> 10 | K6: =COLUMN() -> 11 | L6: =COLUMN() -> 12 | M6: =COLUMN() -> 13 | N6: =COLUMN() -> 14 | O6: =COLUMN() -> 15 | P6: =COLUMN() -> 16 | Q6: =COLUMN() -> 17 | R6: =COLUMN() -> 18 | S6: =COLUMN() -> 19 | T6: =COLUMN() -> 20 | U6: =COLUMN() -> 21 | V6: =COLUMN() -> 22 | W6: =COLUMN() -> 23 | X6: =COLUMN() -> 24 | Y6: =COLUMN() -> 25 | Z6: =COLUMN() -> 26 | AA6: =COLUMN() -> 27 | AB6: =COLUMN() -> 28 | AC6: =COLUMN() -> 29 | AD6: =COLUMN() -> 30 | AE6: =COLUMN() -> 31 | AF6: =COLUMN() -> 32 | AG6: =COLUMN() -> 33 | AH6: =COLUMN() -> 34
B7: 50 | C7: Deliveries | F7: =VLOOKUP(F8,'CCG List'!$AO$3:$AQ$157,3,0) -> 72 | I7: =VLOOKUP(I8,'CCG List'!$AO$3:$AQ$157,3,0) -> 38 | L7: =VLOOKUP(L8,'CCG List'!$AO$3:$AQ$157,3,0) -> 25 | O7: =VLOOKUP(O8,'CCG List'!$AO$3:$AQ$157,3,0) -> 40 | R7: =VLOOKUP(R8,'CCG List'!$AO$3:$AQ$157,3,0) -> 39 | U7: =VLOOKUP(U8,'CCG List'!$AO$3:$AQ$157,3,0) -> 28 | X7: =VLOOKUP(X8,'CCG List'!$AO$3:$AQ$157,3,0) -> 40 | AA7: =VLOOKUP(AA8,'CCG List'!$AO$3:$AQ$157,3,0) -> 42 | AD7: =VLOOKUP(AD8,'CCG List'!$AO$3:$AQ$157,3,0) -> 46 | AG7: =VLOOKUP(AG8,'CCG List'!$AO$3:$AQ$157,3,0) -> 35
F8: =OFFSET($D$9,F6/3-1,0) -> RR8 | I8: =OFFSET($D$9,I6/3-1,0) -> RXF | L8: =OFFSET($D$9,L6/3-1,0) -> RCD | O8: =OFFSET($D$9,O6/3-1,0) -> RCB | R8: =OFFSET($D$9,R6/3-1,0) -> RFF | U8: =OFFSET($D$9,U6/3-1,0) -> RWY | X8: =OFFSET($D$9,X6/3-1,0) -> RP5 | AA8: =OFFSET($D$9,AA6/3-1,0) -> RAE | AD8: =OFFSET($D$9,AD6/3-1,0) -> RAS | AG8: =OFFSET($D$9,AG6/3-1,0) -> RCC
B9: ="Providers (ordered by total number of Births) for "&B4&" CCG" -> Providers (ordered by total number of Births) for Leeds South & East CCG | C9: Number of Births | D9: =COUNTIF(C10:C19,">="&B7) -> 2 | F9: =OFFSET($B$9,F6/3-1,0) -> Leeds Teaching Hospitals NHS Trust | G9: No. of Births | I9: =OFFSET($B$9,I6/3-1,0) -> Mid Yorkshire Hospitals NHS Trust | J9: No. of Births | L9: =OFFSET($B$9,L6/3-1,0) -> Harrogate & District NHS FT | M9: No. of Births | O9: =OFFSET($B$9,O6/3-1,0) -> York Teaching Hospital NHS FT | P9: No. of Births | R9: =OFFSET($B$9,R6/3-1,0) -> Barnsley Hospital NHS FT | S9: No. of Births | U9: =OFFSET($B$9,U6/3-1,0) -> Calderdale & Huddersfield NHS FT | V9: No. of Births | X9: =OFFSET($B$9,X6/3-1,0) -> Doncaster & Bassetlaw Hospitals NHS FT | Y9: No. of Births | AA9: =OFFSET($B$9,AA6/3-1,0) -> Bradford Teaching Hospitals NHS FT | AB9: No. of Births | AD9: =OFFSET($B$9,AD6/3-1,0) -> The Hillingdon Hospitals NHS FT | AE9: No. of Births | AG9: =OFFSET($B$9,AG6/3-1,0) -> Scarborough & NE Yorkshire Health Care NHS Trust | AH9: No. of Births
A10: 1 | B10: =VLOOKUP(D10,provnames!$A$2:$B$332,2,0) -> Leeds Teaching Hospitals NHS Trust | C10: =IF(A10<=$A$21,OFFSET('CCG-Prov(Births)'!$C$1,MATCH(Maternity!$C$4,'CCG-Prov(Births)'!$A$2:$A$6150,0)+$A10-1,0),"") -> 3793 | D10: =IF(A10<=$A$21,OFFSET('CCG-Prov(Births)'!$B$1,MATCH(Maternity!$C$4,'CCG-Prov(Births)'!$A$2:$A$6150,0)+$A10-1,0),"") -> RR8 | F10: =IF($A10<=F$7,VLOOKUP(OFFSET('CCG-Prov(Births)'!$H$1,MATCH(F$8,'CCG-Prov(Births)'!$G$2:$G$28861,0)+$A10-1,0),'CCG List'!$A$3:$B$213,2,0),"") -> Leeds West | G10: =IF($A10<=F$7,OFFSET('CCG-Prov(Births)'!$I$1,MATCH(F$8,'CCG-Prov(Births)'!$G$2:$G$28861,0)+$A10-1,0),"") -> 4000 | I10: =IF($A10<=I$7,VLOOKUP(OFFSET('CCG-Prov(Births)'!$H$1,MATCH(I$8,'CCG-Prov(Births)'!$G$2:$G$28861,0)+$A10-1,0),'CCG List'!$A$3:$B$213,2,0),"") -> Wakefield | J10: =IF($A10<=I$7,OFFSET('CCG-Prov(Births)'!$I$1,MATCH(I$8,'CCG-Prov(Births)'!$G$2:$G$28861,0)+$A10-1,0),"") -> 4139 | L10: =IF($A10<=L$7,VLOOKUP(OFFSET('CCG-Prov(Births)'!$H$1,MATCH(L$8,'CCG-Prov(Births)'!$G$2:$G$28861,0)+$A10-1,0),'CCG List'!$A$3:$B$213,2,0),"") -> Harrogate & Rural District | M10: =IF($A10<=L$7,OFFSET('CCG-Prov(Births)'!$I$1,MATCH(L$8,'CCG-Prov(Births)'!$G$2:$G$28861,0)+$A10-1,0),"") -> 1324 | O10: =IF($A10<=O$7,VLOOKUP(OFFSET('CCG-Prov(Births)'!$H$1,MATCH(O$8,'CCG-Prov(Births)'!$G$2:$G$28861,0)+$A10-1,0),'CCG List'!$A$3:$B$213,2,0),"") -> Vale of York | P10: =IF($A10<=O$7,OFFSET('CCG-Prov(Births)'!$I$1,MATCH(O$8,'CCG-Prov(Births)'!$G$2:$G$28861,0)+$A10-1,0),"") -> 3304 | R10: =IF($A10<=R$7,VLOOKUP(OFFSET('CCG-Prov(Births)'!$H$1,MATCH(R$8,'CCG-Prov(Births)'!$G$2:$G$28861,0)+$A10-1,0),'CCG List'!$A$3:$B$213,2,0),"") -> Barnsley | S10: =IF($A10<=R$7,OFFSET('CCG-Prov(Births)'!$I$1,MATCH(R$8,'CCG-Prov(Births)'!$G$2:$G$28861,0)+$A10-1,0),"") -> 3806 | U10: =IF($A10<=U$7,VLOOKUP(OFFSET('CCG-Prov(Births)'!$H$1,MATCH(U$8,'CCG-Prov(Births)'!$G$2:$G$28861,0)+$A10-1,0),'CCG List'!$A$3:$B$213,2,0),"") -> Greater Huddersfield | V10: =IF($A10<=U$7,OFFSET('CCG-Prov(Births)'!$I$1,MATCH(U$8,'CCG-Prov(Births)'!$G$2:$G$28861,0)+$A10-1,0),"") -> 3071 | X10: =IF($A10<=X$7,VLOOKUP(OFFSET('CCG-Prov(Births)'!$H$1,MATCH(X$8,'CCG-Prov(Births)'!$G$2:$G$28861,0)+$A10-1,0),'CCG List'!$A$3:$B$213,2,0),"") -> Doncaster | Y10: =IF($A10<=X$7,OFFSET('CCG-Prov(Births)'!$I$1,MATCH(X$8,'CCG-Prov(Births)'!$G$2:$G$28861,0)+$A10-1,0),"") -> 3922 | AA10: =IF($A10<=AA$7,VLOOKUP(OFFSET('CCG-Prov(Births)'!$H$1,MATCH(AA$8,'CCG-Prov(Births)'!$G$2:$G$28861,0)+$A10-1,0),'CCG List'!$A$3:$B$213,2,0),"") -> Bradford Districts | AB10: =IF($A10<=AA$7,OFFSET('CCG-Prov(Births)'!$I$1,MATCH(AA$8,'CCG-Prov(Births)'!$G$2:$G$28861,0)+$A10-1,0),"") -> 3531 | AD10: =IF($A10<=AD$7,VLOOKUP(OFFSET('CCG-Prov(Births)'!$H$1,MATCH(AD$8,'CCG-Prov(Births)'!$G$2:$G$28861,0)+$A10-1,0),'CCG List'!$A$3:$B$213,2,0),"") -> Hillingdon | AE10: =IF($A10<=AD$7,OFFSET('CCG-Prov(Births)'!$I$1,MATCH(AD$8,'CCG-Prov(Births)'!$G$2:$G$28861,0)+$A10-1,0),"") -> 3374 | AG10: =IF($A10<=AG$7,VLOOKUP(OFFSET('CCG-Prov(Births)'!$H$1,MATCH(AG$8,'CCG-Prov(Births)'!$G$2:$G$28861,0)+$A10-1,0),'CCG List'!$A$3:$B$213,2,0),"") -> Scarborough & Ryedale | AH10: =IF($A10<=AG$7,OFFSET('CCG-Prov(Births)'!$I$1,MATCH(AG$8,'CCG-Prov(Births)'!$G$2:$G$28861,0)+$A10-1,0),"") -> 1123
A11: 2 | B11: =VLOOKUP(D11,provnames!$A$2:$B$332,2,0) -> Mid Yorkshire Hospitals NHS Trust | C11: =IF(A11<=$A$21,OFFSET('CCG-Prov(Births)'!$C$1,MATCH(Maternity!$C$4,'CCG-Prov(Births)'!$A$2:$A$6150,0)+$A11-1,0),"") -> 140 | D11: =IF(A11<=$A$21,OFFSET('CCG-Prov(Births)'!$B$1,MATCH(Maternity!$C$4,'CCG-Prov(Births)'!$A$2:$A$6150,0)+$A11-1,0),"") -> RXF | F11: =IF($A11<=F$7,VLOOKUP(OFFSET('CCG-Prov(Births)'!$H$1,MATCH(F$8,'CCG-Prov(Births)'!$G$2:$G$28861,0)+$A11-1,0),'CCG List'!$A$3:$B$213,2,0),"") -> Leeds South & East | G11: =IF($A11<=F$7,OFFSET('CCG-Prov(Births)'!$I$1,MATCH(F$8,'CCG-Prov(Births)'!$G$2:$G$28861,0)+$A11-1,0),"") -> 3793 | I11: =IF($A11<=I$7,VLOOKUP(OFFSET('CCG-Prov(Births)'!$H$1,MATCH(I$8,'CCG-Prov(Births)'!$G$2:$G$28861,0)+$A11-1,0),'CCG List'!$A$3:$B$213,2,0),"") -> North Kirklees | J11: =IF($A11<=I$7,OFFSET('CCG-Prov(Births)'!$I$1,MATCH(I$8,'CCG-Prov(Births)'!$G$2:$G$28861,0)+$A11-1,0),"") -> 2615 | L11: =IF($A11<=L$7,VLOOKUP(OFFSET('CCG-Prov(Births)'!$H$1,MATCH(L$8,'CCG-Prov(Births)'!$G$2:$G$28861,0)+$A11-1,0),'CCG List'!$A$3:$B$213,2,0),"") -> Leeds North | M11: =IF($A11<=L$7,OFFSET('CCG-Prov(Births)'!$I$1,MATCH(L$8,'CCG-Prov(Births)'!$G$2:$G$28861,0)+$A11-1,0),"") -> 409 | O11: =IF($A11<=O$7,VLOOKUP(OFFSET('CCG-Prov(Births)'!$H$1,MATCH(O$8,'CCG-Prov(Births)'!$G$2:$G$28861,0)+$A11-1,0),'CCG List'!$A$3:$B$213,2,0),"") -> East Riding of Yorkshire | P11: =IF($A11<=O$7,OFFSET('CCG-Prov(Births)'!$I$1,MATCH(O$8,'CCG-Prov(Births)'!$G$2:$G$28861,0)+$A11-1,0),"") -> 128 | R11: =IF($A11<=R$7,VLOOKUP(OFFSET('CCG-Prov(Births)'!$H$1,MATCH(R$8,'CCG-Prov(Births)'!$G$2:$G$28861,0)+$A11-1,0),'CCG List'!$A$3:$B$213,2,0),"") -> Greater Huddersfield | S11: =IF($A11<=R$7,OFFSET('CCG-Prov(Births)'!$I$1,MATCH(R$8,'CCG-Prov(Births)'!$G$2:$G$28861,0)+$A11-1,0),"") -> 219 | U11: =IF($A11<=U$7,VLOOKUP(OFFSET('CCG-Prov(Births)'!$H$1,MATCH(U$8,'CCG-Prov(Births)'!$G$2:$G$28861,0)+$A11-1,0),'CCG List'!$A$3:$B$213,2,0),"") -> Calderdale | V11: =IF($A11<=U$7,OFFSET('CCG-Prov(Births)'!$I$1,MATCH(U$8,'CCG-Prov(Births)'!$G$2:$G$28861,0)+$A11-1,0),"") -> 2929 | X11: =IF($A11<=X$7,VLOOKUP(OFFSET('CCG-Prov(Births)'!$H$1,MATCH(X$8,'CCG-Prov(Births)'!$G$2:$G$28861,0)+$A11-1,0),'CCG List'!$A$3:$B$213,2,0),"") -> Bassetlaw | Y11: =IF($A11<=X$7,OFFSET('CCG-Prov(Births)'!$I$1,MATCH(X$8,'CCG-Prov(Births)'!$G$2:$G$28861,0)+$A11-1,0),"") -> 1267 | AA11: =IF($A11<=AA$7,VLOOKUP(OFFSET('CCG-Prov(Births)'!$H$1,MATCH(AA$8,'CCG-Prov(Births)'!$G$2:$G$28861,0)+$A11-1,0),'CCG List'!$A$3:$B$213,2,0),"") -> Bradford City | AB11: =IF($A11<=AA$7,OFFSET('CCG-Prov(Births)'!$I$1,MATCH(AA$8,'CCG-Prov(Births)'!$G$2:$G$28861,0)+$A11-1,0),"") -> 2241 | AD11: =IF($A11<=AD$7,VLOOKUP(OFFSET('CCG-Prov(Births)'!$H$1,MATCH(AD$8,'CCG-Prov(Births)'!$G$2:$G$28861,0)+$A11-1,0),'CCG List'!$A$3:$B$213,2,0),"") -> Ealing | AE11: =IF($A11<=AD$7,OFFSET('CCG-Prov(Births)'!$I$1,MATCH(AD$8,'CCG-Prov(Births)'!$G$2:$G$28861,0)+$A11-1,0),"") -> 471 | AG11: =IF($A11<=AG$7,VLOOKUP(OFFSET('CCG-Prov(Births)'!$H$1,MATCH(AG$8,'CCG-Prov(Births)'!$G$2:$G$28861,0)+$A11-1,0),'CCG List'!$A$3:$B$213,2,0),"") -> East Riding of Yorkshire | AH11: =IF($A11<=AG$7,OFFSET('CCG-Prov(Births)'!$I$1,MATCH(AG$8,'CCG-Prov(Births)'!$G$2:$G$28861,0)+$A11-1,0),"") -> 440
A12: 3 | B12: =VLOOKUP(D12,provnames!$A$2:$B$332,2,0) -> Harrogate & District NHS FT | C12: =IF(A12<=$A$21,OFFSET('CCG-Prov(Births)'!$C$1,MATCH(Maternity!$C$4,'CCG-Prov(Births)'!$A$2:$A$6150,0)+$A12-1,0),"") -> 14 | D12: =IF(A12<=$A$21,OFFSET('CCG-Prov(Births)'!$B$1,MATCH(Maternity!$C$4,'CCG-Prov(Births)'!$A$2:$A$6150,0)+$A12-1,0),"") -> RCD | F12: =IF($A12<=F$7,VLOOKUP(OFFSET('CCG-Prov(Births)'!$H$1,MATCH(F$8,'CCG-Prov(Births)'!$G$2:$G$28861,0)+$A12-1,0),'CCG List'!$A$3:$B$213,2,0),"") -> Leeds North | G12: =IF($A12<=F$7,OFFSET('CCG-Prov(Births)'!$I$1,MATCH(F$8,'CCG-Prov(Births)'!$G$2:$G$28861,0)+$A12-1,0),"") -> 2201 | I12: =IF($A12<=I$7,VLOOKUP(OFFSET('CCG-Prov(Births)'!$H$1,MATCH(I$8,'CCG-Prov(Births)'!$G$2:$G$28861,0)+$A12-1,0),'CCG List'!$A$3:$B$213,2,0),"") -> Leeds West | J12: =IF($A12<=I$7,OFFSET('CCG-Prov(Births)'!$I$1,MATCH(I$8,'CCG-Prov(Births)'!$G$2:$G$28861,0)+$A12-1,0),"") -> 222 | L12: =IF($A12<=L$7,VLOOKUP(OFFSET('CCG-Prov(Births)'!$H$1,MATCH(L$8,'CCG-Prov(Births)'!$G$2:$G$28861,0)+$A12-1,0),'CCG List'!$A$3:$B$213,2,0),"") -> Leeds West | M12: =IF($A12<=L$7,OFFSET('CCG-Prov(Births)'!$I$1,MATCH(L$8,'CCG-Prov(Births)'!$G$2:$G$28861,0)+$A12-1,0),"") -> 190 | O12: =IF($A12<=O$7,VLOOKUP(OFFSET('CCG-Prov(Births)'!$H$1,MATCH(O$8,'CCG-Prov(Births)'!$G$2:$G$28861,0)+$A12-1,0),'CCG List'!$A$3:$B$213,2,0),"") -> Scarborough & Ryedale | P12: =IF($A12<=O$7,OFFSET('CCG-Prov(Births)'!$I$1,MATCH(O$8,'CCG-Prov(Births)'!$G$2:$G$28861,0)+$A12-1,0),"") -> 86 | R12: =IF($A12<=R$7,VLOOKUP(OFFSET('CCG-Prov(Births)'!$H$1,MATCH(R$8,'CCG-Prov(Births)'!$G$2:$G$28861,0)+$A12-1,0),'CCG List'!$A$3:$B$213,2,0),"") -> Wakefield | S12: =IF($A12<=R$7,OFFSET('CCG-Prov(Births)'!$I$1,MATCH(R$8,'CCG-Prov(Births)'!$G$2:$G$28861,0)+$A12-1,0),"") -> 137 | U12: =IF($A12<=U$7,VLOOKUP(OFFSET('CCG-Prov(Births)'!$H$1,MATCH(U$8,'CCG-Prov(Births)'!$G$2:$G$28861,0)+$A12-1,0),'CCG List'!$A$3:$B$213,2,0),"") -> Bradford Districts | V12: =IF($A12<=U$7,OFFSET('CCG-Prov(Births)'!$I$1,MATCH(U$8,'CCG-Prov(Births)'!$G$2:$G$28861,0)+$A12-1,0),"") -> 478 | X12: =IF($A12<=X$7,VLOOKUP(OFFSET('CCG-Prov(Births)'!$H$1,MATCH(X$8,'CCG-Prov(Births)'!$G$2:$G$28861,0)+$A12-1,0),'CCG List'!$A$3:$B$213,2,0),"") -> Rotherham | Y12: =IF($A12<=X$7,OFFSET('CCG-Prov(Births)'!$I$1,MATCH(X$8,'CCG-Prov(Births)'!$G$2:$G$28861,0)+$A12-1,0),"") -> 204 | AA12: =IF($A12<=AA$7,VLOOKUP(OFFSET('CCG-Prov(Births)'!$H$1,MATCH(AA$8,'CCG-Prov(Births)'!$G$2:$G$28861,0)+$A12-1,0),'CCG List'!$A$3:$B$213,2,0),"") -> Leeds West | AB12: =IF($A12<=AA$7,OFFSET('CCG-Prov(Births)'!$I$1,MATCH(AA$8,'CCG-Prov(Births)'!$G$2:$G$28861,0)+$A12-1,0),"") -> 41 | AD12: =IF($A12<=AD$7,VLOOKUP(OFFSET('CCG-Prov(Births)'!$H$1,MATCH(AD$8,'CCG-Prov(Births)'!$G$2:$G$28861,0)+$A12-1,0),'CCG List'!$A$3:$B$213,2,0),"") -> Harrow | AE12: =IF($A12<=AD$7,OFFSET('CCG-Prov(Births)'!$I$1,MATCH(AD$8,'CCG-Prov(Births)'!$G$2:$G$28861,0)+$A12-1,0),"") -> 134 | AG12: =IF($A12<=AG$7,VLOOKUP(OFFSET('CCG-Prov(Births)'!$H$1,MATCH(AG$8,'CCG-Prov(Births)'!$G$2:$G$28861,0)+$A12-1,0),'CCG List'!$A$3:$B$213,2,0),"") -> Hambleton, Richmondshire & Whitby | AH12: =IF($A12<=AG$7,OFFSET('CCG-Prov(Births)'!$I$1,MATCH(AG$8,'CCG-Prov(Births)'!$G$2:$G$28861,0)+$A12-1,0),"") -> 109
A13: 4 | B13: =VLOOKUP(D13,provnames!$A$2:$B$332,2,0) -> York Teaching Hospital NHS FT | C13: =IF(A13<=$A$21,OFFSET('CCG-Prov(Births)'!$C$1,MATCH(Maternity!$C$4,'CCG-Prov(Births)'!$A$2:$A$6150,0)+$A13-1,0),"") -> 12 | D13: =IF(A13<=$A$21,OFFSET('CCG-Prov(Births)'!$B$1,MATCH(Maternity!$C$4,'CCG-Prov(Births)'!$A$2:$A$6150,0)+$A13-1,0),"") -> RCB | F13: =IF($A13<=F$7,VLOOKUP(OFFSET('CCG-Prov(Births)'!$H$1,MATCH(F$8,'CCG-Prov(Births)'!$G$2:$G$28861,0)+$A13-1,0),'CCG List'!$A$3:$B$213,2,0),"") -> Wakefield | G13: =IF($A13<=F$7,OFFSET('CCG-Prov(Births)'!$I$1,MATCH(F$8,'CCG-Prov(Births)'!$G$2:$G$28861,0)+$A13-1,0),"") -> 185 | I13: =IF($A13<=I$7,VLOOKUP(OFFSET('CCG-Prov(Births)'!$H$1,MATCH(I$8,'CCG-Prov(Births)'!$G$2:$G$28861,0)+$A13-1,0),'CCG List'!$A$3:$B$213,2,0),"") -> Leeds South & East | J13: =IF($A13<=I$7,OFFSET('CCG-Prov(Births)'!$I$1,MATCH(I$8,'CCG-Prov(Births)'!$G$2:$G$28861,0)+$A13-1,0),"") -> 140 | L13: =IF($A13<=L$7,VLOOKUP(OFFSET('CCG-Prov(Births)'!$H$1,MATCH(L$8,'CCG-Prov(Births)'!$G$2:$G$28861,0)+$A13-1,0),'CCG List'!$A$3:$B$213,2,0),"") -> Vale of York | M13: =IF($A13<=L$7,OFFSET('CCG-Prov(Births)'!$I$1,MATCH(L$8,'CCG-Prov(Births)'!$G$2:$G$28861,0)+$A13-1,0),"") -> 29 | O13: =IF($A13<=O$7,VLOOKUP(OFFSET('CCG-Prov(Births)'!$H$1,MATCH(O$8,'CCG-Prov(Births)'!$G$2:$G$28861,0)+$A13-1,0),'CCG List'!$A$3:$B$213,2,0),"") -> Leeds North | P13: =IF($A13<=O$7,OFFSET('CCG-Prov(Births)'!$I$1,MATCH(O$8,'CCG-Prov(Births)'!$G$2:$G$28861,0)+$A13-1,0),"") -> 18 | R13: =IF($A13<=R$7,VLOOKUP(OFFSET('CCG-Prov(Births)'!$H$1,MATCH(R$8,'CCG-Prov(Births)'!$G$2:$G$28861,0)+$A13-1,0),'CCG List'!$A$3:$B$213,2,0),"") -> Rotherham | S13: =IF($A13<=R$7,OFFSET('CCG-Prov(Births)'!$I$1,MATCH(R$8,'CCG-Prov(Births)'!$G$2:$G$28861,0)+$A13-1,0),"") -> 36 | U13: =IF($A13<=U$7,VLOOKUP(OFFSET('CCG-Prov(Births)'!$H$1,MATCH(U$8,'CCG-Prov(Births)'!$G$2:$G$28861,0)+$A13-1,0),'CCG List'!$A$3:$B$213,2,0),"") -> North Kirklees | V13: =IF($A13<=U$7,OFFSET('CCG-Prov(Births)'!$I$1,MATCH(U$8,'CCG-Prov(Births)'!$G$2:$G$28861,0)+$A13-1,0),"") -> 161 | X13: =IF($A13<=X$7,VLOOKUP(OFFSET('CCG-Prov(Births)'!$H$1,MATCH(X$8,'CCG-Prov(Births)'!$G$2:$G$28861,0)+$A13-1,0),'CCG List'!$A$3:$B$213,2,0),"") -> Barnsley | Y13: =IF($A13<=X$7,OFFSET('CCG-Prov(Births)'!$I$1,MATCH(X$8,'CCG-Prov(Births)'!$G$2:$G$28861,0)+$A13-1,0),"") -> 94 | AA13: =IF($A13<=AA$7,VLOOKUP(OFFSET('CCG-Prov(Births)'!$H$1,MATCH(AA$8,'CCG-Prov(Births)'!$G$2:$G$28861,0)+$A13-1,0),'CCG List'!$A$3:$B$213,2,0),"") -> Airedale, Wharfedale & Craven | AB13: =IF($A13<=AA$7,OFFSET('CCG-Prov(Births)'!$I$1,MATCH(AA$8,'CCG-Prov(Births)'!$G$2:$G$28861,0)+$A13-1,0),"") -> 18 | AD13: =IF($A13<=AD$7,VLOOKUP(OFFSET('CCG-Prov(Births)'!$H$1,MATCH(AD$8,'CCG-Prov(Births)'!$G$2:$G$28861,0)+$A13-1,0),'CCG List'!$A$3:$B$213,2,0),"") -> Hounslow | AE13: =IF($A13<=AD$7,OFFSET('CCG-Prov(Births)'!$I$1,MATCH(AD$8,'CCG-Prov(Births)'!$G$2:$G$28861,0)+$A13-1,0),"") -> 61 | AG13: =IF($A13<=AG$7,VLOOKUP(OFFSET('CCG-Prov(Births)'!$H$1,MATCH(AG$8,'CCG-Prov(Births)'!$G$2:$G$28861,0)+$A13-1,0),'CCG List'!$A$3:$B$213,2,0),"") -> Vale of York | AH13: =IF($A13<=AG$7,OFFSET('CCG-Prov(Births)'!$I$1,MATCH(AG$8,'CCG-Prov(Births)'!$G$2:$G$28861,0)+$A13-1,0),"") -> 91
A14: 5 | B14: =VLOOKUP(D14,provnames!$A$2:$B$332,2,0) -> Barnsley Hospital NHS FT | C14: =IF(A14<=$A$21,OFFSET('CCG-Prov(Births)'!$C$1,MATCH(Maternity!$C$4,'CCG-Prov(Births)'!$A$2:$A$6150,0)+$A14-1,0),"") -> 4 | D14: =IF(A14<=$A$21,OFFSET('CCG-Prov(Births)'!$B$1,MATCH(Maternity!$C$4,'CCG-Prov(Births)'!$A$2:$A$6150,0)+$A14-1,0),"") -> RFF | F14: =IF($A14<=F$7,VLOOKUP(OFFSET('CCG-Prov(Births)'!$H$1,MATCH(F$8,'CCG-Prov(Births)'!$G$2:$G$28861,0)+$A14-1,0),'CCG List'!$A$3:$B$213,2,0),"") -> Bradford Districts | G14: =IF($A14<=F$7,OFFSET('CCG-Prov(Births)'!$I$1,MATCH(F$8,'CCG-Prov(Births)'!$G$2:$G$28861,0)+$A14-1,0),"") -> 115 | I14: =IF($A14<=I$7,VLOOKUP(OFFSET('CCG-Prov(Births)'!$H$1,MATCH(I$8,'CCG-Prov(Births)'!$G$2:$G$28861,0)+$A14-1,0),'CCG List'!$A$3:$B$213,2,0),"") -> Bradford Districts | J14: =IF($A14<=I$7,OFFSET('CCG-Prov(Births)'!$I$1,MATCH(I$8,'CCG-Prov(Births)'!$G$2:$G$28861,0)+$A14-1,0),"") -> 43 | L14: =IF($A14<=L$7,VLOOKUP(OFFSET('CCG-Prov(Births)'!$H$1,MATCH(L$8,'CCG-Prov(Births)'!$G$2:$G$28861,0)+$A14-1,0),'CCG List'!$A$3:$B$213,2,0),"") -> Airedale, Wharfedale & Craven | M14: =IF($A14<=L$7,OFFSET('CCG-Prov(Births)'!$I$1,MATCH(L$8,'CCG-Prov(Births)'!$G$2:$G$28861,0)+$A14-1,0),"") -> 28 | O14: =IF($A14<=O$7,VLOOKUP(OFFSET('CCG-Prov(Births)'!$H$1,MATCH(O$8,'CCG-Prov(Births)'!$G$2:$G$28861,0)+$A14-1,0),'CCG List'!$A$3:$B$213,2,0),"") -> Harrogate & Rural District | P14: =IF($A14<=O$7,OFFSET('CCG-Prov(Births)'!$I$1,MATCH(O$8,'CCG-Prov(Births)'!$G$2:$G$28861,0)+$A14-1,0),"") -> 16 | R14: =IF($A14<=R$7,VLOOKUP(OFFSET('CCG-Prov(Births)'!$H$1,MATCH(R$8,'CCG-Prov(Births)'!$G$2:$G$28861,0)+$A14-1,0),'CCG List'!$A$3:$B$213,2,0),"") -> Sheffield | S14: =IF($A14<=R$7,OFFSET('CCG-Prov(Births)'!$I$1,MATCH(R$8,'CCG-Prov(Births)'!$G$2:$G$28861,0)+$A14-1,0),"") -> 17 | U14: =IF($A14<=U$7,VLOOKUP(OFFSET('CCG-Prov(Births)'!$H$1,MATCH(U$8,'CCG-Prov(Births)'!$G$2:$G$28861,0)+$A14-1,0),'CCG List'!$A$3:$B$213,2,0),"") -> Bradford City | V14: =IF($A14<=U$7,OFFSET('CCG-Prov(Births)'!$I$1,MATCH(U$8,'CCG-Prov(Births)'!$G$2:$G$28861,0)+$A14-1,0),"") -> 18 | X14: =IF($A14<=X$7,VLOOKUP(OFFSET('CCG-Prov(Births)'!$H$1,MATCH(X$8,'CCG-Prov(Births)'!$G$2:$G$28861,0)+$A14-1,0),'CCG List'!$A$3:$B$213,2,0),"") -> Hardwick | Y14: =IF($A14<=X$7,OFFSET('CCG-Prov(Births)'!$I$1,MATCH(X$8,'CCG-Prov(Births)'!$G$2:$G$28861,0)+$A14-1,0),"") -> 92 | AA14: =IF($A14<=AA$7,VLOOKUP(OFFSET('CCG-Prov(Births)'!$H$1,MATCH(AA$8,'CCG-Prov(Births)'!$G$2:$G$28861,0)+$A14-1,0),'CCG List'!$A$3:$B$213,2,0),"") -> North Kirklees | AB14: =IF($A14<=AA$7,OFFSET('CCG-Prov(Births)'!$I$1,MATCH(AA$8,'CCG-Prov(Births)'!$G$2:$G$28861,0)+$A14-1,0),"") -> 8 | AD14: =IF($A14<=AD$7,VLOOKUP(OFFSET('CCG-Prov(Births)'!$H$1,MATCH(AD$8,'CCG-Prov(Births)'!$G$2:$G$28861,0)+$A14-1,0),'CCG List'!$A$3:$B$213,2,0),"") -> Chiltern | AE14: =IF($A14<=AD$7,OFFSET('CCG-Prov(Births)'!$I$1,MATCH(AD$8,'CCG-Prov(Births)'!$G$2:$G$28861,0)+$A14-1,0),"") -> 54 | AG14: =IF($A14<=AG$7,VLOOKUP(OFFSET('CCG-Prov(Births)'!$H$1,MATCH(AG$8,'CCG-Prov(Births)'!$G$2:$G$28861,0)+$A14-1,0),'CCG List'!$A$3:$B$213,2,0),"") -> Leeds West | AH14: =IF($A14<=AG$7,OFFSET('CCG-Prov(Births)'!$I$1,MATCH(AG$8,'CCG-Prov(Births)'!$G$2:$G$28861,0)+$A14-1,0),"") -> 3
A15: 6 | B15: =VLOOKUP(D15,provnames!$A$2:$B$332,2,0) -> Calderdale & Huddersfield NHS FT | C15: =IF(A15<=$A$21,OFFSET('CCG-Prov(Births)'!$C$1,MATCH(Maternity!$C$4,'CCG-Prov(Births)'!$A$2:$A$6150,0)+$A15-1,0),"") -> 3 | D15: =IF(A15<=$A$21,OFFSET('CCG-Prov(Births)'!$B$1,MATCH(Maternity!$C$4,'CCG-Prov(Births)'!$A$2:$A$6150,0)+$A15-1,0),"") -> RWY | F15: =IF($A15<=F$7,VLOOKUP(OFFSET('CCG-Prov(Births)'!$H$1,MATCH(F$8,'CCG-Prov(Births)'!$G$2:$G$28861,0)+$A15-1,0),'CCG List'!$A$3:$B$213,2,0),"") -> Vale of York | G15: =IF($A15<=F$7,OFFSET('CCG-Prov(Births)'!$I$1,MATCH(F$8,'CCG-Prov(Births)'!$G$2:$G$28861,0)+$A15-1,0),"") -> 82 | I15: =IF($A15<=I$7,VLOOKUP(OFFSET('CCG-Prov(Births)'!$H$1,MATCH(I$8,'CCG-Prov(Births)'!$G$2:$G$28861,0)+$A15-1,0),'CCG List'!$A$3:$B$213,2,0),"") -> Vale of York | J15: =IF($A15<=I$7,OFFSET('CCG-Prov(Births)'!$I$1,MATCH(I$8,'CCG-Prov(Births)'!$G$2:$G$28861,0)+$A15-1,0),"") -> 38 | L15: =IF($A15<=L$7,VLOOKUP(OFFSET('CCG-Prov(Births)'!$H$1,MATCH(L$8,'CCG-Prov(Births)'!$G$2:$G$28861,0)+$A15-1,0),'CCG List'!$A$3:$B$213,2,0),"") -> Leeds South & East | M15: =IF($A15<=L$7,OFFSET('CCG-Prov(Births)'!$I$1,MATCH(L$8,'CCG-Prov(Births)'!$G$2:$G$28861,0)+$A15-1,0),"") -> 14 | O15: =IF($A15<=O$7,VLOOKUP(OFFSET('CCG-Prov(Births)'!$H$1,MATCH(O$8,'CCG-Prov(Births)'!$G$2:$G$28861,0)+$A15-1,0),'CCG List'!$A$3:$B$213,2,0),"") -> Leeds South & East | P15: =IF($A15<=O$7,OFFSET('CCG-Prov(Births)'!$I$1,MATCH(O$8,'CCG-Prov(Births)'!$G$2:$G$28861,0)+$A15-1,0),"") -> 12 | R15: =IF($A15<=R$7,VLOOKUP(OFFSET('CCG-Prov(Births)'!$H$1,MATCH(R$8,'CCG-Prov(Births)'!$G$2:$G$28861,0)+$A15-1,0),'CCG List'!$A$3:$B$213,2,0),"") -> Doncaster | S15: =IF($A15<=R$7,OFFSET('CCG-Prov(Births)'!$I$1,MATCH(R$8,'CCG-Prov(Births)'!$G$2:$G$28861,0)+$A15-1,0),"") -> 7 | U15: =IF($A15<=U$7,VLOOKUP(OFFSET('CCG-Prov(Births)'!$H$1,MATCH(U$8,'CCG-Prov(Births)'!$G$2:$G$28861,0)+$A15-1,0),'CCG List'!$A$3:$B$213,2,0),"") -> Wakefield | V15: =IF($A15<=U$7,OFFSET('CCG-Prov(Births)'!$I$1,MATCH(U$8,'CCG-Prov(Births)'!$G$2:$G$28861,0)+$A15-1,0),"") -> 12 | X15: =IF($A15<=X$7,VLOOKUP(OFFSET('CCG-Prov(Births)'!$H$1,MATCH(X$8,'CCG-Prov(Births)'!$G$2:$G$28861,0)+$A15-1,0),'CCG List'!$A$3:$B$213,2,0),"") -> Newark & Sherwood | Y15: =IF($A15<=X$7,OFFSET('CCG-Prov(Births)'!$I$1,MATCH(X$8,'CCG-Prov(Births)'!$G$2:$G$28861,0)+$A15-1,0),"") -> 85 | AA15: =IF($A15<=AA$7,VLOOKUP(OFFSET('CCG-Prov(Births)'!$H$1,MATCH(AA$8,'CCG-Prov(Births)'!$G$2:$G$28861,0)+$A15-1,0),'CCG List'!$A$3:$B$213,2,0),"") -> Calderdale | AB15: =IF($A15<=AA$7,OFFSET('CCG-Prov(Births)'!$I$1,MATCH(AA$8,'CCG-Prov(Births)'!$G$2:$G$28861,0)+$A15-1,0),"") -> 7 | AD15: =IF($A15<=AD$7,VLOOKUP(OFFSET('CCG-Prov(Births)'!$H$1,MATCH(AD$8,'CCG-Prov(Births)'!$G$2:$G$28861,0)+$A15-1,0),'CCG List'!$A$3:$B$213,2,0),"") -> Slough | AE15: =IF($A15<=AD$7,OFFSET('CCG-Prov(Births)'!$I$1,MATCH(AD$8,'CCG-Prov(Births)'!$G$2:$G$28861,0)+$A15-1,0),"") -> 22 | AG15: =IF($A15<=AG$7,VLOOKUP(OFFSET('CCG-Prov(Births)'!$H$1,MATCH(AG$8,'CCG-Prov(Births)'!$G$2:$G$28861,0)+$A15-1,0),'CCG List'!$A$3:$B$213,2,0),"") -> North East Lincolnshire | AH15: =IF($A15<=AG$7,OFFSET('CCG-Prov(Births)'!$I$1,MATCH(AG$8,'CCG-Prov(Births)'!$G$2:$G$28861,0)+$A15-1,0),"") -> 3
A16: 7 | B16: =VLOOKUP(D16,provnames!$A$2:$B$332,2,0) -> Doncaster & Bassetlaw Hospitals NHS FT | C16: =IF(A16<=$A$21,OFFSET('CCG-Prov(Births)'!$C$1,MATCH(Maternity!$C$4,'CCG-Prov(Births)'!$A$2:$A$6150,0)+$A16-1,0),"") -> 2 | D16: =IF(A16<=$A$21,OFFSET('CCG-Prov(Births)'!$B$1,MATCH(Maternity!$C$4,'CCG-Prov(Births)'!$A$2:$A$6150,0)+$A16-1,0),"") -> RP5 | F16: =IF($A16<=F$7,VLOOKUP(OFFSET('CCG-Prov(Births)'!$H$1,MATCH(F$8,'CCG-Prov(Births)'!$G$2:$G$28861,0)+$A16-1,0),'CCG List'!$A$3:$B$213,2,0),"") -> North Kirklees | G16: =IF($A16<=F$7,OFFSET('CCG-Prov(Births)'!$I$1,MATCH(F$8,'CCG-Prov(Births)'!$G$2:$G$28861,0)+$A16-1,0),"") -> 75 | I16: =IF($A16<=I$7,VLOOKUP(OFFSET('CCG-Prov(Births)'!$H$1,MATCH(I$8,'CCG-Prov(Births)'!$G$2:$G$28861,0)+$A16-1,0),'CCG List'!$A$3:$B$213,2,0),"") -> East Riding of Yorkshire | J16: =IF($A16<=I$7,OFFSET('CCG-Prov(Births)'!$I$1,MATCH(I$8,'CCG-Prov(Births)'!$G$2:$G$28861,0)+$A16-1,0),"") -> 30 | L16: =IF($A16<=L$7,VLOOKUP(OFFSET('CCG-Prov(Births)'!$H$1,MATCH(L$8,'CCG-Prov(Births)'!$G$2:$G$28861,0)+$A16-1,0),'CCG List'!$A$3:$B$213,2,0),"") -> Bradford Districts | M16: =IF($A16<=L$7,OFFSET('CCG-Prov(Births)'!$I$1,MATCH(L$8,'CCG-Prov(Births)'!$G$2:$G$28861,0)+$A16-1,0),"") -> 11 | O16: =IF($A16<=O$7,VLOOKUP(OFFSET('CCG-Prov(Births)'!$H$1,MATCH(O$8,'CCG-Prov(Births)'!$G$2:$G$28861,0)+$A16-1,0),'CCG List'!$A$3:$B$213,2,0),"") -> Wakefield | P16: =IF($A16<=O$7,OFFSET('CCG-Prov(Births)'!$I$1,MATCH(O$8,'CCG-Prov(Births)'!$G$2:$G$28861,0)+$A16-1,0),"") -> 6 | R16: =IF($A16<=R$7,VLOOKUP(OFFSET('CCG-Prov(Births)'!$H$1,MATCH(R$8,'CCG-Prov(Births)'!$G$2:$G$28861,0)+$A16-1,0),'CCG List'!$A$3:$B$213,2,0),"") -> Leeds West | S16: =IF($A16<=R$7,OFFSET('CCG-Prov(Births)'!$I$1,MATCH(R$8,'CCG-Prov(Births)'!$G$2:$G$28861,0)+$A16-1,0),"") -> 4 | U16: =IF($A16<=U$7,VLOOKUP(OFFSET('CCG-Prov(Births)'!$H$1,MATCH(U$8,'CCG-Prov(Births)'!$G$2:$G$28861,0)+$A16-1,0),'CCG List'!$A$3:$B$213,2,0),"") -> Airedale, Wharfedale & Craven | V16: =IF($A16<=U$7,OFFSET('CCG-Prov(Births)'!$I$1,MATCH(U$8,'CCG-Prov(Births)'!$G$2:$G$28861,0)+$A16-1,0),"") -> 10 | X16: =IF($A16<=X$7,VLOOKUP(OFFSET('CCG-Prov(Births)'!$H$1,MATCH(X$8,'CCG-Prov(Births)'!$G$2:$G$28861,0)+$A16-1,0),'CCG List'!$A$3:$B$213,2,0),"") -> North Lincolnshire | Y16: =IF($A16<=X$7,OFFSET('CCG-Prov(Births)'!$I$1,MATCH(X$8,'CCG-Prov(Births)'!$G$2:$G$28861,0)+$A16-1,0),"") -> 58 | AA16: =IF($A16<=AA$7,VLOOKUP(OFFSET('CCG-Prov(Births)'!$H$1,MATCH(AA$8,'CCG-Prov(Births)'!$G$2:$G$28861,0)+$A16-1,0),'CCG List'!$A$3:$B$213,2,0),"") -> Greater Huddersfield | AB16: =IF($A16<=AA$7,OFFSET('CCG-Prov(Births)'!$I$1,MATCH(AA$8,'CCG-Prov(Births)'!$G$2:$G$28861,0)+$A16-1,0),"") -> 7 | AD16: =IF($A16<=AD$7,VLOOKUP(OFFSET('CCG-Prov(Births)'!$H$1,MATCH(AD$8,'CCG-Prov(Births)'!$G$2:$G$28861,0)+$A16-1,0),'CCG List'!$A$3:$B$213,2,0),"") -> Herts Valleys | AE16: =IF($A16<=AD$7,OFFSET('CCG-Prov(Births)'!$I$1,MATCH(AD$8,'CCG-Prov(Births)'!$G$2:$G$28861,0)+$A16-1,0),"") -> 12 | AG16: =IF($A16<=AG$7,VLOOKUP(OFFSET('CCG-Prov(Births)'!$H$1,MATCH(AG$8,'CCG-Prov(Births)'!$G$2:$G$28861,0)+$A16-1,0),'CCG List'!$A$3:$B$213,2,0),"") -> South Tees | AH16: =IF($A16<=AG$7,OFFSET('CCG-Prov(Births)'!$I$1,MATCH(AG$8,'CCG-Prov(Births)'!$G$2:$G$28861,0)+$A16-1,0),"") -> 2
A17: 8 | B17: =VLOOKUP(D17,provnames!$A$2:$B$332,2,0) -> Bradford Teaching Hospitals NHS FT | C17: =IF(A17<=$A$21,OFFSET('CCG-Prov(Births)'!$C$1,MATCH(Maternity!$C$4,'CCG-Prov(Births)'!$A$2:$A$6150,0)+$A17-1,0),"") -> 1 | D17: =IF(A17<=$A$21,OFFSET('CCG-Prov(Births)'!$B$1,MATCH(Maternity!$C$4,'CCG-Prov(Births)'!$A$2:$A$6150,0)+$A17-1,0),"") -> RAE | F17: =IF($A17<=F$7,VLOOKUP(OFFSET('CCG-Prov(Births)'!$H$1,MATCH(F$8,'CCG-Prov(Births)'!$G$2:$G$28861,0)+$A17-1,0),'CCG List'!$A$3:$B$213,2,0),"") -> Airedale, Wharfedale & Craven | G17: =IF($A17<=F$7,OFFSET('CCG-Prov(Births)'!$I$1,MATCH(F$8,'CCG-Prov(Births)'!$G$2:$G$28861,0)+$A17-1,0),"") -> 29 | I17: =IF($A17<=I$7,VLOOKUP(OFFSET('CCG-Prov(Births)'!$H$1,MATCH(I$8,'CCG-Prov(Births)'!$G$2:$G$28861,0)+$A17-1,0),'CCG List'!$A$3:$B$213,2,0),"") -> Barnsley | J17: =IF($A17<=I$7,OFFSET('CCG-Prov(Births)'!$I$1,MATCH(I$8,'CCG-Prov(Births)'!$G$2:$G$28861,0)+$A17-1,0),"") -> 14 | L17: =IF($A17<=L$7,VLOOKUP(OFFSET('CCG-Prov(Births)'!$H$1,MATCH(L$8,'CCG-Prov(Births)'!$G$2:$G$28861,0)+$A17-1,0),'CCG List'!$A$3:$B$213,2,0),"") -> Hambleton, Richmondshire & Whitby | M17: =IF($A17<=L$7,OFFSET('CCG-Prov(Births)'!$I$1,MATCH(L$8,'CCG-Prov(Births)'!$G$2:$G$28861,0)+$A17-1,0),"") -> 5 | O17: =IF($A17<=O$7,VLOOKUP(OFFSET('CCG-Prov(Births)'!$H$1,MATCH(O$8,'CCG-Prov(Births)'!$G$2:$G$28861,0)+$A17-1,0),'CCG List'!$A$3:$B$213,2,0),"") -> Hull | P17: =IF($A17<=O$7,OFFSET('CCG-Prov(Births)'!$I$1,MATCH(O$8,'CCG-Prov(Births)'!$G$2:$G$28861,0)+$A17-1,0),"") -> 5 | R17: =IF($A17<=R$7,VLOOKUP(OFFSET('CCG-Prov(Births)'!$H$1,MATCH(R$8,'CCG-Prov(Births)'!$G$2:$G$28861,0)+$A17-1,0),'CCG List'!$A$3:$B$213,2,0),"") -> Leeds South & East | S17: =IF($A17<=R$7,OFFSET('CCG-Prov(Births)'!$I$1,MATCH(R$8,'CCG-Prov(Births)'!$G$2:$G$28861,0)+$A17-1,0),"") -> 4 | U17: =IF($A17<=U$7,VLOOKUP(OFFSET('CCG-Prov(Births)'!$H$1,MATCH(U$8,'CCG-Prov(Births)'!$G$2:$G$28861,0)+$A17-1,0),'CCG List'!$A$3:$B$213,2,0),"") -> Leeds North | V17: =IF($A17<=U$7,OFFSET('CCG-Prov(Births)'!$I$1,MATCH(U$8,'CCG-Prov(Births)'!$G$2:$G$28861,0)+$A17-1,0),"") -> 7 | X17: =IF($A17<=X$7,VLOOKUP(OFFSET('CCG-Prov(Births)'!$H$1,MATCH(X$8,'CCG-Prov(Births)'!$G$2:$G$28861,0)+$A17-1,0),'CCG List'!$A$3:$B$213,2,0),"") -> Wakefield | Y17: =IF($A17<=X$7,OFFSET('CCG-Prov(Births)'!$I$1,MATCH(X$8,'CCG-Prov(Births)'!$G$2:$G$28861,0)+$A17-1,0),"") -> 35 | AA17: =IF($A17<=AA$7,VLOOKUP(OFFSET('CCG-Prov(Births)'!$H$1,MATCH(AA$8,'CCG-Prov(Births)'!$G$2:$G$28861,0)+$A17-1,0),'CCG List'!$A$3:$B$213,2,0),"") -> East Lancashire | AB17: =IF($A17<=AA$7,OFFSET('CCG-Prov(Births)'!$I$1,MATCH(AA$8,'CCG-Prov(Births)'!$G$2:$G$28861,0)+$A17-1,0),"") -> 4 | AD17: =IF($A17<=AD$7,VLOOKUP(OFFSET('CCG-Prov(Births)'!$H$1,MATCH(AD$8,'CCG-Prov(Births)'!$G$2:$G$28861,0)+$A17-1,0),'CCG List'!$A$3:$B$213,2,0),"") -> Brent | AE17: =IF($A17<=AD$7,OFFSET('CCG-Prov(Births)'!$I$1,MATCH(AD$8,'CCG-Prov(Births)'!$G$2:$G$28861,0)+$A17-1,0),"") -> 10 | AG17: =IF($A17<=AG$7,VLOOKUP(OFFSET('CCG-Prov(Births)'!$H$1,MATCH(AG$8,'CCG-Prov(Births)'!$G$2:$G$28861,0)+$A17-1,0),'CCG List'!$A$3:$B$213,2,0),"") -> Sunderland | AH17: =IF($A17<=AG$7,OFFSET('CCG-Prov(Births)'!$I$1,MATCH(AG$8,'CCG-Prov(Births)'!$G$2:$G$28861,0)+$A17-1,0),"") -> 2
A18: 9 | B18: =VLOOKUP(D18,provnames!$A$2:$B$332,2,0) -> The Hillingdon Hospitals NHS FT | C18: =IF(A18<=$A$21,OFFSET('CCG-Prov(Births)'!$C$1,MATCH(Maternity!$C$4,'CCG-Prov(Births)'!$A$2:$A$6150,0)+$A18-1,0),"") -> 1 | D18: =IF(A18<=$A$21,OFFSET('CCG-Prov(Births)'!$B$1,MATCH(Maternity!$C$4,'CCG-Prov(Births)'!$A$2:$A$6150,0)+$A18-1,0),"") -> RAS | F18: =IF($A18<=F$7,VLOOKUP(OFFSET('CCG-Prov(Births)'!$H$1,MATCH(F$8,'CCG-Prov(Births)'!$G$2:$G$28861,0)+$A18-1,0),'CCG List'!$A$3:$B$213,2,0),"") -> Bradford City | G18: =IF($A18<=F$7,OFFSET('CCG-Prov(Births)'!$I$1,MATCH(F$8,'CCG-Prov(Births)'!$G$2:$G$28861,0)+$A18-1,0),"") -> 24 | I18: =IF($A18<=I$7,VLOOKUP(OFFSET('CCG-Prov(Births)'!$H$1,MATCH(I$8,'CCG-Prov(Births)'!$G$2:$G$28861,0)+$A18-1,0),'CCG List'!$A$3:$B$213,2,0),"") -> Greater Huddersfield | J18: =IF($A18<=I$7,OFFSET('CCG-Prov(Births)'!$I$1,MATCH(I$8,'CCG-Prov(Births)'!$G$2:$G$28861,0)+$A18-1,0),"") -> 13 | L18: =IF($A18<=L$7,VLOOKUP(OFFSET('CCG-Prov(Births)'!$H$1,MATCH(L$8,'CCG-Prov(Births)'!$G$2:$G$28861,0)+$A18-1,0),'CCG List'!$A$3:$B$213,2,0),"") -> Wakefield | M18: =IF($A18<=L$7,OFFSET('CCG-Prov(Births)'!$I$1,MATCH(L$8,'CCG-Prov(Births)'!$G$2:$G$28861,0)+$A18-1,0),"") -> 2 | O18: =IF($A18<=O$7,VLOOKUP(OFFSET('CCG-Prov(Births)'!$H$1,MATCH(O$8,'CCG-Prov(Births)'!$G$2:$G$28861,0)+$A18-1,0),'CCG List'!$A$3:$B$213,2,0),"") -> Hambleton, Richmondshire & Whitby | P18: =IF($A18<=O$7,OFFSET('CCG-Prov(Births)'!$I$1,MATCH(O$8,'CCG-Prov(Births)'!$G$2:$G$28861,0)+$A18-1,0),"") -> 3 | R18: =IF($A18<=R$7,VLOOKUP(OFFSET('CCG-Prov(Births)'!$H$1,MATCH(R$8,'CCG-Prov(Births)'!$G$2:$G$28861,0)+$A18-1,0),'CCG List'!$A$3:$B$213,2,0),"") -> Bolton | S18: =IF($A18<=R$7,OFFSET('CCG-Prov(Births)'!$I$1,MATCH(R$8,'CCG-Prov(Births)'!$G$2:$G$28861,0)+$A18-1,0),"") -> 2 | U18: =IF($A18<=U$7,VLOOKUP(OFFSET('CCG-Prov(Births)'!$H$1,MATCH(U$8,'CCG-Prov(Births)'!$G$2:$G$28861,0)+$A18-1,0),'CCG List'!$A$3:$B$213,2,0),"") -> Oldham | V18: =IF($A18<=U$7,OFFSET('CCG-Prov(Births)'!$I$1,MATCH(U$8,'CCG-Prov(Births)'!$G$2:$G$28861,0)+$A18-1,0),"") -> 3 | X18: =IF($A18<=X$7,VLOOKUP(OFFSET('CCG-Prov(Births)'!$H$1,MATCH(X$8,'CCG-Prov(Births)'!$G$2:$G$28861,0)+$A18-1,0),'CCG List'!$A$3:$B$213,2,0),"") -> East Riding of Yorkshire | Y18: =IF($A18<=X$7,OFFSET('CCG-Prov(Births)'!$I$1,MATCH(X$8,'CCG-Prov(Births)'!$G$2:$G$28861,0)+$A18-1,0),"") -> 22 | AA18: =IF($A18<=AA$7,VLOOKUP(OFFSET('CCG-Prov(Births)'!$H$1,MATCH(AA$8,'CCG-Prov(Births)'!$G$2:$G$28861,0)+$A18-1,0),'CCG List'!$A$3:$B$213,2,0),"") -> Wakefield | AB18: =IF($A18<=AA$7,OFFSET('CCG-Prov(Births)'!$I$1,MATCH(AA$8,'CCG-Prov(Births)'!$G$2:$G$28861,0)+$A18-1,0),"") -> 3 | AD18: =IF($A18<=AD$7,VLOOKUP(OFFSET('CCG-Prov(Births)'!$H$1,MATCH(AD$8,'CCG-Prov(Births)'!$G$2:$G$28861,0)+$A18-1,0),'CCG List'!$A$3:$B$213,2,0),"") -> Hammersmith & Fulham | AE18: =IF($A18<=AD$7,OFFSET('CCG-Prov(Births)'!$I$1,MATCH(AD$8,'CCG-Prov(Births)'!$G$2:$G$28861,0)+$A18-1,0),"") -> 4 | AG18: =IF($A18<=AG$7,VLOOKUP(OFFSET('CCG-Prov(Births)'!$H$1,MATCH(AG$8,'CCG-Prov(Births)'!$G$2:$G$28861,0)+$A18-1,0),'CCG List'!$A$3:$B$213,2,0),"") -> Bradford Districts | AH18: =IF($A18<=AG$7,OFFSET('CCG-Prov(Births)'!$I$1,MATCH(AG$8,'CCG-Prov(Births)'!$G$2:$G$28861,0)+$A18-1,0),"") -> 2
A19: 10 | B19: =VLOOKUP(D19,provnames!$A$2:$B$332,2,0) -> Scarborough & NE Yorkshire Health Care NHS Trust | C19: =IF(A19<=$A$21,OFFSET('CCG-Prov(Births)'!$C$1,MATCH(Maternity!$C$4,'CCG-Prov(Births)'!$A$2:$A$6150,0)+$A19-1,0),"") -> 1 | D19: =IF(A19<=$A$21,OFFSET('CCG-Prov(Births)'!$B$1,MATCH(Maternity!$C$4,'CCG-Prov(Births)'!$A$2:$A$6150,0)+$A19-1,0),"") -> RCC | F19: =IF($A19<=F$7,VLOOKUP(OFFSET('CCG-Prov(Births)'!$H$1,MATCH(F$8,'CCG-Prov(Births)'!$G$2:$G$28861,0)+$A19-1,0),'CCG List'!$A$3:$B$213,2,0),"") -> Greater Huddersfield | G19: =IF($A19<=F$7,OFFSET('CCG-Prov(Births)'!$I$1,MATCH(F$8,'CCG-Prov(Births)'!$G$2:$G$28861,0)+$A19-1,0),"") -> 21 | I19: =IF($A19<=I$7,VLOOKUP(OFFSET('CCG-Prov(Births)'!$H$1,MATCH(I$8,'CCG-Prov(Births)'!$G$2:$G$28861,0)+$A19-1,0),'CCG List'!$A$3:$B$213,2,0),"") -> Bradford City | J19: =IF($A19<=I$7,OFFSET('CCG-Prov(Births)'!$I$1,MATCH(I$8,'CCG-Prov(Births)'!$G$2:$G$28861,0)+$A19-1,0),"") -> 7 | L19: =IF($A19<=L$7,VLOOKUP(OFFSET('CCG-Prov(Births)'!$H$1,MATCH(L$8,'CCG-Prov(Births)'!$G$2:$G$28861,0)+$A19-1,0),'CCG List'!$A$3:$B$213,2,0),"") -> Hartlepool & Stockton-on-Tees | M19: =IF($A19<=L$7,OFFSET('CCG-Prov(Births)'!$I$1,MATCH(L$8,'CCG-Prov(Births)'!$G$2:$G$28861,0)+$A19-1,0),"") -> 1 | O19: =IF($A19<=O$7,VLOOKUP(OFFSET('CCG-Prov(Births)'!$H$1,MATCH(O$8,'CCG-Prov(Births)'!$G$2:$G$28861,0)+$A19-1,0),'CCG List'!$A$3:$B$213,2,0),"") -> Bradford Districts | P19: =IF($A19<=O$7,OFFSET('CCG-Prov(Births)'!$I$1,MATCH(O$8,'CCG-Prov(Births)'!$G$2:$G$28861,0)+$A19-1,0),"") -> 2 | R19: =IF($A19<=R$7,VLOOKUP(OFFSET('CCG-Prov(Births)'!$H$1,MATCH(R$8,'CCG-Prov(Births)'!$G$2:$G$28861,0)+$A19-1,0),'CCG List'!$A$3:$B$213,2,0),"") -> North Manchester | S19: =IF($A19<=R$7,OFFSET('CCG-Prov(Births)'!$I$1,MATCH(R$8,'CCG-Prov(Births)'!$G$2:$G$28861,0)+$A19-1,0),"") -> 2 | U19: =IF($A19<=U$7,VLOOKUP(OFFSET('CCG-Prov(Births)'!$H$1,MATCH(U$8,'CCG-Prov(Births)'!$G$2:$G$28861,0)+$A19-1,0),'CCG List'!$A$3:$B$213,2,0),"") -> Leeds West | V19: =IF($A19<=U$7,OFFSET('CCG-Prov(Births)'!$I$1,MATCH(U$8,'CCG-Prov(Births)'!$G$2:$G$28861,0)+$A19-1,0),"") -> 3 | X19: =IF($A19<=X$7,VLOOKUP(OFFSET('CCG-Prov(Births)'!$H$1,MATCH(X$8,'CCG-Prov(Births)'!$G$2:$G$28861,0)+$A19-1,0),'CCG List'!$A$3:$B$213,2,0),"") -> North Derbyshire | Y19: =IF($A19<=X$7,OFFSET('CCG-Prov(Births)'!$I$1,MATCH(X$8,'CCG-Prov(Births)'!$G$2:$G$28861,0)+$A19-1,0),"") -> 18 | AA19: =IF($A19<=AA$7,VLOOKUP(OFFSET('CCG-Prov(Births)'!$H$1,MATCH(AA$8,'CCG-Prov(Births)'!$G$2:$G$28861,0)+$A19-1,0),'CCG List'!$A$3:$B$213,2,0),"") -> Leicester City | AB19: =IF($A19<=AA$7,OFFSET('CCG-Prov(Births)'!$I$1,MATCH(AA$8,'CCG-Prov(Births)'!$G$2:$G$28861,0)+$A19-1,0),"") -> 3 | AD19: =IF($A19<=AD$7,VLOOKUP(OFFSET('CCG-Prov(Births)'!$H$1,MATCH(AD$8,'CCG-Prov(Births)'!$G$2:$G$28861,0)+$A19-1,0),'CCG List'!$A$3:$B$213,2,0),"") -> Windsor, Ascot & Maidenhead | AE19: =IF($A19<=AD$7,OFFSET('CCG-Prov(Births)'!$I$1,MATCH(AD$8,'CCG-Prov(Births)'!$G$2:$G$28861,0)+$A19-1,0),"") -> 4 | AG19: =IF($A19<=AG$7,VLOOKUP(OFFSET('CCG-Prov(Births)'!$H$1,MATCH(AG$8,'CCG-Prov(Births)'!$G$2:$G$28861,0)+$A19-1,0),'CCG List'!$A$3:$B$213,2,0),"") -> Doncaster | AH19: =IF($A19<=AG$7,OFFSET('CCG-Prov(Births)'!$I$1,MATCH(AG$8,'CCG-Prov(Births)'!$G$2:$G$28861,0)+$A19-1,0),"") -> 2
B20: Others | C20: =C21-SUM(C10:C19) -> 18 | F20: Others | G20: =G21-SUM(G10:G19) -> 172 | I20: Others | J20: =J21-SUM(J10:J19) -> 39 | L20: Others | M20: =M21-SUM(M10:M19) -> 15 | O20: Others | P20: =P21-SUM(P10:P19) -> 33 | R20: Others | S20: =S21-SUM(S10:S19) -> 33 | U20: Others | V20: =V21-SUM(V10:V19) -> 22 | X20: Others | Y20: =Y21-SUM(Y10:Y19) -> 62 | AA20: Others | AB20: =AB21-SUM(AB10:AB19) -> 41 | AD20: Others | AE20: =AE21-SUM(AE10:AE19) -> 52 | AG20: Others | AH20: =AH21-SUM(AH10:AH19) -> 26
A21: =MIN(VLOOKUP(C4,'CCG List'!$A$3:$AH$213,33,0),10) -> 10 | B21: Total | C21: =SUMIF('CCG-Prov(Births)'!$A$2:$A$29008,C4,'CCG-Prov(Births)'!$C$2:$C$29008) -> 3989 | F21: Total | G21: =SUMIF('CCG-Prov(Births)'!$G$2:$G$28861,F8,'CCG-Prov(Births)'!$I$2:$I$28861) -> 10697 | I21: Total | J21: =SUMIF('CCG-Prov(Births)'!$G$2:$G$28861,I8,'CCG-Prov(Births)'!$I$2:$I$28861) -> 7300 | L21: Total | M21: =SUMIF('CCG-Prov(Births)'!$G$2:$G$28861,L8,'CCG-Prov(Births)'!$I$2:$I$28861) -> 2028 | O21: Total | P21: =SUMIF('CCG-Prov(Births)'!$G$2:$G$28861,O8,'CCG-Prov(Births)'!$I$2:$I$28861) -> 3613 | R21: Total | S21: =SUMIF('CCG-Prov(Births)'!$G$2:$G$28861,R8,'CCG-Prov(Births)'!$I$2:$I$28861) -> 4267 | U21: Total | V21: =SUMIF('CCG-Prov(Births)'!$G$2:$G$28861,U8,'CCG-Prov(Births)'!$I$2:$I$28861) -> 6714 | X21: Total | Y21: =SUMIF('CCG-Prov(Births)'!$G$2:$G$28861,X8,'CCG-Prov(Births)'!$I$2:$I$28861) -> 5859 | AA21: Total | AB21: =SUMIF('CCG-Prov(Births)'!$G$2:$G$28861,AA8,'CCG-Prov(Births)'!$I$2:$I$28861) -> 5904 | AD21: Total | AE21: =SUMIF('CCG-Prov(Births)'!$G$2:$G$28861,AD8,'CCG-Prov(Births)'!$I$2:$I$28861) -> 4198 | AG21: Total | AH21: =SUMIF('CCG-Prov(Births)'!$G$2:$G$28861,AG8,'CCG-Prov(Births)'!$I$2:$I$28861) -> 1803
B27: 0
B28: 50
B29: 100
B30: 500
B31: The first table shows the providers where CCG's a population gave birth. The other tables then show which other CCGs that those providers have treated. Deliveries includes all birth events, including still births.
L35: =IFERROR(RANK(F35,#REF!),"") ->  | M35: =IFERROR(RANK(G35,#REF!),"") ->  | O35: =IFERROR(RANK(I35,#REF!),"") ->  | P35: =IFERROR(RANK(J35,#REF!),"") -> 

Sheet Ambulance
B2: Ambulance Services Coverage (people)
B3: Select CCG below
B4: Isle of Wight | C4: =OFFSET('CCG List'!$A$2,MATCH(B4,collabrange,0),0) -> 10L
B6: Select cutoff for providers to be tabulated (up to 10 will be shown) | F6: =COLUMN() -> 6 | G6: =COLUMN() -> 7 | H6: =COLUMN() -> 8 | I6: =COLUMN() -> 9 | J6: =COLUMN() -> 10 | K6: =COLUMN() -> 11 | L6: =COLUMN() -> 12 | M6: =COLUMN() -> 13 | N6: =COLUMN() -> 14 | O6: =COLUMN() -> 15 | P6: =COLUMN() -> 16 | Q6: =COLUMN() -> 17 | R6: =COLUMN() -> 18 | S6: =COLUMN() -> 19 | T6: =COLUMN() -> 20 | U6: =COLUMN() -> 21 | V6: =COLUMN() -> 22 | W6: =COLUMN() -> 23 | X6: =COLUMN() -> 24 | Y6: =COLUMN() -> 25 | Z6: =COLUMN() -> 26 | AA6: =COLUMN() -> 27 | AB6: =COLUMN() -> 28 | AC6: =COLUMN() -> 29 | AD6: =COLUMN() -> 30 | AE6: =COLUMN() -> 31 | AF6: =COLUMN() -> 32 | AG6: =COLUMN() -> 33 | AH6: =COLUMN() -> 34
B7: 1000 | C7: People | F7: =VLOOKUP(F8,'CCG List'!$AC$3:$AE$14,3,0) -> 1 | I7: =VLOOKUP(I8,'CCG List'!$AC$3:$AE$14,3,0) ->  | L7: =VLOOKUP(L8,'CCG List'!$AC$3:$AE$14,3,0) ->  | O7: =VLOOKUP(O8,'CCG List'!$AC$3:$AE$14,3,0) ->  | R7: =VLOOKUP(R8,'CCG List'!$AC$3:$AE$14,3,0) ->  | U7: =VLOOKUP(U8,'CCG List'!$AC$3:$AE$14,3,0) ->  | X7: =VLOOKUP(X8,'CCG List'!$AC$3:$AE$14,3,0) ->  | AA7: =VLOOKUP(AA8,'CCG List'!$AC$3:$AE$14,3,0) ->  | AD7: =VLOOKUP(AD8,'CCG List'!$AC$3:$AE$14,3,0) ->  | AG7: =VLOOKUP(AG8,'CCG List'!$AC$3:$AE$14,3,0) -> 
F8: =OFFSET($D$9,F6/3-1,0) -> 5QT | I8: =OFFSET($D$9,I6/3-1,0) ->  | L8: =OFFSET($D$9,L6/3-1,0) ->  | O8: =OFFSET($D$9,O6/3-1,0) ->  | R8: =OFFSET($D$9,R6/3-1,0) ->  | U8: =OFFSET($D$9,U6/3-1,0) ->  | X8: =OFFSET($D$9,X6/3-1,0) ->  | AA8: =OFFSET($D$9,AA6/3-1,0) ->  | AD8: =OFFSET($D$9,AD6/3-1,0) ->  | AG8: =OFFSET($D$9,AG6/3-1,0) -> 
B9: ="Providers (ordered by number of people) for "&B4&" CCG" -> Providers (ordered by number of people) for Isle of Wight CCG | C9: Number of People | D9: =COUNTIF(C10:C29,">="&B7) -> 1 | F9: =OFFSET($B$9,F6/3-1,0) -> Isle of Wight (Ambulance) | G9: No. of People | I9: =OFFSET($B$9,I6/3-1,0) ->  | J9: No. of People | L9: =OFFSET($B$9,L6/3-1,0) ->  | M9: No. of People | O9: =OFFSET($B$9,O6/3-1,0) ->  | P9: No. of People | R9: =OFFSET($B$9,R6/3-1,0) ->  | S9: No. of People | U9: =OFFSET($B$9,U6/3-1,0) ->  | V9: No. of People | X9: =OFFSET($B$9,X6/3-1,0) ->  | Y9: No. of People | AA9: =OFFSET($B$9,AA6/3-1,0) ->  | AB9: No. of People | AD9: =OFFSET($B$9,AD6/3-1,0) ->  | AE9: No. of People | AG9: =OFFSET($B$9,AG6/3-1,0) ->  | AH9: No. of People
A10: 1 | B10: =VLOOKUP(D10,provnames!$A$334:$B$346,2,0) -> Isle of Wight (Ambulance) | C10: =IF(A10<=$A$31,OFFSET('CCG-Prov(Amb)'!$C$1,MATCH(Ambulance!$C$4,'CCG-Prov(Amb)'!$A$2:$A$335,0)+$A10-1,0),"") -> 141052 | D10: =IF(A10<=$A$31,OFFSET('CCG-Prov(Amb)'!$B$1,MATCH(Ambulance!$C$4,'CCG-Prov(Amb)'!$A$2:$A$335,0)+$A10-1,0),"") -> 5QT | F10: =IF($A10<=F$7,VLOOKUP(OFFSET('CCG-Prov(Amb)'!$G$1,MATCH(F$8,'CCG-Prov(Amb)'!$F$2:$F$335,0)+$A10-1,0),'CCG List'!$A$3:$B$213,2,0),"") -> Isle of Wight | G10: =IF($A10<=F$7,OFFSET('CCG-Prov(Amb)'!$H$1,MATCH(F$8,'CCG-Prov(Amb)'!$F$2:$F$335,0)+$A10-1,0),"") -> 141052 | I10: =IF($A10<=I$7,VLOOKUP(OFFSET('CCG-Prov(Amb)'!$G$1,MATCH(I$8,'CCG-Prov(Amb)'!$F$2:$F$335,0)+$A10-1,0),'CCG List'!$A$3:$B$213,2,0),"") ->  | J10: =IF($A10<=I$7,OFFSET('CCG-Prov(Amb)'!$H$1,MATCH(I$8,'CCG-Prov(Amb)'!$F$2:$F$335,0)+$A10-1,0),"") ->  | L10: =IF($A10<=L$7,VLOOKUP(OFFSET('CCG-Prov(Amb)'!$G$1,MATCH(L$8,'CCG-Prov(Amb)'!$F$2:$F$335,0)+$A10-1,0),'CCG List'!$A$3:$B$213,2,0),"") ->  | M10: =IF($A10<=L$7,OFFSET('CCG-Prov(Amb)'!$H$1,MATCH(L$8,'CCG-Prov(Amb)'!$F$2:$F$335,0)+$A10-1,0),"") ->  | O10: =IF($A10<=O$7,VLOOKUP(OFFSET('CCG-Prov(Amb)'!$G$1,MATCH(O$8,'CCG-Prov(Amb)'!$F$2:$F$335,0)+$A10-1,0),'CCG List'!$A$3:$B$213,2,0),"") ->  | P10: =IF($A10<=O$7,OFFSET('CCG-Prov(Amb)'!$H$1,MATCH(O$8,'CCG-Prov(Amb)'!$F$2:$F$335,0)+$A10-1,0),"") ->  | R10: =IF($A10<=R$7,VLOOKUP(OFFSET('CCG-Prov(Amb)'!$G$1,MATCH(R$8,'CCG-Prov(Amb)'!$F$2:$F$335,0)+$A10-1,0),'CCG List'!$A$3:$B$213,2,0),"") ->  | S10: =IF($A10<=R$7,OFFSET('CCG-Prov(Amb)'!$H$1,MATCH(R$8,'CCG-Prov(Amb)'!$F$2:$F$335,0)+$A10-1,0),"") ->  | U10: =IF($A10<=U$7,VLOOKUP(OFFSET('CCG-Prov(Amb)'!$G$1,MATCH(U$8,'CCG-Prov(Amb)'!$F$2:$F$335,0)+$A10-1,0),'CCG List'!$A$3:$B$213,2,0),"") ->  | V10: =IF($A10<=U$7,OFFSET('CCG-Prov(Amb)'!$H$1,MATCH(U$8,'CCG-Prov(Amb)'!$F$2:$F$335,0)+$A10-1,0),"") ->  | X10: =IF($A10<=X$7,VLOOKUP(OFFSET('CCG-Prov(Amb)'!$G$1,MATCH(X$8,'CCG-Prov(Amb)'!$F$2:$F$335,0)+$A10-1,0),'CCG List'!$A$3:$B$213,2,0),"") ->  | Y10: =IF($A10<=X$7,OFFSET('CCG-Prov(Amb)'!$H$1,MATCH(X$8,'CCG-Prov(Amb)'!$F$2:$F$335,0)+$A10-1,0),"") ->  | AA10: =IF($A10<=AA$7,VLOOKUP(OFFSET('CCG-Prov(Amb)'!$G$1,MATCH(AA$8,'CCG-Prov(Amb)'!$F$2:$F$335,0)+$A10-1,0),'CCG List'!$A$3:$B$213,2,0),"") ->  | AB10: =IF($A10<=AA$7,OFFSET('CCG-Prov(Amb)'!$H$1,MATCH(AA$8,'CCG-Prov(Amb)'!$F$2:$F$335,0)+$A10-1,0),"") ->  | AD10: =IF($A10<=AD$7,VLOOKUP(OFFSET('CCG-Prov(Amb)'!$G$1,MATCH(AD$8,'CCG-Prov(Amb)'!$F$2:$F$335,0)+$A10-1,0),'CCG List'!$A$3:$B$213,2,0),"") ->  | AE10: =IF($A10<=AD$7,OFFSET('CCG-Prov(Amb)'!$H$1,MATCH(AD$8,'CCG-Prov(Amb)'!$F$2:$F$335,0)+$A10-1,0),"") ->  | AG10: =IF($A10<=AG$7,VLOOKUP(OFFSET('CCG-Prov(Amb)'!$G$1,MATCH(AG$8,'CCG-Prov(Amb)'!$F$2:$F$335,0)+$A10-1,0),'CCG List'!$A$3:$B$213,2,0),"") ->  | AH10: =IF($A10<=AG$7,OFFSET('CCG-Prov(Amb)'!$H$1,MATCH(AG$8,'CCG-Prov(Amb)'!$F$2:$F$335,0)+$A10-1,0),"") -> 
A11: 2 | B11: =VLOOKUP(D11,provnames!$A$334:$B$346,2,0) ->  | C11: =IF(A11<=$A$31,OFFSET('CCG-Prov(Amb)'!$C$1,MATCH(Ambulance!$C$4,'CCG-Prov(Amb)'!$A$2:$A$335,0)+$A11-1,0),"") ->  | D11: =IF(A11<=$A$31,OFFSET('CCG-Prov(Amb)'!$B$1,MATCH(Ambulance!$C$4,'CCG-Prov(Amb)'!$A$2:$A$335,0)+$A11-1,0),"") ->  | F11: =IF($A11<=F$7,VLOOKUP(OFFSET('CCG-Prov(Amb)'!$G$1,MATCH(F$8,'CCG-Prov(Amb)'!$F$2:$F$335,0)+$A11-1,0),'CCG List'!$A$3:$B$213,2,0),"") ->  | G11: =IF($A11<=F$7,OFFSET('CCG-Prov(Amb)'!$H$1,MATCH(F$8,'CCG-Prov(Amb)'!$F$2:$F$335,0)+$A11-1,0),"") ->  | I11: =IF($A11<=I$7,VLOOKUP(OFFSET('CCG-Prov(Amb)'!$G$1,MATCH(I$8,'CCG-Prov(Amb)'!$F$2:$F$335,0)+$A11-1,0),'CCG List'!$A$3:$B$213,2,0),"") ->  | J11: =IF($A11<=I$7,OFFSET('CCG-Prov(Amb)'!$H$1,MATCH(I$8,'CCG-Prov(Amb)'!$F$2:$F$335,0)+$A11-1,0),"") ->  | L11: =IF($A11<=L$7,VLOOKUP(OFFSET('CCG-Prov(Amb)'!$G$1,MATCH(L$8,'CCG-Prov(Amb)'!$F$2:$F$335,0)+$A11-1,0),'CCG List'!$A$3:$B$213,2,0),"") ->  | M11: =IF($A11<=L$7,OFFSET('CCG-Prov(Amb)'!$H$1,MATCH(L$8,'CCG-Prov(Amb)'!$F$2:$F$335,0)+$A11-1,0),"") ->  | O11: =IF($A11<=O$7,VLOOKUP(OFFSET('CCG-Prov(Amb)'!$G$1,MATCH(O$8,'CCG-Prov(Amb)'!$F$2:$F$335,0)+$A11-1,0),'CCG List'!$A$3:$B$213,2,0),"") ->  | P11: =IF($A11<=O$7,OFFSET('CCG-Prov(Amb)'!$H$1,MATCH(O$8,'CCG-Prov(Amb)'!$F$2:$F$335,0)+$A11-1,0),"") ->  | R11: =IF($A11<=R$7,VLOOKUP(OFFSET('CCG-Prov(Amb)'!$G$1,MATCH(R$8,'CCG-Prov(Amb)'!$F$2:$F$335,0)+$A11-1,0),'CCG List'!$A$3:$B$213,2,0),"") ->  | S11: =IF($A11<=R$7,OFFSET('CCG-Prov(Amb)'!$H$1,MATCH(R$8,'CCG-Prov(Amb)'!$F$2:$F$335,0)+$A11-1,0),"") ->  | U11: =IF($A11<=U$7,VLOOKUP(OFFSET('CCG-Prov(Amb)'!$G$1,MATCH(U$8,'CCG-Prov(Amb)'!$F$2:$F$335,0)+$A11-1,0),'CCG List'!$A$3:$B$213,2,0),"") ->  | V11: =IF($A11<=U$7,OFFSET('CCG-Prov(Amb)'!$H$1,MATCH(U$8,'CCG-Prov(Amb)'!$F$2:$F$335,0)+$A11-1,0),"") ->  | X11: =IF($A11<=X$7,VLOOKUP(OFFSET('CCG-Prov(Amb)'!$G$1,MATCH(X$8,'CCG-Prov(Amb)'!$F$2:$F$335,0)+$A11-1,0),'CCG List'!$A$3:$B$213,2,0),"") ->  | Y11: =IF($A11<=X$7,OFFSET('CCG-Prov(Amb)'!$H$1,MATCH(X$8,'CCG-Prov(Amb)'!$F$2:$F$335,0)+$A11-1,0),"") ->  | AA11: =IF($A11<=AA$7,VLOOKUP(OFFSET('CCG-Prov(Amb)'!$G$1,MATCH(AA$8,'CCG-Prov(Amb)'!$F$2:$F$335,0)+$A11-1,0),'CCG List'!$A$3:$B$213,2,0),"") ->  | AB11: =IF($A11<=AA$7,OFFSET('CCG-Prov(Amb)'!$H$1,MATCH(AA$8,'CCG-Prov(Amb)'!$F$2:$F$335,0)+$A11-1,0),"") ->  | AD11: =IF($A11<=AD$7,VLOOKUP(OFFSET('CCG-Prov(Amb)'!$G$1,MATCH(AD$8,'CCG-Prov(Amb)'!$F$2:$F$335,0)+$A11-1,0),'CCG List'!$A$3:$B$213,2,0),"") ->  | AE11: =IF($A11<=AD$7,OFFSET('CCG-Prov(Amb)'!$H$1,MATCH(AD$8,'CCG-Prov(Amb)'!$F$2:$F$335,0)+$A11-1,0),"") ->  | AG11: =IF($A11<=AG$7,VLOOKUP(OFFSET('CCG-Prov(Amb)'!$G$1,MATCH(AG$8,'CCG-Prov(Amb)'!$F$2:$F$335,0)+$A11-1,0),'CCG List'!$A$3:$B$213,2,0),"") ->  | AH11: =IF($A11<=AG$7,OFFSET('CCG-Prov(Amb)'!$H$1,MATCH(AG$8,'CCG-Prov(Amb)'!$F$2:$F$335,0)+$A11-1,0),"") -> 
A12: 3 | B12: =VLOOKUP(D12,provnames!$A$334:$B$346,2,0) ->  | C12: =IF(A12<=$A$31,OFFSET('CCG-Prov(Amb)'!$C$1,MATCH(Ambulance!$C$4,'CCG-Prov(Amb)'!$A$2:$A$335,0)+$A12-1,0),"") ->  | D12: =IF(A12<=$A$31,OFFSET('CCG-Prov(Amb)'!$B$1,MATCH(Ambulance!$C$4,'CCG-Prov(Amb)'!$A$2:$A$335,0)+$A12-1,0),"") ->  | F12: =IF($A12<=F$7,VLOOKUP(OFFSET('CCG-Prov(Amb)'!$G$1,MATCH(F$8,'CCG-Prov(Amb)'!$F$2:$F$335,0)+$A12-1,0),'CCG List'!$A$3:$B$213,2,0),"") ->  | G12: =IF($A12<=F$7,OFFSET('CCG-Prov(Amb)'!$H$1,MATCH(F$8,'CCG-Prov(Amb)'!$F$2:$F$335,0)+$A12-1,0),"") ->  | I12: =IF($A12<=I$7,VLOOKUP(OFFSET('CCG-Prov(Amb)'!$G$1,MATCH(I$8,'CCG-Prov(Amb)'!$F$2:$F$335,0)+$A12-1,0),'CCG List'!$A$3:$B$213,2,0),"") ->  | J12: =IF($A12<=I$7,OFFSET('CCG-Prov(Amb)'!$H$1,MATCH(I$8,'CCG-Prov(Amb)'!$F$2:$F$335,0)+$A12-1,0),"") ->  | L12: =IF($A12<=L$7,VLOOKUP(OFFSET('CCG-Prov(Amb)'!$G$1,MATCH(L$8,'CCG-Prov(Amb)'!$F$2:$F$335,0)+$A12-1,0),'CCG List'!$A$3:$B$213,2,0),"") ->  | M12: =IF($A12<=L$7,OFFSET('CCG-Prov(Amb)'!$H$1,MATCH(L$8,'CCG-Prov(Amb)'!$F$2:$F$335,0)+$A12-1,0),"") ->  | O12: =IF($A12<=O$7,VLOOKUP(OFFSET('CCG-Prov(Amb)'!$G$1,MATCH(O$8,'CCG-Prov(Amb)'!$F$2:$F$335,0)+$A12-1,0),'CCG List'!$A$3:$B$213,2,0),"") ->  | P12: =IF($A12<=O$7,OFFSET('CCG-Prov(Amb)'!$H$1,MATCH(O$8,'CCG-Prov(Amb)'!$F$2:$F$335,0)+$A12-1,0),"") ->  | R12: =IF($A12<=R$7,VLOOKUP(OFFSET('CCG-Prov(Amb)'!$G$1,MATCH(R$8,'CCG-Prov(Amb)'!$F$2:$F$335,0)+$A12-1,0),'CCG List'!$A$3:$B$213,2,0),"") ->  | S12: =IF($A12<=R$7,OFFSET('CCG-Prov(Amb)'!$H$1,MATCH(R$8,'CCG-Prov(Amb)'!$F$2:$F$335,0)+$A12-1,0),"") ->  | U12: =IF($A12<=U$7,VLOOKUP(OFFSET('CCG-Prov(Amb)'!$G$1,MATCH(U$8,'CCG-Prov(Amb)'!$F$2:$F$335,0)+$A12-1,0),'CCG List'!$A$3:$B$213,2,0),"") ->  | V12: =IF($A12<=U$7,OFFSET('CCG-Prov(Amb)'!$H$1,MATCH(U$8,'CCG-Prov(Amb)'!$F$2:$F$335,0)+$A12-1,0),"") ->  | X12: =IF($A12<=X$7,VLOOKUP(OFFSET('CCG-Prov(Amb)'!$G$1,MATCH(X$8,'CCG-Prov(Amb)'!$F$2:$F$335,0)+$A12-1,0),'CCG List'!$A$3:$B$213,2,0),"") ->  | Y12: =IF($A12<=X$7,OFFSET('CCG-Prov(Amb)'!$H$1,MATCH(X$8,'CCG-Prov(Amb)'!$F$2:$F$335,0)+$A12-1,0),"") ->  | AA12: =IF($A12<=AA$7,VLOOKUP(OFFSET('CCG-Prov(Amb)'!$G$1,MATCH(AA$8,'CCG-Prov(Amb)'!$F$2:$F$335,0)+$A12-1,0),'CCG List'!$A$3:$B$213,2,0),"") ->  | AB12: =IF($A12<=AA$7,OFFSET('CCG-Prov(Amb)'!$H$1,MATCH(AA$8,'CCG-Prov(Amb)'!$F$2:$F$335,0)+$A12-1,0),"") ->  | AD12: =IF($A12<=AD$7,VLOOKUP(OFFSET('CCG-Prov(Amb)'!$G$1,MATCH(AD$8,'CCG-Prov(Amb)'!$F$2:$F$335,0)+$A12-1,0),'CCG List'!$A$3:$B$213,2,0),"") ->  | AE12: =IF($A12<=AD$7,OFFSET('CCG-Prov(Amb)'!$H$1,MATCH(AD$8,'CCG-Prov(Amb)'!$F$2:$F$335,0)+$A12-1,0),"") ->  | AG12: =IF($A12<=AG$7,VLOOKUP(OFFSET('CCG-Prov(Amb)'!$G$1,MATCH(AG$8,'CCG-Prov(Amb)'!$F$2:$F$335,0)+$A12-1,0),'CCG List'!$A$3:$B$213,2,0),"") ->  | AH12: =IF($A12<=AG$7,OFFSET('CCG-Prov(Amb)'!$H$1,MATCH(AG$8,'CCG-Prov(Amb)'!$F$2:$F$335,0)+$A12-1,0),"") -> 
A13: 4 | B13: =VLOOKUP(D13,provnames!$A$334:$B$346,2,0) ->  | C13: =IF(A13<=$A$31,OFFSET('CCG-Prov(Amb)'!$C$1,MATCH(Ambulance!$C$4,'CCG-Prov(Amb)'!$A$2:$A$335,0)+$A13-1,0),"") ->  | D13: =IF(A13<=$A$31,OFFSET('CCG-Prov(Amb)'!$B$1,MATCH(Ambulance!$C$4,'CCG-Prov(Amb)'!$A$2:$A$335,0)+$A13-1,0),"") ->  | F13: =IF($A13<=F$7,VLOOKUP(OFFSET('CCG-Prov(Amb)'!$G$1,MATCH(F$8,'CCG-Prov(Amb)'!$F$2:$F$335,0)+$A13-1,0),'CCG List'!$A$3:$B$213,2,0),"") ->  | G13: =IF($A13<=F$7,OFFSET('CCG-Prov(Amb)'!$H$1,MATCH(F$8,'CCG-Prov(Amb)'!$F$2:$F$335,0)+$A13-1,0),"") ->  | I13: =IF($A13<=I$7,VLOOKUP(OFFSET('CCG-Prov(Amb)'!$G$1,MATCH(I$8,'CCG-Prov(Amb)'!$F$2:$F$335,0)+$A13-1,0),'CCG List'!$A$3:$B$213,2,0),"") ->  | J13: =IF($A13<=I$7,OFFSET('CCG-Prov(Amb)'!$H$1,MATCH(I$8,'CCG-Prov(Amb)'!$F$2:$F$335,0)+$A13-1,0),"") ->  | L13: =IF($A13<=L$7,VLOOKUP(OFFSET('CCG-Prov(Amb)'!$G$1,MATCH(L$8,'CCG-Prov(Amb)'!$F$2:$F$335,0)+$A13-1,0),'CCG List'!$A$3:$B$213,2,0),"") ->  | M13: =IF($A13<=L$7,OFFSET('CCG-Prov(Amb)'!$H$1,MATCH(L$8,'CCG-Prov(Amb)'!$F$2:$F$335,0)+$A13-1,0),"") ->  | O13: =IF($A13<=O$7,VLOOKUP(OFFSET('CCG-Prov(Amb)'!$G$1,MATCH(O$8,'CCG-Prov(Amb)'!$F$2:$F$335,0)+$A13-1,0),'CCG List'!$A$3:$B$213,2,0),"") ->  | P13: =IF($A13<=O$7,OFFSET('CCG-Prov(Amb)'!$H$1,MATCH(O$8,'CCG-Prov(Amb)'!$F$2:$F$335,0)+$A13-1,0),"") ->  | R13: =IF($A13<=R$7,VLOOKUP(OFFSET('CCG-Prov(Amb)'!$G$1,MATCH(R$8,'CCG-Prov(Amb)'!$F$2:$F$335,0)+$A13-1,0),'CCG List'!$A$3:$B$213,2,0),"") ->  | S13: =IF($A13<=R$7,OFFSET('CCG-Prov(Amb)'!$H$1,MATCH(R$8,'CCG-Prov(Amb)'!$F$2:$F$335,0)+$A13-1,0),"") ->  | U13: =IF($A13<=U$7,VLOOKUP(OFFSET('CCG-Prov(Amb)'!$G$1,MATCH(U$8,'CCG-Prov(Amb)'!$F$2:$F$335,0)+$A13-1,0),'CCG List'!$A$3:$B$213,2,0),"") ->  | V13: =IF($A13<=U$7,OFFSET('CCG-Prov(Amb)'!$H$1,MATCH(U$8,'CCG-Prov(Amb)'!$F$2:$F$335,0)+$A13-1,0),"") ->  | X13: =IF($A13<=X$7,VLOOKUP(OFFSET('CCG-Prov(Amb)'!$G$1,MATCH(X$8,'CCG-Prov(Amb)'!$F$2:$F$335,0)+$A13-1,0),'CCG List'!$A$3:$B$213,2,0),"") ->  | Y13: =IF($A13<=X$7,OFFSET('CCG-Prov(Amb)'!$H$1,MATCH(X$8,'CCG-Prov(Amb)'!$F$2:$F$335,0)+$A13-1,0),"") ->  | AA13: =IF($A13<=AA$7,VLOOKUP(OFFSET('CCG-Prov(Amb)'!$G$1,MATCH(AA$8,'CCG-Prov(Amb)'!$F$2:$F$335,0)+$A13-1,0),'CCG List'!$A$3:$B$213,2,0),"") ->  | AB13: =IF($A13<=AA$7,OFFSET('CCG-Prov(Amb)'!$H$1,MATCH(AA$8,'CCG-Prov(Amb)'!$F$2:$F$335,0)+$A13-1,0),"") ->  | AD13: =IF($A13<=AD$7,VLOOKUP(OFFSET('CCG-Prov(Amb)'!$G$1,MATCH(AD$8,'CCG-Prov(Amb)'!$F$2:$F$335,0)+$A13-1,0),'CCG List'!$A$3:$B$213,2,0),"") ->  | AE13: =IF($A13<=AD$7,OFFSET('CCG-Prov(Amb)'!$H$1,MATCH(AD$8,'CCG-Prov(Amb)'!$F$2:$F$335,0)+$A13-1,0),"") ->  | AG13: =IF($A13<=AG$7,VLOOKUP(OFFSET('CCG-Prov(Amb)'!$G$1,MATCH(AG$8,'CCG-Prov(Amb)'!$F$2:$F$335,0)+$A13-1,0),'CCG List'!$A$3:$B$213,2,0),"") ->  | AH13: =IF($A13<=AG$7,OFFSET('CCG-Prov(Amb)'!$H$1,MATCH(AG$8,'CCG-Prov(Amb)'!$F$2:$F$335,0)+$A13-1,0),"") -> 
A14: 5 | B14: =VLOOKUP(D14,provnames!$A$334:$B$346,2,0) ->  | C14: =IF(A14<=$A$31,OFFSET('CCG-Prov(Amb)'!$C$1,MATCH(Ambulance!$C$4,'CCG-Prov(Amb)'!$A$2:$A$335,0)+$A14-1,0),"") ->  | D14: =IF(A14<=$A$31,OFFSET('CCG-Prov(Amb)'!$B$1,MATCH(Ambulance!$C$4,'CCG-Prov(Amb)'!$A$2:$A$335,0)+$A14-1,0),"") ->  | F14: =IF($A14<=F$7,VLOOKUP(OFFSET('CCG-Prov(Amb)'!$G$1,MATCH(F$8,'CCG-Prov(Amb)'!$F$2:$F$335,0)+$A14-1,0),'CCG List'!$A$3:$B$213,2,0),"") ->  | G14: =IF($A14<=F$7,OFFSET('CCG-Prov(Amb)'!$H$1,MATCH(F$8,'CCG-Prov(Amb)'!$F$2:$F$335,0)+$A14-1,0),"") ->  | I14: =IF($A14<=I$7,VLOOKUP(OFFSET('CCG-Prov(Amb)'!$G$1,MATCH(I$8,'CCG-Prov(Amb)'!$F$2:$F$335,0)+$A14-1,0),'CCG List'!$A$3:$B$213,2,0),"") ->  | J14: =IF($A14<=I$7,OFFSET('CCG-Prov(Amb)'!$H$1,MATCH(I$8,'CCG-Prov(Amb)'!$F$2:$F$335,0)+$A14-1,0),"") ->  | L14: =IF($A14<=L$7,VLOOKUP(OFFSET('CCG-Prov(Amb)'!$G$1,MATCH(L$8,'CCG-Prov(Amb)'!$F$2:$F$335,0)+$A14-1,0),'CCG List'!$A$3:$B$213,2,0),"") ->  | M14: =IF($A14<=L$7,OFFSET('CCG-Prov(Amb)'!$H$1,MATCH(L$8,'CCG-Prov(Amb)'!$F$2:$F$335,0)+$A14-1,0),"") ->  | O14: =IF($A14<=O$7,VLOOKUP(OFFSET('CCG-Prov(Amb)'!$G$1,MATCH(O$8,'CCG-Prov(Amb)'!$F$2:$F$335,0)+$A14-1,0),'CCG List'!$A$3:$B$213,2,0),"") ->  | P14: =IF($A14<=O$7,OFFSET('CCG-Prov(Amb)'!$H$1,MATCH(O$8,'CCG-Prov(Amb)'!$F$2:$F$335,0)+$A14-1,0),"") ->  | R14: =IF($A14<=R$7,VLOOKUP(OFFSET('CCG-Prov(Amb)'!$G$1,MATCH(R$8,'CCG-Prov(Amb)'!$F$2:$F$335,0)+$A14-1,0),'CCG List'!$A$3:$B$213,2,0),"") ->  | S14: =IF($A14<=R$7,OFFSET('CCG-Prov(Amb)'!$H$1,MATCH(R$8,'CCG-Prov(Amb)'!$F$2:$F$335,0)+$A14-1,0),"") ->  | U14: =IF($A14<=U$7,VLOOKUP(OFFSET('CCG-Prov(Amb)'!$G$1,MATCH(U$8,'CCG-Prov(Amb)'!$F$2:$F$335,0)+$A14-1,0),'CCG List'!$A$3:$B$213,2,0),"") ->  | V14: =IF($A14<=U$7,OFFSET('CCG-Prov(Amb)'!$H$1,MATCH(U$8,'CCG-Prov(Amb)'!$F$2:$F$335,0)+$A14-1,0),"") ->  | X14: =IF($A14<=X$7,VLOOKUP(OFFSET('CCG-Prov(Amb)'!$G$1,MATCH(X$8,'CCG-Prov(Amb)'!$F$2:$F$335,0)+$A14-1,0),'CCG List'!$A$3:$B$213,2,0),"") ->  | Y14: =IF($A14<=X$7,OFFSET('CCG-Prov(Amb)'!$H$1,MATCH(X$8,'CCG-Prov(Amb)'!$F$2:$F$335,0)+$A14-1,0),"") ->  | AA14: =IF($A14<=AA$7,VLOOKUP(OFFSET('CCG-Prov(Amb)'!$G$1,MATCH(AA$8,'CCG-Prov(Amb)'!$F$2:$F$335,0)+$A14-1,0),'CCG List'!$A$3:$B$213,2,0),"") ->  | AB14: =IF($A14<=AA$7,OFFSET('CCG-Prov(Amb)'!$H$1,MATCH(AA$8,'CCG-Prov(Amb)'!$F$2:$F$335,0)+$A14-1,0),"") ->  | AD14: =IF($A14<=AD$7,VLOOKUP(OFFSET('CCG-Prov(Amb)'!$G$1,MATCH(AD$8,'CCG-Prov(Amb)'!$F$2:$F$335,0)+$A14-1,0),'CCG List'!$A$3:$B$213,2,0),"") ->  | AE14: =IF($A14<=AD$7,OFFSET('CCG-Prov(Amb)'!$H$1,MATCH(AD$8,'CCG-Prov(Amb)'!$F$2:$F$335,0)+$A14-1,0),"") ->  | AG14: =IF($A14<=AG$7,VLOOKUP(OFFSET('CCG-Prov(Amb)'!$G$1,MATCH(AG$8,'CCG-Prov(Amb)'!$F$2:$F$335,0)+$A14-1,0),'CCG List'!$A$3:$B$213,2,0),"") ->  | AH14: =IF($A14<=AG$7,OFFSET('CCG-Prov(Amb)'!$H$1,MATCH(AG$8,'CCG-Prov(Amb)'!$F$2:$F$335,0)+$A14-1,0),"") -> 
A15: 6 | B15: =VLOOKUP(D15,provnames!$A$334:$B$346,2,0) ->  | C15: =IF(A15<=$A$31,OFFSET('CCG-Prov(Amb)'!$C$1,MATCH(Ambulance!$C$4,'CCG-Prov(Amb)'!$A$2:$A$335,0)+$A15-1,0),"") ->  | D15: =IF(A15<=$A$31,OFFSET('CCG-Prov(Amb)'!$B$1,MATCH(Ambulance!$C$4,'CCG-Prov(Amb)'!$A$2:$A$335,0)+$A15-1,0),"") ->  | F15: =IF($A15<=F$7,VLOOKUP(OFFSET('CCG-Prov(Amb)'!$G$1,MATCH(F$8,'CCG-Prov(Amb)'!$F$2:$F$335,0)+$A15-1,0),'CCG List'!$A$3:$B$213,2,0),"") ->  | G15: =IF($A15<=F$7,OFFSET('CCG-Prov(Amb)'!$H$1,MATCH(F$8,'CCG-Prov(Amb)'!$F$2:$F$335,0)+$A15-1,0),"") ->  | I15: =IF($A15<=I$7,VLOOKUP(OFFSET('CCG-Prov(Amb)'!$G$1,MATCH(I$8,'CCG-Prov(Amb)'!$F$2:$F$335,0)+$A15-1,0),'CCG List'!$A$3:$B$213,2,0),"") ->  | J15: =IF($A15<=I$7,OFFSET('CCG-Prov(Amb)'!$H$1,MATCH(I$8,'CCG-Prov(Amb)'!$F$2:$F$335,0)+$A15-1,0),"") ->  | L15: =IF($A15<=L$7,VLOOKUP(OFFSET('CCG-Prov(Amb)'!$G$1,MATCH(L$8,'CCG-Prov(Amb)'!$F$2:$F$335,0)+$A15-1,0),'CCG List'!$A$3:$B$213,2,0),"") ->  | M15: =IF($A15<=L$7,OFFSET('CCG-Prov(Amb)'!$H$1,MATCH(L$8,'CCG-Prov(Amb)'!$F$2:$F$335,0)+$A15-1,0),"") ->  | O15: =IF($A15<=O$7,VLOOKUP(OFFSET('CCG-Prov(Amb)'!$G$1,MATCH(O$8,'CCG-Prov(Amb)'!$F$2:$F$335,0)+$A15-1,0),'CCG List'!$A$3:$B$213,2,0),"") ->  | P15: =IF($A15<=O$7,OFFSET('CCG-Prov(Amb)'!$H$1,MATCH(O$8,'CCG-Prov(Amb)'!$F$2:$F$335,0)+$A15-1,0),"") ->  | R15: =IF($A15<=R$7,VLOOKUP(OFFSET('CCG-Prov(Amb)'!$G$1,MATCH(R$8,'CCG-Prov(Amb)'!$F$2:$F$335,0)+$A15-1,0),'CCG List'!$A$3:$B$213,2,0),"") ->  | S15: =IF($A15<=R$7,OFFSET('CCG-Prov(Amb)'!$H$1,MATCH(R$8,'CCG-Prov(Amb)'!$F$2:$F$335,0)+$A15-1,0),"") ->  | U15: =IF($A15<=U$7,VLOOKUP(OFFSET('CCG-Prov(Amb)'!$G$1,MATCH(U$8,'CCG-Prov(Amb)'!$F$2:$F$335,0)+$A15-1,0),'CCG List'!$A$3:$B$213,2,0),"") ->  | V15: =IF($A15<=U$7,OFFSET('CCG-Prov(Amb)'!$H$1,MATCH(U$8,'CCG-Prov(Amb)'!$F$2:$F$335,0)+$A15-1,0),"") ->  | X15: =IF($A15<=X$7,VLOOKUP(OFFSET('CCG-Prov(Amb)'!$G$1,MATCH(X$8,'CCG-Prov(Amb)'!$F$2:$F$335,0)+$A15-1,0),'CCG List'!$A$3:$B$213,2,0),"") ->  | Y15: =IF($A15<=X$7,OFFSET('CCG-Prov(Amb)'!$H$1,MATCH(X$8,'CCG-Prov(Amb)'!$F$2:$F$335,0)+$A15-1,0),"") ->  | AA15: =IF($A15<=AA$7,VLOOKUP(OFFSET('CCG-Prov(Amb)'!$G$1,MATCH(AA$8,'CCG-Prov(Amb)'!$F$2:$F$335,0)+$A15-1,0),'CCG List'!$A$3:$B$213,2,0),"") ->  | AB15: =IF($A15<=AA$7,OFFSET('CCG-Prov(Amb)'!$H$1,MATCH(AA$8,'CCG-Prov(Amb)'!$F$2:$F$335,0)+$A15-1,0),"") ->  | AD15: =IF($A15<=AD$7,VLOOKUP(OFFSET('CCG-Prov(Amb)'!$G$1,MATCH(AD$8,'CCG-Prov(Amb)'!$F$2:$F$335,0)+$A15-1,0),'CCG List'!$A$3:$B$213,2,0),"") ->  | AE15: =IF($A15<=AD$7,OFFSET('CCG-Prov(Amb)'!$H$1,MATCH(AD$8,'CCG-Prov(Amb)'!$F$2:$F$335,0)+$A15-1,0),"") ->  | AG15: =IF($A15<=AG$7,VLOOKUP(OFFSET('CCG-Prov(Amb)'!$G$1,MATCH(AG$8,'CCG-Prov(Amb)'!$F$2:$F$335,0)+$A15-1,0),'CCG List'!$A$3:$B$213,2,0),"") ->  | AH15: =IF($A15<=AG$7,OFFSET('CCG-Prov(Amb)'!$H$1,MATCH(AG$8,'CCG-Prov(Amb)'!$F$2:$F$335,0)+$A15-1,0),"") -> 
A16: 7 | B16: =VLOOKUP(D16,provnames!$A$334:$B$346,2,0) ->  | C16: =IF(A16<=$A$31,OFFSET('CCG-Prov(Amb)'!$C$1,MATCH(Ambulance!$C$4,'CCG-Prov(Amb)'!$A$2:$A$335,0)+$A16-1,0),"") ->  | D16: =IF(A16<=$A$31,OFFSET('CCG-Prov(Amb)'!$B$1,MATCH(Ambulance!$C$4,'CCG-Prov(Amb)'!$A$2:$A$335,0)+$A16-1,0),"") ->  | F16: =IF($A16<=F$7,VLOOKUP(OFFSET('CCG-Prov(Amb)'!$G$1,MATCH(F$8,'CCG-Prov(Amb)'!$F$2:$F$335,0)+$A16-1,0),'CCG List'!$A$3:$B$213,2,0),"") ->  | G16: =IF($A16<=F$7,OFFSET('CCG-Prov(Amb)'!$H$1,MATCH(F$8,'CCG-Prov(Amb)'!$F$2:$F$335,0)+$A16-1,0),"") ->  | I16: =IF($A16<=I$7,VLOOKUP(OFFSET('CCG-Prov(Amb)'!$G$1,MATCH(I$8,'CCG-Prov(Amb)'!$F$2:$F$335,0)+$A16-1,0),'CCG List'!$A$3:$B$213,2,0),"") ->  | J16: =IF($A16<=I$7,OFFSET('CCG-Prov(Amb)'!$H$1,MATCH(I$8,'CCG-Prov(Amb)'!$F$2:$F$335,0)+$A16-1,0),"") ->  | L16: =IF($A16<=L$7,VLOOKUP(OFFSET('CCG-Prov(Amb)'!$G$1,MATCH(L$8,'CCG-Prov(Amb)'!$F$2:$F$335,0)+$A16-1,0),'CCG List'!$A$3:$B$213,2,0),"") ->  | M16: =IF($A16<=L$7,OFFSET('CCG-Prov(Amb)'!$H$1,MATCH(L$8,'CCG-Prov(Amb)'!$F$2:$F$335,0)+$A16-1,0),"") ->  | O16: =IF($A16<=O$7,VLOOKUP(OFFSET('CCG-Prov(Amb)'!$G$1,MATCH(O$8,'CCG-Prov(Amb)'!$F$2:$F$335,0)+$A16-1,0),'CCG List'!$A$3:$B$213,2,0),"") ->  | P16: =IF($A16<=O$7,OFFSET('CCG-Prov(Amb)'!$H$1,MATCH(O$8,'CCG-Prov(Amb)'!$F$2:$F$335,0)+$A16-1,0),"") ->  | R16: =IF($A16<=R$7,VLOOKUP(OFFSET('CCG-Prov(Amb)'!$G$1,MATCH(R$8,'CCG-Prov(Amb)'!$F$2:$F$335,0)+$A16-1,0),'CCG List'!$A$3:$B$213,2,0),"") ->  | S16: =IF($A16<=R$7,OFFSET('CCG-Prov(Amb)'!$H$1,MATCH(R$8,'CCG-Prov(Amb)'!$F$2:$F$335,0)+$A16-1,0),"") ->  | U16: =IF($A16<=U$7,VLOOKUP(OFFSET('CCG-Prov(Amb)'!$G$1,MATCH(U$8,'CCG-Prov(Amb)'!$F$2:$F$335,0)+$A16-1,0),'CCG List'!$A$3:$B$213,2,0),"") ->  | V16: =IF($A16<=U$7,OFFSET('CCG-Prov(Amb)'!$H$1,MATCH(U$8,'CCG-Prov(Amb)'!$F$2:$F$335,0)+$A16-1,0),"") ->  | X16: =IF($A16<=X$7,VLOOKUP(OFFSET('CCG-Prov(Amb)'!$G$1,MATCH(X$8,'CCG-Prov(Amb)'!$F$2:$F$335,0)+$A16-1,0),'CCG List'!$A$3:$B$213,2,0),"") ->  | Y16: =IF($A16<=X$7,OFFSET('CCG-Prov(Amb)'!$H$1,MATCH(X$8,'CCG-Prov(Amb)'!$F$2:$F$335,0)+$A16-1,0),"") ->  | AA16: =IF($A16<=AA$7,VLOOKUP(OFFSET('CCG-Prov(Amb)'!$G$1,MATCH(AA$8,'CCG-Prov(Amb)'!$F$2:$F$335,0)+$A16-1,0),'CCG List'!$A$3:$B$213,2,0),"") ->  | AB16: =IF($A16<=AA$7,OFFSET('CCG-Prov(Amb)'!$H$1,MATCH(AA$8,'CCG-Prov(Amb)'!$F$2:$F$335,0)+$A16-1,0),"") ->  | AD16: =IF($A16<=AD$7,VLOOKUP(OFFSET('CCG-Prov(Amb)'!$G$1,MATCH(AD$8,'CCG-Prov(Amb)'!$F$2:$F$335,0)+$A16-1,0),'CCG List'!$A$3:$B$213,2,0),"") ->  | AE16: =IF($A16<=AD$7,OFFSET('CCG-Prov(Amb)'!$H$1,MATCH(AD$8,'CCG-Prov(Amb)'!$F$2:$F$335,0)+$A16-1,0),"") ->  | AG16: =IF($A16<=AG$7,VLOOKUP(OFFSET('CCG-Prov(Amb)'!$G$1,MATCH(AG$8,'CCG-Prov(Amb)'!$F$2:$F$335,0)+$A16-1,0),'CCG List'!$A$3:$B$213,2,0),"") ->  | AH16: =IF($A16<=AG$7,OFFSET('CCG-Prov(Amb)'!$H$1,MATCH(AG$8,'CCG-Prov(Amb)'!$F$2:$F$335,0)+$A16-1,0),"") -> 
A17: 8 | B17: =VLOOKUP(D17,provnames!$A$334:$B$346,2,0) ->  | C17: =IF(A17<=$A$31,OFFSET('CCG-Prov(Amb)'!$C$1,MATCH(Ambulance!$C$4,'CCG-Prov(Amb)'!$A$2:$A$335,0)+$A17-1,0),"") ->  | D17: =IF(A17<=$A$31,OFFSET('CCG-Prov(Amb)'!$B$1,MATCH(Ambulance!$C$4,'CCG-Prov(Amb)'!$A$2:$A$335,0)+$A17-1,0),"") ->  | F17: =IF($A17<=F$7,VLOOKUP(OFFSET('CCG-Prov(Amb)'!$G$1,MATCH(F$8,'CCG-Prov(Amb)'!$F$2:$F$335,0)+$A17-1,0),'CCG List'!$A$3:$B$213,2,0),"") ->  | G17: =IF($A17<=F$7,OFFSET('CCG-Prov(Amb)'!$H$1,MATCH(F$8,'CCG-Prov(Amb)'!$F$2:$F$335,0)+$A17-1,0),"") ->  | I17: =IF($A17<=I$7,VLOOKUP(OFFSET('CCG-Prov(Amb)'!$G$1,MATCH(I$8,'CCG-Prov(Amb)'!$F$2:$F$335,0)+$A17-1,0),'CCG List'!$A$3:$B$213,2,0),"") ->  | J17: =IF($A17<=I$7,OFFSET('CCG-Prov(Amb)'!$H$1,MATCH(I$8,'CCG-Prov(Amb)'!$F$2:$F$335,0)+$A17-1,0),"") ->  | L17: =IF($A17<=L$7,VLOOKUP(OFFSET('CCG-Prov(Amb)'!$G$1,MATCH(L$8,'CCG-Prov(Amb)'!$F$2:$F$335,0)+$A17-1,0),'CCG List'!$A$3:$B$213,2,0),"") ->  | M17: =IF($A17<=L$7,OFFSET('CCG-Prov(Amb)'!$H$1,MATCH(L$8,'CCG-Prov(Amb)'!$F$2:$F$335,0)+$A17-1,0),"") ->  | O17: =IF($A17<=O$7,VLOOKUP(OFFSET('CCG-Prov(Amb)'!$G$1,MATCH(O$8,'CCG-Prov(Amb)'!$F$2:$F$335,0)+$A17-1,0),'CCG List'!$A$3:$B$213,2,0),"") ->  | P17: =IF($A17<=O$7,OFFSET('CCG-Prov(Amb)'!$H$1,MATCH(O$8,'CCG-Prov(Amb)'!$F$2:$F$335,0)+$A17-1,0),"") ->  | R17: =IF($A17<=R$7,VLOOKUP(OFFSET('CCG-Prov(Amb)'!$G$1,MATCH(R$8,'CCG-Prov(Amb)'!$F$2:$F$335,0)+$A17-1,0),'CCG List'!$A$3:$B$213,2,0),"") ->  | S17: =IF($A17<=R$7,OFFSET('CCG-Prov(Amb)'!$H$1,MATCH(R$8,'CCG-Prov(Amb)'!$F$2:$F$335,0)+$A17-1,0),"") ->  | U17: =IF($A17<=U$7,VLOOKUP(OFFSET('CCG-Prov(Amb)'!$G$1,MATCH(U$8,'CCG-Prov(Amb)'!$F$2:$F$335,0)+$A17-1,0),'CCG List'!$A$3:$B$213,2,0),"") ->  | V17: =IF($A17<=U$7,OFFSET('CCG-Prov(Amb)'!$H$1,MATCH(U$8,'CCG-Prov(Amb)'!$F$2:$F$335,0)+$A17-1,0),"") ->  | X17: =IF($A17<=X$7,VLOOKUP(OFFSET('CCG-Prov(Amb)'!$G$1,MATCH(X$8,'CCG-Prov(Amb)'!$F$2:$F$335,0)+$A17-1,0),'CCG List'!$A$3:$B$213,2,0),"") ->  | Y17: =IF($A17<=X$7,OFFSET('CCG-Prov(Amb)'!$H$1,MATCH(X$8,'CCG-Prov(Amb)'!$F$2:$F$335,0)+$A17-1,0),"") ->  | AA17: =IF($A17<=AA$7,VLOOKUP(OFFSET('CCG-Prov(Amb)'!$G$1,MATCH(AA$8,'CCG-Prov(Amb)'!$F$2:$F$335,0)+$A17-1,0),'CCG List'!$A$3:$B$213,2,0),"") ->  | AB17: =IF($A17<=AA$7,OFFSET('CCG-Prov(Amb)'!$H$1,MATCH(AA$8,'CCG-Prov(Amb)'!$F$2:$F$335,0)+$A17-1,0),"") ->  | AD17: =IF($A17<=AD$7,VLOOKUP(OFFSET('CCG-Prov(Amb)'!$G$1,MATCH(AD$8,'CCG-Prov(Amb)'!$F$2:$F$335,0)+$A17-1,0),'CCG List'!$A$3:$B$213,2,0),"") ->  | AE17: =IF($A17<=AD$7,OFFSET('CCG-Prov(Amb)'!$H$1,MATCH(AD$8,'CCG-Prov(Amb)'!$F$2:$F$335,0)+$A17-1,0),"") ->  | AG17: =IF($A17<=AG$7,VLOOKUP(OFFSET('CCG-Prov(Amb)'!$G$1,MATCH(AG$8,'CCG-Prov(Amb)'!$F$2:$F$335,0)+$A17-1,0),'CCG List'!$A$3:$B$213,2,0),"") ->  | AH17: =IF($A17<=AG$7,OFFSET('CCG-Prov(Amb)'!$H$1,MATCH(AG$8,'CCG-Prov(Amb)'!$F$2:$F$335,0)+$A17-1,0),"") -> 
A18: 9 | B18: =VLOOKUP(D18,provnames!$A$334:$B$346,2,0) ->  | C18: =IF(A18<=$A$31,OFFSET('CCG-Prov(Amb)'!$C$1,MATCH(Ambulance!$C$4,'CCG-Prov(Amb)'!$A$2:$A$335,0)+$A18-1,0),"") ->  | D18: =IF(A18<=$A$31,OFFSET('CCG-Prov(Amb)'!$B$1,MATCH(Ambulance!$C$4,'CCG-Prov(Amb)'!$A$2:$A$335,0)+$A18-1,0),"") ->  | F18: =IF($A18<=F$7,VLOOKUP(OFFSET('CCG-Prov(Amb)'!$G$1,MATCH(F$8,'CCG-Prov(Amb)'!$F$2:$F$335,0)+$A18-1,0),'CCG List'!$A$3:$B$213,2,0),"") ->  | G18: =IF($A18<=F$7,OFFSET('CCG-Prov(Amb)'!$H$1,MATCH(F$8,'CCG-Prov(Amb)'!$F$2:$F$335,0)+$A18-1,0),"") ->  | I18: =IF($A18<=I$7,VLOOKUP(OFFSET('CCG-Prov(Amb)'!$G$1,MATCH(I$8,'CCG-Prov(Amb)'!$F$2:$F$335,0)+$A18-1,0),'CCG List'!$A$3:$B$213,2,0),"") ->  | J18: =IF($A18<=I$7,OFFSET('CCG-Prov(Amb)'!$H$1,MATCH(I$8,'CCG-Prov(Amb)'!$F$2:$F$335,0)+$A18-1,0),"") ->  | L18: =IF($A18<=L$7,VLOOKUP(OFFSET('CCG-Prov(Amb)'!$G$1,MATCH(L$8,'CCG-Prov(Amb)'!$F$2:$F$335,0)+$A18-1,0),'CCG List'!$A$3:$B$213,2,0),"") ->  | M18: =IF($A18<=L$7,OFFSET('CCG-Prov(Amb)'!$H$1,MATCH(L$8,'CCG-Prov(Amb)'!$F$2:$F$335,0)+$A18-1,0),"") ->  | O18: =IF($A18<=O$7,VLOOKUP(OFFSET('CCG-Prov(Amb)'!$G$1,MATCH(O$8,'CCG-Prov(Amb)'!$F$2:$F$335,0)+$A18-1,0),'CCG List'!$A$3:$B$213,2,0),"") ->  | P18: =IF($A18<=O$7,OFFSET('CCG-Prov(Amb)'!$H$1,MATCH(O$8,'CCG-Prov(Amb)'!$F$2:$F$335,0)+$A18-1,0),"") ->  | R18: =IF($A18<=R$7,VLOOKUP(OFFSET('CCG-Prov(Amb)'!$G$1,MATCH(R$8,'CCG-Prov(Amb)'!$F$2:$F$335,0)+$A18-1,0),'CCG List'!$A$3:$B$213,2,0),"") ->  | S18: =IF($A18<=R$7,OFFSET('CCG-Prov(Amb)'!$H$1,MATCH(R$8,'CCG-Prov(Amb)'!$F$2:$F$335,0)+$A18-1,0),"") ->  | U18: =IF($A18<=U$7,VLOOKUP(OFFSET('CCG-Prov(Amb)'!$G$1,MATCH(U$8,'CCG-Prov(Amb)'!$F$2:$F$335,0)+$A18-1,0),'CCG List'!$A$3:$B$213,2,0),"") ->  | V18: =IF($A18<=U$7,OFFSET('CCG-Prov(Amb)'!$H$1,MATCH(U$8,'CCG-Prov(Amb)'!$F$2:$F$335,0)+$A18-1,0),"") ->  | X18: =IF($A18<=X$7,VLOOKUP(OFFSET('CCG-Prov(Amb)'!$G$1,MATCH(X$8,'CCG-Prov(Amb)'!$F$2:$F$335,0)+$A18-1,0),'CCG List'!$A$3:$B$213,2,0),"") ->  | Y18: =IF($A18<=X$7,OFFSET('CCG-Prov(Amb)'!$H$1,MATCH(X$8,'CCG-Prov(Amb)'!$F$2:$F$335,0)+$A18-1,0),"") ->  | AA18: =IF($A18<=AA$7,VLOOKUP(OFFSET('CCG-Prov(Amb)'!$G$1,MATCH(AA$8,'CCG-Prov(Amb)'!$F$2:$F$335,0)+$A18-1,0),'CCG List'!$A$3:$B$213,2,0),"") ->  | AB18: =IF($A18<=AA$7,OFFSET('CCG-Prov(Amb)'!$H$1,MATCH(AA$8,'CCG-Prov(Amb)'!$F$2:$F$335,0)+$A18-1,0),"") ->  | AD18: =IF($A18<=AD$7,VLOOKUP(OFFSET('CCG-Prov(Amb)'!$G$1,MATCH(AD$8,'CCG-Prov(Amb)'!$F$2:$F$335,0)+$A18-1,0),'CCG List'!$A$3:$B$213,2,0),"") ->  | AE18: =IF($A18<=AD$7,OFFSET('CCG-Prov(Amb)'!$H$1,MATCH(AD$8,'CCG-Prov(Amb)'!$F$2:$F$335,0)+$A18-1,0),"") ->  | AG18: =IF($A18<=AG$7,VLOOKUP(OFFSET('CCG-Prov(Amb)'!$G$1,MATCH(AG$8,'CCG-Prov(Amb)'!$F$2:$F$335,0)+$A18-1,0),'CCG List'!$A$3:$B$213,2,0),"") ->  | AH18: =IF($A18<=AG$7,OFFSET('CCG-Prov(Amb)'!$H$1,MATCH(AG$8,'CCG-Prov(Amb)'!$F$2:$F$335,0)+$A18-1,0),"") -> 
A19: 10 | B19: =VLOOKUP(D19,provnames!$A$334:$B$346,2,0) ->  | C19: =IF(A19<=$A$31,OFFSET('CCG-Prov(Amb)'!$C$1,MATCH(Ambulance!$C$4,'CCG-Prov(Amb)'!$A$2:$A$335,0)+$A19-1,0),"") ->  | D19: =IF(A19<=$A$31,OFFSET('CCG-Prov(Amb)'!$B$1,MATCH(Ambulance!$C$4,'CCG-Prov(Amb)'!$A$2:$A$335,0)+$A19-1,0),"") ->  | F19: =IF($A19<=F$7,VLOOKUP(OFFSET('CCG-Prov(Amb)'!$G$1,MATCH(F$8,'CCG-Prov(Amb)'!$F$2:$F$335,0)+$A19-1,0),'CCG List'!$A$3:$B$213,2,0),"") ->  | G19: =IF($A19<=F$7,OFFSET('CCG-Prov(Amb)'!$H$1,MATCH(F$8,'CCG-Prov(Amb)'!$F$2:$F$335,0)+$A19-1,0),"") ->  | I19: =IF($A19<=I$7,VLOOKUP(OFFSET('CCG-Prov(Amb)'!$G$1,MATCH(I$8,'CCG-Prov(Amb)'!$F$2:$F$335,0)+$A19-1,0),'CCG List'!$A$3:$B$213,2,0),"") ->  | J19: =IF($A19<=I$7,OFFSET('CCG-Prov(Amb)'!$H$1,MATCH(I$8,'CCG-Prov(Amb)'!$F$2:$F$335,0)+$A19-1,0),"") ->  | L19: =IF($A19<=L$7,VLOOKUP(OFFSET('CCG-Prov(Amb)'!$G$1,MATCH(L$8,'CCG-Prov(Amb)'!$F$2:$F$335,0)+$A19-1,0),'CCG List'!$A$3:$B$213,2,0),"") ->  | M19: =IF($A19<=L$7,OFFSET('CCG-Prov(Amb)'!$H$1,MATCH(L$8,'CCG-Prov(Amb)'!$F$2:$F$335,0)+$A19-1,0),"") ->  | O19: =IF($A19<=O$7,VLOOKUP(OFFSET('CCG-Prov(Amb)'!$G$1,MATCH(O$8,'CCG-Prov(Amb)'!$F$2:$F$335,0)+$A19-1,0),'CCG List'!$A$3:$B$213,2,0),"") ->  | P19: =IF($A19<=O$7,OFFSET('CCG-Prov(Amb)'!$H$1,MATCH(O$8,'CCG-Prov(Amb)'!$F$2:$F$335,0)+$A19-1,0),"") ->  | R19: =IF($A19<=R$7,VLOOKUP(OFFSET('CCG-Prov(Amb)'!$G$1,MATCH(R$8,'CCG-Prov(Amb)'!$F$2:$F$335,0)+$A19-1,0),'CCG List'!$A$3:$B$213,2,0),"") ->  | S19: =IF($A19<=R$7,OFFSET('CCG-Prov(Amb)'!$H$1,MATCH(R$8,'CCG-Prov(Amb)'!$F$2:$F$335,0)+$A19-1,0),"") ->  | U19: =IF($A19<=U$7,VLOOKUP(OFFSET('CCG-Prov(Amb)'!$G$1,MATCH(U$8,'CCG-Prov(Amb)'!$F$2:$F$335,0)+$A19-1,0),'CCG List'!$A$3:$B$213,2,0),"") ->  | V19: =IF($A19<=U$7,OFFSET('CCG-Prov(Amb)'!$H$1,MATCH(U$8,'CCG-Prov(Amb)'!$F$2:$F$335,0)+$A19-1,0),"") ->  | X19: =IF($A19<=X$7,VLOOKUP(OFFSET('CCG-Prov(Amb)'!$G$1,MATCH(X$8,'CCG-Prov(Amb)'!$F$2:$F$335,0)+$A19-1,0),'CCG List'!$A$3:$B$213,2,0),"") ->  | Y19: =IF($A19<=X$7,OFFSET('CCG-Prov(Amb)'!$H$1,MATCH(X$8,'CCG-Prov(Amb)'!$F$2:$F$335,0)+$A19-1,0),"") ->  | AA19: =IF($A19<=AA$7,VLOOKUP(OFFSET('CCG-Prov(Amb)'!$G$1,MATCH(AA$8,'CCG-Prov(Amb)'!$F$2:$F$335,0)+$A19-1,0),'CCG List'!$A$3:$B$213,2,0),"") ->  | AB19: =IF($A19<=AA$7,OFFSET('CCG-Prov(Amb)'!$H$1,MATCH(AA$8,'CCG-Prov(Amb)'!$F$2:$F$335,0)+$A19-1,0),"") ->  | AD19: =IF($A19<=AD$7,VLOOKUP(OFFSET('CCG-Prov(Amb)'!$G$1,MATCH(AD$8,'CCG-Prov(Amb)'!$F$2:$F$335,0)+$A19-1,0),'CCG List'!$A$3:$B$213,2,0),"") ->  | AE19: =IF($A19<=AD$7,OFFSET('CCG-Prov(Amb)'!$H$1,MATCH(AD$8,'CCG-Prov(Amb)'!$F$2:$F$335,0)+$A19-1,0),"") ->  | AG19: =IF($A19<=AG$7,VLOOKUP(OFFSET('CCG-Prov(Amb)'!$G$1,MATCH(AG$8,'CCG-Prov(Amb)'!$F$2:$F$335,0)+$A19-1,0),'CCG List'!$A$3:$B$213,2,0),"") ->  | AH19: =IF($A19<=AG$7,OFFSET('CCG-Prov(Amb)'!$H$1,MATCH(AG$8,'CCG-Prov(Amb)'!$F$2:$F$335,0)+$A19-1,0),"") -> 
A20: 11 | B20: =VLOOKUP(D20,provnames!$A$334:$B$346,2,0) ->  | C20: =IF(A20<=$A$31,OFFSET('CCG-Prov(Amb)'!$C$1,MATCH(Ambulance!$C$4,'CCG-Prov(Amb)'!$A$2:$A$335,0)+$A20-1,0),"") ->  | D20: =IF(A20<=$A$31,OFFSET('CCG-Prov(Amb)'!$B$1,MATCH(Ambulance!$C$4,'CCG-Prov(Amb)'!$A$2:$A$335,0)+$A20-1,0),"") ->  | F20: =IF($A20<=F$7,VLOOKUP(OFFSET('CCG-Prov(Amb)'!$G$1,MATCH(F$8,'CCG-Prov(Amb)'!$F$2:$F$335,0)+$A20-1,0),'CCG List'!$A$3:$B$213,2,0),"") ->  | G20: =IF($A20<=F$7,OFFSET('CCG-Prov(Amb)'!$H$1,MATCH(F$8,'CCG-Prov(Amb)'!$F$2:$F$335,0)+$A20-1,0),"") ->  | I20: =IF($A20<=I$7,VLOOKUP(OFFSET('CCG-Prov(Amb)'!$G$1,MATCH(I$8,'CCG-Prov(Amb)'!$F$2:$F$335,0)+$A20-1,0),'CCG List'!$A$3:$B$213,2,0),"") ->  | J20: =IF($A20<=I$7,OFFSET('CCG-Prov(Amb)'!$H$1,MATCH(I$8,'CCG-Prov(Amb)'!$F$2:$F$335,0)+$A20-1,0),"") ->  | L20: =IF($A20<=L$7,VLOOKUP(OFFSET('CCG-Prov(Amb)'!$G$1,MATCH(L$8,'CCG-Prov(Amb)'!$F$2:$F$335,0)+$A20-1,0),'CCG List'!$A$3:$B$213,2,0),"") ->  | M20: =IF($A20<=L$7,OFFSET('CCG-Prov(Amb)'!$H$1,MATCH(L$8,'CCG-Prov(Amb)'!$F$2:$F$335,0)+$A20-1,0),"") ->  | O20: =IF($A20<=O$7,VLOOKUP(OFFSET('CCG-Prov(Amb)'!$G$1,MATCH(O$8,'CCG-Prov(Amb)'!$F$2:$F$335,0)+$A20-1,0),'CCG List'!$A$3:$B$213,2,0),"") ->  | P20: =IF($A20<=O$7,OFFSET('CCG-Prov(Amb)'!$H$1,MATCH(O$8,'CCG-Prov(Amb)'!$F$2:$F$335,0)+$A20-1,0),"") ->  | R20: =IF($A20<=R$7,VLOOKUP(OFFSET('CCG-Prov(Amb)'!$G$1,MATCH(R$8,'CCG-Prov(Amb)'!$F$2:$F$335,0)+$A20-1,0),'CCG List'!$A$3:$B$213,2,0),"") ->  | S20: =IF($A20<=R$7,OFFSET('CCG-Prov(Amb)'!$H$1,MATCH(R$8,'CCG-Prov(Amb)'!$F$2:$F$335,0)+$A20-1,0),"") ->  | U20: =IF($A20<=U$7,VLOOKUP(OFFSET('CCG-Prov(Amb)'!$G$1,MATCH(U$8,'CCG-Prov(Amb)'!$F$2:$F$335,0)+$A20-1,0),'CCG List'!$A$3:$B$213,2,0),"") ->  | V20: =IF($A20<=U$7,OFFSET('CCG-Prov(Amb)'!$H$1,MATCH(U$8,'CCG-Prov(Amb)'!$F$2:$F$335,0)+$A20-1,0),"") ->  | X20: =IF($A20<=X$7,VLOOKUP(OFFSET('CCG-Prov(Amb)'!$G$1,MATCH(X$8,'CCG-Prov(Amb)'!$F$2:$F$335,0)+$A20-1,0),'CCG List'!$A$3:$B$213,2,0),"") ->  | Y20: =IF($A20<=X$7,OFFSET('CCG-Prov(Amb)'!$H$1,MATCH(X$8,'CCG-Prov(Amb)'!$F$2:$F$335,0)+$A20-1,0),"") ->  | AA20: =IF($A20<=AA$7,VLOOKUP(OFFSET('CCG-Prov(Amb)'!$G$1,MATCH(AA$8,'CCG-Prov(Amb)'!$F$2:$F$335,0)+$A20-1,0),'CCG List'!$A$3:$B$213,2,0),"") ->  | AB20: =IF($A20<=AA$7,OFFSET('CCG-Prov(Amb)'!$H$1,MATCH(AA$8,'CCG-Prov(Amb)'!$F$2:$F$335,0)+$A20-1,0),"") ->  | AD20: =IF($A20<=AD$7,VLOOKUP(OFFSET('CCG-Prov(Amb)'!$G$1,MATCH(AD$8,'CCG-Prov(Amb)'!$F$2:$F$335,0)+$A20-1,0),'CCG List'!$A$3:$B$213,2,0),"") ->  | AE20: =IF($A20<=AD$7,OFFSET('CCG-Prov(Amb)'!$H$1,MATCH(AD$8,'CCG-Prov(Amb)'!$F$2:$F$335,0)+$A20-1,0),"") ->  | AG20: =IF($A20<=AG$7,VLOOKUP(OFFSET('CCG-Prov(Amb)'!$G$1,MATCH(AG$8,'CCG-Prov(Amb)'!$F$2:$F$335,0)+$A20-1,0),'CCG List'!$A$3:$B$213,2,0),"") ->  | AH20: =IF($A20<=AG$7,OFFSET('CCG-Prov(Amb)'!$H$1,MATCH(AG$8,'CCG-Prov(Amb)'!$F$2:$F$335,0)+$A20-1,0),"") -> 
A21: 12 | B21: =VLOOKUP(D21,provnames!$A$334:$B$346,2,0) ->  | C21: =IF(A21<=$A$31,OFFSET('CCG-Prov(Amb)'!$C$1,MATCH(Ambulance!$C$4,'CCG-Prov(Amb)'!$A$2:$A$335,0)+$A21-1,0),"") ->  | D21: =IF(A21<=$A$31,OFFSET('CCG-Prov(Amb)'!$B$1,MATCH(Ambulance!$C$4,'CCG-Prov(Amb)'!$A$2:$A$335,0)+$A21-1,0),"") ->  | F21: =IF($A21<=F$7,VLOOKUP(OFFSET('CCG-Prov(Amb)'!$G$1,MATCH(F$8,'CCG-Prov(Amb)'!$F$2:$F$335,0)+$A21-1,0),'CCG List'!$A$3:$B$213,2,0),"") ->  | G21: =IF($A21<=F$7,OFFSET('CCG-Prov(Amb)'!$H$1,MATCH(F$8,'CCG-Prov(Amb)'!$F$2:$F$335,0)+$A21-1,0),"") ->  | I21: =IF($A21<=I$7,VLOOKUP(OFFSET('CCG-Prov(Amb)'!$G$1,MATCH(I$8,'CCG-Prov(Amb)'!$F$2:$F$335,0)+$A21-1,0),'CCG List'!$A$3:$B$213,2,0),"") ->  | J21: =IF($A21<=I$7,OFFSET('CCG-Prov(Amb)'!$H$1,MATCH(I$8,'CCG-Prov(Amb)'!$F$2:$F$335,0)+$A21-1,0),"") ->  | L21: =IF($A21<=L$7,VLOOKUP(OFFSET('CCG-Prov(Amb)'!$G$1,MATCH(L$8,'CCG-Prov(Amb)'!$F$2:$F$335,0)+$A21-1,0),'CCG List'!$A$3:$B$213,2,0),"") ->  | M21: =IF($A21<=L$7,OFFSET('CCG-Prov(Amb)'!$H$1,MATCH(L$8,'CCG-Prov(Amb)'!$F$2:$F$335,0)+$A21-1,0),"") ->  | O21: =IF($A21<=O$7,VLOOKUP(OFFSET('CCG-Prov(Amb)'!$G$1,MATCH(O$8,'CCG-Prov(Amb)'!$F$2:$F$335,0)+$A21-1,0),'CCG List'!$A$3:$B$213,2,0),"") ->  | P21: =IF($A21<=O$7,OFFSET('CCG-Prov(Amb)'!$H$1,MATCH(O$8,'CCG-Prov(Amb)'!$F$2:$F$335,0)+$A21-1,0),"") ->  | R21: =IF($A21<=R$7,VLOOKUP(OFFSET('CCG-Prov(Amb)'!$G$1,MATCH(R$8,'CCG-Prov(Amb)'!$F$2:$F$335,0)+$A21-1,0),'CCG List'!$A$3:$B$213,2,0),"") ->  | S21: =IF($A21<=R$7,OFFSET('CCG-Prov(Amb)'!$H$1,MATCH(R$8,'CCG-Prov(Amb)'!$F$2:$F$335,0)+$A21-1,0),"") ->  | U21: =IF($A21<=U$7,VLOOKUP(OFFSET('CCG-Prov(Amb)'!$G$1,MATCH(U$8,'CCG-Prov(Amb)'!$F$2:$F$335,0)+$A21-1,0),'CCG List'!$A$3:$B$213,2,0),"") ->  | V21: =IF($A21<=U$7,OFFSET('CCG-Prov(Amb)'!$H$1,MATCH(U$8,'CCG-Prov(Amb)'!$F$2:$F$335,0)+$A21-1,0),"") ->  | X21: =IF($A21<=X$7,VLOOKUP(OFFSET('CCG-Prov(Amb)'!$G$1,MATCH(X$8,'CCG-Prov(Amb)'!$F$2:$F$335,0)+$A21-1,0),'CCG List'!$A$3:$B$213,2,0),"") ->  | Y21: =IF($A21<=X$7,OFFSET('CCG-Prov(Amb)'!$H$1,MATCH(X$8,'CCG-Prov(Amb)'!$F$2:$F$335,0)+$A21-1,0),"") ->  | AA21: =IF($A21<=AA$7,VLOOKUP(OFFSET('CCG-Prov(Amb)'!$G$1,MATCH(AA$8,'CCG-Prov(Amb)'!$F$2:$F$335,0)+$A21-1,0),'CCG List'!$A$3:$B$213,2,0),"") ->  | AB21: =IF($A21<=AA$7,OFFSET('CCG-Prov(Amb)'!$H$1,MATCH(AA$8,'CCG-Prov(Amb)'!$F$2:$F$335,0)+$A21-1,0),"") ->  | AD21: =IF($A21<=AD$7,VLOOKUP(OFFSET('CCG-Prov(Amb)'!$G$1,MATCH(AD$8,'CCG-Prov(Amb)'!$F$2:$F$335,0)+$A21-1,0),'CCG List'!$A$3:$B$213,2,0),"") ->  | AE21: =IF($A21<=AD$7,OFFSET('CCG-Prov(Amb)'!$H$1,MATCH(AD$8,'CCG-Prov(Amb)'!$F$2:$F$335,0)+$A21-1,0),"") ->  | AG21: =IF($A21<=AG$7,VLOOKUP(OFFSET('CCG-Prov(Amb)'!$G$1,MATCH(AG$8,'CCG-Prov(Amb)'!$F$2:$F$335,0)+$A21-1,0),'CCG List'!$A$3:$B$213,2,0),"") ->  | AH21: =IF($A21<=AG$7,OFFSET('CCG-Prov(Amb)'!$H$1,MATCH(AG$8,'CCG-Prov(Amb)'!$F$2:$F$335,0)+$A21-1,0),"") -> 
A22: 13 | B22: =VLOOKUP(D22,provnames!$A$334:$B$346,2,0) ->  | C22: =IF(A22<=$A$31,OFFSET('CCG-Prov(Amb)'!$C$1,MATCH(Ambulance!$C$4,'CCG-Prov(Amb)'!$A$2:$A$335,0)+$A22-1,0),"") ->  | D22: =IF(A22<=$A$31,OFFSET('CCG-Prov(Amb)'!$B$1,MATCH(Ambulance!$C$4,'CCG-Prov(Amb)'!$A$2:$A$335,0)+$A22-1,0),"") ->  | F22: =IF($A22<=F$7,VLOOKUP(OFFSET('CCG-Prov(Amb)'!$G$1,MATCH(F$8,'CCG-Prov(Amb)'!$F$2:$F$335,0)+$A22-1,0),'CCG List'!$A$3:$B$213,2,0),"") ->  | G22: =IF($A22<=F$7,OFFSET('CCG-Prov(Amb)'!$H$1,MATCH(F$8,'CCG-Prov(Amb)'!$F$2:$F$335,0)+$A22-1,0),"") ->  | I22: =IF($A22<=I$7,VLOOKUP(OFFSET('CCG-Prov(Amb)'!$G$1,MATCH(I$8,'CCG-Prov(Amb)'!$F$2:$F$335,0)+$A22-1,0),'CCG List'!$A$3:$B$213,2,0),"") ->  | J22: =IF($A22<=I$7,OFFSET('CCG-Prov(Amb)'!$H$1,MATCH(I$8,'CCG-Prov(Amb)'!$F$2:$F$335,0)+$A22-1,0),"") ->  | L22: =IF($A22<=L$7,VLOOKUP(OFFSET('CCG-Prov(Amb)'!$G$1,MATCH(L$8,'CCG-Prov(Amb)'!$F$2:$F$335,0)+$A22-1,0),'CCG List'!$A$3:$B$213,2,0),"") ->  | M22: =IF($A22<=L$7,OFFSET('CCG-Prov(Amb)'!$H$1,MATCH(L$8,'CCG-Prov(Amb)'!$F$2:$F$335,0)+$A22-1,0),"") ->  | O22: =IF($A22<=O$7,VLOOKUP(OFFSET('CCG-Prov(Amb)'!$G$1,MATCH(O$8,'CCG-Prov(Amb)'!$F$2:$F$335,0)+$A22-1,0),'CCG List'!$A$3:$B$213,2,0),"") ->  | P22: =IF($A22<=O$7,OFFSET('CCG-Prov(Amb)'!$H$1,MATCH(O$8,'CCG-Prov(Amb)'!$F$2:$F$335,0)+$A22-1,0),"") ->  | R22: =IF($A22<=R$7,VLOOKUP(OFFSET('CCG-Prov(Amb)'!$G$1,MATCH(R$8,'CCG-Prov(Amb)'!$F$2:$F$335,0)+$A22-1,0),'CCG List'!$A$3:$B$213,2,0),"") ->  | S22: =IF($A22<=R$7,OFFSET('CCG-Prov(Amb)'!$H$1,MATCH(R$8,'CCG-Prov(Amb)'!$F$2:$F$335,0)+$A22-1,0),"") ->  | U22: =IF($A22<=U$7,VLOOKUP(OFFSET('CCG-Prov(Amb)'!$G$1,MATCH(U$8,'CCG-Prov(Amb)'!$F$2:$F$335,0)+$A22-1,0),'CCG List'!$A$3:$B$213,2,0),"") ->  | V22: =IF($A22<=U$7,OFFSET('CCG-Prov(Amb)'!$H$1,MATCH(U$8,'CCG-Prov(Amb)'!$F$2:$F$335,0)+$A22-1,0),"") ->  | X22: =IF($A22<=X$7,VLOOKUP(OFFSET('CCG-Prov(Amb)'!$G$1,MATCH(X$8,'CCG-Prov(Amb)'!$F$2:$F$335,0)+$A22-1,0),'CCG List'!$A$3:$B$213,2,0),"") ->  | Y22: =IF($A22<=X$7,OFFSET('CCG-Prov(Amb)'!$H$1,MATCH(X$8,'CCG-Prov(Amb)'!$F$2:$F$335,0)+$A22-1,0),"") ->  | AA22: =IF($A22<=AA$7,VLOOKUP(OFFSET('CCG-Prov(Amb)'!$G$1,MATCH(AA$8,'CCG-Prov(Amb)'!$F$2:$F$335,0)+$A22-1,0),'CCG List'!$A$3:$B$213,2,0),"") ->  | AB22: =IF($A22<=AA$7,OFFSET('CCG-Prov(Amb)'!$H$1,MATCH(AA$8,'CCG-Prov(Amb)'!$F$2:$F$335,0)+$A22-1,0),"") ->  | AD22: =IF($A22<=AD$7,VLOOKUP(OFFSET('CCG-Prov(Amb)'!$G$1,MATCH(AD$8,'CCG-Prov(Amb)'!$F$2:$F$335,0)+$A22-1,0),'CCG List'!$A$3:$B$213,2,0),"") ->  | AE22: =IF($A22<=AD$7,OFFSET('CCG-Prov(Amb)'!$H$1,MATCH(AD$8,'CCG-Prov(Amb)'!$F$2:$F$335,0)+$A22-1,0),"") ->  | AG22: =IF($A22<=AG$7,VLOOKUP(OFFSET('CCG-Prov(Amb)'!$G$1,MATCH(AG$8,'CCG-Prov(Amb)'!$F$2:$F$335,0)+$A22-1,0),'CCG List'!$A$3:$B$213,2,0),"") ->  | AH22: =IF($A22<=AG$7,OFFSET('CCG-Prov(Amb)'!$H$1,MATCH(AG$8,'CCG-Prov(Amb)'!$F$2:$F$335,0)+$A22-1,0),"") -> 
A23: 14 | B23: =VLOOKUP(D23,provnames!$A$334:$B$346,2,0) ->  | C23: =IF(A23<=$A$31,OFFSET('CCG-Prov(Amb)'!$C$1,MATCH(Ambulance!$C$4,'CCG-Prov(Amb)'!$A$2:$A$335,0)+$A23-1,0),"") ->  | D23: =IF(A23<=$A$31,OFFSET('CCG-Prov(Amb)'!$B$1,MATCH(Ambulance!$C$4,'CCG-Prov(Amb)'!$A$2:$A$335,0)+$A23-1,0),"") ->  | F23: =IF($A23<=F$7,VLOOKUP(OFFSET('CCG-Prov(Amb)'!$G$1,MATCH(F$8,'CCG-Prov(Amb)'!$F$2:$F$335,0)+$A23-1,0),'CCG List'!$A$3:$B$213,2,0),"") ->  | G23: =IF($A23<=F$7,OFFSET('CCG-Prov(Amb)'!$H$1,MATCH(F$8,'CCG-Prov(Amb)'!$F$2:$F$335,0)+$A23-1,0),"") ->  | I23: =IF($A23<=I$7,VLOOKUP(OFFSET('CCG-Prov(Amb)'!$G$1,MATCH(I$8,'CCG-Prov(Amb)'!$F$2:$F$335,0)+$A23-1,0),'CCG List'!$A$3:$B$213,2,0),"") ->  | J23: =IF($A23<=I$7,OFFSET('CCG-Prov(Amb)'!$H$1,MATCH(I$8,'CCG-Prov(Amb)'!$F$2:$F$335,0)+$A23-1,0),"") ->  | L23: =IF($A23<=L$7,VLOOKUP(OFFSET('CCG-Prov(Amb)'!$G$1,MATCH(L$8,'CCG-Prov(Amb)'!$F$2:$F$335,0)+$A23-1,0),'CCG List'!$A$3:$B$213,2,0),"") ->  | M23: =IF($A23<=L$7,OFFSET('CCG-Prov(Amb)'!$H$1,MATCH(L$8,'CCG-Prov(Amb)'!$F$2:$F$335,0)+$A23-1,0),"") ->  | O23: =IF($A23<=O$7,VLOOKUP(OFFSET('CCG-Prov(Amb)'!$G$1,MATCH(O$8,'CCG-Prov(Amb)'!$F$2:$F$335,0)+$A23-1,0),'CCG List'!$A$3:$B$213,2,0),"") ->  | P23: =IF($A23<=O$7,OFFSET('CCG-Prov(Amb)'!$H$1,MATCH(O$8,'CCG-Prov(Amb)'!$F$2:$F$335,0)+$A23-1,0),"") ->  | R23: =IF($A23<=R$7,VLOOKUP(OFFSET('CCG-Prov(Amb)'!$G$1,MATCH(R$8,'CCG-Prov(Amb)'!$F$2:$F$335,0)+$A23-1,0),'CCG List'!$A$3:$B$213,2,0),"") ->  | S23: =IF($A23<=R$7,OFFSET('CCG-Prov(Amb)'!$H$1,MATCH(R$8,'CCG-Prov(Amb)'!$F$2:$F$335,0)+$A23-1,0),"") ->  | U23: =IF($A23<=U$7,VLOOKUP(OFFSET('CCG-Prov(Amb)'!$G$1,MATCH(U$8,'CCG-Prov(Amb)'!$F$2:$F$335,0)+$A23-1,0),'CCG List'!$A$3:$B$213,2,0),"") ->  | V23: =IF($A23<=U$7,OFFSET('CCG-Prov(Amb)'!$H$1,MATCH(U$8,'CCG-Prov(Amb)'!$F$2:$F$335,0)+$A23-1,0),"") ->  | X23: =IF($A23<=X$7,VLOOKUP(OFFSET('CCG-Prov(Amb)'!$G$1,MATCH(X$8,'CCG-Prov(Amb)'!$F$2:$F$335,0)+$A23-1,0),'CCG List'!$A$3:$B$213,2,0),"") ->  | Y23: =IF($A23<=X$7,OFFSET('CCG-Prov(Amb)'!$H$1,MATCH(X$8,'CCG-Prov(Amb)'!$F$2:$F$335,0)+$A23-1,0),"") ->  | AA23: =IF($A23<=AA$7,VLOOKUP(OFFSET('CCG-Prov(Amb)'!$G$1,MATCH(AA$8,'CCG-Prov(Amb)'!$F$2:$F$335,0)+$A23-1,0),'CCG List'!$A$3:$B$213,2,0),"") ->  | AB23: =IF($A23<=AA$7,OFFSET('CCG-Prov(Amb)'!$H$1,MATCH(AA$8,'CCG-Prov(Amb)'!$F$2:$F$335,0)+$A23-1,0),"") ->  | AD23: =IF($A23<=AD$7,VLOOKUP(OFFSET('CCG-Prov(Amb)'!$G$1,MATCH(AD$8,'CCG-Prov(Amb)'!$F$2:$F$335,0)+$A23-1,0),'CCG List'!$A$3:$B$213,2,0),"") ->  | AE23: =IF($A23<=AD$7,OFFSET('CCG-Prov(Amb)'!$H$1,MATCH(AD$8,'CCG-Prov(Amb)'!$F$2:$F$335,0)+$A23-1,0),"") ->  | AG23: =IF($A23<=AG$7,VLOOKUP(OFFSET('CCG-Prov(Amb)'!$G$1,MATCH(AG$8,'CCG-Prov(Amb)'!$F$2:$F$335,0)+$A23-1,0),'CCG List'!$A$3:$B$213,2,0),"") ->  | AH23: =IF($A23<=AG$7,OFFSET('CCG-Prov(Amb)'!$H$1,MATCH(AG$8,'CCG-Prov(Amb)'!$F$2:$F$335,0)+$A23-1,0),"") -> 
A24: 15 | B24: =VLOOKUP(D24,provnames!$A$334:$B$346,2,0) ->  | C24: =IF(A24<=$A$31,OFFSET('CCG-Prov(Amb)'!$C$1,MATCH(Ambulance!$C$4,'CCG-Prov(Amb)'!$A$2:$A$335,0)+$A24-1,0),"") ->  | D24: =IF(A24<=$A$31,OFFSET('CCG-Prov(Amb)'!$B$1,MATCH(Ambulance!$C$4,'CCG-Prov(Amb)'!$A$2:$A$335,0)+$A24-1,0),"") ->  | F24: =IF($A24<=F$7,VLOOKUP(OFFSET('CCG-Prov(Amb)'!$G$1,MATCH(F$8,'CCG-Prov(Amb)'!$F$2:$F$335,0)+$A24-1,0),'CCG List'!$A$3:$B$213,2,0),"") ->  | G24: =IF($A24<=F$7,OFFSET('CCG-Prov(Amb)'!$H$1,MATCH(F$8,'CCG-Prov(Amb)'!$F$2:$F$335,0)+$A24-1,0),"") ->  | I24: =IF($A24<=I$7,VLOOKUP(OFFSET('CCG-Prov(Amb)'!$G$1,MATCH(I$8,'CCG-Prov(Amb)'!$F$2:$F$335,0)+$A24-1,0),'CCG List'!$A$3:$B$213,2,0),"") ->  | J24: =IF($A24<=I$7,OFFSET('CCG-Prov(Amb)'!$H$1,MATCH(I$8,'CCG-Prov(Amb)'!$F$2:$F$335,0)+$A24-1,0),"") ->  | L24: =IF($A24<=L$7,VLOOKUP(OFFSET('CCG-Prov(Amb)'!$G$1,MATCH(L$8,'CCG-Prov(Amb)'!$F$2:$F$335,0)+$A24-1,0),'CCG List'!$A$3:$B$213,2,0),"") ->  | M24: =IF($A24<=L$7,OFFSET('CCG-Prov(Amb)'!$H$1,MATCH(L$8,'CCG-Prov(Amb)'!$F$2:$F$335,0)+$A24-1,0),"") ->  | O24: =IF($A24<=O$7,VLOOKUP(OFFSET('CCG-Prov(Amb)'!$G$1,MATCH(O$8,'CCG-Prov(Amb)'!$F$2:$F$335,0)+$A24-1,0),'CCG List'!$A$3:$B$213,2,0),"") ->  | P24: =IF($A24<=O$7,OFFSET('CCG-Prov(Amb)'!$H$1,MATCH(O$8,'CCG-Prov(Amb)'!$F$2:$F$335,0)+$A24-1,0),"") ->  | R24: =IF($A24<=R$7,VLOOKUP(OFFSET('CCG-Prov(Amb)'!$G$1,MATCH(R$8,'CCG-Prov(Amb)'!$F$2:$F$335,0)+$A24-1,0),'CCG List'!$A$3:$B$213,2,0),"") ->  | S24: =IF($A24<=R$7,OFFSET('CCG-Prov(Amb)'!$H$1,MATCH(R$8,'CCG-Prov(Amb)'!$F$2:$F$335,0)+$A24-1,0),"") ->  | U24: =IF($A24<=U$7,VLOOKUP(OFFSET('CCG-Prov(Amb)'!$G$1,MATCH(U$8,'CCG-Prov(Amb)'!$F$2:$F$335,0)+$A24-1,0),'CCG List'!$A$3:$B$213,2,0),"") ->  | V24: =IF($A24<=U$7,OFFSET('CCG-Prov(Amb)'!$H$1,MATCH(U$8,'CCG-Prov(Amb)'!$F$2:$F$335,0)+$A24-1,0),"") ->  | X24: =IF($A24<=X$7,VLOOKUP(OFFSET('CCG-Prov(Amb)'!$G$1,MATCH(X$8,'CCG-Prov(Amb)'!$F$2:$F$335,0)+$A24-1,0),'CCG List'!$A$3:$B$213,2,0),"") ->  | Y24: =IF($A24<=X$7,OFFSET('CCG-Prov(Amb)'!$H$1,MATCH(X$8,'CCG-Prov(Amb)'!$F$2:$F$335,0)+$A24-1,0),"") ->  | AA24: =IF($A24<=AA$7,VLOOKUP(OFFSET('CCG-Prov(Amb)'!$G$1,MATCH(AA$8,'CCG-Prov(Amb)'!$F$2:$F$335,0)+$A24-1,0),'CCG List'!$A$3:$B$213,2,0),"") ->  | AB24: =IF($A24<=AA$7,OFFSET('CCG-Prov(Amb)'!$H$1,MATCH(AA$8,'CCG-Prov(Amb)'!$F$2:$F$335,0)+$A24-1,0),"") ->  | AD24: =IF($A24<=AD$7,VLOOKUP(OFFSET('CCG-Prov(Amb)'!$G$1,MATCH(AD$8,'CCG-Prov(Amb)'!$F$2:$F$335,0)+$A24-1,0),'CCG List'!$A$3:$B$213,2,0),"") ->  | AE24: =IF($A24<=AD$7,OFFSET('CCG-Prov(Amb)'!$H$1,MATCH(AD$8,'CCG-Prov(Amb)'!$F$2:$F$335,0)+$A24-1,0),"") ->  | AG24: =IF($A24<=AG$7,VLOOKUP(OFFSET('CCG-Prov(Amb)'!$G$1,MATCH(AG$8,'CCG-Prov(Amb)'!$F$2:$F$335,0)+$A24-1,0),'CCG List'!$A$3:$B$213,2,0),"") ->  | AH24: =IF($A24<=AG$7,OFFSET('CCG-Prov(Amb)'!$H$1,MATCH(AG$8,'CCG-Prov(Amb)'!$F$2:$F$335,0)+$A24-1,0),"") -> 
A25: 16 | B25: =VLOOKUP(D25,provnames!$A$334:$B$346,2,0) ->  | C25: =IF(A25<=$A$31,OFFSET('CCG-Prov(Amb)'!$C$1,MATCH(Ambulance!$C$4,'CCG-Prov(Amb)'!$A$2:$A$335,0)+$A25-1,0),"") ->  | D25: =IF(A25<=$A$31,OFFSET('CCG-Prov(Amb)'!$B$1,MATCH(Ambulance!$C$4,'CCG-Prov(Amb)'!$A$2:$A$335,0)+$A25-1,0),"") ->  | F25: =IF($A25<=F$7,VLOOKUP(OFFSET('CCG-Prov(Amb)'!$G$1,MATCH(F$8,'CCG-Prov(Amb)'!$F$2:$F$335,0)+$A25-1,0),'CCG List'!$A$3:$B$213,2,0),"") ->  | G25: =IF($A25<=F$7,OFFSET('CCG-Prov(Amb)'!$H$1,MATCH(F$8,'CCG-Prov(Amb)'!$F$2:$F$335,0)+$A25-1,0),"") ->  | I25: =IF($A25<=I$7,VLOOKUP(OFFSET('CCG-Prov(Amb)'!$G$1,MATCH(I$8,'CCG-Prov(Amb)'!$F$2:$F$335,0)+$A25-1,0),'CCG List'!$A$3:$B$213,2,0),"") ->  | J25: =IF($A25<=I$7,OFFSET('CCG-Prov(Amb)'!$H$1,MATCH(I$8,'CCG-Prov(Amb)'!$F$2:$F$335,0)+$A25-1,0),"") ->  | L25: =IF($A25<=L$7,VLOOKUP(OFFSET('CCG-Prov(Amb)'!$G$1,MATCH(L$8,'CCG-Prov(Amb)'!$F$2:$F$335,0)+$A25-1,0),'CCG List'!$A$3:$B$213,2,0),"") ->  | M25: =IF($A25<=L$7,OFFSET('CCG-Prov(Amb)'!$H$1,MATCH(L$8,'CCG-Prov(Amb)'!$F$2:$F$335,0)+$A25-1,0),"") ->  | O25: =IF($A25<=O$7,VLOOKUP(OFFSET('CCG-Prov(Amb)'!$G$1,MATCH(O$8,'CCG-Prov(Amb)'!$F$2:$F$335,0)+$A25-1,0),'CCG List'!$A$3:$B$213,2,0),"") ->  | P25: =IF($A25<=O$7,OFFSET('CCG-Prov(Amb)'!$H$1,MATCH(O$8,'CCG-Prov(Amb)'!$F$2:$F$335,0)+$A25-1,0),"") ->  | R25: =IF($A25<=R$7,VLOOKUP(OFFSET('CCG-Prov(Amb)'!$G$1,MATCH(R$8,'CCG-Prov(Amb)'!$F$2:$F$335,0)+$A25-1,0),'CCG List'!$A$3:$B$213,2,0),"") ->  | S25: =IF($A25<=R$7,OFFSET('CCG-Prov(Amb)'!$H$1,MATCH(R$8,'CCG-Prov(Amb)'!$F$2:$F$335,0)+$A25-1,0),"") ->  | U25: =IF($A25<=U$7,VLOOKUP(OFFSET('CCG-Prov(Amb)'!$G$1,MATCH(U$8,'CCG-Prov(Amb)'!$F$2:$F$335,0)+$A25-1,0),'CCG List'!$A$3:$B$213,2,0),"") ->  | V25: =IF($A25<=U$7,OFFSET('CCG-Prov(Amb)'!$H$1,MATCH(U$8,'CCG-Prov(Amb)'!$F$2:$F$335,0)+$A25-1,0),"") ->  | X25: =IF($A25<=X$7,VLOOKUP(OFFSET('CCG-Prov(Amb)'!$G$1,MATCH(X$8,'CCG-Prov(Amb)'!$F$2:$F$335,0)+$A25-1,0),'CCG List'!$A$3:$B$213,2,0),"") ->  | Y25: =IF($A25<=X$7,OFFSET('CCG-Prov(Amb)'!$H$1,MATCH(X$8,'CCG-Prov(Amb)'!$F$2:$F$335,0)+$A25-1,0),"") ->  | AA25: =IF($A25<=AA$7,VLOOKUP(OFFSET('CCG-Prov(Amb)'!$G$1,MATCH(AA$8,'CCG-Prov(Amb)'!$F$2:$F$335,0)+$A25-1,0),'CCG List'!$A$3:$B$213,2,0),"") ->  | AB25: =IF($A25<=AA$7,OFFSET('CCG-Prov(Amb)'!$H$1,MATCH(AA$8,'CCG-Prov(Amb)'!$F$2:$F$335,0)+$A25-1,0),"") ->  | AD25: =IF($A25<=AD$7,VLOOKUP(OFFSET('CCG-Prov(Amb)'!$G$1,MATCH(AD$8,'CCG-Prov(Amb)'!$F$2:$F$335,0)+$A25-1,0),'CCG List'!$A$3:$B$213,2,0),"") ->  | AE25: =IF($A25<=AD$7,OFFSET('CCG-Prov(Amb)'!$H$1,MATCH(AD$8,'CCG-Prov(Amb)'!$F$2:$F$335,0)+$A25-1,0),"") ->  | AG25: =IF($A25<=AG$7,VLOOKUP(OFFSET('CCG-Prov(Amb)'!$G$1,MATCH(AG$8,'CCG-Prov(Amb)'!$F$2:$F$335,0)+$A25-1,0),'CCG List'!$A$3:$B$213,2,0),"") ->  | AH25: =IF($A25<=AG$7,OFFSET('CCG-Prov(Amb)'!$H$1,MATCH(AG$8,'CCG-Prov(Amb)'!$F$2:$F$335,0)+$A25-1,0),"") -> 
A26: 17 | B26: =VLOOKUP(D26,provnames!$A$334:$B$346,2,0) ->  | C26: =IF(A26<=$A$31,OFFSET('CCG-Prov(Amb)'!$C$1,MATCH(Ambulance!$C$4,'CCG-Prov(Amb)'!$A$2:$A$335,0)+$A26-1,0),"") ->  | D26: =IF(A26<=$A$31,OFFSET('CCG-Prov(Amb)'!$B$1,MATCH(Ambulance!$C$4,'CCG-Prov(Amb)'!$A$2:$A$335,0)+$A26-1,0),"") ->  | F26: =IF($A26<=F$7,VLOOKUP(OFFSET('CCG-Prov(Amb)'!$G$1,MATCH(F$8,'CCG-Prov(Amb)'!$F$2:$F$335,0)+$A26-1,0),'CCG List'!$A$3:$B$213,2,0),"") ->  | G26: =IF($A26<=F$7,OFFSET('CCG-Prov(Amb)'!$H$1,MATCH(F$8,'CCG-Prov(Amb)'!$F$2:$F$335,0)+$A26-1,0),"") ->  | I26: =IF($A26<=I$7,VLOOKUP(OFFSET('CCG-Prov(Amb)'!$G$1,MATCH(I$8,'CCG-Prov(Amb)'!$F$2:$F$335,0)+$A26-1,0),'CCG List'!$A$3:$B$213,2,0),"") ->  | J26: =IF($A26<=I$7,OFFSET('CCG-Prov(Amb)'!$H$1,MATCH(I$8,'CCG-Prov(Amb)'!$F$2:$F$335,0)+$A26-1,0),"") ->  | L26: =IF($A26<=L$7,VLOOKUP(OFFSET('CCG-Prov(Amb)'!$G$1,MATCH(L$8,'CCG-Prov(Amb)'!$F$2:$F$335,0)+$A26-1,0),'CCG List'!$A$3:$B$213,2,0),"") ->  | M26: =IF($A26<=L$7,OFFSET('CCG-Prov(Amb)'!$H$1,MATCH(L$8,'CCG-Prov(Amb)'!$F$2:$F$335,0)+$A26-1,0),"") ->  | O26: =IF($A26<=O$7,VLOOKUP(OFFSET('CCG-Prov(Amb)'!$G$1,MATCH(O$8,'CCG-Prov(Amb)'!$F$2:$F$335,0)+$A26-1,0),'CCG List'!$A$3:$B$213,2,0),"") ->  | P26: =IF($A26<=O$7,OFFSET('CCG-Prov(Amb)'!$H$1,MATCH(O$8,'CCG-Prov(Amb)'!$F$2:$F$335,0)+$A26-1,0),"") ->  | R26: =IF($A26<=R$7,VLOOKUP(OFFSET('CCG-Prov(Amb)'!$G$1,MATCH(R$8,'CCG-Prov(Amb)'!$F$2:$F$335,0)+$A26-1,0),'CCG List'!$A$3:$B$213,2,0),"") ->  | S26: =IF($A26<=R$7,OFFSET('CCG-Prov(Amb)'!$H$1,MATCH(R$8,'CCG-Prov(Amb)'!$F$2:$F$335,0)+$A26-1,0),"") ->  | U26: =IF($A26<=U$7,VLOOKUP(OFFSET('CCG-Prov(Amb)'!$G$1,MATCH(U$8,'CCG-Prov(Amb)'!$F$2:$F$335,0)+$A26-1,0),'CCG List'!$A$3:$B$213,2,0),"") ->  | V26: =IF($A26<=U$7,OFFSET('CCG-Prov(Amb)'!$H$1,MATCH(U$8,'CCG-Prov(Amb)'!$F$2:$F$335,0)+$A26-1,0),"") ->  | X26: =IF($A26<=X$7,VLOOKUP(OFFSET('CCG-Prov(Amb)'!$G$1,MATCH(X$8,'CCG-Prov(Amb)'!$F$2:$F$335,0)+$A26-1,0),'CCG List'!$A$3:$B$213,2,0),"") ->  | Y26: =IF($A26<=X$7,OFFSET('CCG-Prov(Amb)'!$H$1,MATCH(X$8,'CCG-Prov(Amb)'!$F$2:$F$335,0)+$A26-1,0),"") ->  | AA26: =IF($A26<=AA$7,VLOOKUP(OFFSET('CCG-Prov(Amb)'!$G$1,MATCH(AA$8,'CCG-Prov(Amb)'!$F$2:$F$335,0)+$A26-1,0),'CCG List'!$A$3:$B$213,2,0),"") ->  | AB26: =IF($A26<=AA$7,OFFSET('CCG-Prov(Amb)'!$H$1,MATCH(AA$8,'CCG-Prov(Amb)'!$F$2:$F$335,0)+$A26-1,0),"") ->  | AD26: =IF($A26<=AD$7,VLOOKUP(OFFSET('CCG-Prov(Amb)'!$G$1,MATCH(AD$8,'CCG-Prov(Amb)'!$F$2:$F$335,0)+$A26-1,0),'CCG List'!$A$3:$B$213,2,0),"") ->  | AE26: =IF($A26<=AD$7,OFFSET('CCG-Prov(Amb)'!$H$1,MATCH(AD$8,'CCG-Prov(Amb)'!$F$2:$F$335,0)+$A26-1,0),"") ->  | AG26: =IF($A26<=AG$7,VLOOKUP(OFFSET('CCG-Prov(Amb)'!$G$1,MATCH(AG$8,'CCG-Prov(Amb)'!$F$2:$F$335,0)+$A26-1,0),'CCG List'!$A$3:$B$213,2,0),"") ->  | AH26: =IF($A26<=AG$7,OFFSET('CCG-Prov(Amb)'!$H$1,MATCH(AG$8,'CCG-Prov(Amb)'!$F$2:$F$335,0)+$A26-1,0),"") -> 
A27: 18 | B27: =VLOOKUP(D27,provnames!$A$334:$B$346,2,0) ->  | C27: =IF(A27<=$A$31,OFFSET('CCG-Prov(Amb)'!$C$1,MATCH(Ambulance!$C$4,'CCG-Prov(Amb)'!$A$2:$A$335,0)+$A27-1,0),"") ->  | D27: =IF(A27<=$A$31,OFFSET('CCG-Prov(Amb)'!$B$1,MATCH(Ambulance!$C$4,'CCG-Prov(Amb)'!$A$2:$A$335,0)+$A27-1,0),"") ->  | F27: =IF($A27<=F$7,VLOOKUP(OFFSET('CCG-Prov(Amb)'!$G$1,MATCH(F$8,'CCG-Prov(Amb)'!$F$2:$F$335,0)+$A27-1,0),'CCG List'!$A$3:$B$213,2,0),"") ->  | G27: =IF($A27<=F$7,OFFSET('CCG-Prov(Amb)'!$H$1,MATCH(F$8,'CCG-Prov(Amb)'!$F$2:$F$335,0)+$A27-1,0),"") ->  | I27: =IF($A27<=I$7,VLOOKUP(OFFSET('CCG-Prov(Amb)'!$G$1,MATCH(I$8,'CCG-Prov(Amb)'!$F$2:$F$335,0)+$A27-1,0),'CCG List'!$A$3:$B$213,2,0),"") ->  | J27: =IF($A27<=I$7,OFFSET('CCG-Prov(Amb)'!$H$1,MATCH(I$8,'CCG-Prov(Amb)'!$F$2:$F$335,0)+$A27-1,0),"") ->  | L27: =IF($A27<=L$7,VLOOKUP(OFFSET('CCG-Prov(Amb)'!$G$1,MATCH(L$8,'CCG-Prov(Amb)'!$F$2:$F$335,0)+$A27-1,0),'CCG List'!$A$3:$B$213,2,0),"") ->  | M27: =IF($A27<=L$7,OFFSET('CCG-Prov(Amb)'!$H$1,MATCH(L$8,'CCG-Prov(Amb)'!$F$2:$F$335,0)+$A27-1,0),"") ->  | O27: =IF($A27<=O$7,VLOOKUP(OFFSET('CCG-Prov(Amb)'!$G$1,MATCH(O$8,'CCG-Prov(Amb)'!$F$2:$F$335,0)+$A27-1,0),'CCG List'!$A$3:$B$213,2,0),"") ->  | P27: =IF($A27<=O$7,OFFSET('CCG-Prov(Amb)'!$H$1,MATCH(O$8,'CCG-Prov(Amb)'!$F$2:$F$335,0)+$A27-1,0),"") ->  | R27: =IF($A27<=R$7,VLOOKUP(OFFSET('CCG-Prov(Amb)'!$G$1,MATCH(R$8,'CCG-Prov(Amb)'!$F$2:$F$335,0)+$A27-1,0),'CCG List'!$A$3:$B$213,2,0),"") ->  | S27: =IF($A27<=R$7,OFFSET('CCG-Prov(Amb)'!$H$1,MATCH(R$8,'CCG-Prov(Amb)'!$F$2:$F$335,0)+$A27-1,0),"") ->  | U27: =IF($A27<=U$7,VLOOKUP(OFFSET('CCG-Prov(Amb)'!$G$1,MATCH(U$8,'CCG-Prov(Amb)'!$F$2:$F$335,0)+$A27-1,0),'CCG List'!$A$3:$B$213,2,0),"") ->  | V27: =IF($A27<=U$7,OFFSET('CCG-Prov(Amb)'!$H$1,MATCH(U$8,'CCG-Prov(Amb)'!$F$2:$F$335,0)+$A27-1,0),"") ->  | X27: =IF($A27<=X$7,VLOOKUP(OFFSET('CCG-Prov(Amb)'!$G$1,MATCH(X$8,'CCG-Prov(Amb)'!$F$2:$F$335,0)+$A27-1,0),'CCG List'!$A$3:$B$213,2,0),"") ->  | Y27: =IF($A27<=X$7,OFFSET('CCG-Prov(Amb)'!$H$1,MATCH(X$8,'CCG-Prov(Amb)'!$F$2:$F$335,0)+$A27-1,0),"") ->  | AA27: =IF($A27<=AA$7,VLOOKUP(OFFSET('CCG-Prov(Amb)'!$G$1,MATCH(AA$8,'CCG-Prov(Amb)'!$F$2:$F$335,0)+$A27-1,0),'CCG List'!$A$3:$B$213,2,0),"") ->  | AB27: =IF($A27<=AA$7,OFFSET('CCG-Prov(Amb)'!$H$1,MATCH(AA$8,'CCG-Prov(Amb)'!$F$2:$F$335,0)+$A27-1,0),"") ->  | AD27: =IF($A27<=AD$7,VLOOKUP(OFFSET('CCG-Prov(Amb)'!$G$1,MATCH(AD$8,'CCG-Prov(Amb)'!$F$2:$F$335,0)+$A27-1,0),'CCG List'!$A$3:$B$213,2,0),"") ->  | AE27: =IF($A27<=AD$7,OFFSET('CCG-Prov(Amb)'!$H$1,MATCH(AD$8,'CCG-Prov(Amb)'!$F$2:$F$335,0)+$A27-1,0),"") ->  | AG27: =IF($A27<=AG$7,VLOOKUP(OFFSET('CCG-Prov(Amb)'!$G$1,MATCH(AG$8,'CCG-Prov(Amb)'!$F$2:$F$335,0)+$A27-1,0),'CCG List'!$A$3:$B$213,2,0),"") ->  | AH27: =IF($A27<=AG$7,OFFSET('CCG-Prov(Amb)'!$H$1,MATCH(AG$8,'CCG-Prov(Amb)'!$F$2:$F$335,0)+$A27-1,0),"") -> 
A28: 19 | B28: =VLOOKUP(D28,provnames!$A$334:$B$346,2,0) ->  | C28: =IF(A28<=$A$31,OFFSET('CCG-Prov(Amb)'!$C$1,MATCH(Ambulance!$C$4,'CCG-Prov(Amb)'!$A$2:$A$335,0)+$A28-1,0),"") ->  | D28: =IF(A28<=$A$31,OFFSET('CCG-Prov(Amb)'!$B$1,MATCH(Ambulance!$C$4,'CCG-Prov(Amb)'!$A$2:$A$335,0)+$A28-1,0),"") ->  | F28: =IF($A28<=F$7,VLOOKUP(OFFSET('CCG-Prov(Amb)'!$G$1,MATCH(F$8,'CCG-Prov(Amb)'!$F$2:$F$335,0)+$A28-1,0),'CCG List'!$A$3:$B$213,2,0),"") ->  | G28: =IF($A28<=F$7,OFFSET('CCG-Prov(Amb)'!$H$1,MATCH(F$8,'CCG-Prov(Amb)'!$F$2:$F$335,0)+$A28-1,0),"") ->  | I28: =IF($A28<=I$7,VLOOKUP(OFFSET('CCG-Prov(Amb)'!$G$1,MATCH(I$8,'CCG-Prov(Amb)'!$F$2:$F$335,0)+$A28-1,0),'CCG List'!$A$3:$B$213,2,0),"") ->  | J28: =IF($A28<=I$7,OFFSET('CCG-Prov(Amb)'!$H$1,MATCH(I$8,'CCG-Prov(Amb)'!$F$2:$F$335,0)+$A28-1,0),"") ->  | L28: =IF($A28<=L$7,VLOOKUP(OFFSET('CCG-Prov(Amb)'!$G$1,MATCH(L$8,'CCG-Prov(Amb)'!$F$2:$F$335,0)+$A28-1,0),'CCG List'!$A$3:$B$213,2,0),"") ->  | M28: =IF($A28<=L$7,OFFSET('CCG-Prov(Amb)'!$H$1,MATCH(L$8,'CCG-Prov(Amb)'!$F$2:$F$335,0)+$A28-1,0),"") ->  | O28: =IF($A28<=O$7,VLOOKUP(OFFSET('CCG-Prov(Amb)'!$G$1,MATCH(O$8,'CCG-Prov(Amb)'!$F$2:$F$335,0)+$A28-1,0),'CCG List'!$A$3:$B$213,2,0),"") ->  | P28: =IF($A28<=O$7,OFFSET('CCG-Prov(Amb)'!$H$1,MATCH(O$8,'CCG-Prov(Amb)'!$F$2:$F$335,0)+$A28-1,0),"") ->  | R28: =IF($A28<=R$7,VLOOKUP(OFFSET('CCG-Prov(Amb)'!$G$1,MATCH(R$8,'CCG-Prov(Amb)'!$F$2:$F$335,0)+$A28-1,0),'CCG List'!$A$3:$B$213,2,0),"") ->  | S28: =IF($A28<=R$7,OFFSET('CCG-Prov(Amb)'!$H$1,MATCH(R$8,'CCG-Prov(Amb)'!$F$2:$F$335,0)+$A28-1,0),"") ->  | U28: =IF($A28<=U$7,VLOOKUP(OFFSET('CCG-Prov(Amb)'!$G$1,MATCH(U$8,'CCG-Prov(Amb)'!$F$2:$F$335,0)+$A28-1,0),'CCG List'!$A$3:$B$213,2,0),"") ->  | V28: =IF($A28<=U$7,OFFSET('CCG-Prov(Amb)'!$H$1,MATCH(U$8,'CCG-Prov(Amb)'!$F$2:$F$335,0)+$A28-1,0),"") ->  | X28: =IF($A28<=X$7,VLOOKUP(OFFSET('CCG-Prov(Amb)'!$G$1,MATCH(X$8,'CCG-Prov(Amb)'!$F$2:$F$335,0)+$A28-1,0),'CCG List'!$A$3:$B$213,2,0),"") ->  | Y28: =IF($A28<=X$7,OFFSET('CCG-Prov(Amb)'!$H$1,MATCH(X$8,'CCG-Prov(Amb)'!$F$2:$F$335,0)+$A28-1,0),"") ->  | AA28: =IF($A28<=AA$7,VLOOKUP(OFFSET('CCG-Prov(Amb)'!$G$1,MATCH(AA$8,'CCG-Prov(Amb)'!$F$2:$F$335,0)+$A28-1,0),'CCG List'!$A$3:$B$213,2,0),"") ->  | AB28: =IF($A28<=AA$7,OFFSET('CCG-Prov(Amb)'!$H$1,MATCH(AA$8,'CCG-Prov(Amb)'!$F$2:$F$335,0)+$A28-1,0),"") ->  | AD28: =IF($A28<=AD$7,VLOOKUP(OFFSET('CCG-Prov(Amb)'!$G$1,MATCH(AD$8,'CCG-Prov(Amb)'!$F$2:$F$335,0)+$A28-1,0),'CCG List'!$A$3:$B$213,2,0),"") ->  | AE28: =IF($A28<=AD$7,OFFSET('CCG-Prov(Amb)'!$H$1,MATCH(AD$8,'CCG-Prov(Amb)'!$F$2:$F$335,0)+$A28-1,0),"") ->  | AG28: =IF($A28<=AG$7,VLOOKUP(OFFSET('CCG-Prov(Amb)'!$G$1,MATCH(AG$8,'CCG-Prov(Amb)'!$F$2:$F$335,0)+$A28-1,0),'CCG List'!$A$3:$B$213,2,0),"") ->  | AH28: =IF($A28<=AG$7,OFFSET('CCG-Prov(Amb)'!$H$1,MATCH(AG$8,'CCG-Prov(Amb)'!$F$2:$F$335,0)+$A28-1,0),"") -> 
A29: 20 | B29: =VLOOKUP(D29,provnames!$A$334:$B$346,2,0) ->  | C29: =IF(A29<=$A$31,OFFSET('CCG-Prov(Amb)'!$C$1,MATCH(Ambulance!$C$4,'CCG-Prov(Amb)'!$A$2:$A$335,0)+$A29-1,0),"") ->  | D29: =IF(A29<=$A$31,OFFSET('CCG-Prov(Amb)'!$B$1,MATCH(Ambulance!$C$4,'CCG-Prov(Amb)'!$A$2:$A$335,0)+$A29-1,0),"") ->  | F29: =IF($A29<=F$7,VLOOKUP(OFFSET('CCG-Prov(Amb)'!$G$1,MATCH(F$8,'CCG-Prov(Amb)'!$F$2:$F$335,0)+$A29-1,0),'CCG List'!$A$3:$B$213,2,0),"") ->  | G29: =IF($A29<=F$7,OFFSET('CCG-Prov(Amb)'!$H$1,MATCH(F$8,'CCG-Prov(Amb)'!$F$2:$F$335,0)+$A29-1,0),"") ->  | I29: =IF($A29<=I$7,VLOOKUP(OFFSET('CCG-Prov(Amb)'!$G$1,MATCH(I$8,'CCG-Prov(Amb)'!$F$2:$F$335,0)+$A29-1,0),'CCG List'!$A$3:$B$213,2,0),"") ->  | J29: =IF($A29<=I$7,OFFSET('CCG-Prov(Amb)'!$H$1,MATCH(I$8,'CCG-Prov(Amb)'!$F$2:$F$335,0)+$A29-1,0),"") ->  | L29: =IF($A29<=L$7,VLOOKUP(OFFSET('CCG-Prov(Amb)'!$G$1,MATCH(L$8,'CCG-Prov(Amb)'!$F$2:$F$335,0)+$A29-1,0),'CCG List'!$A$3:$B$213,2,0),"") ->  | M29: =IF($A29<=L$7,OFFSET('CCG-Prov(Amb)'!$H$1,MATCH(L$8,'CCG-Prov(Amb)'!$F$2:$F$335,0)+$A29-1,0),"") ->  | O29: =IF($A29<=O$7,VLOOKUP(OFFSET('CCG-Prov(Amb)'!$G$1,MATCH(O$8,'CCG-Prov(Amb)'!$F$2:$F$335,0)+$A29-1,0),'CCG List'!$A$3:$B$213,2,0),"") ->  | P29: =IF($A29<=O$7,OFFSET('CCG-Prov(Amb)'!$H$1,MATCH(O$8,'CCG-Prov(Amb)'!$F$2:$F$335,0)+$A29-1,0),"") ->  | R29: =IF($A29<=R$7,VLOOKUP(OFFSET('CCG-Prov(Amb)'!$G$1,MATCH(R$8,'CCG-Prov(Amb)'!$F$2:$F$335,0)+$A29-1,0),'CCG List'!$A$3:$B$213,2,0),"") ->  | S29: =IF($A29<=R$7,OFFSET('CCG-Prov(Amb)'!$H$1,MATCH(R$8,'CCG-Prov(Amb)'!$F$2:$F$335,0)+$A29-1,0),"") ->  | U29: =IF($A29<=U$7,VLOOKUP(OFFSET('CCG-Prov(Amb)'!$G$1,MATCH(U$8,'CCG-Prov(Amb)'!$F$2:$F$335,0)+$A29-1,0),'CCG List'!$A$3:$B$213,2,0),"") ->  | V29: =IF($A29<=U$7,OFFSET('CCG-Prov(Amb)'!$H$1,MATCH(U$8,'CCG-Prov(Amb)'!$F$2:$F$335,0)+$A29-1,0),"") ->  | X29: =IF($A29<=X$7,VLOOKUP(OFFSET('CCG-Prov(Amb)'!$G$1,MATCH(X$8,'CCG-Prov(Amb)'!$F$2:$F$335,0)+$A29-1,0),'CCG List'!$A$3:$B$213,2,0),"") ->  | Y29: =IF($A29<=X$7,OFFSET('CCG-Prov(Amb)'!$H$1,MATCH(X$8,'CCG-Prov(Amb)'!$F$2:$F$335,0)+$A29-1,0),"") ->  | AA29: =IF($A29<=AA$7,VLOOKUP(OFFSET('CCG-Prov(Amb)'!$G$1,MATCH(AA$8,'CCG-Prov(Amb)'!$F$2:$F$335,0)+$A29-1,0),'CCG List'!$A$3:$B$213,2,0),"") ->  | AB29: =IF($A29<=AA$7,OFFSET('CCG-Prov(Amb)'!$H$1,MATCH(AA$8,'CCG-Prov(Amb)'!$F$2:$F$335,0)+$A29-1,0),"") ->  | AD29: =IF($A29<=AD$7,VLOOKUP(OFFSET('CCG-Prov(Amb)'!$G$1,MATCH(AD$8,'CCG-Prov(Amb)'!$F$2:$F$335,0)+$A29-1,0),'CCG List'!$A$3:$B$213,2,0),"") ->  | AE29: =IF($A29<=AD$7,OFFSET('CCG-Prov(Amb)'!$H$1,MATCH(AD$8,'CCG-Prov(Amb)'!$F$2:$F$335,0)+$A29-1,0),"") ->  | AG29: =IF($A29<=AG$7,VLOOKUP(OFFSET('CCG-Prov(Amb)'!$G$1,MATCH(AG$8,'CCG-Prov(Amb)'!$F$2:$F$335,0)+$A29-1,0),'CCG List'!$A$3:$B$213,2,0),"") ->  | AH29: =IF($A29<=AG$7,OFFSET('CCG-Prov(Amb)'!$H$1,MATCH(AG$8,'CCG-Prov(Amb)'!$F$2:$F$335,0)+$A29-1,0),"") -> 
B30: Others | C30: =C31-SUM(C10:C29) -> 0 | F30: Other | G30: =G31-SUM(G10:G29) -> 0 | I30: Other | J30: =J31-SUM(J10:J29) ->  | L30: Other | M30: =M31-SUM(M10:M29) ->  | O30: Other | P30: =P31-SUM(P10:P29) ->  | R30: Other | S30: =S31-SUM(S10:S29) ->  | U30: Other | V30: =V31-SUM(V10:V29) ->  | X30: Other | Y30: =Y31-SUM(Y10:Y29) ->  | AA30: Other | AB30: =AB31-SUM(AB10:AB29) ->  | AD30: Other | AE30: =AE31-SUM(AE10:AE29) ->  | AG30: Other | AH30: =AH31-SUM(AH10:AH29) -> 
A31: =MIN(VLOOKUP(C4,'CCG List'!$A$3:$U$214,21,0),20) -> 1 | B31: Total | C31: =SUMIF('CCG-Prov(Amb)'!$A$2:$A$335,C4,'CCG-Prov(Amb)'!$C$2:$C$335) -> 141052 | F31: Total | G31: =SUMIF('CCG-Prov(Amb)'!$F$2:$F$335,F8,'CCG-Prov(Amb)'!$H$2:$H$335) -> 141052 | I31: Total | J31: =SUMIF('CCG-Prov(Amb)'!$F$2:$F$335,I8,'CCG-Prov(Amb)'!$H$2:$H$335) -> 0 | L31: Total | M31: =SUMIF('CCG-Prov(Amb)'!$F$2:$F$335,L8,'CCG-Prov(Amb)'!$H$2:$H$335) -> 0 | O31: Total | P31: =SUMIF('CCG-Prov(Amb)'!$F$2:$F$335,O8,'CCG-Prov(Amb)'!$H$2:$H$335) -> 0 | R31: Total | S31: =SUMIF('CCG-Prov(Amb)'!$F$2:$F$335,R8,'CCG-Prov(Amb)'!$H$2:$H$335) -> 0 | U31: Total | V31: =SUMIF('CCG-Prov(Amb)'!$F$2:$F$335,U8,'CCG-Prov(Amb)'!$H$2:$H$335) -> 0 | X31: Total | Y31: =SUMIF('CCG-Prov(Amb)'!$F$2:$F$335,X8,'CCG-Prov(Amb)'!$H$2:$H$335) -> 0 | AA31: Total | AB31: =SUMIF('CCG-Prov(Amb)'!$F$2:$F$335,AA8,'CCG-Prov(Amb)'!$H$2:$H$335) -> 0 | AD31: Total | AE31: =SUMIF('CCG-Prov(Amb)'!$F$2:$F$335,AD8,'CCG-Prov(Amb)'!$H$2:$H$335) -> 0 | AG31: Total | AH31: =SUMIF('CCG-Prov(Amb)'!$F$2:$F$335,AG8,'CCG-Prov(Amb)'!$H$2:$H$335) -> 0
B37: 0
B38: 1000
B39: 2000
B40: 5000
B41: The first table shows the ambulance trust area in which a CCG's registered population live. The other tables then show which other CCGs the residents in those ambulance trusts' areas are registered with.
L45: =IFERROR(RANK(F45,#REF!),"") ->  | M45: =IFERROR(RANK(G45,#REF!),"") ->  | O45: =IFERROR(RANK(I45,#REF!),"") ->  | P45: =IFERROR(RANK(J45,#REF!),"") -> 

Sheet CCG-Prov(Acute) (hidden)
A1: CCG_Code | B1: Prov_Code | C1: First_Episodes | F1: Prov_Code | G1: CCG_Code | H1: First_Episodes
A2: 00C | B2: RXP | C2: 20366 | F2: 5A3 | G2: 12A | H2: 125
A3: 00C | B3: RTR | C3: 2343 | F3: 5A3 | G3: 11H | H3: 2
A4: 00C | B4: RTD | C4: 656 | F4: 5A4 | G4: 08F | H4: 632
A5: 00C | B5: NT4 | C5: 545 | F5: 5A4 | G5: 07L | H5: 3
A6: 00C | B6: RVW | C6: 248 | F6: 5A4 | G6: 10M | H6: 1
A7: 00C | B7: 5J9 | C7: 137 | F7: 5A5 | G7: 08J | H7: 616
A8: 00C | B8: RLN | C8: 112 | F8: 5A5 | G8: 08P | H8: 5
A9: 00C | B9: RR8 | C9: 60 | F9: 5A5 | G9: 99H | H9: 2
A10: 00C | B10: RR7 | C10: 26 | F10: 5A5 | G10: 08N | H10: 1
A11: 00C | B11: NVC | C11: 22 | F11: 5A5 | G11: 08T | H11: 1
A12: 00C | B12: NT3 | C12: 13 | F12: 5A5 | G12: 08X | H12: 1
A13: 00C | B13: RTF | C13: 11 | F13: 5A5 | G13: 99J | H13: 1
A14: 00C | B14: RCB | C14: 8 | F14: 5AT | G14: 08G | H14: 227
A15: 00C | B15: RCC | C15: 7 | F15: 5AT | G15: 07W | H15: 5
A16: 00C | B16: RCD | C16: 7 | F16: 5AT | G16: 07Y | H16: 1
A17: 00C | B17: RP4 | C17: 7 | F17: 5AT | G17: 10L | H17: 1
A18: 00C | B18: RQ3 | C18: 7 | F18: 5AT | G18: 99P | H18: 1
A19: 00C | B19: RTX | C19: 7 | F19: 5C4 | G19: 08V | H19: 1528
A20: 00C | B20: RW3 | C20: 7 | F20: 5C4 | G20: 07T | H20: 27
A21: 00C | B21: RWD | C21: 7 | F21: 5C4 | G21: 08M | H21: 27
A22: 00C | B22: RNL | C22: 6 | F22: 5C4 | G22: 08F | H22: 15
A23: 00C | B23: RRV | C23: 6 | F23: 5C4 | G23: 08N | H23: 10
A24: 00C | B24: RGN | C24: 5 | F24: 5C4 | G24: 07N | H24: 6
A25: 00C | B25: RM2 | C25: 5 | F25: 5C4 | G25: 08D | H25: 5
A26: 00C | B26: RXL | C26: 5 | F26: 5C4 | G26: 08W | H26: 5
A27: 00C | B27: RBS | C27: 4 | F27: 5C4 | G27: 07L | H27: 4
A28: 00C | B28: RKB | C28: 4 | F28: 5C4 | G28: 07Q | H28: 4
A29: 00C | B29: RHQ | C29: 3 | F29: 5C4 | G29: 08H | H29: 4
A30: 00C | B30: RJ1 | C30: 3 | F30: 5C4 | G30: 07H | H30: 3
A31: 00C | B31: RK5 | C31: 3 | F31: 5C4 | G31: 09A | H31: 3
A32: 00C | B32: RM3 | C32: 3 | F32: 5C4 | G32: 04C | H32: 2
A33: 00C | B33: RNZ | C33: 3 | F33: 5C4 | G33: 99E | H33: 2
A34: 00C | B34: RRK | C34: 3 | F34: 5C4 | G34: 05A | H34: 1
A35: 00C | B35: RX1 | C35: 3 | F35: 5C4 | G35: 05Y | H35: 1
A36: 00C | B36: RAL | C36: 2 | F36: 5C4 | G36: 06K | H36: 1
A37: 00C | B37: RAX | C37: 2 | F37: 5C4 | G37: 06Q | H37: 1
A38: 00C | B38: RBT | C38: 2 | F38: 5C4 | G38: 06T | H38: 1
A39: 00C | B39: RCF | C39: 2 | F39: 5C4 | G39: 07G | H39: 1
A40: 00C | B40: RD1 | C40: 2 | F40: 5C4 | G40: 07J | H40: 1
A41: 00C | B41: RE9 | C41: 2 | F41: 5C4 | G41: 07R | H41: 1
A42: 00C | B42: REM | C42: 2 | F42: 5C4 | G42: 07X | H42: 1
A43: 00C | B43: RGT | C43: 2 | F43: 5C4 | G43: 08A | H43: 1
A44: 00C | B44: RJL | C44: 2 | F44: 5C4 | G44: 08C | H44: 1
A45: 00C | B45: RKE | C45: 2 | F45: 5C4 | G45: 08J | H45: 1
A46: 00C | B46: RP5 | C46: 2 | F46: 5C4 | G46: 08K | H46: 1
A47: 00C | B47: RP6 | C47: 2 | F47: 5C4 | G47: 09F | H47: 1
A48: 00C | B48: RQM | C48: 2 | F48: 5C4 | G48: 09G | H48: 1
A49: 00C | B49: RR1 | C49: 2 | F49: 5C4 | G49: 09H | H49: 1
A50: 00C | B50: RTG | C50: 2 | F50: 5C4 | G50: 09J | H50: 1
A51: 00C | B51: RTH | C51: 2 | F51: 5C4 | G51: 09P | H51: 1
A52: 00C | B52: RV8 | C52: 2 | F52: 5C4 | G52: 99G | H52: 1
A53: 00C | B53: RXN | C53: 2 | F53: 5C4 | G53: 99P | H53: 1
A54: 00C | B54: 5NV | C54: 1 | F54: 5C5 | G54: 07L | H54: 2
A55: 00C | B55: NN4 | C55: 1 | F55: 5C5 | G55: 08M | H55: 2
A56: 00C | B56: RA3 | C56: 1 | F56: 5C5 | G56: 08A | H56: 1
A57: 00C | B57: RAE | C57: 1 | F57: 5CN | G57: 05F | H57: 2300
A58: 00C | B58: RAP | C58: 1 | F58: 5CN | G58: 11M | H58: 267
A59: 00C | B59: RBN | C59: 1 | F59: 5CN | G59: 05X | H59: 105
A60: 00C | B60: RBV | C60: 1 | F60: 5CN | G60: 05N | H60: 104
A61: 00C | B61: RC3 | C61: 1 | F61: 5CN | G61: 05T | H61: 35
A62: 00C | B62: RCX | C62: 1 | F62: 5CN | G62: 12A | H62: 8
A63: 00C | B63: RD7 | C63: 1 | F63: 5CN | G63: 05Q | H63: 3
A64: 00C | B64: RD8 | C64: 1 | F64: 5CN | G64: 08Y | H64: 2
A65: 00C | B65: RDU | C65: 1 | F65: 5CN | G65: 12F | H65: 2
A66: 00C | B66: RGM | C66: 1 | F66: 5CN | G66: 99N | H66: 2
A67: 00C | B67: RGP | C67: 1 | F67: 5CN | G67: 00T | H67: 1
A68: 00C | B68: RHM | C68: 1 | F68: 5CN | G68: 00X | H68: 1
A69: 00C | B69: RHU | C69: 1 | F69: 5CN | G69: 01W | H69: 1
A70: 00C | B70: RJ2 | C70: 1 | F70: 5CN | G70: 02F | H70: 1
A71: 00C | B71: RJC | C71: 1 | F71: 5CN | G71: 05L | H71: 1
A72: 00C | B72: RJR | C72: 1 | F72: 5CN | G72: 06A | H72: 1
A73: 00C | B73: RJZ | C73: 1 | F73: 5CN | G73: 06D | H73: 1
A74: 00C | B74: RLU | C74: 1 | F74: 5CN | G74: 06V | H74: 1
A75: 00C | B75: RM1 | C75: 1 | F75: 5CN | G75: 10Q | H75: 1
A76: 00C | B76: RNA | C76: 1 | F76: 5CN | G76: 11D | H76: 1
A77: 00C | B77: RNJ | C77: 1 | F77: 5CN | G77: 11H | H77: 1
A78: 00C | B78: RNQ | C78: 1 | F78: 5CN | G78: 11N | H78: 1
A79: 00C | B79: RPY | C79: 1 | F79: 5CN | G79: 12D | H79: 1
A80: 00C | B80: RQX | C80: 1 | F80: 5CN | G80: 99F | H80: 1
A81: 00C | B81: RRF | C81: 1 | F81: 5CQ | G81: 04F | H81: 623
A82: 00C | B82: RVJ | C82: 1 | F82: 5CQ | G82: 06F | H82: 27
A83: 00C | B83: RVV | C83: 1 | F83: 5CQ | G83: 10Y | H83: 4
A84: 00C | B84: RVY | C84: 1 | F84: 5CQ | G84: 04G | H84: 3
A85: 00C | B85: RW6 | C85: 1 | F85: 5CQ | G85: 11J | H85: 3
A86: 00C | B86: RWA | C86: 1 | F86: 5CQ | G86: 06K | H86: 2
A87: 00C | B87: RWH | C87: 1 | F87: 5CQ | G87: 06T | H87: 2
A88: 00C | B88: RWJ | C88: 1 | F88: 5CQ | G88: 10H | H88: 2
A89: 00C | B89: RWP | C89: 1 | F89: 5CQ | G89: 99A | H89: 2
A90: 00C | B90: RWW | C90: 1 | F90: 5CQ | G90: 00P | H90: 1
A91: 00C | B91: RWY | C91: 1 | F91: 5CQ | G91: 00R | H91: 1
A92: 00C | B92: RX4 | C92: 1 | F92: 5CQ | G92: 00W | H92: 1
A93: 00C | B93: RXF | C93: 1 | F93: 5CQ | G93: 01V | H93: 1
A94: 00C | B94: RXH | C94: 1 | F94: 5CQ | G94: 02F | H94: 1
A95: 00C | B95: RXK | C95: 1 | F95: 5CQ | G95: 02N | H95: 1
A96: 00C | B96: RXR | C96: 1 | F96: 5CQ | G96: 05F | H96: 1
A97: 00C | B97: RYJ | C97: 1 | F97: 5CQ | G97: 06L | H97: 1
A98: 00C | B98: RYQ | C98: 1 | F98: 5CQ | G98: 06P | H98: 1
A99: 00D | B99: RXP | C99: 38565 | F99: 5CQ | G99: 08A | H99: 1
A100: 00D | B100: RVW | C100: 14329 | F100: 5CQ | G100: 09D | H100: 1
A101: 00D | B101: RLN | C101: 13596 | F101: 5CQ | G101: 10N | H101: 1
A102: 00D | B102: RTR | C102: 4503 | F102: 5CQ | G102: 11H | H102: 1
A103: 00D | B103: RTD | C103: 2708 | F103: 5CQ | G103: 11M | H103: 1
A104: 00D | B104: 5J9 | C104: 904 | F104: 5CQ | G104: 99G | H104: 1
A105: 00D | B105: NT4 | C105: 257 | F105: 5CQ | G105: 99P | H105: 1
A106: 00D | B106: NT3 | C106: 182 | F106: 5F1 | G106: 99P | H106: 796
A107: 00D | B107: RR7 | C107: 114 | F107: 5F1 | G107: 11N | H107: 65
A108: 00D | B108: RTF | C108: 104 | F108: 5F1 | G108: 99Q | H108: 16
A109: 00D | B109: RE9 | C109: 63 | F109: 5F1 | G109: 99A | H109: 1
A110: 00D | B110: RR8 | C110: 58 | F110: 5F1 | G110: 99N | H110: 1
A111: 00D | B111: RNL | C111: 28 | F111: 5FE | G111: 10R | H111: 683
A112: 00D | B112: NVC | C112: 27 | F112: 5FE | G112: 10K | H112: 306
A113: 00D | B113: NN4 | C113: 25 | F113: 5FE | G113: 10V | H113: 276
A114: 00D | B114: 5KL | C114: 18 | F114: 5FE | G114: 11A | H114: 13
A115: 00D | B115: RTX | C115: 17 | F115: 5FE | G115: 10J | H115: 3
A116: 00D | B116: RH8 | C116: 16 | F116: 5FL | G116: 11E | H116: 716
A117: 00D | B117: RJ1 | C117: 16 | F117: 5FL | G117: 11X | H117: 2
A118: 00D | B118: RXL | C118: 15 | F118: 5FL | G118: 05T | H118: 1
A119: 00D | B119: RCB | C119: 14 | F119: 5FL | G119: 11H | H119: 1
A120: 00D | B120: RHQ | C120: 13 | F120: 5H8 | G120: 03L | H120: 812
A121: 00D | B121: RCC | C121: 12 | F121: 5H8 | G121: 02X | H121: 27
A122: 00D | B122: RCD | C122: 11 | F122: 5H8 | G122: 03N | H122: 27
A123: 00D | B123: RM2 | C123: 9 | F123: 5H8 | G123: 02P | H123: 11
A124: 00D | B124: RXF | C124: 9 | F124: 5H8 | G124: 04J | H124: 2
A125: 00D | B125: RJZ | C125: 8 | F125: 5J2 | G125: 02E | H125: 664
A126: 00D | B126: RKB | C126: 8 | F126: 5J2 | G126: 01X | H126: 11
A127: 00D | B127: RQ3 | C127: 8 | F127: 5J2 | G127: 99A | H127: 3
A128: 00D | B128: RRV | C128: 8 | F128: 5J2 | G128: 01F | H128: 2
A129: 00D | B129: RV8 | C129: 8 | F129: 5J2 | G129: 01D | H129: 1
A130: 00D | B130: RX4 | C130: 8 | F130: 5J2 | G130: 01G | H130: 1
A131: 00D | B131: RXN | C131: 8 | F131: 5J2 | G131: 02H | H131: 1
A132: 00D | B132: RAE | C132: 6 | F132: 5J2 | G132: 10J | H132: 1
A133: 00D | B133: RP4 | C133: 6 | F133: 5J2 | G133: 99Q | H133: 1
A134: 00D | B134: RP6 | C134: 6 | F134: 5J9 | G134: 00D | H134: 904
A135: 00D | B135: RRF | C135: 6 | F135: 5J9 | G135: 00C | H135: 137
A136: 00D | B136: RW3 | C136: 6 | F136: 5J9 | G136: 00J | H136: 41
A137: 00D | B137: RWD | C137: 6 | F137: 5J9 | G137: 03D | H137: 9
A138: 00D | B138: RBT | C138: 5 | F138: 5J9 | G138: 00K | H138: 3
A139: 00D | B139: RK9 | C139: 5 | F139: 5J9 | G139: 00M | H139: 1
A140: 00D | B140: RQ8 | C140: 5 | F140: 5J9 | G140: 02Q | H140: 1
A141: 00D | B141: RTG | C141: 5 | F141: 5J9 | G141: 06F | H141: 1
A142: 00D | B142: RAN | C142: 4 | F142: 5JE | G142: 02P | H142: 796
A143: 00D | B143: RAS | C143: 4 | F143: 5JE | G143: 03A | H143: 13
A144: 00D | B144: RJF | C144: 4 | F144: 5JE | G144: 03L | H144: 10
A145: 00D | B145: RJL | C145: 4 | F145: 5JE | G145: 03R | H145: 9
A146: 00D | B146: RNJ | C146: 4 | F146: 5JE | G146: 03N | H146: 8
A147: 00D | B147: RQ6 | C147: 4 | F147: 5JE | G147: 03Y | H147: 3
A148: 00D | B148: RW6 | C148: 4 | F148: 5JE | G148: 00Y | H148: 1
A149: 00D | B149: RWA | C149: 4 | F149: 5JE | G149: 01D | H149: 1
A150: 00D | B150: RX1 | C150: 4 | F150: 5JE | G150: 04K | H150: 1
A151: 00D | B151: RAL | C151: 3 | F151: 5JE | G151: 06K | H151: 1
A152: 00D | B152: REM | C152: 3 | F152: 5K3 | G152: 12D | H152: 872
A153: 00D | B153: RGM | C153: 3 | F153: 5K3 | G153: 99N | H153: 10
A154: 00D | B154: RGN | C154: 3 | F154: 5K3 | G154: 11M | H154: 3
A155: 00D | B155: RGP | C155: 3 | F155: 5K3 | G155: 06F | H155: 1
A156: 00D | B156: RGR | C156: 3 | F156: 5K3 | G156: 10M | H156: 1
A157: 00D | B157: RJE | C157: 3 | F157: 5K7 | G157: 07R | H157: 272
A158: 00D | B158: RKE | C158: 3 | F158: 5K7 | G158: 08H | H158: 193
A159: 00D | B159: RN3 | C159: 3 | F159: 5K7 | G159: 07M | H159: 9
A160: 00D | B160: RNA | C160: 3 | F160: 5K7 | G160: 07T | H160: 2
A161: 00D | B161: RNZ | C161: 3 | F161: 5K7 | G161: 08D | H161: 2
A162: 00D | B162: RP5 | C162: 3 | F162: 5K7 | G162: 10E | H162: 2
A163: 00D | B163: RT3 | C163: 3 | F163: 5K7 | G163: 04C | H163: 1
A164: 00D | B164: RTH | C164: 3 | F164: 5KG | G164: 00N | H164: 3
A165: 00D | B165: RTP | C165: 3 | F165: 5KG | G165: 00P | H165: 1
A166: 00D | B166: RVV | C166: 3 | F166: 5KL | G166: 00P | H166: 238
A167: 00D | B167: RVY | C167: 3 | F167: 5KL | G167: 00D | H167: 18
A168: 00D | B168: RWE | C168: 3 | F168: 5KL | G168: 00N | H168: 8
A169: 00D | B169: RXC | C169: 3 | F169: 5L1 | G169: 10X | H169: 1628
A170: 00D | B170: RXR | C170: 3 | F170: 5L1 | G170: 11A | H170: 190
A171: 00D | B171: RA7 | C171: 2 | F171: 5L1 | G171: 10J | H171: 6
A172: 00D | B172: RA9 | C172: 2 | F172: 5L1 | G172: 10K | H172: 4
A173: 00D | B173: RBS | C173: 2 | F173: 5L1 | G173: 10L | H173: 1
A174: 00D | B174: RBV | C174: 2 | F174: 5L1 | G174: 10V | H174: 1
A175: 00D | B175: RC1 | C175: 2 | F175: 5L3 | G175: 09W | H175: 660
A176: 00D | B176: RC9 | C176: 2 | F176: 5L3 | G176: 10D | H176: 64
A177: 00D | B177: RCX | C177: 2 | F177: 5L3 | G177: 09J | H177: 2
A178: 00D | B178: RDE | C178: 2 | F178: 5L3 | G178: 99J | H178: 2
A179: 00D | B179: RDU | C179: 2 | F179: 5LG | G179: 08X | H179: 240
A180: 00D | B180: RFR | C180: 2 | F180: 5LG | G180: 08P | H180: 207
A181: 00D | B181: RFS | C181: 2 | F181: 5LG | G181: 08J | H181: 21
A182: 00D | B182: RHU | C182: 2 | F182: 5LG | G182: 08R | H182: 15
A183: 00D | B183: RHW | C183: 2 | F183: 5LG | G183: 99H | H183: 13
A184: 00D | B184: RK5 | C184: 2 | F184: 5LG | G184: 08T | H184: 11
A185: 00D | B185: RM1 | C185: 2 | F185: 5LG | G185: 99M | H185: 7
A186: 00D | B186: RM3 | C186: 2 | F186: 5LG | G186: 07Y | H186: 6
A187: 00D | B187: RNS | C187: 2 | F187: 5LG | G187: 09Y | H187: 6
A188: 00D | B188: RQQ | C188: 2 | F188: 5LG | G188: 09N | H188: 3
A189: 00D | B189: RRK | C189: 2 | F189: 5LG | G189: 11M | H189: 3
A190: 00D | B190: RTE | C190: 2 | F190: 5LG | G190: 09H | H190: 2
A191: 00D | B191: RVL | C191: 2 | F191: 5LG | G191: 09X | H191: 2
A192: 00D | B192: RWP | C192: 2 | F192: 5LG | G192: 10J | H192: 2
A193: 00D | B193: RXK | C193: 2 | F193: 5LG | G193: 10L | H193: 2
A194: 00D | B194: RYJ | C194: 2 | F194: 5LG | G194: 02X | H194: 1
A195: 00D | B195: RYR | C195: 2 | F195: 5LG | G195: 06L | H195: 1
A196: 00D | B196: 5QT | C196: 1 | F196: 5LG | G196: 07Q | H196: 1
A197: 00D | B197: RA2 | C197: 1 | F197: 5LG | G197: 07T | H197: 1
A198: 00D | B198: RBA | C198: 1 | F198: 5LG | G198: 07V | H198: 1
A199: 00D | B199: RBZ | C199: 1 | F199: 5LG | G199: 08H | H199: 1
A200: 00D | B200: RCU | C200: 1 | F200: 5LG | G200: 08K | H200: 1
... 4300 more rows

Sheet CCG List (hidden)
A2: CCG Code | B2: CCG Name | D2: ProvCount | E2: Prov1 | F2: Prov2 | G2: Prov3 | H2: Prov4 | I2: Prov5 | J2: Prov6 | K2: Prov7 | L2: Prov8 | M2: Prov9 | N2: Prov10 | Q2: Provcode | R2: Provname | S2: CCGcount | V2: ProvCount | W2: Prov1 | X2: Prov2 | Y2: Prov3 | Z2: Prov4 | AA2: Prov5 | AE2: CCGcount | AH2: ProvCount | AI2: Prov1 | AJ2: Prov2 | AK2: Prov3 | AL2: Prov4 | AM2: Prov5 | AQ2: CCGcount
A3: 02N | B3: Airedale, Wharfedale & Craven | C3: =SUM(IF(('CCG-Prov(Acute)'!$A$2:$A$29012=A3),1,0)) -> 118 | D3: =SUM(IF(('CCG-Prov(Acute)'!$A$2:$A$29012=A3)*('CCG-Prov(Acute)'!$C$2:$C$29012>=Acute!$B$7),1,0)) -> 4 | E3: =IF(VALUE(MID(E$2,5,2))<=$D3,OFFSET('CCG-Prov(Acute)'!$B$1,MATCH($A3,'CCG-Prov(Acute)'!$A$2:$A$29012,0)+VALUE(RIGHT(E$2,1))-1,0),"") -> RCF | F3: =IF(VALUE(MID(F$2,5,2))<=$D3,OFFSET('CCG-Prov(Acute)'!$B$1,MATCH($A3,'CCG-Prov(Acute)'!$A$2:$A$29012,0)+VALUE(RIGHT(F$2,1))-1,0),"") -> RAE | G3: =IF(VALUE(MID(G$2,5,2))<=$D3,OFFSET('CCG-Prov(Acute)'!$B$1,MATCH($A3,'CCG-Prov(Acute)'!$A$2:$A$29012,0)+VALUE(RIGHT(G$2,1))-1,0),"") -> RR8 | H3: =IF(VALUE(MID(H$2,5,2))<=$D3,OFFSET('CCG-Prov(Acute)'!$B$1,MATCH($A3,'CCG-Prov(Acute)'!$A$2:$A$29012,0)+VALUE(RIGHT(H$2,1))-1,0),"") -> NVC | I3: =IF(VALUE(MID(I$2,5,2))<=$D3,OFFSET('CCG-Prov(Acute)'!$B$1,MATCH($A3,'CCG-Prov(Acute)'!$A$2:$A$29012,0)+VALUE(RIGHT(I$2,1))-1,0),"") ->  | J3: =IF(VALUE(MID(J$2,5,2))<=$D3,OFFSET('CCG-Prov(Acute)'!$B$1,MATCH($A3,'CCG-Prov(Acute)'!$A$2:$A$29012,0)+VALUE(RIGHT(J$2,1))-1,0),"") ->  | K3: =IF(VALUE(MID(K$2,5,2))<=$D3,OFFSET('CCG-Prov(Acute)'!$B$1,MATCH($A3,'CCG-Prov(Acute)'!$A$2:$A$29012,0)+VALUE(RIGHT(K$2,1))-1,0),"") ->  | L3: =IF(VALUE(MID(L$2,5,2))<=$D3,OFFSET('CCG-Prov(Acute)'!$B$1,MATCH($A3,'CCG-Prov(Acute)'!$A$2:$A$29012,0)+VALUE(RIGHT(L$2,1))-1,0),"") ->  | M3: =IF(VALUE(MID(M$2,5,2))<=$D3,OFFSET('CCG-Prov(Acute)'!$B$1,MATCH($A3,'CCG-Prov(Acute)'!$A$2:$A$29012,0)+VALUE(RIGHT(M$2,1))-1,0),"") ->  | N3: =IF(VALUE(MID(N$2,5,2))<=$D3,OFFSET('CCG-Prov(Acute)'!$B$1,MATCH($A3,'CCG-Prov(Acute)'!$A$2:$A$29012,0)+VALUE(RIGHT(N$2,1))-1,0),"") ->  | Q3: 5A3 | R3: =VLOOKUP(Q3,provnames!$A$2:$B$331,2,0) -> South Gloucestershire PCT | S3: =SUM(IF(('CCG-Prov(Acute)'!$B$2:$B$28899=Q3),1,0)) -> 2 | U3: =SUM(IF(('CCG-Prov(Amb)'!$A$2:$A$335=A3),1,0)) -> 2 | V3: =SUM(IF(('CCG-Prov(Amb)'!$A$2:$A$335=A3)*('CCG-Prov(Amb)'!$C$2:$C$335>=Ambulance!$B$7),1,0)) -> 1 | W3: =IF(VALUE(MID(W$2,5,2))<=$V3,OFFSET('CCG-Prov(Amb)'!$B$1,MATCH($A3,'CCG-Prov(Amb)'!$A$2:$A$335,0)+VALUE(RIGHT(W$2,1))-1,0),"") -> RX8 | X3: =IF(VALUE(MID(X$2,5,2))<=$V3,OFFSET('CCG-Prov(Amb)'!$B$1,MATCH($A3,'CCG-Prov(Amb)'!$A$2:$A$335,0)+VALUE(RIGHT(X$2,1))-1,0),"") ->  | Y3: =IF(VALUE(MID(Y$2,5,2))<=$V3,OFFSET('CCG-Prov(Amb)'!$B$1,MATCH($A3,'CCG-Prov(Amb)'!$A$2:$A$335,0)+VALUE(RIGHT(Y$2,1))-1,0),"") ->  | Z3: =IF(VALUE(MID(Z$2,5,2))<=$V3,OFFSET('CCG-Prov(Amb)'!$B$1,MATCH($A3,'CCG-Prov(Amb)'!$A$2:$A$335,0)+VALUE(RIGHT(Z$2,1))-1,0),"") ->  | AA3: =IF(VALUE(MID(AA$2,5,2))<=$V3,OFFSET('CCG-Prov(Amb)'!$B$1,MATCH($A3,'CCG-Prov(Amb)'!$A$2:$A$335,0)+VALUE(RIGHT(AA$2,1))-1,0),"") ->  | AC3: 5QT | AD3: Isle of Wight (Ambulance) | AE3: =SUM(IF(('CCG-Prov(Amb)'!$B$2:$B$335=AC3),1,0)) -> 1 | AG3: =SUM(IF(('CCG-Prov(Births)'!$A$2:$A$6150=A3),1,0)) -> 13 | AH3: =SUM(IF(('CCG-Prov(Births)'!$A$2:$A$6150=A3)*('CCG-Prov(Births)'!$C$2:$C$6150>=Maternity!$B$7),1,0)) -> 1 | AI3: =IF(VALUE(MID(AI$2,5,2))<=$V3,OFFSET('CCG-Prov(Births)'!$B$1,MATCH($A3,'CCG-Prov(Births)'!$A$2:$A$6150,0)+VALUE(RIGHT(AI$2,1))-1,0),"") -> RCF | AJ3: =IF(VALUE(MID(AJ$2,5,2))<=$V3,OFFSET('CCG-Prov(Births)'!$B$1,MATCH($A3,'CCG-Prov(Births)'!$A$2:$A$6150,0)+VALUE(RIGHT(AJ$2,1))-1,0),"") ->  | AK3: =IF(VALUE(MID(AK$2,5,2))<=$V3,OFFSET('CCG-Prov(Births)'!$B$1,MATCH($A3,'CCG-Prov(Births)'!$A$2:$A$6150,0)+VALUE(RIGHT(AK$2,1))-1,0),"") ->  | AL3: =IF(VALUE(MID(AL$2,5,2))<=$V3,OFFSET('CCG-Prov(Births)'!$B$1,MATCH($A3,'CCG-Prov(Births)'!$A$2:$A$6150,0)+VALUE(RIGHT(AL$2,1))-1,0),"") ->  | AM3: =IF(VALUE(MID(AM$2,5,2))<=$V3,OFFSET('CCG-Prov(Births)'!$B$1,MATCH($A3,'CCG-Prov(Births)'!$A$2:$A$6150,0)+VALUE(RIGHT(AM$2,1))-1,0),"") ->  | AO3: 5CN | AP3: =VLOOKUP(AO3,provnames!$A$2:$B$331,2,0) -> Herefordshire PCT | AQ3: =SUM(IF(('CCG-Prov(Births)'!$B$2:$B$6150=AO3),1,0)) -> 1
A4: 09C | B4: Ashford | C4: =SUM(IF(('CCG-Prov(Acute)'!$A$2:$A$29012=A4),1,0)) -> 110 | D4: =SUM(IF(('CCG-Prov(Acute)'!$A$2:$A$29012=A4)*('CCG-Prov(Acute)'!$C$2:$C$29012>=Acute!$B$7),1,0)) -> 3 | E4: =IF(VALUE(MID(E$2,5,2))<=$D4,OFFSET('CCG-Prov(Acute)'!$B$1,MATCH($A4,'CCG-Prov(Acute)'!$A$2:$A$29012,0)+VALUE(RIGHT(E$2,1))-1,0),"") -> RVV | F4: =IF(VALUE(MID(F$2,5,2))<=$D4,OFFSET('CCG-Prov(Acute)'!$B$1,MATCH($A4,'CCG-Prov(Acute)'!$A$2:$A$29012,0)+VALUE(RIGHT(F$2,1))-1,0),"") -> NTY | G4: =IF(VALUE(MID(G$2,5,2))<=$D4,OFFSET('CCG-Prov(Acute)'!$B$1,MATCH($A4,'CCG-Prov(Acute)'!$A$2:$A$29012,0)+VALUE(RIGHT(G$2,1))-1,0),"") -> NWF | H4: =IF(VALUE(MID(H$2,5,2))<=$D4,OFFSET('CCG-Prov(Acute)'!$B$1,MATCH($A4,'CCG-Prov(Acute)'!$A$2:$A$29012,0)+VALUE(RIGHT(H$2,1))-1,0),"") ->  | I4: =IF(VALUE(MID(I$2,5,2))<=$D4,OFFSET('CCG-Prov(Acute)'!$B$1,MATCH($A4,'CCG-Prov(Acute)'!$A$2:$A$29012,0)+VALUE(RIGHT(I$2,1))-1,0),"") ->  | J4: =IF(VALUE(MID(J$2,5,2))<=$D4,OFFSET('CCG-Prov(Acute)'!$B$1,MATCH($A4,'CCG-Prov(Acute)'!$A$2:$A$29012,0)+VALUE(RIGHT(J$2,1))-1,0),"") ->  | K4: =IF(VALUE(MID(K$2,5,2))<=$D4,OFFSET('CCG-Prov(Acute)'!$B$1,MATCH($A4,'CCG-Prov(Acute)'!$A$2:$A$29012,0)+VALUE(RIGHT(K$2,1))-1,0),"") ->  | L4: =IF(VALUE(MID(L$2,5,2))<=$D4,OFFSET('CCG-Prov(Acute)'!$B$1,MATCH($A4,'CCG-Prov(Acute)'!$A$2:$A$29012,0)+VALUE(RIGHT(L$2,1))-1,0),"") ->  | M4: =IF(VALUE(MID(M$2,5,2))<=$D4,OFFSET('CCG-Prov(Acute)'!$B$1,MATCH($A4,'CCG-Prov(Acute)'!$A$2:$A$29012,0)+VALUE(RIGHT(M$2,1))-1,0),"") ->  | N4: =IF(VALUE(MID(N$2,5,2))<=$D4,OFFSET('CCG-Prov(Acute)'!$B$1,MATCH($A4,'CCG-Prov(Acute)'!$A$2:$A$29012,0)+VALUE(RIGHT(N$2,1))-1,0),"") ->  | Q4: 5A4 | R4: =VLOOKUP(Q4,provnames!$A$2:$B$331,2,0) -> Havering PCT | S4: =SUM(IF(('CCG-Prov(Acute)'!$B$2:$B$28899=Q4),1,0)) -> 3 | U4: =SUM(IF(('CCG-Prov(Amb)'!$A$2:$A$335=A4),1,0)) -> 1 | V4: =SUM(IF(('CCG-Prov(Amb)'!$A$2:$A$335=A4)*('CCG-Prov(Amb)'!$C$2:$C$335>=Ambulance!$B$7),1,0)) -> 1 | W4: =IF(VALUE(MID(W$2,5,2))<=$V4,OFFSET('CCG-Prov(Amb)'!$B$1,MATCH($A4,'CCG-Prov(Amb)'!$A$2:$A$335,0)+VALUE(RIGHT(W$2,1))-1,0),"") -> RYD | X4: =IF(VALUE(MID(X$2,5,2))<=$V4,OFFSET('CCG-Prov(Amb)'!$B$1,MATCH($A4,'CCG-Prov(Amb)'!$A$2:$A$335,0)+VALUE(RIGHT(X$2,1))-1,0),"") ->  | Y4: =IF(VALUE(MID(Y$2,5,2))<=$V4,OFFSET('CCG-Prov(Amb)'!$B$1,MATCH($A4,'CCG-Prov(Amb)'!$A$2:$A$335,0)+VALUE(RIGHT(Y$2,1))-1,0),"") ->  | Z4: =IF(VALUE(MID(Z$2,5,2))<=$V4,OFFSET('CCG-Prov(Amb)'!$B$1,MATCH($A4,'CCG-Prov(Amb)'!$A$2:$A$335,0)+VALUE(RIGHT(Z$2,1))-1,0),"") ->  | AA4: =IF(VALUE(MID(AA$2,5,2))<=$V4,OFFSET('CCG-Prov(Amb)'!$B$1,MATCH($A4,'CCG-Prov(Amb)'!$A$2:$A$335,0)+VALUE(RIGHT(AA$2,1))-1,0),"") ->  | AC4: RRY | AD4: London (Ambulance) | AE4: =SUM(IF(('CCG-Prov(Amb)'!$B$2:$B$335=AC4),1,0)) -> 43 | AG4: =SUM(IF(('CCG-Prov(Births)'!$A$2:$A$6150=A4),1,0)) -> 14 | AH4: =SUM(IF(('CCG-Prov(Births)'!$A$2:$A$6150=A4)*('CCG-Prov(Births)'!$C$2:$C$6150>=Maternity!$B$7),1,0)) -> 1 | AI4: =IF(VALUE(MID(AI$2,5,2))<=$V4,OFFSET('CCG-Prov(Births)'!$B$1,MATCH($A4,'CCG-Prov(Births)'!$A$2:$A$6150,0)+VALUE(RIGHT(AI$2,1))-1,0),"") -> RVV | AJ4: =IF(VALUE(MID(AJ$2,5,2))<=$V4,OFFSET('CCG-Prov(Births)'!$B$1,MATCH($A4,'CCG-Prov(Births)'!$A$2:$A$6150,0)+VALUE(RIGHT(AJ$2,1))-1,0),"") ->  | AK4: =IF(VALUE(MID(AK$2,5,2))<=$V4,OFFSET('CCG-Prov(Births)'!$B$1,MATCH($A4,'CCG-Prov(Births)'!$A$2:$A$6150,0)+VALUE(RIGHT(AK$2,1))-1,0),"") ->  | AL4: =IF(VALUE(MID(AL$2,5,2))<=$V4,OFFSET('CCG-Prov(Births)'!$B$1,MATCH($A4,'CCG-Prov(Births)'!$A$2:$A$6150,0)+VALUE(RIGHT(AL$2,1))-1,0),"") ->  | AM4: =IF(VALUE(MID(AM$2,5,2))<=$V4,OFFSET('CCG-Prov(Births)'!$B$1,MATCH($A4,'CCG-Prov(Births)'!$A$2:$A$6150,0)+VALUE(RIGHT(AM$2,1))-1,0),"") ->  | AO4: 5M2 | AP4: =VLOOKUP(AO4,provnames!$A$2:$B$331,2,0) -> Shropshire County PCT | AQ4: =SUM(IF(('CCG-Prov(Births)'!$B$2:$B$6150=AO4),1,0)) -> 0
A5: 10Y | B5: Aylesbury Vale | C5: =SUM(IF(('CCG-Prov(Acute)'!$A$2:$A$29012=A5),1,0)) -> 151 | D5: =SUM(IF(('CCG-Prov(Acute)'!$A$2:$A$29012=A5)*('CCG-Prov(Acute)'!$C$2:$C$29012>=Acute!$B$7),1,0)) -> 5 | E5: =IF(VALUE(MID(E$2,5,2))<=$D5,OFFSET('CCG-Prov(Acute)'!$B$1,MATCH($A5,'CCG-Prov(Acute)'!$A$2:$A$29012,0)+VALUE(RIGHT(E$2,1))-1,0),"") -> RXQ | F5: =IF(VALUE(MID(F$2,5,2))<=$D5,OFFSET('CCG-Prov(Acute)'!$B$1,MATCH($A5,'CCG-Prov(Acute)'!$A$2:$A$29012,0)+VALUE(RIGHT(F$2,1))-1,0),"") -> RTH | G5: =IF(VALUE(MID(G$2,5,2))<=$D5,OFFSET('CCG-Prov(Acute)'!$B$1,MATCH($A5,'CCG-Prov(Acute)'!$A$2:$A$29012,0)+VALUE(RIGHT(G$2,1))-1,0),"") -> RD8 | H5: =IF(VALUE(MID(H$2,5,2))<=$D5,OFFSET('CCG-Prov(Acute)'!$B$1,MATCH($A5,'CCG-Prov(Acute)'!$A$2:$A$29012,0)+VALUE(RIGHT(H$2,1))-1,0),"") -> 5QD | I5: =IF(VALUE(MID(I$2,5,2))<=$D5,OFFSET('CCG-Prov(Acute)'!$B$1,MATCH($A5,'CCG-Prov(Acute)'!$A$2:$A$29012,0)+VALUE(RIGHT(I$2,1))-1,0),"") -> RC9 | J5: =IF(VALUE(MID(J$2,5,2))<=$D5,OFFSET('CCG-Prov(Acute)'!$B$1,MATCH($A5,'CCG-Prov(Acute)'!$A$2:$A$29012,0)+VALUE(RIGHT(J$2,1))-1,0),"") ->  | K5: =IF(VALUE(MID(K$2,5,2))<=$D5,OFFSET('CCG-Prov(Acute)'!$B$1,MATCH($A5,'CCG-Prov(Acute)'!$A$2:$A$29012,0)+VALUE(RIGHT(K$2,1))-1,0),"") ->  | L5: =IF(VALUE(MID(L$2,5,2))<=$D5,OFFSET('CCG-Prov(Acute)'!$B$1,MATCH($A5,'CCG-Prov(Acute)'!$A$2:$A$29012,0)+VALUE(RIGHT(L$2,1))-1,0),"") ->  | M5: =IF(VALUE(MID(M$2,5,2))<=$D5,OFFSET('CCG-Prov(Acute)'!$B$1,MATCH($A5,'CCG-Prov(Acute)'!$A$2:$A$29012,0)+VALUE(RIGHT(M$2,1))-1,0),"") ->  | N5: =IF(VALUE(MID(N$2,5,2))<=$D5,OFFSET('CCG-Prov(Acute)'!$B$1,MATCH($A5,'CCG-Prov(Acute)'!$A$2:$A$29012,0)+VALUE(RIGHT(N$2,1))-1,0),"") ->  | Q5: 5A5 | R5: =VLOOKUP(Q5,provnames!$A$2:$B$331,2,0) -> Kingston PCT | S5: =SUM(IF(('CCG-Prov(Acute)'!$B$2:$B$28899=Q5),1,0)) -> 7 | U5: =SUM(IF(('CCG-Prov(Amb)'!$A$2:$A$335=A5),1,0)) -> 3 | V5: =SUM(IF(('CCG-Prov(Amb)'!$A$2:$A$335=A5)*('CCG-Prov(Amb)'!$C$2:$C$335>=Ambulance!$B$7),1,0)) -> 2 | W5: =IF(VALUE(MID(W$2,5,2))<=$V5,OFFSET('CCG-Prov(Amb)'!$B$1,MATCH($A5,'CCG-Prov(Amb)'!$A$2:$A$335,0)+VALUE(RIGHT(W$2,1))-1,0),"") -> RYE | X5: =IF(VALUE(MID(X$2,5,2))<=$V5,OFFSET('CCG-Prov(Amb)'!$B$1,MATCH($A5,'CCG-Prov(Amb)'!$A$2:$A$335,0)+VALUE(RIGHT(X$2,1))-1,0),"") -> RYC | Y5: =IF(VALUE(MID(Y$2,5,2))<=$V5,OFFSET('CCG-Prov(Amb)'!$B$1,MATCH($A5,'CCG-Prov(Amb)'!$A$2:$A$335,0)+VALUE(RIGHT(Y$2,1))-1,0),"") ->  | Z5: =IF(VALUE(MID(Z$2,5,2))<=$V5,OFFSET('CCG-Prov(Amb)'!$B$1,MATCH($A5,'CCG-Prov(Amb)'!$A$2:$A$335,0)+VALUE(RIGHT(Z$2,1))-1,0),"") ->  | AA5: =IF(VALUE(MID(AA$2,5,2))<=$V5,OFFSET('CCG-Prov(Amb)'!$B$1,MATCH($A5,'CCG-Prov(Amb)'!$A$2:$A$335,0)+VALUE(RIGHT(AA$2,1))-1,0),"") ->  | AC5: RX5 | AD5: Great Western (Ambulance) | AE5: =SUM(IF(('CCG-Prov(Amb)'!$B$2:$B$335=AC5),1,0)) -> 15 | AG5: =SUM(IF(('CCG-Prov(Births)'!$A$2:$A$6150=A5),1,0)) -> 25 | AH5: =SUM(IF(('CCG-Prov(Births)'!$A$2:$A$6150=A5)*('CCG-Prov(Births)'!$C$2:$C$6150>=Maternity!$B$7),1,0)) -> 2 | AI5: =IF(VALUE(MID(AI$2,5,2))<=$V5,OFFSET('CCG-Prov(Births)'!$B$1,MATCH($A5,'CCG-Prov(Births)'!$A$2:$A$6150,0)+VALUE(RIGHT(AI$2,1))-1,0),"") -> RXQ | AJ5: =IF(VALUE(MID(AJ$2,5,2))<=$V5,OFFSET('CCG-Prov(Births)'!$B$1,MATCH($A5,'CCG-Prov(Births)'!$A$2:$A$6150,0)+VALUE(RIGHT(AJ$2,1))-1,0),"") -> RTH | AK5: =IF(VALUE(MID(AK$2,5,2))<=$V5,OFFSET('CCG-Prov(Births)'!$B$1,MATCH($A5,'CCG-Prov(Births)'!$A$2:$A$6150,0)+VALUE(RIGHT(AK$2,1))-1,0),"") ->  | AL5: =IF(VALUE(MID(AL$2,5,2))<=$V5,OFFSET('CCG-Prov(Births)'!$B$1,MATCH($A5,'CCG-Prov(Births)'!$A$2:$A$6150,0)+VALUE(RIGHT(AL$2,1))-1,0),"") ->  | AM5: =IF(VALUE(MID(AM$2,5,2))<=$V5,OFFSET('CCG-Prov(Births)'!$B$1,MATCH($A5,'CCG-Prov(Births)'!$A$2:$A$6150,0)+VALUE(RIGHT(AM$2,1))-1,0),"") ->  | AO5: 5NV | AP5: =VLOOKUP(AO5,provnames!$A$2:$B$331,2,0) -> North Yorkshire & York PCT | AQ5: =SUM(IF(('CCG-Prov(Births)'!$B$2:$B$6150=AO5),1,0)) -> 4
A6: 07L | B6: Barking & Dagenham | C6: =SUM(IF(('CCG-Prov(Acute)'!$A$2:$A$29012=A6),1,0)) -> 120 | D6: =SUM(IF(('CCG-Prov(Acute)'!$A$2:$A$29012=A6)*('CCG-Prov(Acute)'!$C$2:$C$29012>=Acute!$B$7),1,0)) -> 6 | E6: =IF(VALUE(MID(E$2,5,2))<=$D6,OFFSET('CCG-Prov(Acute)'!$B$1,MATCH($A6,'CCG-Prov(Acute)'!$A$2:$A$29012,0)+VALUE(RIGHT(E$2,1))-1,0),"") -> RF4 | F6: =IF(VALUE(MID(F$2,5,2))<=$D6,OFFSET('CCG-Prov(Acute)'!$B$1,MATCH($A6,'CCG-Prov(Acute)'!$A$2:$A$29012,0)+VALUE(RIGHT(F$2,1))-1,0),"") -> RNJ | G6: =IF(VALUE(MID(G$2,5,2))<=$D6,OFFSET('CCG-Prov(Acute)'!$B$1,MATCH($A6,'CCG-Prov(Acute)'!$A$2:$A$29012,0)+VALUE(RIGHT(G$2,1))-1,0),"") -> NTP | H6: =IF(VALUE(MID(H$2,5,2))<=$D6,OFFSET('CCG-Prov(Acute)'!$B$1,MATCH($A6,'CCG-Prov(Acute)'!$A$2:$A$29012,0)+VALUE(RIGHT(H$2,1))-1,0),"") -> RNH | I6: =IF(VALUE(MID(I$2,5,2))<=$D6,OFFSET('CCG-Prov(Acute)'!$B$1,MATCH($A6,'CCG-Prov(Acute)'!$A$2:$A$29012,0)+VALUE(RIGHT(I$2,1))-1,0),"") -> RGC | J6: =IF(VALUE(MID(J$2,5,2))<=$D6,OFFSET('CCG-Prov(Acute)'!$B$1,MATCH($A6,'CCG-Prov(Acute)'!$A$2:$A$29012,0)+VALUE(RIGHT(J$2,1))-1,0),"") -> RP6 | K6: =IF(VALUE(MID(K$2,5,2))<=$D6,OFFSET('CCG-Prov(Acute)'!$B$1,MATCH($A6,'CCG-Prov(Acute)'!$A$2:$A$29012,0)+VALUE(RIGHT(K$2,1))-1,0),"") ->  | L6: =IF(VALUE(MID(L$2,5,2))<=$D6,OFFSET('CCG-Prov(Acute)'!$B$1,MATCH($A6,'CCG-Prov(Acute)'!$A$2:$A$29012,0)+VALUE(RIGHT(L$2,1))-1,0),"") ->  | M6: =IF(VALUE(MID(M$2,5,2))<=$D6,OFFSET('CCG-Prov(Acute)'!$B$1,MATCH($A6,'CCG-Prov(Acute)'!$A$2:$A$29012,0)+VALUE(RIGHT(M$2,1))-1,0),"") ->  | N6: =IF(VALUE(MID(N$2,5,2))<=$D6,OFFSET('CCG-Prov(Acute)'!$B$1,MATCH($A6,'CCG-Prov(Acute)'!$A$2:$A$29012,0)+VALUE(RIGHT(N$2,1))-1,0),"") ->  | Q6: 5AT | R6: =VLOOKUP(Q6,provnames!$A$2:$B$331,2,0) -> Hillingdon PCT | S6: =SUM(IF(('CCG-Prov(Acute)'!$B$2:$B$28899=Q6),1,0)) -> 5 | U6: =SUM(IF(('CCG-Prov(Amb)'!$A$2:$A$335=A6),1,0)) -> 2 | V6: =SUM(IF(('CCG-Prov(Amb)'!$A$2:$A$335=A6)*('CCG-Prov(Amb)'!$C$2:$C$335>=Ambulance!$B$7),1,0)) -> 1 | W6: =IF(VALUE(MID(W$2,5,2))<=$V6,OFFSET('CCG-Prov(Amb)'!$B$1,MATCH($A6,'CCG-Prov(Amb)'!$A$2:$A$335,0)+VALUE(RIGHT(W$2,1))-1,0),"") -> RRY | X6: =IF(VALUE(MID(X$2,5,2))<=$V6,OFFSET('CCG-Prov(Amb)'!$B$1,MATCH($A6,'CCG-Prov(Amb)'!$A$2:$A$335,0)+VALUE(RIGHT(X$2,1))-1,0),"") ->  | Y6: =IF(VALUE(MID(Y$2,5,2))<=$V6,OFFSET('CCG-Prov(Amb)'!$B$1,MATCH($A6,'CCG-Prov(Amb)'!$A$2:$A$335,0)+VALUE(RIGHT(Y$2,1))-1,0),"") ->  | Z6: =IF(VALUE(MID(Z$2,5,2))<=$V6,OFFSET('CCG-Prov(Amb)'!$B$1,MATCH($A6,'CCG-Prov(Amb)'!$A$2:$A$335,0)+VALUE(RIGHT(Z$2,1))-1,0),"") ->  | AA6: =IF(VALUE(MID(AA$2,5,2))<=$V6,OFFSET('CCG-Prov(Amb)'!$B$1,MATCH($A6,'CCG-Prov(Amb)'!$A$2:$A$335,0)+VALUE(RIGHT(AA$2,1))-1,0),"") ->  | AC6: RX6 | AD6: North East (Ambulance) | AE6: =SUM(IF(('CCG-Prov(Amb)'!$B$2:$B$335=AC6),1,0)) -> 14 | AG6: =SUM(IF(('CCG-Prov(Births)'!$A$2:$A$6150=A6),1,0)) -> 36 | AH6: =SUM(IF(('CCG-Prov(Births)'!$A$2:$A$6150=A6)*('CCG-Prov(Births)'!$C$2:$C$6150>=Maternity!$B$7),1,0)) -> 2 | AI6: =IF(VALUE(MID(AI$2,5,2))<=$V6,OFFSET('CCG-Prov(Births)'!$B$1,MATCH($A6,'CCG-Prov(Births)'!$A$2:$A$6150,0)+VALUE(RIGHT(AI$2,1))-1,0),"") -> RF4 | AJ6: =IF(VALUE(MID(AJ$2,5,2))<=$V6,OFFSET('CCG-Prov(Births)'!$B$1,MATCH($A6,'CCG-Prov(Births)'!$A$2:$A$6150,0)+VALUE(RIGHT(AJ$2,1))-1,0),"") ->  | AK6: =IF(VALUE(MID(AK$2,5,2))<=$V6,OFFSET('CCG-Prov(Births)'!$B$1,MATCH($A6,'CCG-Prov(Births)'!$A$2:$A$6150,0)+VALUE(RIGHT(AK$2,1))-1,0),"") ->  | AL6: =IF(VALUE(MID(AL$2,5,2))<=$V6,OFFSET('CCG-Prov(Births)'!$B$1,MATCH($A6,'CCG-Prov(Births)'!$A$2:$A$6150,0)+VALUE(RIGHT(AL$2,1))-1,0),"") ->  | AM6: =IF(VALUE(MID(AM$2,5,2))<=$V6,OFFSET('CCG-Prov(Births)'!$B$1,MATCH($A6,'CCG-Prov(Births)'!$A$2:$A$6150,0)+VALUE(RIGHT(AM$2,1))-1,0),"") ->  | AO6: 5PK | AP6: =VLOOKUP(AO6,provnames!$A$2:$B$331,2,0) -> South Staffordshire PCT | AQ6: =SUM(IF(('CCG-Prov(Births)'!$B$2:$B$6150=AO6),1,0)) -> 3
A7: 07M | B7: Barnet | C7: =SUM(IF(('CCG-Prov(Acute)'!$A$2:$A$29012=A7),1,0)) -> 141 | D7: =SUM(IF(('CCG-Prov(Acute)'!$A$2:$A$29012=A7)*('CCG-Prov(Acute)'!$C$2:$C$29012>=Acute!$B$7),1,0)) -> 9 | E7: =IF(VALUE(MID(E$2,5,2))<=$D7,OFFSET('CCG-Prov(Acute)'!$B$1,MATCH($A7,'CCG-Prov(Acute)'!$A$2:$A$29012,0)+VALUE(RIGHT(E$2,1))-1,0),"") -> RVL | F7: =IF(VALUE(MID(F$2,5,2))<=$D7,OFFSET('CCG-Prov(Acute)'!$B$1,MATCH($A7,'CCG-Prov(Acute)'!$A$2:$A$29012,0)+VALUE(RIGHT(F$2,1))-1,0),"") -> RAL | G7: =IF(VALUE(MID(G$2,5,2))<=$D7,OFFSET('CCG-Prov(Acute)'!$B$1,MATCH($A7,'CCG-Prov(Acute)'!$A$2:$A$29012,0)+VALUE(RIGHT(G$2,1))-1,0),"") -> RRV | H7: =IF(VALUE(MID(H$2,5,2))<=$D7,OFFSET('CCG-Prov(Acute)'!$B$1,MATCH($A7,'CCG-Prov(Acute)'!$A$2:$A$29012,0)+VALUE(RIGHT(H$2,1))-1,0),"") -> RV8 | I7: =IF(VALUE(MID(I$2,5,2))<=$D7,OFFSET('CCG-Prov(Acute)'!$B$1,MATCH($A7,'CCG-Prov(Acute)'!$A$2:$A$29012,0)+VALUE(RIGHT(I$2,1))-1,0),"") -> RKE | J7: =IF(VALUE(MID(J$2,5,2))<=$D7,OFFSET('CCG-Prov(Acute)'!$B$1,MATCH($A7,'CCG-Prov(Acute)'!$A$2:$A$29012,0)+VALUE(RIGHT(J$2,1))-1,0),"") -> RAN | K7: =IF(VALUE(MID(K$2,5,2))<=$D7,OFFSET('CCG-Prov(Acute)'!$B$1,MATCH($A7,'CCG-Prov(Acute)'!$A$2:$A$29012,0)+VALUE(RIGHT(K$2,1))-1,0),"") -> RYJ | L7: =IF(VALUE(MID(L$2,5,2))<=$D7,OFFSET('CCG-Prov(Acute)'!$B$1,MATCH($A7,'CCG-Prov(Acute)'!$A$2:$A$29012,0)+VALUE(RIGHT(L$2,1))-1,0),"") -> RP6 | M7: =IF(VALUE(MID(M$2,5,2))<=$D7,OFFSET('CCG-Prov(Acute)'!$B$1,MATCH($A7,'CCG-Prov(Acute)'!$A$2:$A$29012,0)+VALUE(RIGHT(M$2,1))-1,0),"") -> RP4 | N7: =IF(VALUE(MID(N$2,5,2))<=$D7,OFFSET('CCG-Prov(Acute)'!$B$1,MATCH($A7,'CCG-Prov(Acute)'!$A$2:$A$29012,0)+VALUE(RIGHT(N$2,1))-1,0),"") ->  | Q7: 5C4 | R7: =VLOOKUP(Q7,provnames!$A$2:$B$331,2,0) -> Tower Hamlets PCT | S7: =SUM(IF(('CCG-Prov(Acute)'!$B$2:$B$28899=Q7),1,0)) -> 35 | U7: =SUM(IF(('CCG-Prov(Amb)'!$A$2:$A$335=A7),1,0)) -> 2 | V7: =SUM(IF(('CCG-Prov(Amb)'!$A$2:$A$335=A7)*('CCG-Prov(Amb)'!$C$2:$C$335>=Ambulance!$B$7),1,0)) -> 1 | W7: =IF(VALUE(MID(W$2,5,2))<=$V7,OFFSET('CCG-Prov(Amb)'!$B$1,MATCH($A7,'CCG-Prov(Amb)'!$A$2:$A$335,0)+VALUE(RIGHT(W$2,1))-1,0),"") -> RRY | X7: =IF(VALUE(MID(X$2,5,2))<=$V7,OFFSET('CCG-Prov(Amb)'!$B$1,MATCH($A7,'CCG-Prov(Amb)'!$A$2:$A$335,0)+VALUE(RIGHT(X$2,1))-1,0),"") ->  | Y7: =IF(VALUE(MID(Y$2,5,2))<=$V7,OFFSET('CCG-Prov(Amb)'!$B$1,MATCH($A7,'CCG-Prov(Amb)'!$A$2:$A$335,0)+VALUE(RIGHT(Y$2,1))-1,0),"") ->  | Z7: =IF(VALUE(MID(Z$2,5,2))<=$V7,OFFSET('CCG-Prov(Amb)'!$B$1,MATCH($A7,'CCG-Prov(Amb)'!$A$2:$A$335,0)+VALUE(RIGHT(Z$2,1))-1,0),"") ->  | AA7: =IF(VALUE(MID(AA$2,5,2))<=$V7,OFFSET('CCG-Prov(Amb)'!$B$1,MATCH($A7,'CCG-Prov(Amb)'!$A$2:$A$335,0)+VALUE(RIGHT(AA$2,1))-1,0),"") ->  | AC7: RX7 | AD7: North West (Ambulance) | AE7: =SUM(IF(('CCG-Prov(Amb)'!$B$2:$B$335=AC7),1,0)) -> 41 | AG7: =SUM(IF(('CCG-Prov(Births)'!$A$2:$A$6150=A7),1,0)) -> 45 | AH7: =SUM(IF(('CCG-Prov(Births)'!$A$2:$A$6150=A7)*('CCG-Prov(Births)'!$C$2:$C$6150>=Maternity!$B$7),1,0)) -> 7 | AI7: =IF(VALUE(MID(AI$2,5,2))<=$V7,OFFSET('CCG-Prov(Births)'!$B$1,MATCH($A7,'CCG-Prov(Births)'!$A$2:$A$6150,0)+VALUE(RIGHT(AI$2,1))-1,0),"") -> RVL | AJ7: =IF(VALUE(MID(AJ$2,5,2))<=$V7,OFFSET('CCG-Prov(Births)'!$B$1,MATCH($A7,'CCG-Prov(Births)'!$A$2:$A$6150,0)+VALUE(RIGHT(AJ$2,1))-1,0),"") ->  | AK7: =IF(VALUE(MID(AK$2,5,2))<=$V7,OFFSET('CCG-Prov(Births)'!$B$1,MATCH($A7,'CCG-Prov(Births)'!$A$2:$A$6150,0)+VALUE(RIGHT(AK$2,1))-1,0),"") ->  | AL7: =IF(VALUE(MID(AL$2,5,2))<=$V7,OFFSET('CCG-Prov(Births)'!$B$1,MATCH($A7,'CCG-Prov(Births)'!$A$2:$A$6150,0)+VALUE(RIGHT(AL$2,1))-1,0),"") ->  | AM7: =IF(VALUE(MID(AM$2,5,2))<=$V7,OFFSET('CCG-Prov(Births)'!$B$1,MATCH($A7,'CCG-Prov(Births)'!$A$2:$A$6150,0)+VALUE(RIGHT(AM$2,1))-1,0),"") ->  | AO7: 5PT | AP7: =VLOOKUP(AO7,provnames!$A$2:$B$331,2,0) -> Suffolk PCT | AQ7: =SUM(IF(('CCG-Prov(Births)'!$B$2:$B$6150=AO7),1,0)) -> 0
A8: 02P | B8: Barnsley | C8: =SUM(IF(('CCG-Prov(Acute)'!$A$2:$A$29012=A8),1,0)) -> 132 | D8: =SUM(IF(('CCG-Prov(Acute)'!$A$2:$A$29012=A8)*('CCG-Prov(Acute)'!$C$2:$C$29012>=Acute!$B$7),1,0)) -> 6 | E8: =IF(VALUE(MID(E$2,5,2))<=$D8,OFFSET('CCG-Prov(Acute)'!$B$1,MATCH($A8,'CCG-Prov(Acute)'!$A$2:$A$29012,0)+VALUE(RIGHT(E$2,1))-1,0),"") -> RFF | F8: =IF(VALUE(MID(F$2,5,2))<=$D8,OFFSET('CCG-Prov(Acute)'!$B$1,MATCH($A8,'CCG-Prov(Acute)'!$A$2:$A$29012,0)+VALUE(RIGHT(F$2,1))-1,0),"") -> RHQ | G8: =IF(VALUE(MID(G$2,5,2))<=$D8,OFFSET('CCG-Prov(Acute)'!$B$1,MATCH($A8,'CCG-Prov(Acute)'!$A$2:$A$29012,0)+VALUE(RIGHT(G$2,1))-1,0),"") -> RFR | H8: =IF(VALUE(MID(H$2,5,2))<=$D8,OFFSET('CCG-Prov(Acute)'!$B$1,MATCH($A8,'CCG-Prov(Acute)'!$A$2:$A$29012,0)+VALUE(RIGHT(H$2,1))-1,0),"") -> RP5 | I8: =IF(VALUE(MID(I$2,5,2))<=$D8,OFFSET('CCG-Prov(Acute)'!$B$1,MATCH($A8,'CCG-Prov(Acute)'!$A$2:$A$29012,0)+VALUE(RIGHT(I$2,1))-1,0),"") -> RCU | J8: =IF(VALUE(MID(J$2,5,2))<=$D8,OFFSET('CCG-Prov(Acute)'!$B$1,MATCH($A8,'CCG-Prov(Acute)'!$A$2:$A$29012,0)+VALUE(RIGHT(J$2,1))-1,0),"") -> 5JE | K8: =IF(VALUE(MID(K$2,5,2))<=$D8,OFFSET('CCG-Prov(Acute)'!$B$1,MATCH($A8,'CCG-Prov(Acute)'!$A$2:$A$29012,0)+VALUE(RIGHT(K$2,1))-1,0),"") ->  | L8: =IF(VALUE(MID(L$2,5,2))<=$D8,OFFSET('CCG-Prov(Acute)'!$B$1,MATCH($A8,'CCG-Prov(Acute)'!$A$2:$A$29012,0)+VALUE(RIGHT(L$2,1))-1,0),"") ->  | M8: =IF(VALUE(MID(M$2,5,2))<=$D8,OFFSET('CCG-Prov(Acute)'!$B$1,MATCH($A8,'CCG-Prov(Acute)'!$A$2:$A$29012,0)+VALUE(RIGHT(M$2,1))-1,0),"") ->  | N8: =IF(VALUE(MID(N$2,5,2))<=$D8,OFFSET('CCG-Prov(Acute)'!$B$1,MATCH($A8,'CCG-Prov(Acute)'!$A$2:$A$29012,0)+VALUE(RIGHT(N$2,1))-1,0),"") ->  | Q8: 5C5 | R8: =VLOOKUP(Q8,provnames!$A$2:$B$331,2,0) -> Newham PCT | S8: =SUM(IF(('CCG-Prov(Acute)'!$B$2:$B$28899=Q8),1,0)) -> 3 | U8: =SUM(IF(('CCG-Prov(Amb)'!$A$2:$A$335=A8),1,0)) -> 1 | V8: =SUM(IF(('CCG-Prov(Amb)'!$A$2:$A$335=A8)*('CCG-Prov(Amb)'!$C$2:$C$335>=Ambulance!$B$7),1,0)) -> 1 | W8: =IF(VALUE(MID(W$2,5,2))<=$V8,OFFSET('CCG-Prov(Amb)'!$B$1,MATCH($A8,'CCG-Prov(Amb)'!$A$2:$A$335,0)+VALUE(RIGHT(W$2,1))-1,0),"") -> RX8 | X8: =IF(VALUE(MID(X$2,5,2))<=$V8,OFFSET('CCG-Prov(Amb)'!$B$1,MATCH($A8,'CCG-Prov(Amb)'!$A$2:$A$335,0)+VALUE(RIGHT(X$2,1))-1,0),"") ->  | Y8: =IF(VALUE(MID(Y$2,5,2))<=$V8,OFFSET('CCG-Prov(Amb)'!$B$1,MATCH($A8,'CCG-Prov(Amb)'!$A$2:$A$335,0)+VALUE(RIGHT(Y$2,1))-1,0),"") ->  | Z8: =IF(VALUE(MID(Z$2,5,2))<=$V8,OFFSET('CCG-Prov(Amb)'!$B$1,MATCH($A8,'CCG-Prov(Amb)'!$A$2:$A$335,0)+VALUE(RIGHT(Z$2,1))-1,0),"") ->  | AA8: =IF(VALUE(MID(AA$2,5,2))<=$V8,OFFSET('CCG-Prov(Amb)'!$B$1,MATCH($A8,'CCG-Prov(Amb)'!$A$2:$A$335,0)+VALUE(RIGHT(AA$2,1))-1,0),"") ->  | AC8: RX8 | AD8: Yorkshire (Ambulance) | AE8: =SUM(IF(('CCG-Prov(Amb)'!$B$2:$B$335=AC8),1,0)) -> 31 | AG8: =SUM(IF(('CCG-Prov(Births)'!$A$2:$A$6150=A8),1,0)) -> 20 | AH8: =SUM(IF(('CCG-Prov(Births)'!$A$2:$A$6150=A8)*('CCG-Prov(Births)'!$C$2:$C$6150>=Maternity!$B$7),1,0)) -> 4 | AI8: =IF(VALUE(MID(AI$2,5,2))<=$V8,OFFSET('CCG-Prov(Births)'!$B$1,MATCH($A8,'CCG-Prov(Births)'!$A$2:$A$6150,0)+VALUE(RIGHT(AI$2,1))-1,0),"") -> RFF | AJ8: =IF(VALUE(MID(AJ$2,5,2))<=$V8,OFFSET('CCG-Prov(Births)'!$B$1,MATCH($A8,'CCG-Prov(Births)'!$A$2:$A$6150,0)+VALUE(RIGHT(AJ$2,1))-1,0),"") ->  | AK8: =IF(VALUE(MID(AK$2,5,2))<=$V8,OFFSET('CCG-Prov(Births)'!$B$1,MATCH($A8,'CCG-Prov(Births)'!$A$2:$A$6150,0)+VALUE(RIGHT(AK$2,1))-1,0),"") ->  | AL8: =IF(VALUE(MID(AL$2,5,2))<=$V8,OFFSET('CCG-Prov(Births)'!$B$1,MATCH($A8,'CCG-Prov(Births)'!$A$2:$A$6150,0)+VALUE(RIGHT(AL$2,1))-1,0),"") ->  | AM8: =IF(VALUE(MID(AM$2,5,2))<=$V8,OFFSET('CCG-Prov(Births)'!$B$1,MATCH($A8,'CCG-Prov(Births)'!$A$2:$A$6150,0)+VALUE(RIGHT(AM$2,1))-1,0),"") ->  | AO8: 5QH | AP8: =VLOOKUP(AO8,provnames!$A$2:$B$331,2,0) -> Gloucestershire PCT | AQ8: =SUM(IF(('CCG-Prov(Births)'!$B$2:$B$6150=AO8),1,0)) -> 8
A9: 99E | B9: Basildon & Brentwood | C9: =SUM(IF(('CCG-Prov(Acute)'!$A$2:$A$29012=A9),1,0)) -> 140 | D9: =SUM(IF(('CCG-Prov(Acute)'!$A$2:$A$29012=A9)*('CCG-Prov(Acute)'!$C$2:$C$29012>=Acute!$B$7),1,0)) -> 7 | E9: =IF(VALUE(MID(E$2,5,2))<=$D9,OFFSET('CCG-Prov(Acute)'!$B$1,MATCH($A9,'CCG-Prov(Acute)'!$A$2:$A$29012,0)+VALUE(RIGHT(E$2,1))-1,0),"") -> RDD | F9: =IF(VALUE(MID(F$2,5,2))<=$D9,OFFSET('CCG-Prov(Acute)'!$B$1,MATCH($A9,'CCG-Prov(Acute)'!$A$2:$A$29012,0)+VALUE(RIGHT(F$2,1))-1,0),"") -> RF4 | G9: =IF(VALUE(MID(G$2,5,2))<=$D9,OFFSET('CCG-Prov(Acute)'!$B$1,MATCH($A9,'CCG-Prov(Acute)'!$A$2:$A$29012,0)+VALUE(RIGHT(G$2,1))-1,0),"") -> RQ8 | H9: =IF(VALUE(MID(H$2,5,2))<=$D9,OFFSET('CCG-Prov(Acute)'!$B$1,MATCH($A9,'CCG-Prov(Acute)'!$A$2:$A$29012,0)+VALUE(RIGHT(H$2,1))-1,0),"") -> RAJ | I9: =IF(VALUE(MID(I$2,5,2))<=$D9,OFFSET('CCG-Prov(Acute)'!$B$1,MATCH($A9,'CCG-Prov(Acute)'!$A$2:$A$29012,0)+VALUE(RIGHT(I$2,1))-1,0),"") -> RNJ | J9: =IF(VALUE(MID(J$2,5,2))<=$D9,OFFSET('CCG-Prov(Acute)'!$B$1,MATCH($A9,'CCG-Prov(Acute)'!$A$2:$A$29012,0)+VALUE(RIGHT(J$2,1))-1,0),"") -> NT3 | K9: =IF(VALUE(MID(K$2,5,2))<=$D9,OFFSET('CCG-Prov(Acute)'!$B$1,MATCH($A9,'CCG-Prov(Acute)'!$A$2:$A$29012,0)+VALUE(RIGHT(K$2,1))-1,0),"") -> 5PY | L9: =IF(VALUE(MID(L$2,5,2))<=$D9,OFFSET('CCG-Prov(Acute)'!$B$1,MATCH($A9,'CCG-Prov(Acute)'!$A$2:$A$29012,0)+VALUE(RIGHT(L$2,1))-1,0),"") ->  | M9: =IF(VALUE(MID(M$2,5,2))<=$D9,OFFSET('CCG-Prov(Acute)'!$B$1,MATCH($A9,'CCG-Prov(Acute)'!$A$2:$A$29012,0)+VALUE(RIGHT(M$2,1))-1,0),"") ->  | N9: =IF(VALUE(MID(N$2,5,2))<=$D9,OFFSET('CCG-Prov(Acute)'!$B$1,MATCH($A9,'CCG-Prov(Acute)'!$A$2:$A$29012,0)+VALUE(RIGHT(N$2,1))-1,0),"") ->  | Q9: 5CN | R9: =VLOOKUP(Q9,provnames!$A$2:$B$331,2,0) -> Herefordshire PCT | S9: =SUM(IF(('CCG-Prov(Acute)'!$B$2:$B$28899=Q9),1,0)) -> 24 | U9: =SUM(IF(('CCG-Prov(Amb)'!$A$2:$A$335=A9),1,0)) -> 2 | V9: =SUM(IF(('CCG-Prov(Amb)'!$A$2:$A$335=A9)*('CCG-Prov(Amb)'!$C$2:$C$335>=Ambulance!$B$7),1,0)) -> 1 | W9: =IF(VALUE(MID(W$2,5,2))<=$V9,OFFSET('CCG-Prov(Amb)'!$B$1,MATCH($A9,'CCG-Prov(Amb)'!$A$2:$A$335,0)+VALUE(RIGHT(W$2,1))-1,0),"") -> RYC | X9: =IF(VALUE(MID(X$2,5,2))<=$V9,OFFSET('CCG-Prov(Amb)'!$B$1,MATCH($A9,'CCG-Prov(Amb)'!$A$2:$A$335,0)+VALUE(RIGHT(X$2,1))-1,0),"") ->  | Y9: =IF(VALUE(MID(Y$2,5,2))<=$V9,OFFSET('CCG-Prov(Amb)'!$B$1,MATCH($A9,'CCG-Prov(Amb)'!$A$2:$A$335,0)+VALUE(RIGHT(Y$2,1))-1,0),"") ->  | Z9: =IF(VALUE(MID(Z$2,5,2))<=$V9,OFFSET('CCG-Prov(Amb)'!$B$1,MATCH($A9,'CCG-Prov(Amb)'!$A$2:$A$335,0)+VALUE(RIGHT(Z$2,1))-1,0),"") ->  | AA9: =IF(VALUE(MID(AA$2,5,2))<=$V9,OFFSET('CCG-Prov(Amb)'!$B$1,MATCH($A9,'CCG-Prov(Amb)'!$A$2:$A$335,0)+VALUE(RIGHT(AA$2,1))-1,0),"") ->  | AC9: RX9 | AD9: East Midlands (Ambulance) | AE9: =SUM(IF(('CCG-Prov(Amb)'!$B$2:$B$335=AC9),1,0)) -> 42 | AG9: =SUM(IF(('CCG-Prov(Births)'!$A$2:$A$6150=A9),1,0)) -> 29 | AH9: =SUM(IF(('CCG-Prov(Births)'!$A$2:$A$6150=A9)*('CCG-Prov(Births)'!$C$2:$C$6150>=Maternity!$B$7),1,0)) -> 4 | AI9: =IF(VALUE(MID(AI$2,5,2))<=$V9,OFFSET('CCG-Prov(Births)'!$B$1,MATCH($A9,'CCG-Prov(Births)'!$A$2:$A$6150,0)+VALUE(RIGHT(AI$2,1))-1,0),"") -> RDD | AJ9: =IF(VALUE(MID(AJ$2,5,2))<=$V9,OFFSET('CCG-Prov(Births)'!$B$1,MATCH($A9,'CCG-Prov(Births)'!$A$2:$A$6150,0)+VALUE(RIGHT(AJ$2,1))-1,0),"") ->  | AK9: =IF(VALUE(MID(AK$2,5,2))<=$V9,OFFSET('CCG-Prov(Births)'!$B$1,MATCH($A9,'CCG-Prov(Births)'!$A$2:$A$6150,0)+VALUE(RIGHT(AK$2,1))-1,0),"") ->  | AL9: =IF(VALUE(MID(AL$2,5,2))<=$V9,OFFSET('CCG-Prov(Births)'!$B$1,MATCH($A9,'CCG-Prov(Births)'!$A$2:$A$6150,0)+VALUE(RIGHT(AL$2,1))-1,0),"") ->  | AM9: =IF(VALUE(MID(AM$2,5,2))<=$V9,OFFSET('CCG-Prov(Births)'!$B$1,MATCH($A9,'CCG-Prov(Births)'!$A$2:$A$6150,0)+VALUE(RIGHT(AM$2,1))-1,0),"") ->  | AO9: 5QK | AP9: =VLOOKUP(AO9,provnames!$A$2:$B$331,2,0) -> Wiltshire PCT | AQ9: =SUM(IF(('CCG-Prov(Births)'!$B$2:$B$6150=AO9),1,0)) -> 14
A10: 02Q | B10: Bassetlaw | C10: =SUM(IF(('CCG-Prov(Acute)'!$A$2:$A$29012=A10),1,0)) -> 109 | D10: =SUM(IF(('CCG-Prov(Acute)'!$A$2:$A$29012=A10)*('CCG-Prov(Acute)'!$C$2:$C$29012>=Acute!$B$7),1,0)) -> 2 | E10: =IF(VALUE(MID(E$2,5,2))<=$D10,OFFSET('CCG-Prov(Acute)'!$B$1,MATCH($A10,'CCG-Prov(Acute)'!$A$2:$A$29012,0)+VALUE(RIGHT(E$2,1))-1,0),"") -> RP5 | F10: =IF(VALUE(MID(F$2,5,2))<=$D10,OFFSET('CCG-Prov(Acute)'!$B$1,MATCH($A10,'CCG-Prov(Acute)'!$A$2:$A$29012,0)+VALUE(RIGHT(F$2,1))-1,0),"") -> RHQ | G10: =IF(VALUE(MID(G$2,5,2))<=$D10,OFFSET('CCG-Prov(Acute)'!$B$1,MATCH($A10,'CCG-Prov(Acute)'!$A$2:$A$29012,0)+VALUE(RIGHT(G$2,1))-1,0),"") ->  | H10: =IF(VALUE(MID(H$2,5,2))<=$D10,OFFSET('CCG-Prov(Acute)'!$B$1,MATCH($A10,'CCG-Prov(Acute)'!$A$2:$A$29012,0)+VALUE(RIGHT(H$2,1))-1,0),"") ->  | I10: =IF(VALUE(MID(I$2,5,2))<=$D10,OFFSET('CCG-Prov(Acute)'!$B$1,MATCH($A10,'CCG-Prov(Acute)'!$A$2:$A$29012,0)+VALUE(RIGHT(I$2,1))-1,0),"") ->  | J10: =IF(VALUE(MID(J$2,5,2))<=$D10,OFFSET('CCG-Prov(Acute)'!$B$1,MATCH($A10,'CCG-Prov(Acute)'!$A$2:$A$29012,0)+VALUE(RIGHT(J$2,1))-1,0),"") ->  | K10: =IF(VALUE(MID(K$2,5,2))<=$D10,OFFSET('CCG-Prov(Acute)'!$B$1,MATCH($A10,'CCG-Prov(Acute)'!$A$2:$A$29012,0)+VALUE(RIGHT(K$2,1))-1,0),"") ->  | L10: =IF(VALUE(MID(L$2,5,2))<=$D10,OFFSET('CCG-Prov(Acute)'!$B$1,MATCH($A10,'CCG-Prov(Acute)'!$A$2:$A$29012,0)+VALUE(RIGHT(L$2,1))-1,0),"") ->  | M10: =IF(VALUE(MID(M$2,5,2))<=$D10,OFFSET('CCG-Prov(Acute)'!$B$1,MATCH($A10,'CCG-Prov(Acute)'!$A$2:$A$29012,0)+VALUE(RIGHT(M$2,1))-1,0),"") ->  | N10: =IF(VALUE(MID(N$2,5,2))<=$D10,OFFSET('CCG-Prov(Acute)'!$B$1,MATCH($A10,'CCG-Prov(Acute)'!$A$2:$A$29012,0)+VALUE(RIGHT(N$2,1))-1,0),"") ->  | Q10: 5CQ | R10: =VLOOKUP(Q10,provnames!$A$2:$B$331,2,0) -> Milton Keynes PCT | S10: =SUM(IF(('CCG-Prov(Acute)'!$B$2:$B$28899=Q10),1,0)) -> 25 | U10: =SUM(IF(('CCG-Prov(Amb)'!$A$2:$A$335=A10),1,0)) -> 2 | V10: =SUM(IF(('CCG-Prov(Amb)'!$A$2:$A$335=A10)*('CCG-Prov(Amb)'!$C$2:$C$335>=Ambulance!$B$7),1,0)) -> 2 | W10: =IF(VALUE(MID(W$2,5,2))<=$V10,OFFSET('CCG-Prov(Amb)'!$B$1,MATCH($A10,'CCG-Prov(Amb)'!$A$2:$A$335,0)+VALUE(RIGHT(W$2,1))-1,0),"") -> RX9 | X10: =IF(VALUE(MID(X$2,5,2))<=$V10,OFFSET('CCG-Prov(Amb)'!$B$1,MATCH($A10,'CCG-Prov(Amb)'!$A$2:$A$335,0)+VALUE(RIGHT(X$2,1))-1,0),"") -> RX8 | Y10: =IF(VALUE(MID(Y$2,5,2))<=$V10,OFFSET('CCG-Prov(Amb)'!$B$1,MATCH($A10,'CCG-Prov(Amb)'!$A$2:$A$335,0)+VALUE(RIGHT(Y$2,1))-1,0),"") ->  | Z10: =IF(VALUE(MID(Z$2,5,2))<=$V10,OFFSET('CCG-Prov(Amb)'!$B$1,MATCH($A10,'CCG-Prov(Amb)'!$A$2:$A$335,0)+VALUE(RIGHT(Z$2,1))-1,0),"") ->  | AA10: =IF(VALUE(MID(AA$2,5,2))<=$V10,OFFSET('CCG-Prov(Amb)'!$B$1,MATCH($A10,'CCG-Prov(Amb)'!$A$2:$A$335,0)+VALUE(RIGHT(AA$2,1))-1,0),"") ->  | AC10: RYA | AD10: West Midlands (Ambulance) | AE10: =SUM(IF(('CCG-Prov(Amb)'!$B$2:$B$335=AC10),1,0)) -> 32 | AG10: =SUM(IF(('CCG-Prov(Births)'!$A$2:$A$6150=A10),1,0)) -> 16 | AH10: =SUM(IF(('CCG-Prov(Births)'!$A$2:$A$6150=A10)*('CCG-Prov(Births)'!$C$2:$C$6150>=Maternity!$B$7),1,0)) -> 1 | AI10: =IF(VALUE(MID(AI$2,5,2))<=$V10,OFFSET('CCG-Prov(Births)'!$B$1,MATCH($A10,'CCG-Prov(Births)'!$A$2:$A$6150,0)+VALUE(RIGHT(AI$2,1))-1,0),"") -> RP5 | AJ10: =IF(VALUE(MID(AJ$2,5,2))<=$V10,OFFSET('CCG-Prov(Births)'!$B$1,MATCH($A10,'CCG-Prov(Births)'!$A$2:$A$6150,0)+VALUE(RIGHT(AJ$2,1))-1,0),"") -> RHQ | AK10: =IF(VALUE(MID(AK$2,5,2))<=$V10,OFFSET('CCG-Prov(Births)'!$B$1,MATCH($A10,'CCG-Prov(Births)'!$A$2:$A$6150,0)+VALUE(RIGHT(AK$2,1))-1,0),"") ->  | AL10: =IF(VALUE(MID(AL$2,5,2))<=$V10,OFFSET('CCG-Prov(Births)'!$B$1,MATCH($A10,'CCG-Prov(Births)'!$A$2:$A$6150,0)+VALUE(RIGHT(AL$2,1))-1,0),"") ->  | AM10: =IF(VALUE(MID(AM$2,5,2))<=$V10,OFFSET('CCG-Prov(Births)'!$B$1,MATCH($A10,'CCG-Prov(Births)'!$A$2:$A$6150,0)+VALUE(RIGHT(AM$2,1))-1,0),"") ->  | AO10: 5QT | AP10: =VLOOKUP(AO10,provnames!$A$2:$B$331,2,0) -> Isle of Wight NHS PCT | AQ10: =SUM(IF(('CCG-Prov(Births)'!$B$2:$B$6150=AO10),1,0)) -> 15
A11: 11E | B11: Bath & North East Somerset | C11: =SUM(IF(('CCG-Prov(Acute)'!$A$2:$A$29012=A11),1,0)) -> 138 | D11: =SUM(IF(('CCG-Prov(Acute)'!$A$2:$A$29012=A11)*('CCG-Prov(Acute)'!$C$2:$C$29012>=Acute!$B$7),1,0)) -> 6 | E11: =IF(VALUE(MID(E$2,5,2))<=$D11,OFFSET('CCG-Prov(Acute)'!$B$1,MATCH($A11,'CCG-Prov(Acute)'!$A$2:$A$29012,0)+VALUE(RIGHT(E$2,1))-1,0),"") -> RD1 | F11: =IF(VALUE(MID(F$2,5,2))<=$D11,OFFSET('CCG-Prov(Acute)'!$B$1,MATCH($A11,'CCG-Prov(Acute)'!$A$2:$A$29012,0)+VALUE(RIGHT(F$2,1))-1,0),"") -> RA7 | G11: =IF(VALUE(MID(G$2,5,2))<=$D11,OFFSET('CCG-Prov(Acute)'!$B$1,MATCH($A11,'CCG-Prov(Acute)'!$A$2:$A$29012,0)+VALUE(RIGHT(G$2,1))-1,0),"") -> RVJ | H11: =IF(VALUE(MID(H$2,5,2))<=$D11,OFFSET('CCG-Prov(Acute)'!$B$1,MATCH($A11,'CCG-Prov(Acute)'!$A$2:$A$29012,0)+VALUE(RIGHT(H$2,1))-1,0),"") -> NTC | I11: =IF(VALUE(MID(I$2,5,2))<=$D11,OFFSET('CCG-Prov(Acute)'!$B$1,MATCH($A11,'CCG-Prov(Acute)'!$A$2:$A$29012,0)+VALUE(RIGHT(I$2,1))-1,0),"") -> RBB | J11: =IF(VALUE(MID(J$2,5,2))<=$D11,OFFSET('CCG-Prov(Acute)'!$B$1,MATCH($A11,'CCG-Prov(Acute)'!$A$2:$A$29012,0)+VALUE(RIGHT(J$2,1))-1,0),"") -> 5FL | K11: =IF(VALUE(MID(K$2,5,2))<=$D11,OFFSET('CCG-Prov(Acute)'!$B$1,MATCH($A11,'CCG-Prov(Acute)'!$A$2:$A$29012,0)+VALUE(RIGHT(K$2,1))-1,0),"") ->  | L11: =IF(VALUE(MID(L$2,5,2))<=$D11,OFFSET('CCG-Prov(Acute)'!$B$1,MATCH($A11,'CCG-Prov(Acute)'!$A$2:$A$29012,0)+VALUE(RIGHT(L$2,1))-1,0),"") ->  | M11: =IF(VALUE(MID(M$2,5,2))<=$D11,OFFSET('CCG-Prov(Acute)'!$B$1,MATCH($A11,'CCG-Prov(Acute)'!$A$2:$A$29012,0)+VALUE(RIGHT(M$2,1))-1,0),"") ->  | N11: =IF(VALUE(MID(N$2,5,2))<=$D11,OFFSET('CCG-Prov(Acute)'!$B$1,MATCH($A11,'CCG-Prov(Acute)'!$A$2:$A$29012,0)+VALUE(RIGHT(N$2,1))-1,0),"") ->  | Q11: 5F1 | R11: =VLOOKUP(Q11,provnames!$A$2:$B$331,2,0) -> Plymouth Teaching PCT | S11: =SUM(IF(('CCG-Prov(Acute)'!$B$2:$B$28899=Q11),1,0)) -> 5 | U11: =SUM(IF(('CCG-Prov(Amb)'!$A$2:$A$335=A11),1,0)) -> 2 | V11: =SUM(IF(('CCG-Prov(Amb)'!$A$2:$A$335=A11)*('CCG-Prov(Amb)'!$C$2:$C$335>=Ambulance!$B$7),1,0)) -> 2 | W11: =IF(VALUE(MID(W$2,5,2))<=$V11,OFFSET('CCG-Prov(Amb)'!$B$1,MATCH($A11,'CCG-Prov(Amb)'!$A$2:$A$335,0)+VALUE(RIGHT(W$2,1))-1,0),"") -> RX5 | X11: =IF(VALUE(MID(X$2,5,2))<=$V11,OFFSET('CCG-Prov(Amb)'!$B$1,MATCH($A11,'CCG-Prov(Amb)'!$A$2:$A$335,0)+VALUE(RIGHT(X$2,1))-1,0),"") -> RYF | Y11: =IF(VALUE(MID(Y$2,5,2))<=$V11,OFFSET('CCG-Prov(Amb)'!$B$1,MATCH($A11,'CCG-Prov(Amb)'!$A$2:$A$335,0)+VALUE(RIGHT(Y$2,1))-1,0),"") ->  | Z11: =IF(VALUE(MID(Z$2,5,2))<=$V11,OFFSET('CCG-Prov(Amb)'!$B$1,MATCH($A11,'CCG-Prov(Amb)'!$A$2:$A$335,0)+VALUE(RIGHT(Z$2,1))-1,0),"") ->  | AA11: =IF(VALUE(MID(AA$2,5,2))<=$V11,OFFSET('CCG-Prov(Amb)'!$B$1,MATCH($A11,'CCG-Prov(Amb)'!$A$2:$A$335,0)+VALUE(RIGHT(AA$2,1))-1,0),"") ->  | AC11: RYC | AD11: East of England (Ambulance) | AE11: =SUM(IF(('CCG-Prov(Amb)'!$B$2:$B$335=AC11),1,0)) -> 37 | AG11: =SUM(IF(('CCG-Prov(Births)'!$A$2:$A$6150=A11),1,0)) -> 16 | AH11: =SUM(IF(('CCG-Prov(Births)'!$A$2:$A$6150=A11)*('CCG-Prov(Births)'!$C$2:$C$6150>=Maternity!$B$7),1,0)) -> 2 | AI11: =IF(VALUE(MID(AI$2,5,2))<=$V11,OFFSET('CCG-Prov(Births)'!$B$1,MATCH($A11,'CCG-Prov(Births)'!$A$2:$A$6150,0)+VALUE(RIGHT(AI$2,1))-1,0),"") -> 5QK | AJ11: =IF(VALUE(MID(AJ$2,5,2))<=$V11,OFFSET('CCG-Prov(Births)'!$B$1,MATCH($A11,'CCG-Prov(Births)'!$A$2:$A$6150,0)+VALUE(RIGHT(AJ$2,1))-1,0),"") -> RA7 | AK11: =IF(VALUE(MID(AK$2,5,2))<=$V11,OFFSET('CCG-Prov(Births)'!$B$1,MATCH($A11,'CCG-Prov(Births)'!$A$2:$A$6150,0)+VALUE(RIGHT(AK$2,1))-1,0),"") ->  | AL11: =IF(VALUE(MID(AL$2,5,2))<=$V11,OFFSET('CCG-Prov(Births)'!$B$1,MATCH($A11,'CCG-Prov(Births)'!$A$2:$A$6150,0)+VALUE(RIGHT(AL$2,1))-1,0),"") ->  | AM11: =IF(VALUE(MID(AM$2,5,2))<=$V11,OFFSET('CCG-Prov(Births)'!$B$1,MATCH($A11,'CCG-Prov(Births)'!$A$2:$A$6150,0)+VALUE(RIGHT(AM$2,1))-1,0),"") ->  | AO11: RA2 | AP11: =VLOOKUP(AO11,provnames!$A$2:$B$331,2,0) -> Royal Surrey County Hospital NHS FT | AQ11: =SUM(IF(('CCG-Prov(Births)'!$B$2:$B$6150=AO11),1,0)) -> 33
A12: 06F | B12: Bedfordshire | C12: =SUM(IF(('CCG-Prov(Acute)'!$A$2:$A$29012=A12),1,0)) -> 171 | D12: =SUM(IF(('CCG-Prov(Acute)'!$A$2:$A$29012=A12)*('CCG-Prov(Acute)'!$C$2:$C$29012>=Acute!$B$7),1,0)) -> 10 | E12: =IF(VALUE(MID(E$2,5,2))<=$D12,OFFSET('CCG-Prov(Acute)'!$B$1,MATCH($A12,'CCG-Prov(Acute)'!$A$2:$A$29012,0)+VALUE(RIGHT(E$2,1))-1,0),"") -> RC1 | F12: =IF(VALUE(MID(F$2,5,2))<=$D12,OFFSET('CCG-Prov(Acute)'!$B$1,MATCH($A12,'CCG-Prov(Acute)'!$A$2:$A$29012,0)+VALUE(RIGHT(F$2,1))-1,0),"") -> RC9 | G12: =IF(VALUE(MID(G$2,5,2))<=$D12,OFFSET('CCG-Prov(Acute)'!$B$1,MATCH($A12,'CCG-Prov(Acute)'!$A$2:$A$29012,0)+VALUE(RIGHT(G$2,1))-1,0),"") -> RWH | H12: =IF(VALUE(MID(H$2,5,2))<=$D12,OFFSET('CCG-Prov(Acute)'!$B$1,MATCH($A12,'CCG-Prov(Acute)'!$A$2:$A$29012,0)+VALUE(RIGHT(H$2,1))-1,0),"") -> RGT | I12: =IF(VALUE(MID(I$2,5,2))<=$D12,OFFSET('CCG-Prov(Acute)'!$B$1,MATCH($A12,'CCG-Prov(Acute)'!$A$2:$A$29012,0)+VALUE(RIGHT(I$2,1))-1,0),"") -> RD8 | J12: =IF(VALUE(MID(J$2,5,2))<=$D12,OFFSET('CCG-Prov(Acute)'!$B$1,MATCH($A12,'CCG-Prov(Acute)'!$A$2:$A$29012,0)+VALUE(RIGHT(J$2,1))-1,0),"") -> RXQ | K12: =IF(VALUE(MID(K$2,5,2))<=$D12,OFFSET('CCG-Prov(Acute)'!$B$1,MATCH($A12,'CCG-Prov(Acute)'!$A$2:$A$29012,0)+VALUE(RIGHT(K$2,1))-1,0),"") -> RGM | L12: =IF(VALUE(MID(L$2,5,2))<=$D12,OFFSET('CCG-Prov(Acute)'!$B$1,MATCH($A12,'CCG-Prov(Acute)'!$A$2:$A$29012,0)+VALUE(RIGHT(L$2,1))-1,0),"") -> RTH | M12: =IF(VALUE(MID(M$2,5,2))<=$D12,OFFSET('CCG-Prov(Acute)'!$B$1,MATCH($A12,'CCG-Prov(Acute)'!$A$2:$A$29012,0)+VALUE(RIGHT(M$2,1))-1,0),"") -> RRV | N12: =IF(VALUE(MID(N$2,5,2))<=$D12,OFFSET('CCG-Prov(Acute)'!$B$1,MATCH($A12,'CCG-Prov(Acute)'!$A$2:$A$29012,0)+VALUE(RIGHT(N$2,1))-1,0),"") -> RYR | Q12: 5FE | R12: =VLOOKUP(Q12,provnames!$A$2:$B$331,2,0) -> Portsmouth City Teaching PCT | S12: =SUM(IF(('CCG-Prov(Acute)'!$B$2:$B$28899=Q12),1,0)) -> 5 | U12: =SUM(IF(('CCG-Prov(Amb)'!$A$2:$A$335=A12),1,0)) -> 3 | V12: =SUM(IF(('CCG-Prov(Amb)'!$A$2:$A$335=A12)*('CCG-Prov(Amb)'!$C$2:$C$335>=Ambulance!$B$7),1,0)) -> 2 | W12: =IF(VALUE(MID(W$2,5,2))<=$V12,OFFSET('CCG-Prov(Amb)'!$B$1,MATCH($A12,'CCG-Prov(Amb)'!$A$2:$A$335,0)+VALUE(RIGHT(W$2,1))-1,0),"") -> RYC | X12: =IF(VALUE(MID(X$2,5,2))<=$V12,OFFSET('CCG-Prov(Amb)'!$B$1,MATCH($A12,'CCG-Prov(Amb)'!$A$2:$A$335,0)+VALUE(RIGHT(X$2,1))-1,0),"") -> RYE | Y12: =IF(VALUE(MID(Y$2,5,2))<=$V12,OFFSET('CCG-Prov(Amb)'!$B$1,MATCH($A12,'CCG-Prov(Amb)'!$A$2:$A$335,0)+VALUE(RIGHT(Y$2,1))-1,0),"") ->  | Z12: =IF(VALUE(MID(Z$2,5,2))<=$V12,OFFSET('CCG-Prov(Amb)'!$B$1,MATCH($A12,'CCG-Prov(Amb)'!$A$2:$A$335,0)+VALUE(RIGHT(Z$2,1))-1,0),"") ->  | AA12: =IF(VALUE(MID(AA$2,5,2))<=$V12,OFFSET('CCG-Prov(Amb)'!$B$1,MATCH($A12,'CCG-Prov(Amb)'!$A$2:$A$335,0)+VALUE(RIGHT(AA$2,1))-1,0),"") ->  | AC12: RYD | AD12: South East Coast (Ambulance) | AE12: =SUM(IF(('CCG-Prov(Amb)'!$B$2:$B$335=AC12),1,0)) -> 37 | AG12: =SUM(IF(('CCG-Prov(Births)'!$A$2:$A$6150=A12),1,0)) -> 54 | AH12: =SUM(IF(('CCG-Prov(Births)'!$A$2:$A$6150=A12)*('CCG-Prov(Births)'!$C$2:$C$6150>=Maternity!$B$7),1,0)) -> 6 | AI12: =IF(VALUE(MID(AI$2,5,2))<=$V12,OFFSET('CCG-Prov(Births)'!$B$1,MATCH($A12,'CCG-Prov(Births)'!$A$2:$A$6150,0)+VALUE(RIGHT(AI$2,1))-1,0),"") -> RC1 | AJ12: =IF(VALUE(MID(AJ$2,5,2))<=$V12,OFFSET('CCG-Prov(Births)'!$B$1,MATCH($A12,'CCG-Prov(Births)'!$A$2:$A$6150,0)+VALUE(RIGHT(AJ$2,1))-1,0),"") -> RC9 | AK12: =IF(VALUE(MID(AK$2,5,2))<=$V12,OFFSET('CCG-Prov(Births)'!$B$1,MATCH($A12,'CCG-Prov(Births)'!$A$2:$A$6150,0)+VALUE(RIGHT(AK$2,1))-1,0),"") ->  | AL12: =IF(VALUE(MID(AL$2,5,2))<=$V12,OFFSET('CCG-Prov(Births)'!$B$1,MATCH($A12,'CCG-Prov(Births)'!$A$2:$A$6150,0)+VALUE(RIGHT(AL$2,1))-1,0),"") ->  | AM12: =IF(VALUE(MID(AM$2,5,2))<=$V12,OFFSET('CCG-Prov(Births)'!$B$1,MATCH($A12,'CCG-Prov(Births)'!$A$2:$A$6150,0)+VALUE(RIGHT(AM$2,1))-1,0),"") ->  | AO12: RA3 | AP12: =VLOOKUP(AO12,provnames!$A$2:$B$331,2,0) -> Weston Area Health NHS Trust | AQ12: =SUM(IF(('CCG-Prov(Births)'!$B$2:$B$6150=AO12),1,0)) -> 9
A13: 07N | B13: Bexley | C13: =SUM(IF(('CCG-Prov(Acute)'!$A$2:$A$29012=A13),1,0)) -> 122 | D13: =SUM(IF(('CCG-Prov(Acute)'!$A$2:$A$29012=A13)*('CCG-Prov(Acute)'!$C$2:$C$29012>=Acute!$B$7),1,0)) -> 5 | E13: =IF(VALUE(MID(E$2,5,2))<=$D13,OFFSET('CCG-Prov(Acute)'!$B$1,MATCH($A13,'CCG-Prov(Acute)'!$A$2:$A$29012,0)+VALUE(RIGHT(E$2,1))-1,0),"") -> RYQ | F13: =IF(VALUE(MID(F$2,5,2))<=$D13,OFFSET('CCG-Prov(Acute)'!$B$1,MATCH($A13,'CCG-Prov(Acute)'!$A$2:$A$29012,0)+VALUE(RIGHT(F$2,1))-1,0),"") -> RN7 | G13: =IF(VALUE(MID(G$2,5,2))<=$D13,OFFSET('CCG-Prov(Acute)'!$B$1,MATCH($A13,'CCG-Prov(Acute)'!$A$2:$A$29012,0)+VALUE(RIGHT(G$2,1))-1,0),"") -> RJ1 | H13: =IF(VALUE(MID(H$2,5,2))<=$D13,OFFSET('CCG-Prov(Acute)'!$B$1,MATCH($A13,'CCG-Prov(Acute)'!$A$2:$A$29012,0)+VALUE(RIGHT(H$2,1))-1,0),"") -> RJZ | I13: =IF(VALUE(MID(I$2,5,2))<=$D13,OFFSET('CCG-Prov(Acute)'!$B$1,MATCH($A13,'CCG-Prov(Acute)'!$A$2:$A$29012,0)+VALUE(RIGHT(I$2,1))-1,0),"") -> RJ2 | J13: =IF(VALUE(MID(J$2,5,2))<=$D13,OFFSET('CCG-Prov(Acute)'!$B$1,MATCH($A13,'CCG-Prov(Acute)'!$A$2:$A$29012,0)+VALUE(RIGHT(J$2,1))-1,0),"") ->  | K13: =IF(VALUE(MID(K$2,5,2))<=$D13,OFFSET('CCG-Prov(Acute)'!$B$1,MATCH($A13,'CCG-Prov(Acute)'!$A$2:$A$29012,0)+VALUE(RIGHT(K$2,1))-1,0),"") ->  | L13: =IF(VALUE(MID(L$2,5,2))<=$D13,OFFSET('CCG-Prov(Acute)'!$B$1,MATCH($A13,'CCG-Prov(Acute)'!$A$2:$A$29012,0)+VALUE(RIGHT(L$2,1))-1,0),"") ->  | M13: =IF(VALUE(MID(M$2,5,2))<=$D13,OFFSET('CCG-Prov(Acute)'!$B$1,MATCH($A13,'CCG-Prov(Acute)'!$A$2:$A$29012,0)+VALUE(RIGHT(M$2,1))-1,0),"") ->  | N13: =IF(VALUE(MID(N$2,5,2))<=$D13,OFFSET('CCG-Prov(Acute)'!$B$1,MATCH($A13,'CCG-Prov(Acute)'!$A$2:$A$29012,0)+VALUE(RIGHT(N$2,1))-1,0),"") ->  | Q13: 5FL | R13: =VLOOKUP(Q13,provnames!$A$2:$B$331,2,0) -> Bath & North East Somerset PCT | S13: =SUM(IF(('CCG-Prov(Acute)'!$B$2:$B$28899=Q13),1,0)) -> 4 | U13: =SUM(IF(('CCG-Prov(Amb)'!$A$2:$A$335=A13),1,0)) -> 2 | V13: =SUM(IF(('CCG-Prov(Amb)'!$A$2:$A$335=A13)*('CCG-Prov(Amb)'!$C$2:$C$335>=Ambulance!$B$7),1,0)) -> 2 | W13: =IF(VALUE(MID(W$2,5,2))<=$V13,OFFSET('CCG-Prov(Amb)'!$B$1,MATCH($A13,'CCG-Prov(Amb)'!$A$2:$A$335,0)+VALUE(RIGHT(W$2,1))-1,0),"") -> RRY | X13: =IF(VALUE(MID(X$2,5,2))<=$V13,OFFSET('CCG-Prov(Amb)'!$B$1,MATCH($A13,'CCG-Prov(Amb)'!$A$2:$A$335,0)+VALUE(RIGHT(X$2,1))-1,0),"") -> RYD | Y13: =IF(VALUE(MID(Y$2,5,2))<=$V13,OFFSET('CCG-Prov(Amb)'!$B$1,MATCH($A13,'CCG-Prov(Amb)'!$A$2:$A$335,0)+VALUE(RIGHT(Y$2,1))-1,0),"") ->  | Z13: =IF(VALUE(MID(Z$2,5,2))<=$V13,OFFSET('CCG-Prov(Amb)'!$B$1,MATCH($A13,'CCG-Prov(Amb)'!$A$2:$A$335,0)+VALUE(RIGHT(Z$2,1))-1,0),"") ->  | AA13: =IF(VALUE(MID(AA$2,5,2))<=$V13,OFFSET('CCG-Prov(Amb)'!$B$1,MATCH($A13,'CCG-Prov(Amb)'!$A$2:$A$335,0)+VALUE(RIGHT(AA$2,1))-1,0),"") ->  | AC13: RYE | AD13: South Central (Ambulance) | AE13: =SUM(IF(('CCG-Prov(Amb)'!$B$2:$B$335=AC13),1,0)) -> 32 | AG13: =SUM(IF(('CCG-Prov(Births)'!$A$2:$A$6150=A13),1,0)) -> 34 | AH13: =SUM(IF(('CCG-Prov(Births)'!$A$2:$A$6150=A13)*('CCG-Prov(Births)'!$C$2:$C$6150>=Maternity!$B$7),1,0)) -> 2 | AI13: =IF(VALUE(MID(AI$2,5,2))<=$V13,OFFSET('CCG-Prov(Births)'!$B$1,MATCH($A13,'CCG-Prov(Births)'!$A$2:$A$6150,0)+VALUE(RIGHT(AI$2,1))-1,0),"") -> RYQ | AJ13: =IF(VALUE(MID(AJ$2,5,2))<=$V13,OFFSET('CCG-Prov(Births)'!$B$1,MATCH($A13,'CCG-Prov(Births)'!$A$2:$A$6150,0)+VALUE(RIGHT(AJ$2,1))-1,0),"") -> RN7 | AK13: =IF(VALUE(MID(AK$2,5,2))<=$V13,OFFSET('CCG-Prov(Births)'!$B$1,MATCH($A13,'CCG-Prov(Births)'!$A$2:$A$6150,0)+VALUE(RIGHT(AK$2,1))-1,0),"") ->  | AL13: =IF(VALUE(MID(AL$2,5,2))<=$V13,OFFSET('CCG-Prov(Births)'!$B$1,MATCH($A13,'CCG-Prov(Births)'!$A$2:$A$6150,0)+VALUE(RIGHT(AL$2,1))-1,0),"") ->  | AM13: =IF(VALUE(MID(AM$2,5,2))<=$V13,OFFSET('CCG-Prov(Births)'!$B$1,MATCH($A13,'CCG-Prov(Births)'!$A$2:$A$6150,0)+VALUE(RIGHT(AM$2,1))-1,0),"") ->  | AO13: RA4 | AP13: =VLOOKUP(AO13,provnames!$A$2:$B$331,2,0) -> Yeovil District Hospital NHS FT | AQ13: =SUM(IF(('CCG-Prov(Births)'!$B$2:$B$6150=AO13),1,0)) -> 14
A14: 13P | B14: Birmingham CrossCity | C14: =SUM(IF(('CCG-Prov(Acute)'!$A$2:$A$29012=A14),1,0)) -> 176 | D14: =SUM(IF(('CCG-Prov(Acute)'!$A$2:$A$29012=A14)*('CCG-Prov(Acute)'!$C$2:$C$29012>=Acute!$B$7),1,0)) -> 9 | E14: =IF(VALUE(MID(E$2,5,2))<=$D14,OFFSET('CCG-Prov(Acute)'!$B$1,MATCH($A14,'CCG-Prov(Acute)'!$A$2:$A$29012,0)+VALUE(RIGHT(E$2,1))-1,0),"") -> RR1 | F14: =IF(VALUE(MID(F$2,5,2))<=$D14,OFFSET('CCG-Prov(Acute)'!$B$1,MATCH($A14,'CCG-Prov(Acute)'!$A$2:$A$29012,0)+VALUE(RIGHT(F$2,1))-1,0),"") -> RRK | G14: =IF(VALUE(MID(G$2,5,2))<=$D14,OFFSET('CCG-Prov(Acute)'!$B$1,MATCH($A14,'CCG-Prov(Acute)'!$A$2:$A$29012,0)+VALUE(RIGHT(G$2,1))-1,0),"") -> RXK | H14: =IF(VALUE(MID(H$2,5,2))<=$D14,OFFSET('CCG-Prov(Acute)'!$B$1,MATCH($A14,'CCG-Prov(Acute)'!$A$2:$A$29012,0)+VALUE(RIGHT(H$2,1))-1,0),"") -> RQ3 | I14: =IF(VALUE(MID(I$2,5,2))<=$D14,OFFSET('CCG-Prov(Acute)'!$B$1,MATCH($A14,'CCG-Prov(Acute)'!$A$2:$A$29012,0)+VALUE(RIGHT(I$2,1))-1,0),"") -> RRJ | J14: =IF(VALUE(MID(J$2,5,2))<=$D14,OFFSET('CCG-Prov(Acute)'!$B$1,MATCH($A14,'CCG-Prov(Acute)'!$A$2:$A$29012,0)+VALUE(RIGHT(J$2,1))-1,0),"") -> RLU | K14: =IF(VALUE(MID(K$2,5,2))<=$D14,OFFSET('CCG-Prov(Acute)'!$B$1,MATCH($A14,'CCG-Prov(Acute)'!$A$2:$A$29012,0)+VALUE(RIGHT(K$2,1))-1,0),"") -> 5M1 | L14: =IF(VALUE(MID(L$2,5,2))<=$D14,OFFSET('CCG-Prov(Acute)'!$B$1,MATCH($A14,'CCG-Prov(Acute)'!$A$2:$A$29012,0)+VALUE(RIGHT(L$2,1))-1,0),"") -> NT3 | M14: =IF(VALUE(MID(M$2,5,2))<=$D14,OFFSET('CCG-Prov(Acute)'!$B$1,MATCH($A14,'CCG-Prov(Acute)'!$A$2:$A$29012,0)+VALUE(RIGHT(M$2,1))-1,0),"") -> RYW | N14: =IF(VALUE(MID(N$2,5,2))<=$D14,OFFSET('CCG-Prov(Acute)'!$B$1,MATCH($A14,'CCG-Prov(Acute)'!$A$2:$A$29012,0)+VALUE(RIGHT(N$2,1))-1,0),"") ->  | Q14: 5H8 | R14: =VLOOKUP(Q14,provnames!$A$2:$B$331,2,0) -> Rotherham PCT | S14: =SUM(IF(('CCG-Prov(Acute)'!$B$2:$B$28899=Q14),1,0)) -> 5 | U14: =SUM(IF(('CCG-Prov(Amb)'!$A$2:$A$335=A14),1,0)) -> 1 | V14: =SUM(IF(('CCG-Prov(Amb)'!$A$2:$A$335=A14)*('CCG-Prov(Amb)'!$C$2:$C$335>=Ambulance!$B$7),1,0)) -> 1 | W14: =IF(VALUE(MID(W$2,5,2))<=$V14,OFFSET('CCG-Prov(Amb)'!$B$1,MATCH($A14,'CCG-Prov(Amb)'!$A$2:$A$335,0)+VALUE(RIGHT(W$2,1))-1,0),"") -> RYA | X14: =IF(VALUE(MID(X$2,5,2))<=$V14,OFFSET('CCG-Prov(Amb)'!$B$1,MATCH($A14,'CCG-Prov(Amb)'!$A$2:$A$335,0)+VALUE(RIGHT(X$2,1))-1,0),"") ->  | Y14: =IF(VALUE(MID(Y$2,5,2))<=$V14,OFFSET('CCG-Prov(Amb)'!$B$1,MATCH($A14,'CCG-Prov(Amb)'!$A$2:$A$335,0)+VALUE(RIGHT(Y$2,1))-1,0),"") ->  | Z14: =IF(VALUE(MID(Z$2,5,2))<=$V14,OFFSET('CCG-Prov(Amb)'!$B$1,MATCH($A14,'CCG-Prov(Amb)'!$A$2:$A$335,0)+VALUE(RIGHT(Z$2,1))-1,0),"") ->  | AA14: =IF(VALUE(MID(AA$2,5,2))<=$V14,OFFSET('CCG-Prov(Amb)'!$B$1,MATCH($A14,'CCG-Prov(Amb)'!$A$2:$A$335,0)+VALUE(RIGHT(AA$2,1))-1,0),"") ->  | AC14: RYF | AD14: South Western (Ambulance) | AE14: =SUM(IF(('CCG-Prov(Amb)'!$B$2:$B$335=AC14),1,0)) -> 9 | AG14: =SUM(IF(('CCG-Prov(Births)'!$A$2:$A$6150=A14),1,0)) -> 48 | AH14: =SUM(IF(('CCG-Prov(Births)'!$A$2:$A$6150=A14)*('CCG-Prov(Births)'!$C$2:$C$6150>=Maternity!$B$7),1,0)) -> 3 | AI14: =IF(VALUE(MID(AI$2,5,2))<=$V14,OFFSET('CCG-Prov(Births)'!$B$1,MATCH($A14,'CCG-Prov(Births)'!$A$2:$A$6150,0)+VALUE(RIGHT(AI$2,1))-1,0),"") -> RR1 | AJ14: =IF(VALUE(MID(AJ$2,5,2))<=$V14,OFFSET('CCG-Prov(Births)'!$B$1,MATCH($A14,'CCG-Prov(Births)'!$A$2:$A$6150,0)+VALUE(RIGHT(AJ$2,1))-1,0),"") ->  | AK14: =IF(VALUE(MID(AK$2,5,2))<=$V14,OFFSET('CCG-Prov(Births)'!$B$1,MATCH($A14,'CCG-Prov(Births)'!$A$2:$A$6150,0)+VALUE(RIGHT(AK$2,1))-1,0),"") ->  | AL14: =IF(VALUE(MID(AL$2,5,2))<=$V14,OFFSET('CCG-Prov(Births)'!$B$1,MATCH($A14,'CCG-Prov(Births)'!$A$2:$A$6150,0)+VALUE(RIGHT(AL$2,1))-1,0),"") ->  | AM14: =IF(VALUE(MID(AM$2,5,2))<=$V14,OFFSET('CCG-Prov(Births)'!$B$1,MATCH($A14,'CCG-Prov(Births)'!$A$2:$A$6150,0)+VALUE(RIGHT(AM$2,1))-1,0),"") ->  | AO14: RA7 | AP14: =VLOOKUP(AO14,provnames!$A$2:$B$331,2,0) -> University Hospitals Bristol NHS FT | AQ14: =SUM(IF(('CCG-Prov(Births)'!$B$2:$B$6150=AO14),1,0)) -> 21
A15: 04X | B15: Birmingham South & Central | C15: =SUM(IF(('CCG-Prov(Acute)'!$A$2:$A$29012=A15),1,0)) -> 148 | D15: =SUM(IF(('CCG-Prov(Acute)'!$A$2:$A$29012=A15)*('CCG-Prov(Acute)'!$C$2:$C$29012>=Acute!$B$7),1,0)) -> 8 | E15: =IF(VALUE(MID(E$2,5,2))<=$D15,OFFSET('CCG-Prov(Acute)'!$B$1,MATCH($A15,'CCG-Prov(Acute)'!$A$2:$A$29012,0)+VALUE(RIGHT(E$2,1))-1,0),"") -> RRK | F15: =IF(VALUE(MID(F$2,5,2))<=$D15,OFFSET('CCG-Prov(Acute)'!$B$1,MATCH($A15,'CCG-Prov(Acute)'!$A$2:$A$29012,0)+VALUE(RIGHT(F$2,1))-1,0),"") -> RR1 | G15: =IF(VALUE(MID(G$2,5,2))<=$D15,OFFSET('CCG-Prov(Acute)'!$B$1,MATCH($A15,'CCG-Prov(Acute)'!$A$2:$A$29012,0)+VALUE(RIGHT(G$2,1))-1,0),"") -> RXK | H15: =IF(VALUE(MID(H$2,5,2))<=$D15,OFFSET('CCG-Prov(Acute)'!$B$1,MATCH($A15,'CCG-Prov(Acute)'!$A$2:$A$29012,0)+VALUE(RIGHT(H$2,1))-1,0),"") -> RQ3 | I15: =IF(VALUE(MID(I$2,5,2))<=$D15,OFFSET('CCG-Prov(Acute)'!$B$1,MATCH($A15,'CCG-Prov(Acute)'!$A$2:$A$29012,0)+VALUE(RIGHT(I$2,1))-1,0),"") -> RRJ | J15: =IF(VALUE(MID(J$2,5,2))<=$D15,OFFSET('CCG-Prov(Acute)'!$B$1,MATCH($A15,'CCG-Prov(Acute)'!$A$2:$A$29012,0)+VALUE(RIGHT(J$2,1))-1,0),"") -> RLU | K15: =IF(VALUE(MID(K$2,5,2))<=$D15,OFFSET('CCG-Prov(Acute)'!$B$1,MATCH($A15,'CCG-Prov(Acute)'!$A$2:$A$29012,0)+VALUE(RIGHT(K$2,1))-1,0),"") -> 5M1 | L15: =IF(VALUE(MID(L$2,5,2))<=$D15,OFFSET('CCG-Prov(Acute)'!$B$1,MATCH($A15,'CCG-Prov(Acute)'!$A$2:$A$29012,0)+VALUE(RIGHT(L$2,1))-1,0),"") -> RWP | M15: =IF(VALUE(MID(M$2,5,2))<=$D15,OFFSET('CCG-Prov(Acute)'!$B$1,MATCH($A15,'CCG-Prov(Acute)'!$A$2:$A$29012,0)+VALUE(RIGHT(M$2,1))-1,0),"") ->  | N15: =IF(VALUE(MID(N$2,5,2))<=$D15,OFFSET('CCG-Prov(Acute)'!$B$1,MATCH($A15,'CCG-Prov(Acute)'!$A$2:$A$29012,0)+VALUE(RIGHT(N$2,1))-1,0),"") ->  | Q15: 5J2 | R15: =VLOOKUP(Q15,provnames!$A$2:$B$331,2,0) -> Warrington PCT | S15: =SUM(IF(('CCG-Prov(Acute)'!$B$2:$B$28899=Q15),1,0)) -> 9 | U15: =SUM(IF(('CCG-Prov(Amb)'!$A$2:$A$335=A15),1,0)) -> 1 | V15: =SUM(IF(('CCG-Prov(Amb)'!$A$2:$A$335=A15)*('CCG-Prov(Amb)'!$C$2:$C$335>=Ambulance!$B$7),1,0)) -> 1 | W15: =IF(VALUE(MID(W$2,5,2))<=$V15,OFFSET('CCG-Prov(Amb)'!$B$1,MATCH($A15,'CCG-Prov(Amb)'!$A$2:$A$335,0)+VALUE(RIGHT(W$2,1))-1,0),"") -> RYA | X15: =IF(VALUE(MID(X$2,5,2))<=$V15,OFFSET('CCG-Prov(Amb)'!$B$1,MATCH($A15,'CCG-Prov(Amb)'!$A$2:$A$335,0)+VALUE(RIGHT(X$2,1))-1,0),"") ->  | Y15: =IF(VALUE(MID(Y$2,5,2))<=$V15,OFFSET('CCG-Prov(Amb)'!$B$1,MATCH($A15,'CCG-Prov(Amb)'!$A$2:$A$335,0)+VALUE(RIGHT(Y$2,1))-1,0),"") ->  | Z15: =IF(VALUE(MID(Z$2,5,2))<=$V15,OFFSET('CCG-Prov(Amb)'!$B$1,MATCH($A15,'CCG-Prov(Amb)'!$A$2:$A$335,0)+VALUE(RIGHT(Z$2,1))-1,0),"") ->  | AA15: =IF(VALUE(MID(AA$2,5,2))<=$V15,OFFSET('CCG-Prov(Amb)'!$B$1,MATCH($A15,'CCG-Prov(Amb)'!$A$2:$A$335,0)+VALUE(RIGHT(AA$2,1))-1,0),"") ->  | AG15: =SUM(IF(('CCG-Prov(Births)'!$A$2:$A$6150=A15),1,0)) -> 34 | AH15: =SUM(IF(('CCG-Prov(Births)'!$A$2:$A$6150=A15)*('CCG-Prov(Births)'!$C$2:$C$6150>=Maternity!$B$7),1,0)) -> 4 | AI15: =IF(VALUE(MID(AI$2,5,2))<=$V15,OFFSET('CCG-Prov(Births)'!$B$1,MATCH($A15,'CCG-Prov(Births)'!$A$2:$A$6150,0)+VALUE(RIGHT(AI$2,1))-1,0),"") -> RLU | AJ15: =IF(VALUE(MID(AJ$2,5,2))<=$V15,OFFSET('CCG-Prov(Births)'!$B$1,MATCH($A15,'CCG-Prov(Births)'!$A$2:$A$6150,0)+VALUE(RIGHT(AJ$2,1))-1,0),"") ->  | AK15: =IF(VALUE(MID(AK$2,5,2))<=$V15,OFFSET('CCG-Prov(Births)'!$B$1,MATCH($A15,'CCG-Prov(Births)'!$A$2:$A$6150,0)+VALUE(RIGHT(AK$2,1))-1,0),"") ->  | AL15: =IF(VALUE(MID(AL$2,5,2))<=$V15,OFFSET('CCG-Prov(Births)'!$B$1,MATCH($A15,'CCG-Prov(Births)'!$A$2:$A$6150,0)+VALUE(RIGHT(AL$2,1))-1,0),"") ->  | AM15: =IF(VALUE(MID(AM$2,5,2))<=$V15,OFFSET('CCG-Prov(Births)'!$B$1,MATCH($A15,'CCG-Prov(Births)'!$A$2:$A$6150,0)+VALUE(RIGHT(AM$2,1))-1,0),"") ->  | AO15: RA9 | AP15: =VLOOKUP(AO15,provnames!$A$2:$B$331,2,0) -> South Devon Healthcare NHS FT | AQ15: =SUM(IF(('CCG-Prov(Births)'!$B$2:$B$6150=AO15),1,0)) -> 31
A16: 00Q | B16: Blackburn with Darwen | C16: =SUM(IF(('CCG-Prov(Acute)'!$A$2:$A$29012=A16),1,0)) -> 115 | D16: =SUM(IF(('CCG-Prov(Acute)'!$A$2:$A$29012=A16)*('CCG-Prov(Acute)'!$C$2:$C$29012>=Acute!$B$7),1,0)) -> 5 | E16: =IF(VALUE(MID(E$2,5,2))<=$D16,OFFSET('CCG-Prov(Acute)'!$B$1,MATCH($A16,'CCG-Prov(Acute)'!$A$2:$A$29012,0)+VALUE(RIGHT(E$2,1))-1,0),"") -> RXR | F16: =IF(VALUE(MID(F$2,5,2))<=$D16,OFFSET('CCG-Prov(Acute)'!$B$1,MATCH($A16,'CCG-Prov(Acute)'!$A$2:$A$29012,0)+VALUE(RIGHT(F$2,1))-1,0),"") -> RXN | G16: =IF(VALUE(MID(G$2,5,2))<=$D16,OFFSET('CCG-Prov(Acute)'!$B$1,MATCH($A16,'CCG-Prov(Acute)'!$A$2:$A$29012,0)+VALUE(RIGHT(G$2,1))-1,0),"") -> NT4 | H16: =IF(VALUE(MID(H$2,5,2))<=$D16,OFFSET('CCG-Prov(Acute)'!$B$1,MATCH($A16,'CCG-Prov(Acute)'!$A$2:$A$29012,0)+VALUE(RIGHT(H$2,1))-1,0),"") -> RW3 | I16: =IF(VALUE(MID(I$2,5,2))<=$D16,OFFSET('CCG-Prov(Acute)'!$B$1,MATCH($A16,'CCG-Prov(Acute)'!$A$2:$A$29012,0)+VALUE(RIGHT(I$2,1))-1,0),"") -> NVC | J16: =IF(VALUE(MID(J$2,5,2))<=$D16,OFFSET('CCG-Prov(Acute)'!$B$1,MATCH($A16,'CCG-Prov(Acute)'!$A$2:$A$29012,0)+VALUE(RIGHT(J$2,1))-1,0),"") ->  | K16: =IF(VALUE(MID(K$2,5,2))<=$D16,OFFSET('CCG-Prov(Acute)'!$B$1,MATCH($A16,'CCG-Prov(Acute)'!$A$2:$A$29012,0)+VALUE(RIGHT(K$2,1))-1,0),"") ->  | L16: =IF(VALUE(MID(L$2,5,2))<=$D16,OFFSET('CCG-Prov(Acute)'!$B$1,MATCH($A16,'CCG-Prov(Acute)'!$A$2:$A$29012,0)+VALUE(RIGHT(L$2,1))-1,0),"") ->  | M16: =IF(VALUE(MID(M$2,5,2))<=$D16,OFFSET('CCG-Prov(Acute)'!$B$1,MATCH($A16,'CCG-Prov(Acute)'!$A$2:$A$29012,0)+VALUE(RIGHT(M$2,1))-1,0),"") ->  | N16: =IF(VALUE(MID(N$2,5,2))<=$D16,OFFSET('CCG-Prov(Acute)'!$B$1,MATCH($A16,'CCG-Prov(Acute)'!$A$2:$A$29012,0)+VALUE(RIGHT(N$2,1))-1,0),"") ->  | Q16: 5J9 | R16: =VLOOKUP(Q16,provnames!$A$2:$B$331,2,0) -> Darlington PCT | S16: =SUM(IF(('CCG-Prov(Acute)'!$B$2:$B$28899=Q16),1,0)) -> 8 | U16: =SUM(IF(('CCG-Prov(Amb)'!$A$2:$A$335=A16),1,0)) -> 1 | V16: =SUM(IF(('CCG-Prov(Amb)'!$A$2:$A$335=A16)*('CCG-Prov(Amb)'!$C$2:$C$335>=Ambulance!$B$7),1,0)) -> 1 | W16: =IF(VALUE(MID(W$2,5,2))<=$V16,OFFSET('CCG-Prov(Amb)'!$B$1,MATCH($A16,'CCG-Prov(Amb)'!$A$2:$A$335,0)+VALUE(RIGHT(W$2,1))-1,0),"") -> RX7 | X16: =IF(VALUE(MID(X$2,5,2))<=$V16,OFFSET('CCG-Prov(Amb)'!$B$1,MATCH($A16,'CCG-Prov(Amb)'!$A$2:$A$335,0)+VALUE(RIGHT(X$2,1))-1,0),"") ->  | Y16: =IF(VALUE(MID(Y$2,5,2))<=$V16,OFFSET('CCG-Prov(Amb)'!$B$1,MATCH($A16,'CCG-Prov(Amb)'!$A$2:$A$335,0)+VALUE(RIGHT(Y$2,1))-1,0),"") ->  | Z16: =IF(VALUE(MID(Z$2,5,2))<=$V16,OFFSET('CCG-Prov(Amb)'!$B$1,MATCH($A16,'CCG-Prov(Amb)'!$A$2:$A$335,0)+VALUE(RIGHT(Z$2,1))-1,0),"") ->  | AA16: =IF(VALUE(MID(AA$2,5,2))<=$V16,OFFSET('CCG-Prov(Amb)'!$B$1,MATCH($A16,'CCG-Prov(Amb)'!$A$2:$A$335,0)+VALUE(RIGHT(AA$2,1))-1,0),"") ->  | AG16: =SUM(IF(('CCG-Prov(Births)'!$A$2:$A$6150=A16),1,0)) -> 23 | AH16: =SUM(IF(('CCG-Prov(Births)'!$A$2:$A$6150=A16)*('CCG-Prov(Births)'!$C$2:$C$6150>=Maternity!$B$7),1,0)) -> 1 | AI16: =IF(VALUE(MID(AI$2,5,2))<=$V16,OFFSET('CCG-Prov(Births)'!$B$1,MATCH($A16,'CCG-Prov(Births)'!$A$2:$A$6150,0)+VALUE(RIGHT(AI$2,1))-1,0),"") -> RXR | AJ16: =IF(VALUE(MID(AJ$2,5,2))<=$V16,OFFSET('CCG-Prov(Births)'!$B$1,MATCH($A16,'CCG-Prov(Births)'!$A$2:$A$6150,0)+VALUE(RIGHT(AJ$2,1))-1,0),"") ->  | AK16: =IF(VALUE(MID(AK$2,5,2))<=$V16,OFFSET('CCG-Prov(Births)'!$B$1,MATCH($A16,'CCG-Prov(Births)'!$A$2:$A$6150,0)+VALUE(RIGHT(AK$2,1))-1,0),"") ->  | AL16: =IF(VALUE(MID(AL$2,5,2))<=$V16,OFFSET('CCG-Prov(Births)'!$B$1,MATCH($A16,'CCG-Prov(Births)'!$A$2:$A$6150,0)+VALUE(RIGHT(AL$2,1))-1,0),"") ->  | AM16: =IF(VALUE(MID(AM$2,5,2))<=$V16,OFFSET('CCG-Prov(Births)'!$B$1,MATCH($A16,'CCG-Prov(Births)'!$A$2:$A$6150,0)+VALUE(RIGHT(AM$2,1))-1,0),"") ->  | AO16: RAE | AP16: =VLOOKUP(AO16,provnames!$A$2:$B$331,2,0) -> Bradford Teaching Hospitals NHS FT | AQ16: =SUM(IF(('CCG-Prov(Births)'!$B$2:$B$6150=AO16),1,0)) -> 42
A17: 00R | B17: Blackpool | C17: =SUM(IF(('CCG-Prov(Acute)'!$A$2:$A$29012=A17),1,0)) -> 132 | D17: =SUM(IF(('CCG-Prov(Acute)'!$A$2:$A$29012=A17)*('CCG-Prov(Acute)'!$C$2:$C$29012>=Acute!$B$7),1,0)) -> 3 | E17: =IF(VALUE(MID(E$2,5,2))<=$D17,OFFSET('CCG-Prov(Acute)'!$B$1,MATCH($A17,'CCG-Prov(Acute)'!$A$2:$A$29012,0)+VALUE(RIGHT(E$2,1))-1,0),"") -> RXL | F17: =IF(VALUE(MID(F$2,5,2))<=$D17,OFFSET('CCG-Prov(Acute)'!$B$1,MATCH($A17,'CCG-Prov(Acute)'!$A$2:$A$29012,0)+VALUE(RIGHT(F$2,1))-1,0),"") -> RXN | G17: =IF(VALUE(MID(G$2,5,2))<=$D17,OFFSET('CCG-Prov(Acute)'!$B$1,MATCH($A17,'CCG-Prov(Acute)'!$A$2:$A$29012,0)+VALUE(RIGHT(G$2,1))-1,0),"") -> NVC | H17: =IF(VALUE(MID(H$2,5,2))<=$D17,OFFSET('CCG-Prov(Acute)'!$B$1,MATCH($A17,'CCG-Prov(Acute)'!$A$2:$A$29012,0)+VALUE(RIGHT(H$2,1))-1,0),"") ->  | I17: =IF(VALUE(MID(I$2,5,2))<=$D17,OFFSET('CCG-Prov(Acute)'!$B$1,MATCH($A17,'CCG-Prov(Acute)'!$A$2:$A$29012,0)+VALUE(RIGHT(I$2,1))-1,0),"") ->  | J17: =IF(VALUE(MID(J$2,5,2))<=$D17,OFFSET('CCG-Prov(Acute)'!$B$1,MATCH($A17,'CCG-Prov(Acute)'!$A$2:$A$29012,0)+VALUE(RIGHT(J$2,1))-1,0),"") ->  | K17: =IF(VALUE(MID(K$2,5,2))<=$D17,OFFSET('CCG-Prov(Acute)'!$B$1,MATCH($A17,'CCG-Prov(Acute)'!$A$2:$A$29012,0)+VALUE(RIGHT(K$2,1))-1,0),"") ->  | L17: =IF(VALUE(MID(L$2,5,2))<=$D17,OFFSET('CCG-Prov(Acute)'!$B$1,MATCH($A17,'CCG-Prov(Acute)'!$A$2:$A$29012,0)+VALUE(RIGHT(L$2,1))-1,0),"") ->  | M17: =IF(VALUE(MID(M$2,5,2))<=$D17,OFFSET('CCG-Prov(Acute)'!$B$1,MATCH($A17,'CCG-Prov(Acute)'!$A$2:$A$29012,0)+VALUE(RIGHT(M$2,1))-1,0),"") ->  | N17: =IF(VALUE(MID(N$2,5,2))<=$D17,OFFSET('CCG-Prov(Acute)'!$B$1,MATCH($A17,'CCG-Prov(Acute)'!$A$2:$A$29012,0)+VALUE(RIGHT(N$2,1))-1,0),"") ->  | Q17: 5JE | R17: =VLOOKUP(Q17,provnames!$A$2:$B$331,2,0) -> Barnsley PCT | S17: =SUM(IF(('CCG-Prov(Acute)'!$B$2:$B$28899=Q17),1,0)) -> 10 | U17: =SUM(IF(('CCG-Prov(Amb)'!$A$2:$A$335=A17),1,0)) -> 1 | V17: =SUM(IF(('CCG-Prov(Amb)'!$A$2:$A$335=A17)*('CCG-Prov(Amb)'!$C$2:$C$335>=Ambulance!$B$7),1,0)) -> 1 | W17: =IF(VALUE(MID(W$2,5,2))<=$V17,OFFSET('CCG-Prov(Amb)'!$B$1,MATCH($A17,'CCG-Prov(Amb)'!$A$2:$A$335,0)+VALUE(RIGHT(W$2,1))-1,0),"") -> RX7 | X17: =IF(VALUE(MID(X$2,5,2))<=$V17,OFFSET('CCG-Prov(Amb)'!$B$1,MATCH($A17,'CCG-Prov(Amb)'!$A$2:$A$335,0)+VALUE(RIGHT(X$2,1))-1,0),"") ->  | Y17: =IF(VALUE(MID(Y$2,5,2))<=$V17,OFFSET('CCG-Prov(Amb)'!$B$1,MATCH($A17,'CCG-Prov(Amb)'!$A$2:$A$335,0)+VALUE(RIGHT(Y$2,1))-1,0),"") ->  | Z17: =IF(VALUE(MID(Z$2,5,2))<=$V17,OFFSET('CCG-Prov(Amb)'!$B$1,MATCH($A17,'CCG-Prov(Amb)'!$A$2:$A$335,0)+VALUE(RIGHT(Z$2,1))-1,0),"") ->  | AA17: =IF(VALUE(MID(AA$2,5,2))<=$V17,OFFSET('CCG-Prov(Amb)'!$B$1,MATCH($A17,'CCG-Prov(Amb)'!$A$2:$A$335,0)+VALUE(RIGHT(AA$2,1))-1,0),"") ->  | AG17: =SUM(IF(('CCG-Prov(Births)'!$A$2:$A$6150=A17),1,0)) -> 16 | AH17: =SUM(IF(('CCG-Prov(Births)'!$A$2:$A$6150=A17)*('CCG-Prov(Births)'!$C$2:$C$6150>=Maternity!$B$7),1,0)) -> 1 | AI17: =IF(VALUE(MID(AI$2,5,2))<=$V17,OFFSET('CCG-Prov(Births)'!$B$1,MATCH($A17,'CCG-Prov(Births)'!$A$2:$A$6150,0)+VALUE(RIGHT(AI$2,1))-1,0),"") -> RXL | AJ17: =IF(VALUE(MID(AJ$2,5,2))<=$V17,OFFSET('CCG-Prov(Births)'!$B$1,MATCH($A17,'CCG-Prov(Births)'!$A$2:$A$6150,0)+VALUE(RIGHT(AJ$2,1))-1,0),"") ->  | AK17: =IF(VALUE(MID(AK$2,5,2))<=$V17,OFFSET('CCG-Prov(Births)'!$B$1,MATCH($A17,'CCG-Prov(Births)'!$A$2:$A$6150,0)+VALUE(RIGHT(AK$2,1))-1,0),"") ->  | AL17: =IF(VALUE(MID(AL$2,5,2))<=$V17,OFFSET('CCG-Prov(Births)'!$B$1,MATCH($A17,'CCG-Prov(Births)'!$A$2:$A$6150,0)+VALUE(RIGHT(AL$2,1))-1,0),"") ->  | AM17: =IF(VALUE(MID(AM$2,5,2))<=$V17,OFFSET('CCG-Prov(Births)'!$B$1,MATCH($A17,'CCG-Prov(Births)'!$A$2:$A$6150,0)+VALUE(RIGHT(AM$2,1))-1,0),"") ->  | AO17: RAJ | AP17: =VLOOKUP(AO17,provnames!$A$2:$B$331,2,0) -> Southend Univ Hospital NHS FT | AQ17: =SUM(IF(('CCG-Prov(Births)'!$B$2:$B$6150=AO17),1,0)) -> 24
A18: 00T | B18: Bolton | C18: =SUM(IF(('CCG-Prov(Acute)'!$A$2:$A$29012=A18),1,0)) -> 136 | D18: =SUM(IF(('CCG-Prov(Acute)'!$A$2:$A$29012=A18)*('CCG-Prov(Acute)'!$C$2:$C$29012>=Acute!$B$7),1,0)) -> 10 | E18: =IF(VALUE(MID(E$2,5,2))<=$D18,OFFSET('CCG-Prov(Acute)'!$B$1,MATCH($A18,'CCG-Prov(Acute)'!$A$2:$A$29012,0)+VALUE(RIGHT(E$2,1))-1,0),"") -> RMC | F18: =IF(VALUE(MID(F$2,5,2))<=$D18,OFFSET('CCG-Prov(Acute)'!$B$1,MATCH($A18,'CCG-Prov(Acute)'!$A$2:$A$29012,0)+VALUE(RIGHT(F$2,1))-1,0),"") -> RM3 | G18: =IF(VALUE(MID(G$2,5,2))<=$D18,OFFSET('CCG-Prov(Acute)'!$B$1,MATCH($A18,'CCG-Prov(Acute)'!$A$2:$A$29012,0)+VALUE(RIGHT(G$2,1))-1,0),"") -> NT4 | H18: =IF(VALUE(MID(H$2,5,2))<=$D18,OFFSET('CCG-Prov(Acute)'!$B$1,MATCH($A18,'CCG-Prov(Acute)'!$A$2:$A$29012,0)+VALUE(RIGHT(H$2,1))-1,0),"") -> RW3 | I18: =IF(VALUE(MID(I$2,5,2))<=$D18,OFFSET('CCG-Prov(Acute)'!$B$1,MATCH($A18,'CCG-Prov(Acute)'!$A$2:$A$29012,0)+VALUE(RIGHT(I$2,1))-1,0),"") -> RRF | J18: =IF(VALUE(MID(J$2,5,2))<=$D18,OFFSET('CCG-Prov(Acute)'!$B$1,MATCH($A18,'CCG-Prov(Acute)'!$A$2:$A$29012,0)+VALUE(RIGHT(J$2,1))-1,0),"") -> RW6 | K18: =IF(VALUE(MID(K$2,5,2))<=$D18,OFFSET('CCG-Prov(Acute)'!$B$1,MATCH($A18,'CCG-Prov(Acute)'!$A$2:$A$29012,0)+VALUE(RIGHT(K$2,1))-1,0),"") -> RXN | L18: =IF(VALUE(MID(L$2,5,2))<=$D18,OFFSET('CCG-Prov(Acute)'!$B$1,MATCH($A18,'CCG-Prov(Acute)'!$A$2:$A$29012,0)+VALUE(RIGHT(L$2,1))-1,0),"") -> RM2 | M18: =IF(VALUE(MID(M$2,5,2))<=$D18,OFFSET('CCG-Prov(Acute)'!$B$1,MATCH($A18,'CCG-Prov(Acute)'!$A$2:$A$29012,0)+VALUE(RIGHT(M$2,1))-1,0),"") -> RBV | N18: =IF(VALUE(MID(N$2,5,2))<=$D18,OFFSET('CCG-Prov(Acute)'!$B$1,MATCH($A18,'CCG-Prov(Acute)'!$A$2:$A$29012,0)+VALUE(RIGHT(N$2,1))-1,0),"") -> RXH | Q18: 5K3 | R18: =VLOOKUP(Q18,provnames!$A$2:$B$331,2,0) -> Swindon PCT | S18: =SUM(IF(('CCG-Prov(Acute)'!$B$2:$B$28899=Q18),1,0)) -> 5 | U18: =SUM(IF(('CCG-Prov(Amb)'!$A$2:$A$335=A18),1,0)) -> 1 | V18: =SUM(IF(('CCG-Prov(Amb)'!$A$2:$A$335=A18)*('CCG-Prov(Amb)'!$C$2:$C$335>=Ambulance!$B$7),1,0)) -> 1 | W18: =IF(VALUE(MID(W$2,5,2))<=$V18,OFFSET('CCG-Prov(Amb)'!$B$1,MATCH($A18,'CCG-Prov(Amb)'!$A$2:$A$335,0)+VALUE(RIGHT(W$2,1))-1,0),"") -> RX7 | X18: =IF(VALUE(MID(X$2,5,2))<=$V18,OFFSET('CCG-Prov(Amb)'!$B$1,MATCH($A18,'CCG-Prov(Amb)'!$A$2:$A$335,0)+VALUE(RIGHT(X$2,1))-1,0),"") ->  | Y18: =IF(VALUE(MID(Y$2,5,2))<=$V18,OFFSET('CCG-Prov(Amb)'!$B$1,MATCH($A18,'CCG-Prov(Amb)'!$A$2:$A$335,0)+VALUE(RIGHT(Y$2,1))-1,0),"") ->  | Z18: =IF(VALUE(MID(Z$2,5,2))<=$V18,OFFSET('CCG-Prov(Amb)'!$B$1,MATCH($A18,'CCG-Prov(Amb)'!$A$2:$A$335,0)+VALUE(RIGHT(Z$2,1))-1,0),"") ->  | AA18: =IF(VALUE(MID(AA$2,5,2))<=$V18,OFFSET('CCG-Prov(Amb)'!$B$1,MATCH($A18,'CCG-Prov(Amb)'!$A$2:$A$335,0)+VALUE(RIGHT(AA$2,1))-1,0),"") ->  | AG18: =SUM(IF(('CCG-Prov(Births)'!$A$2:$A$6150=A18),1,0)) -> 28 | AH18: =SUM(IF(('CCG-Prov(Births)'!$A$2:$A$6150=A18)*('CCG-Prov(Births)'!$C$2:$C$6150>=Maternity!$B$7),1,0)) -> 1 | AI18: =IF(VALUE(MID(AI$2,5,2))<=$V18,OFFSET('CCG-Prov(Births)'!$B$1,MATCH($A18,'CCG-Prov(Births)'!$A$2:$A$6150,0)+VALUE(RIGHT(AI$2,1))-1,0),"") -> RMC | AJ18: =IF(VALUE(MID(AJ$2,5,2))<=$V18,OFFSET('CCG-Prov(Births)'!$B$1,MATCH($A18,'CCG-Prov(Births)'!$A$2:$A$6150,0)+VALUE(RIGHT(AJ$2,1))-1,0),"") ->  | AK18: =IF(VALUE(MID(AK$2,5,2))<=$V18,OFFSET('CCG-Prov(Births)'!$B$1,MATCH($A18,'CCG-Prov(Births)'!$A$2:$A$6150,0)+VALUE(RIGHT(AK$2,1))-1,0),"") ->  | AL18: =IF(VALUE(MID(AL$2,5,2))<=$V18,OFFSET('CCG-Prov(Births)'!$B$1,MATCH($A18,'CCG-Prov(Births)'!$A$2:$A$6150,0)+VALUE(RIGHT(AL$2,1))-1,0),"") ->  | AM18: =IF(VALUE(MID(AM$2,5,2))<=$V18,OFFSET('CCG-Prov(Births)'!$B$1,MATCH($A18,'CCG-Prov(Births)'!$A$2:$A$6150,0)+VALUE(RIGHT(AM$2,1))-1,0),"") ->  | AO18: RAL | AP18: =VLOOKUP(AO18,provnames!$A$2:$B$331,2,0) -> Royal Free Hampstead NHS Trust | AQ18: =SUM(IF(('CCG-Prov(Births)'!$B$2:$B$6150=AO18),1,0)) -> 55
A19: 10G | B19: Bracknell & Ascot | C19: =SUM(IF(('CCG-Prov(Acute)'!$A$2:$A$29012=A19),1,0)) -> 131 | D19: =SUM(IF(('CCG-Prov(Acute)'!$A$2:$A$29012=A19)*('CCG-Prov(Acute)'!$C$2:$C$29012>=Acute!$B$7),1,0)) -> 4 | E19: =IF(VALUE(MID(E$2,5,2))<=$D19,OFFSET('CCG-Prov(Acute)'!$B$1,MATCH($A19,'CCG-Prov(Acute)'!$A$2:$A$29012,0)+VALUE(RIGHT(E$2,1))-1,0),"") -> RD7 | F19: =IF(VALUE(MID(F$2,5,2))<=$D19,OFFSET('CCG-Prov(Acute)'!$B$1,MATCH($A19,'CCG-Prov(Acute)'!$A$2:$A$29012,0)+VALUE(RIGHT(F$2,1))-1,0),"") -> RDU | G19: =IF(VALUE(MID(G$2,5,2))<=$D19,OFFSET('CCG-Prov(Acute)'!$B$1,MATCH($A19,'CCG-Prov(Acute)'!$A$2:$A$29012,0)+VALUE(RIGHT(G$2,1))-1,0),"") -> RHW | H19: =IF(VALUE(MID(H$2,5,2))<=$D19,OFFSET('CCG-Prov(Acute)'!$B$1,MATCH($A19,'CCG-Prov(Acute)'!$A$2:$A$29012,0)+VALUE(RIGHT(H$2,1))-1,0),"") -> RTK | I19: =IF(VALUE(MID(I$2,5,2))<=$D19,OFFSET('CCG-Prov(Acute)'!$B$1,MATCH($A19,'CCG-Prov(Acute)'!$A$2:$A$29012,0)+VALUE(RIGHT(I$2,1))-1,0),"") ->  | J19: =IF(VALUE(MID(J$2,5,2))<=$D19,OFFSET('CCG-Prov(Acute)'!$B$1,MATCH($A19,'CCG-Prov(Acute)'!$A$2:$A$29012,0)+VALUE(RIGHT(J$2,1))-1,0),"") ->  | K19: =IF(VALUE(MID(K$2,5,2))<=$D19,OFFSET('CCG-Prov(Acute)'!$B$1,MATCH($A19,'CCG-Prov(Acute)'!$A$2:$A$29012,0)+VALUE(RIGHT(K$2,1))-1,0),"") ->  | L19: =IF(VALUE(MID(L$2,5,2))<=$D19,OFFSET('CCG-Prov(Acute)'!$B$1,MATCH($A19,'CCG-Prov(Acute)'!$A$2:$A$29012,0)+VALUE(RIGHT(L$2,1))-1,0),"") ->  | M19: =IF(VALUE(MID(M$2,5,2))<=$D19,OFFSET('CCG-Prov(Acute)'!$B$1,MATCH($A19,'CCG-Prov(Acute)'!$A$2:$A$29012,0)+VALUE(RIGHT(M$2,1))-1,0),"") ->  | N19: =IF(VALUE(MID(N$2,5,2))<=$D19,OFFSET('CCG-Prov(Acute)'!$B$1,MATCH($A19,'CCG-Prov(Acute)'!$A$2:$A$29012,0)+VALUE(RIGHT(N$2,1))-1,0),"") ->  | Q19: 5K7 | R19: =VLOOKUP(Q19,provnames!$A$2:$B$331,2,0) -> Camden PCT | S19: =SUM(IF(('CCG-Prov(Acute)'!$B$2:$B$28899=Q19),1,0)) -> 7 | U19: =SUM(IF(('CCG-Prov(Amb)'!$A$2:$A$335=A19),1,0)) -> 2 | V19: =SUM(IF(('CCG-Prov(Amb)'!$A$2:$A$335=A19)*('CCG-Prov(Amb)'!$C$2:$C$335>=Ambulance!$B$7),1,0)) -> 2 | W19: =IF(VALUE(MID(W$2,5,2))<=$V19,OFFSET('CCG-Prov(Amb)'!$B$1,MATCH($A19,'CCG-Prov(Amb)'!$A$2:$A$335,0)+VALUE(RIGHT(W$2,1))-1,0),"") -> RYE | X19: =IF(VALUE(MID(X$2,5,2))<=$V19,OFFSET('CCG-Prov(Amb)'!$B$1,MATCH($A19,'CCG-Prov(Amb)'!$A$2:$A$335,0)+VALUE(RIGHT(X$2,1))-1,0),"") -> RYD | Y19: =IF(VALUE(MID(Y$2,5,2))<=$V19,OFFSET('CCG-Prov(Amb)'!$B$1,MATCH($A19,'CCG-Prov(Amb)'!$A$2:$A$335,0)+VALUE(RIGHT(Y$2,1))-1,0),"") ->  | Z19: =IF(VALUE(MID(Z$2,5,2))<=$V19,OFFSET('CCG-Prov(Amb)'!$B$1,MATCH($A19,'CCG-Prov(Amb)'!$A$2:$A$335,0)+VALUE(RIGHT(Z$2,1))-1,0),"") ->  | AA19: =IF(VALUE(MID(AA$2,5,2))<=$V19,OFFSET('CCG-Prov(Amb)'!$B$1,MATCH($A19,'CCG-Prov(Amb)'!$A$2:$A$335,0)+VALUE(RIGHT(AA$2,1))-1,0),"") ->  | AG19: =SUM(IF(('CCG-Prov(Births)'!$A$2:$A$6150=A19),1,0)) -> 29 | AH19: =SUM(IF(('CCG-Prov(Births)'!$A$2:$A$6150=A19)*('CCG-Prov(Births)'!$C$2:$C$6150>=Maternity!$B$7),1,0)) -> 4 | AI19: =IF(VALUE(MID(AI$2,5,2))<=$V19,OFFSET('CCG-Prov(Births)'!$B$1,MATCH($A19,'CCG-Prov(Births)'!$A$2:$A$6150,0)+VALUE(RIGHT(AI$2,1))-1,0),"") -> RDU | AJ19: =IF(VALUE(MID(AJ$2,5,2))<=$V19,OFFSET('CCG-Prov(Births)'!$B$1,MATCH($A19,'CCG-Prov(Births)'!$A$2:$A$6150,0)+VALUE(RIGHT(AJ$2,1))-1,0),"") -> RD7 | AK19: =IF(VALUE(MID(AK$2,5,2))<=$V19,OFFSET('CCG-Prov(Births)'!$B$1,MATCH($A19,'CCG-Prov(Births)'!$A$2:$A$6150,0)+VALUE(RIGHT(AK$2,1))-1,0),"") ->  | AL19: =IF(VALUE(MID(AL$2,5,2))<=$V19,OFFSET('CCG-Prov(Births)'!$B$1,MATCH($A19,'CCG-Prov(Births)'!$A$2:$A$6150,0)+VALUE(RIGHT(AL$2,1))-1,0),"") ->  | AM19: =IF(VALUE(MID(AM$2,5,2))<=$V19,OFFSET('CCG-Prov(Births)'!$B$1,MATCH($A19,'CCG-Prov(Births)'!$A$2:$A$6150,0)+VALUE(RIGHT(AM$2,1))-1,0),"") ->  | AO19: RAP | AP19: =VLOOKUP(AO19,provnames!$A$2:$B$331,2,0) -> North Middlesex Univ Hospital NHS Trust | AQ19: =SUM(IF(('CCG-Prov(Births)'!$B$2:$B$6150=AO19),1,0)) -> 43
A20: 02W | B20: Bradford City | C20: =SUM(IF(('CCG-Prov(Acute)'!$A$2:$A$29012=A20),1,0)) -> 96 | D20: =SUM(IF(('CCG-Prov(Acute)'!$A$2:$A$29012=A20)*('CCG-Prov(Acute)'!$C$2:$C$29012>=Acute!$B$7),1,0)) -> 2 | E20: =IF(VALUE(MID(E$2,5,2))<=$D20,OFFSET('CCG-Prov(Acute)'!$B$1,MATCH($A20,'CCG-Prov(Acute)'!$A$2:$A$29012,0)+VALUE(RIGHT(E$2,1))-1,0),"") -> RAE | F20: =IF(VALUE(MID(F$2,5,2))<=$D20,OFFSET('CCG-Prov(Acute)'!$B$1,MATCH($A20,'CCG-Prov(Acute)'!$A$2:$A$29012,0)+VALUE(RIGHT(F$2,1))-1,0),"") -> RR8 | G20: =IF(VALUE(MID(G$2,5,2))<=$D20,OFFSET('CCG-Prov(Acute)'!$B$1,MATCH($A20,'CCG-Prov(Acute)'!$A$2:$A$29012,0)+VALUE(RIGHT(G$2,1))-1,0),"") ->  | H20: =IF(VALUE(MID(H$2,5,2))<=$D20,OFFSET('CCG-Prov(Acute)'!$B$1,MATCH($A20,'CCG-Prov(Acute)'!$A$2:$A$29012,0)+VALUE(RIGHT(H$2,1))-1,0),"") ->  | I20: =IF(VALUE(MID(I$2,5,2))<=$D20,OFFSET('CCG-Prov(Acute)'!$B$1,MATCH($A20,'CCG-Prov(Acute)'!$A$2:$A$29012,0)+VALUE(RIGHT(I$2,1))-1,0),"") ->  | J20: =IF(VALUE(MID(J$2,5,2))<=$D20,OFFSET('CCG-Prov(Acute)'!$B$1,MATCH($A20,'CCG-Prov(Acute)'!$A$2:$A$29012,0)+VALUE(RIGHT(J$2,1))-1,0),"") ->  | K20: =IF(VALUE(MID(K$2,5,2))<=$D20,OFFSET('CCG-Prov(Acute)'!$B$1,MATCH($A20,'CCG-Prov(Acute)'!$A$2:$A$29012,0)+VALUE(RIGHT(K$2,1))-1,0),"") ->  | L20: =IF(VALUE(MID(L$2,5,2))<=$D20,OFFSET('CCG-Prov(Acute)'!$B$1,MATCH($A20,'CCG-Prov(Acute)'!$A$2:$A$29012,0)+VALUE(RIGHT(L$2,1))-1,0),"") ->  | M20: =IF(VALUE(MID(M$2,5,2))<=$D20,OFFSET('CCG-Prov(Acute)'!$B$1,MATCH($A20,'CCG-Prov(Acute)'!$A$2:$A$29012,0)+VALUE(RIGHT(M$2,1))-1,0),"") ->  | N20: =IF(VALUE(MID(N$2,5,2))<=$D20,OFFSET('CCG-Prov(Acute)'!$B$1,MATCH($A20,'CCG-Prov(Acute)'!$A$2:$A$29012,0)+VALUE(RIGHT(N$2,1))-1,0),"") ->  | Q20: 5KG | R20: =VLOOKUP(Q20,provnames!$A$2:$B$331,2,0) -> South Tyneside PCT | S20: =SUM(IF(('CCG-Prov(Acute)'!$B$2:$B$28899=Q20),1,0)) -> 2 | U20: =SUM(IF(('CCG-Prov(Amb)'!$A$2:$A$335=A20),1,0)) -> 1 | V20: =SUM(IF(('CCG-Prov(Amb)'!$A$2:$A$335=A20)*('CCG-Prov(Amb)'!$C$2:$C$335>=Ambulance!$B$7),1,0)) -> 1 | W20: =IF(VALUE(MID(W$2,5,2))<=$V20,OFFSET('CCG-Prov(Amb)'!$B$1,MATCH($A20,'CCG-Prov(Amb)'!$A$2:$A$335,0)+VALUE(RIGHT(W$2,1))-1,0),"") -> RX8 | X20: =IF(VALUE(MID(X$2,5,2))<=$V20,OFFSET('CCG-Prov(Amb)'!$B$1,MATCH($A20,'CCG-Prov(Amb)'!$A$2:$A$335,0)+VALUE(RIGHT(X$2,1))-1,0),"") ->  | Y20: =IF(VALUE(MID(Y$2,5,2))<=$V20,OFFSET('CCG-Prov(Amb)'!$B$1,MATCH($A20,'CCG-Prov(Amb)'!$A$2:$A$335,0)+VALUE(RIGHT(Y$2,1))-1,0),"") ->  | Z20: =IF(VALUE(MID(Z$2,5,2))<=$V20,OFFSET('CCG-Prov(Amb)'!$B$1,MATCH($A20,'CCG-Prov(Amb)'!$A$2:$A$335,0)+VALUE(RIGHT(Z$2,1))-1,0),"") ->  | AA20: =IF(VALUE(MID(AA$2,5,2))<=$V20,OFFSET('CCG-Prov(Amb)'!$B$1,MATCH($A20,'CCG-Prov(Amb)'!$A$2:$A$335,0)+VALUE(RIGHT(AA$2,1))-1,0),"") ->  | AG20: =SUM(IF(('CCG-Prov(Births)'!$A$2:$A$6150=A20),1,0)) -> 25 | AH20: =SUM(IF(('CCG-Prov(Births)'!$A$2:$A$6150=A20)*('CCG-Prov(Births)'!$C$2:$C$6150>=Maternity!$B$7),1,0)) -> 1 | AI20: =IF(VALUE(MID(AI$2,5,2))<=$V20,OFFSET('CCG-Prov(Births)'!$B$1,MATCH($A20,'CCG-Prov(Births)'!$A$2:$A$6150,0)+VALUE(RIGHT(AI$2,1))-1,0),"") -> RAE | AJ20: =IF(VALUE(MID(AJ$2,5,2))<=$V20,OFFSET('CCG-Prov(Births)'!$B$1,MATCH($A20,'CCG-Prov(Births)'!$A$2:$A$6150,0)+VALUE(RIGHT(AJ$2,1))-1,0),"") ->  | AK20: =IF(VALUE(MID(AK$2,5,2))<=$V20,OFFSET('CCG-Prov(Births)'!$B$1,MATCH($A20,'CCG-Prov(Births)'!$A$2:$A$6150,0)+VALUE(RIGHT(AK$2,1))-1,0),"") ->  | AL20: =IF(VALUE(MID(AL$2,5,2))<=$V20,OFFSET('CCG-Prov(Births)'!$B$1,MATCH($A20,'CCG-Prov(Births)'!$A$2:$A$6150,0)+VALUE(RIGHT(AL$2,1))-1,0),"") ->  | AM20: =IF(VALUE(MID(AM$2,5,2))<=$V20,OFFSET('CCG-Prov(Births)'!$B$1,MATCH($A20,'CCG-Prov(Births)'!$A$2:$A$6150,0)+VALUE(RIGHT(AM$2,1))-1,0),"") ->  | AO20: RAS | AP20: =VLOOKUP(AO20,provnames!$A$2:$B$331,2,0) -> The Hillingdon Hospitals NHS FT | AQ20: =SUM(IF(('CCG-Prov(Births)'!$B$2:$B$6150=AO20),1,0)) -> 46
A21: 02R | B21: Bradford Districts | C21: =SUM(IF(('CCG-Prov(Acute)'!$A$2:$A$29012=A21),1,0)) -> 145 | D21: =SUM(IF(('CCG-Prov(Acute)'!$A$2:$A$29012=A21)*('CCG-Prov(Acute)'!$C$2:$C$29012>=Acute!$B$7),1,0)) -> 7 | E21: =IF(VALUE(MID(E$2,5,2))<=$D21,OFFSET('CCG-Prov(Acute)'!$B$1,MATCH($A21,'CCG-Prov(Acute)'!$A$2:$A$29012,0)+VALUE(RIGHT(E$2,1))-1,0),"") -> RAE | F21: =IF(VALUE(MID(F$2,5,2))<=$D21,OFFSET('CCG-Prov(Acute)'!$B$1,MATCH($A21,'CCG-Prov(Acute)'!$A$2:$A$29012,0)+VALUE(RIGHT(F$2,1))-1,0),"") -> RCF | G21: =IF(VALUE(MID(G$2,5,2))<=$D21,OFFSET('CCG-Prov(Acute)'!$B$1,MATCH($A21,'CCG-Prov(Acute)'!$A$2:$A$29012,0)+VALUE(RIGHT(G$2,1))-1,0),"") -> NVC | H21: =IF(VALUE(MID(H$2,5,2))<=$D21,OFFSET('CCG-Prov(Acute)'!$B$1,MATCH($A21,'CCG-Prov(Acute)'!$A$2:$A$29012,0)+VALUE(RIGHT(H$2,1))-1,0),"") -> RR8 | I21: =IF(VALUE(MID(I$2,5,2))<=$D21,OFFSET('CCG-Prov(Acute)'!$B$1,MATCH($A21,'CCG-Prov(Acute)'!$A$2:$A$29012,0)+VALUE(RIGHT(I$2,1))-1,0),"") -> RWY | J21: =IF(VALUE(MID(J$2,5,2))<=$D21,OFFSET('CCG-Prov(Acute)'!$B$1,MATCH($A21,'CCG-Prov(Acute)'!$A$2:$A$29012,0)+VALUE(RIGHT(J$2,1))-1,0),"") -> NTA | K21: =IF(VALUE(MID(K$2,5,2))<=$D21,OFFSET('CCG-Prov(Acute)'!$B$1,MATCH($A21,'CCG-Prov(Acute)'!$A$2:$A$29012,0)+VALUE(RIGHT(K$2,1))-1,0),"") -> RXF | L21: =IF(VALUE(MID(L$2,5,2))<=$D21,OFFSET('CCG-Prov(Acute)'!$B$1,MATCH($A21,'CCG-Prov(Acute)'!$A$2:$A$29012,0)+VALUE(RIGHT(L$2,1))-1,0),"") ->  | M21: =IF(VALUE(MID(M$2,5,2))<=$D21,OFFSET('CCG-Prov(Acute)'!$B$1,MATCH($A21,'CCG-Prov(Acute)'!$A$2:$A$29012,0)+VALUE(RIGHT(M$2,1))-1,0),"") ->  | N21: =IF(VALUE(MID(N$2,5,2))<=$D21,OFFSET('CCG-Prov(Acute)'!$B$1,MATCH($A21,'CCG-Prov(Acute)'!$A$2:$A$29012,0)+VALUE(RIGHT(N$2,1))-1,0),"") ->  | Q21: 5KL | R21: =VLOOKUP(Q21,provnames!$A$2:$B$331,2,0) -> Sunderland Teaching PCT | S21: =SUM(IF(('CCG-Prov(Acute)'!$B$2:$B$28899=Q21),1,0)) -> 3 | U21: =SUM(IF(('CCG-Prov(Amb)'!$A$2:$A$335=A21),1,0)) -> 1 | V21: =SUM(IF(('CCG-Prov(Amb)'!$A$2:$A$335=A21)*('CCG-Prov(Amb)'!$C$2:$C$335>=Ambulance!$B$7),1,0)) -> 1 | W21: =IF(VALUE(MID(W$2,5,2))<=$V21,OFFSET('CCG-Prov(Amb)'!$B$1,MATCH($A21,'CCG-Prov(Amb)'!$A$2:$A$335,0)+VALUE(RIGHT(W$2,1))-1,0),"") -> RX8 | X21: =IF(VALUE(MID(X$2,5,2))<=$V21,OFFSET('CCG-Prov(Amb)'!$B$1,MATCH($A21,'CCG-Prov(Amb)'!$A$2:$A$335,0)+VALUE(RIGHT(X$2,1))-1,0),"") ->  | Y21: =IF(VALUE(MID(Y$2,5,2))<=$V21,OFFSET('CCG-Prov(Amb)'!$B$1,MATCH($A21,'CCG-Prov(Amb)'!$A$2:$A$335,0)+VALUE(RIGHT(Y$2,1))-1,0),"") ->  | Z21: =IF(VALUE(MID(Z$2,5,2))<=$V21,OFFSET('CCG-Prov(Amb)'!$B$1,MATCH($A21,'CCG-Prov(Amb)'!$A$2:$A$335,0)+VALUE(RIGHT(Z$2,1))-1,0),"") ->  | AA21: =IF(VALUE(MID(AA$2,5,2))<=$V21,OFFSET('CCG-Prov(Amb)'!$B$1,MATCH($A21,'CCG-Prov(Amb)'!$A$2:$A$335,0)+VALUE(RIGHT(AA$2,1))-1,0),"") ->  | AG21: =SUM(IF(('CCG-Prov(Births)'!$A$2:$A$6150=A21),1,0)) -> 38 | AH21: =SUM(IF(('CCG-Prov(Births)'!$A$2:$A$6150=A21)*('CCG-Prov(Births)'!$C$2:$C$6150>=Maternity!$B$7),1,0)) -> 4 | AI21: =IF(VALUE(MID(AI$2,5,2))<=$V21,OFFSET('CCG-Prov(Births)'!$B$1,MATCH($A21,'CCG-Prov(Births)'!$A$2:$A$6150,0)+VALUE(RIGHT(AI$2,1))-1,0),"") -> RAE | AJ21: =IF(VALUE(MID(AJ$2,5,2))<=$V21,OFFSET('CCG-Prov(Births)'!$B$1,MATCH($A21,'CCG-Prov(Births)'!$A$2:$A$6150,0)+VALUE(RIGHT(AJ$2,1))-1,0),"") ->  | AK21: =IF(VALUE(MID(AK$2,5,2))<=$V21,OFFSET('CCG-Prov(Births)'!$B$1,MATCH($A21,'CCG-Prov(Births)'!$A$2:$A$6150,0)+VALUE(RIGHT(AK$2,1))-1,0),"") ->  | AL21: =IF(VALUE(MID(AL$2,5,2))<=$V21,OFFSET('CCG-Prov(Births)'!$B$1,MATCH($A21,'CCG-Prov(Births)'!$A$2:$A$6150,0)+VALUE(RIGHT(AL$2,1))-1,0),"") ->  | AM21: =IF(VALUE(MID(AM$2,5,2))<=$V21,OFFSET('CCG-Prov(Births)'!$B$1,MATCH($A21,'CCG-Prov(Births)'!$A$2:$A$6150,0)+VALUE(RIGHT(AM$2,1))-1,0),"") ->  | AO21: RAX | AP21: =VLOOKUP(AO21,provnames!$A$2:$B$331,2,0) -> Kingston Hospital NHS Trust | AQ21: =SUM(IF(('CCG-Prov(Births)'!$B$2:$B$6150=AO21),1,0)) -> 67
A22: 07P | B22: Brent | C22: =SUM(IF(('CCG-Prov(Acute)'!$A$2:$A$29012=A22),1,0)) -> 135 | D22: =SUM(IF(('CCG-Prov(Acute)'!$A$2:$A$29012=A22)*('CCG-Prov(Acute)'!$C$2:$C$29012>=Acute!$B$7),1,0)) -> 7 | E22: =IF(VALUE(MID(E$2,5,2))<=$D22,OFFSET('CCG-Prov(Acute)'!$B$1,MATCH($A22,'CCG-Prov(Acute)'!$A$2:$A$29012,0)+VALUE(RIGHT(E$2,1))-1,0),"") -> RV8 | F22: =IF(VALUE(MID(F$2,5,2))<=$D22,OFFSET('CCG-Prov(Acute)'!$B$1,MATCH($A22,'CCG-Prov(Acute)'!$A$2:$A$29012,0)+VALUE(RIGHT(F$2,1))-1,0),"") -> RYJ | G22: =IF(VALUE(MID(G$2,5,2))<=$D22,OFFSET('CCG-Prov(Acute)'!$B$1,MATCH($A22,'CCG-Prov(Acute)'!$A$2:$A$29012,0)+VALUE(RIGHT(G$2,1))-1,0),"") -> RAL | H22: =IF(VALUE(MID(H$2,5,2))<=$D22,OFFSET('CCG-Prov(Acute)'!$B$1,MATCH($A22,'CCG-Prov(Acute)'!$A$2:$A$29012,0)+VALUE(RIGHT(H$2,1))-1,0),"") -> RRV | I22: =IF(VALUE(MID(I$2,5,2))<=$D22,OFFSET('CCG-Prov(Acute)'!$B$1,MATCH($A22,'CCG-Prov(Acute)'!$A$2:$A$29012,0)+VALUE(RIGHT(I$2,1))-1,0),"") -> RP6 | J22: =IF(VALUE(MID(J$2,5,2))<=$D22,OFFSET('CCG-Prov(Acute)'!$B$1,MATCH($A22,'CCG-Prov(Acute)'!$A$2:$A$29012,0)+VALUE(RIGHT(J$2,1))-1,0),"") -> RVL | K22: =IF(VALUE(MID(K$2,5,2))<=$D22,OFFSET('CCG-Prov(Acute)'!$B$1,MATCH($A22,'CCG-Prov(Acute)'!$A$2:$A$29012,0)+VALUE(RIGHT(K$2,1))-1,0),"") -> RQM | L22: =IF(VALUE(MID(L$2,5,2))<=$D22,OFFSET('CCG-Prov(Acute)'!$B$1,MATCH($A22,'CCG-Prov(Acute)'!$A$2:$A$29012,0)+VALUE(RIGHT(L$2,1))-1,0),"") ->  | M22: =IF(VALUE(MID(M$2,5,2))<=$D22,OFFSET('CCG-Prov(Acute)'!$B$1,MATCH($A22,'CCG-Prov(Acute)'!$A$2:$A$29012,0)+VALUE(RIGHT(M$2,1))-1,0),"") ->  | N22: =IF(VALUE(MID(N$2,5,2))<=$D22,OFFSET('CCG-Prov(Acute)'!$B$1,MATCH($A22,'CCG-Prov(Acute)'!$A$2:$A$29012,0)+VALUE(RIGHT(N$2,1))-1,0),"") ->  | Q22: 5L1 | R22: =VLOOKUP(Q22,provnames!$A$2:$B$331,2,0) -> Southampton City PCT | S22: =SUM(IF(('CCG-Prov(Acute)'!$B$2:$B$28899=Q22),1,0)) -> 6 | U22: =SUM(IF(('CCG-Prov(Amb)'!$A$2:$A$335=A22),1,0)) -> 1 | V22: =SUM(IF(('CCG-Prov(Amb)'!$A$2:$A$335=A22)*('CCG-Prov(Amb)'!$C$2:$C$335>=Ambulance!$B$7),1,0)) -> 1 | W22: =IF(VALUE(MID(W$2,5,2))<=$V22,OFFSET('CCG-Prov(Amb)'!$B$1,MATCH($A22,'CCG-Prov(Amb)'!$A$2:$A$335,0)+VALUE(RIGHT(W$2,1))-1,0),"") -> RRY | X22: =IF(VALUE(MID(X$2,5,2))<=$V22,OFFSET('CCG-Prov(Amb)'!$B$1,MATCH($A22,'CCG-Prov(Amb)'!$A$2:$A$335,0)+VALUE(RIGHT(X$2,1))-1,0),"") ->  | Y22: =IF(VALUE(MID(Y$2,5,2))<=$V22,OFFSET('CCG-Prov(Amb)'!$B$1,MATCH($A22,'CCG-Prov(Amb)'!$A$2:$A$335,0)+VALUE(RIGHT(Y$2,1))-1,0),"") ->  | Z22: =IF(VALUE(MID(Z$2,5,2))<=$V22,OFFSET('CCG-Prov(Amb)'!$B$1,MATCH($A22,'CCG-Prov(Amb)'!$A$2:$A$335,0)+VALUE(RIGHT(Z$2,1))-1,0),"") ->  | AA22: =IF(VALUE(MID(AA$2,5,2))<=$V22,OFFSET('CCG-Prov(Amb)'!$B$1,MATCH($A22,'CCG-Prov(Amb)'!$A$2:$A$335,0)+VALUE(RIGHT(AA$2,1))-1,0),"") ->  | AG22: =SUM(IF(('CCG-Prov(Births)'!$A$2:$A$6150=A22),1,0)) -> 48 | AH22: =SUM(IF(('CCG-Prov(Births)'!$A$2:$A$6150=A22)*('CCG-Prov(Births)'!$C$2:$C$6150>=Maternity!$B$7),1,0)) -> 5 | AI22: =IF(VALUE(MID(AI$2,5,2))<=$V22,OFFSET('CCG-Prov(Births)'!$B$1,MATCH($A22,'CCG-Prov(Births)'!$A$2:$A$6150,0)+VALUE(RIGHT(AI$2,1))-1,0),"") -> RV8 | AJ22: =IF(VALUE(MID(AJ$2,5,2))<=$V22,OFFSET('CCG-Prov(Births)'!$B$1,MATCH($A22,'CCG-Prov(Births)'!$A$2:$A$6150,0)+VALUE(RIGHT(AJ$2,1))-1,0),"") ->  | AK22: =IF(VALUE(MID(AK$2,5,2))<=$V22,OFFSET('CCG-Prov(Births)'!$B$1,MATCH($A22,'CCG-Prov(Births)'!$A$2:$A$6150,0)+VALUE(RIGHT(AK$2,1))-1,0),"") ->  | AL22: =IF(VALUE(MID(AL$2,5,2))<=$V22,OFFSET('CCG-Prov(Births)'!$B$1,MATCH($A22,'CCG-Prov(Births)'!$A$2:$A$6150,0)+VALUE(RIGHT(AL$2,1))-1,0),"") ->  | AM22: =IF(VALUE(MID(AM$2,5,2))<=$V22,OFFSET('CCG-Prov(Births)'!$B$1,MATCH($A22,'CCG-Prov(Births)'!$A$2:$A$6150,0)+VALUE(RIGHT(AM$2,1))-1,0),"") ->  | AO22: RBA | AP22: =VLOOKUP(AO22,provnames!$A$2:$B$331,2,0) -> Taunton & Somerset NHS FT | AQ22: =SUM(IF(('CCG-Prov(Births)'!$B$2:$B$6150=AO22),1,0)) -> 34
A23: 09D | B23: Brighton & Hove | C23: =SUM(IF(('CCG-Prov(Acute)'!$A$2:$A$29012=A23),1,0)) -> 158 | D23: =SUM(IF(('CCG-Prov(Acute)'!$A$2:$A$29012=A23)*('CCG-Prov(Acute)'!$C$2:$C$29012>=Acute!$B$7),1,0)) -> 3 | E23: =IF(VALUE(MID(E$2,5,2))<=$D23,OFFSET('CCG-Prov(Acute)'!$B$1,MATCH($A23,'CCG-Prov(Acute)'!$A$2:$A$29012,0)+VALUE(RIGHT(E$2,1))-1,0),"") -> RXH | F23: =IF(VALUE(MID(F$2,5,2))<=$D23,OFFSET('CCG-Prov(Acute)'!$B$1,MATCH($A23,'CCG-Prov(Acute)'!$A$2:$A$29012,0)+VALUE(RIGHT(F$2,1))-1,0),"") -> NTP | G23: =IF(VALUE(MID(G$2,5,2))<=$D23,OFFSET('CCG-Prov(Acute)'!$B$1,MATCH($A23,'CCG-Prov(Acute)'!$A$2:$A$29012,0)+VALUE(RIGHT(G$2,1))-1,0),"") -> RYR | H23: =IF(VALUE(MID(H$2,5,2))<=$D23,OFFSET('CCG-Prov(Acute)'!$B$1,MATCH($A23,'CCG-Prov(Acute)'!$A$2:$A$29012,0)+VALUE(RIGHT(H$2,1))-1,0),"") ->  | I23: =IF(VALUE(MID(I$2,5,2))<=$D23,OFFSET('CCG-Prov(Acute)'!$B$1,MATCH($A23,'CCG-Prov(Acute)'!$A$2:$A$29012,0)+VALUE(RIGHT(I$2,1))-1,0),"") ->  | J23: =IF(VALUE(MID(J$2,5,2))<=$D23,OFFSET('CCG-Prov(Acute)'!$B$1,MATCH($A23,'CCG-Prov(Acute)'!$A$2:$A$29012,0)+VALUE(RIGHT(J$2,1))-1,0),"") ->  | K23: =IF(VALUE(MID(K$2,5,2))<=$D23,OFFSET('CCG-Prov(Acute)'!$B$1,MATCH($A23,'CCG-Prov(Acute)'!$A$2:$A$29012,0)+VALUE(RIGHT(K$2,1))-1,0),"") ->  | L23: =IF(VALUE(MID(L$2,5,2))<=$D23,OFFSET('CCG-Prov(Acute)'!$B$1,MATCH($A23,'CCG-Prov(Acute)'!$A$2:$A$29012,0)+VALUE(RIGHT(L$2,1))-1,0),"") ->  | M23: =IF(VALUE(MID(M$2,5,2))<=$D23,OFFSET('CCG-Prov(Acute)'!$B$1,MATCH($A23,'CCG-Prov(Acute)'!$A$2:$A$29012,0)+VALUE(RIGHT(M$2,1))-1,0),"") ->  | N23: =IF(VALUE(MID(N$2,5,2))<=$D23,OFFSET('CCG-Prov(Acute)'!$B$1,MATCH($A23,'CCG-Prov(Acute)'!$A$2:$A$29012,0)+VALUE(RIGHT(N$2,1))-1,0),"") ->  | Q23: 5L3 | R23: =VLOOKUP(Q23,provnames!$A$2:$B$331,2,0) -> Medway PCT | S23: =SUM(IF(('CCG-Prov(Acute)'!$B$2:$B$28899=Q23),1,0)) -> 4 | U23: =SUM(IF(('CCG-Prov(Amb)'!$A$2:$A$335=A23),1,0)) -> 1 | V23: =SUM(IF(('CCG-Prov(Amb)'!$A$2:$A$335=A23)*('CCG-Prov(Amb)'!$C$2:$C$335>=Ambulance!$B$7),1,0)) -> 1 | W23: =IF(VALUE(MID(W$2,5,2))<=$V23,OFFSET('CCG-Prov(Amb)'!$B$1,MATCH($A23,'CCG-Prov(Amb)'!$A$2:$A$335,0)+VALUE(RIGHT(W$2,1))-1,0),"") -> RYD | X23: =IF(VALUE(MID(X$2,5,2))<=$V23,OFFSET('CCG-Prov(Amb)'!$B$1,MATCH($A23,'CCG-Prov(Amb)'!$A$2:$A$335,0)+VALUE(RIGHT(X$2,1))-1,0),"") ->  | Y23: =IF(VALUE(MID(Y$2,5,2))<=$V23,OFFSET('CCG-Prov(Amb)'!$B$1,MATCH($A23,'CCG-Prov(Amb)'!$A$2:$A$335,0)+VALUE(RIGHT(Y$2,1))-1,0),"") ->  | Z23: =IF(VALUE(MID(Z$2,5,2))<=$V23,OFFSET('CCG-Prov(Amb)'!$B$1,MATCH($A23,'CCG-Prov(Amb)'!$A$2:$A$335,0)+VALUE(RIGHT(Z$2,1))-1,0),"") ->  | AA23: =IF(VALUE(MID(AA$2,5,2))<=$V23,OFFSET('CCG-Prov(Amb)'!$B$1,MATCH($A23,'CCG-Prov(Amb)'!$A$2:$A$335,0)+VALUE(RIGHT(AA$2,1))-1,0),"") ->  | AG23: =SUM(IF(('CCG-Prov(Births)'!$A$2:$A$6150=A23),1,0)) -> 36 | AH23: =SUM(IF(('CCG-Prov(Births)'!$A$2:$A$6150=A23)*('CCG-Prov(Births)'!$C$2:$C$6150>=Maternity!$B$7),1,0)) -> 2 | AI23: =IF(VALUE(MID(AI$2,5,2))<=$V23,OFFSET('CCG-Prov(Births)'!$B$1,MATCH($A23,'CCG-Prov(Births)'!$A$2:$A$6150,0)+VALUE(RIGHT(AI$2,1))-1,0),"") -> RXH | AJ23: =IF(VALUE(MID(AJ$2,5,2))<=$V23,OFFSET('CCG-Prov(Births)'!$B$1,MATCH($A23,'CCG-Prov(Births)'!$A$2:$A$6150,0)+VALUE(RIGHT(AJ$2,1))-1,0),"") ->  | AK23: =IF(VALUE(MID(AK$2,5,2))<=$V23,OFFSET('CCG-Prov(Births)'!$B$1,MATCH($A23,'CCG-Prov(Births)'!$A$2:$A$6150,0)+VALUE(RIGHT(AK$2,1))-1,0),"") ->  | AL23: =IF(VALUE(MID(AL$2,5,2))<=$V23,OFFSET('CCG-Prov(Births)'!$B$1,MATCH($A23,'CCG-Prov(Births)'!$A$2:$A$6150,0)+VALUE(RIGHT(AL$2,1))-1,0),"") ->  | AM23: =IF(VALUE(MID(AM$2,5,2))<=$V23,OFFSET('CCG-Prov(Births)'!$B$1,MATCH($A23,'CCG-Prov(Births)'!$A$2:$A$6150,0)+VALUE(RIGHT(AM$2,1))-1,0),"") ->  | AO23: RBD | AP23: =VLOOKUP(AO23,provnames!$A$2:$B$331,2,0) -> Dorset County Hospital NHS FT | AQ23: =SUM(IF(('CCG-Prov(Births)'!$B$2:$B$6150=AO23),1,0)) -> 37
A24: 11H | B24: Bristol | C24: =SUM(IF(('CCG-Prov(Acute)'!$A$2:$A$29012=A24),1,0)) -> 170 | D24: =SUM(IF(('CCG-Prov(Acute)'!$A$2:$A$29012=A24)*('CCG-Prov(Acute)'!$C$2:$C$29012>=Acute!$B$7),1,0)) -> 5 | E24: =IF(VALUE(MID(E$2,5,2))<=$D24,OFFSET('CCG-Prov(Acute)'!$B$1,MATCH($A24,'CCG-Prov(Acute)'!$A$2:$A$29012,0)+VALUE(RIGHT(E$2,1))-1,0),"") -> RA7 | F24: =IF(VALUE(MID(F$2,5,2))<=$D24,OFFSET('CCG-Prov(Acute)'!$B$1,MATCH($A24,'CCG-Prov(Acute)'!$A$2:$A$29012,0)+VALUE(RIGHT(F$2,1))-1,0),"") -> RVJ | G24: =IF(VALUE(MID(G$2,5,2))<=$D24,OFFSET('CCG-Prov(Acute)'!$B$1,MATCH($A24,'CCG-Prov(Acute)'!$A$2:$A$29012,0)+VALUE(RIGHT(G$2,1))-1,0),"") -> NTC | H24: =IF(VALUE(MID(H$2,5,2))<=$D24,OFFSET('CCG-Prov(Acute)'!$B$1,MATCH($A24,'CCG-Prov(Acute)'!$A$2:$A$29012,0)+VALUE(RIGHT(H$2,1))-1,0),"") -> RVN | I24: =IF(VALUE(MID(I$2,5,2))<=$D24,OFFSET('CCG-Prov(Acute)'!$B$1,MATCH($A24,'CCG-Prov(Acute)'!$A$2:$A$29012,0)+VALUE(RIGHT(I$2,1))-1,0),"") -> NT3 | J24: =IF(VALUE(MID(J$2,5,2))<=$D24,OFFSET('CCG-Prov(Acute)'!$B$1,MATCH($A24,'CCG-Prov(Acute)'!$A$2:$A$29012,0)+VALUE(RIGHT(J$2,1))-1,0),"") ->  | K24: =IF(VALUE(MID(K$2,5,2))<=$D24,OFFSET('CCG-Prov(Acute)'!$B$1,MATCH($A24,'CCG-Prov(Acute)'!$A$2:$A$29012,0)+VALUE(RIGHT(K$2,1))-1,0),"") ->  | L24: =IF(VALUE(MID(L$2,5,2))<=$D24,OFFSET('CCG-Prov(Acute)'!$B$1,MATCH($A24,'CCG-Prov(Acute)'!$A$2:$A$29012,0)+VALUE(RIGHT(L$2,1))-1,0),"") ->  | M24: =IF(VALUE(MID(M$2,5,2))<=$D24,OFFSET('CCG-Prov(Acute)'!$B$1,MATCH($A24,'CCG-Prov(Acute)'!$A$2:$A$29012,0)+VALUE(RIGHT(M$2,1))-1,0),"") ->  | N24: =IF(VALUE(MID(N$2,5,2))<=$D24,OFFSET('CCG-Prov(Acute)'!$B$1,MATCH($A24,'CCG-Prov(Acute)'!$A$2:$A$29012,0)+VALUE(RIGHT(N$2,1))-1,0),"") ->  | Q24: 5LG | R24: =VLOOKUP(Q24,provnames!$A$2:$B$331,2,0) -> Wandsworth PCT | S24: =SUM(IF(('CCG-Prov(Acute)'!$B$2:$B$28899=Q24),1,0)) -> 27 | U24: =SUM(IF(('CCG-Prov(Amb)'!$A$2:$A$335=A24),1,0)) -> 1 | V24: =SUM(IF(('CCG-Prov(Amb)'!$A$2:$A$335=A24)*('CCG-Prov(Amb)'!$C$2:$C$335>=Ambulance!$B$7),1,0)) -> 1 | W24: =IF(VALUE(MID(W$2,5,2))<=$V24,OFFSET('CCG-Prov(Amb)'!$B$1,MATCH($A24,'CCG-Prov(Amb)'!$A$2:$A$335,0)+VALUE(RIGHT(W$2,1))-1,0),"") -> RX5 | X24: =IF(VALUE(MID(X$2,5,2))<=$V24,OFFSET('CCG-Prov(Amb)'!$B$1,MATCH($A24,'CCG-Prov(Amb)'!$A$2:$A$335,0)+VALUE(RIGHT(X$2,1))-1,0),"") ->  | Y24: =IF(VALUE(MID(Y$2,5,2))<=$V24,OFFSET('CCG-Prov(Amb)'!$B$1,MATCH($A24,'CCG-Prov(Amb)'!$A$2:$A$335,0)+VALUE(RIGHT(Y$2,1))-1,0),"") ->  | Z24: =IF(VALUE(MID(Z$2,5,2))<=$V24,OFFSET('CCG-Prov(Amb)'!$B$1,MATCH($A24,'CCG-Prov(Amb)'!$A$2:$A$335,0)+VALUE(RIGHT(Z$2,1))-1,0),"") ->  | AA24: =IF(VALUE(MID(AA$2,5,2))<=$V24,OFFSET('CCG-Prov(Amb)'!$B$1,MATCH($A24,'CCG-Prov(Amb)'!$A$2:$A$335,0)+VALUE(RIGHT(AA$2,1))-1,0),"") ->  | AG24: =SUM(IF(('CCG-Prov(Births)'!$A$2:$A$6150=A24),1,0)) -> 36 | AH24: =SUM(IF(('CCG-Prov(Births)'!$A$2:$A$6150=A24)*('CCG-Prov(Births)'!$C$2:$C$6150>=Maternity!$B$7),1,0)) -> 2 | AI24: =IF(VALUE(MID(AI$2,5,2))<=$V24,OFFSET('CCG-Prov(Births)'!$B$1,MATCH($A24,'CCG-Prov(Births)'!$A$2:$A$6150,0)+VALUE(RIGHT(AI$2,1))-1,0),"") -> RA7 | AJ24: =IF(VALUE(MID(AJ$2,5,2))<=$V24,OFFSET('CCG-Prov(Births)'!$B$1,MATCH($A24,'CCG-Prov(Births)'!$A$2:$A$6150,0)+VALUE(RIGHT(AJ$2,1))-1,0),"") ->  | AK24: =IF(VALUE(MID(AK$2,5,2))<=$V24,OFFSET('CCG-Prov(Births)'!$B$1,MATCH($A24,'CCG-Prov(Births)'!$A$2:$A$6150,0)+VALUE(RIGHT(AK$2,1))-1,0),"") ->  | AL24: =IF(VALUE(MID(AL$2,5,2))<=$V24,OFFSET('CCG-Prov(Births)'!$B$1,MATCH($A24,'CCG-Prov(Births)'!$A$2:$A$6150,0)+VALUE(RIGHT(AL$2,1))-1,0),"") ->  | AM24: =IF(VALUE(MID(AM$2,5,2))<=$V24,OFFSET('CCG-Prov(Births)'!$B$1,MATCH($A24,'CCG-Prov(Births)'!$A$2:$A$6150,0)+VALUE(RIGHT(AM$2,1))-1,0),"") ->  | AO24: RBK | AP24: =VLOOKUP(AO24,provnames!$A$2:$B$331,2,0) -> Walsall Healthcare NHS Trust | AQ24: =SUM(IF(('CCG-Prov(Births)'!$B$2:$B$6150=AO24),1,0)) -> 32
A25: 07Q | B25: Bromley | C25: =SUM(IF(('CCG-Prov(Acute)'!$A$2:$A$29012=A25),1,0)) -> 149 | D25: =SUM(IF(('CCG-Prov(Acute)'!$A$2:$A$29012=A25)*('CCG-Prov(Acute)'!$C$2:$C$29012>=Acute!$B$7),1,0)) -> 5 | E25: =IF(VALUE(MID(E$2,5,2))<=$D25,OFFSET('CCG-Prov(Acute)'!$B$1,MATCH($A25,'CCG-Prov(Acute)'!$A$2:$A$29012,0)+VALUE(RIGHT(E$2,1))-1,0),"") -> RYQ | F25: =IF(VALUE(MID(F$2,5,2))<=$D25,OFFSET('CCG-Prov(Acute)'!$B$1,MATCH($A25,'CCG-Prov(Acute)'!$A$2:$A$29012,0)+VALUE(RIGHT(F$2,1))-1,0),"") -> RJ1 | G25: =IF(VALUE(MID(G$2,5,2))<=$D25,OFFSET('CCG-Prov(Acute)'!$B$1,MATCH($A25,'CCG-Prov(Acute)'!$A$2:$A$29012,0)+VALUE(RIGHT(G$2,1))-1,0),"") -> RJZ | H25: =IF(VALUE(MID(H$2,5,2))<=$D25,OFFSET('CCG-Prov(Acute)'!$B$1,MATCH($A25,'CCG-Prov(Acute)'!$A$2:$A$29012,0)+VALUE(RIGHT(H$2,1))-1,0),"") -> RJ2 | I25: =IF(VALUE(MID(I$2,5,2))<=$D25,OFFSET('CCG-Prov(Acute)'!$B$1,MATCH($A25,'CCG-Prov(Acute)'!$A$2:$A$29012,0)+VALUE(RIGHT(I$2,1))-1,0),"") -> RJ6 | J25: =IF(VALUE(MID(J$2,5,2))<=$D25,OFFSET('CCG-Prov(Acute)'!$B$1,MATCH($A25,'CCG-Prov(Acute)'!$A$2:$A$29012,0)+VALUE(RIGHT(J$2,1))-1,0),"") ->  | K25: =IF(VALUE(MID(K$2,5,2))<=$D25,OFFSET('CCG-Prov(Acute)'!$B$1,MATCH($A25,'CCG-Prov(Acute)'!$A$2:$A$29012,0)+VALUE(RIGHT(K$2,1))-1,0),"") ->  | L25: =IF(VALUE(MID(L$2,5,2))<=$D25,OFFSET('CCG-Prov(Acute)'!$B$1,MATCH($A25,'CCG-Prov(Acute)'!$A$2:$A$29012,0)+VALUE(RIGHT(L$2,1))-1,0),"") ->  | M25: =IF(VALUE(MID(M$2,5,2))<=$D25,OFFSET('CCG-Prov(Acute)'!$B$1,MATCH($A25,'CCG-Prov(Acute)'!$A$2:$A$29012,0)+VALUE(RIGHT(M$2,1))-1,0),"") ->  | N25: =IF(VALUE(MID(N$2,5,2))<=$D25,OFFSET('CCG-Prov(Acute)'!$B$1,MATCH($A25,'CCG-Prov(Acute)'!$A$2:$A$29012,0)+VALUE(RIGHT(N$2,1))-1,0),"") ->  | Q25: 5M1 | R25: =VLOOKUP(Q25,provnames!$A$2:$B$331,2,0) -> South Birmingham PCT | S25: =SUM(IF(('CCG-Prov(Acute)'!$B$2:$B$28899=Q25),1,0)) -> 41 | U25: =SUM(IF(('CCG-Prov(Amb)'!$A$2:$A$335=A25),1,0)) -> 2 | V25: =SUM(IF(('CCG-Prov(Amb)'!$A$2:$A$335=A25)*('CCG-Prov(Amb)'!$C$2:$C$335>=Ambulance!$B$7),1,0)) -> 2 | W25: =IF(VALUE(MID(W$2,5,2))<=$V25,OFFSET('CCG-Prov(Amb)'!$B$1,MATCH($A25,'CCG-Prov(Amb)'!$A$2:$A$335,0)+VALUE(RIGHT(W$2,1))-1,0),"") -> RRY | X25: =IF(VALUE(MID(X$2,5,2))<=$V25,OFFSET('CCG-Prov(Amb)'!$B$1,MATCH($A25,'CCG-Prov(Amb)'!$A$2:$A$335,0)+VALUE(RIGHT(X$2,1))-1,0),"") -> RYD | Y25: =IF(VALUE(MID(Y$2,5,2))<=$V25,OFFSET('CCG-Prov(Amb)'!$B$1,MATCH($A25,'CCG-Prov(Amb)'!$A$2:$A$335,0)+VALUE(RIGHT(Y$2,1))-1,0),"") ->  | Z25: =IF(VALUE(MID(Z$2,5,2))<=$V25,OFFSET('CCG-Prov(Amb)'!$B$1,MATCH($A25,'CCG-Prov(Amb)'!$A$2:$A$335,0)+VALUE(RIGHT(Z$2,1))-1,0),"") ->  | AA25: =IF(VALUE(MID(AA$2,5,2))<=$V25,OFFSET('CCG-Prov(Amb)'!$B$1,MATCH($A25,'CCG-Prov(Amb)'!$A$2:$A$335,0)+VALUE(RIGHT(AA$2,1))-1,0),"") ->  | AG25: =SUM(IF(('CCG-Prov(Births)'!$A$2:$A$6150=A25),1,0)) -> 32 | AH25: =SUM(IF(('CCG-Prov(Births)'!$A$2:$A$6150=A25)*('CCG-Prov(Births)'!$C$2:$C$6150>=Maternity!$B$7),1,0)) -> 4 | AI25: =IF(VALUE(MID(AI$2,5,2))<=$V25,OFFSET('CCG-Prov(Births)'!$B$1,MATCH($A25,'CCG-Prov(Births)'!$A$2:$A$6150,0)+VALUE(RIGHT(AI$2,1))-1,0),"") -> RYQ | AJ25: =IF(VALUE(MID(AJ$2,5,2))<=$V25,OFFSET('CCG-Prov(Births)'!$B$1,MATCH($A25,'CCG-Prov(Births)'!$A$2:$A$6150,0)+VALUE(RIGHT(AJ$2,1))-1,0),"") -> RJZ | AK25: =IF(VALUE(MID(AK$2,5,2))<=$V25,OFFSET('CCG-Prov(Births)'!$B$1,MATCH($A25,'CCG-Prov(Births)'!$A$2:$A$6150,0)+VALUE(RIGHT(AK$2,1))-1,0),"") ->  | AL25: =IF(VALUE(MID(AL$2,5,2))<=$V25,OFFSET('CCG-Prov(Births)'!$B$1,MATCH($A25,'CCG-Prov(Births)'!$A$2:$A$6150,0)+VALUE(RIGHT(AL$2,1))-1,0),"") ->  | AM25: =IF(VALUE(MID(AM$2,5,2))<=$V25,OFFSET('CCG-Prov(Births)'!$B$1,MATCH($A25,'CCG-Prov(Births)'!$A$2:$A$6150,0)+VALUE(RIGHT(AM$2,1))-1,0),"") ->  | AO25: RBL | AP25: =VLOOKUP(AO25,provnames!$A$2:$B$331,2,0) -> Wirral Univ Teaching Hospital NHS FT | AQ25: =SUM(IF(('CCG-Prov(Births)'!$B$2:$B$6150=AO25),1,0)) -> 33
A26: 00V | B26: Bury | C26: =SUM(IF(('CCG-Prov(Acute)'!$A$2:$A$29012=A26),1,0)) -> 130 | D26: =SUM(IF(('CCG-Prov(Acute)'!$A$2:$A$29012=A26)*('CCG-Prov(Acute)'!$C$2:$C$29012>=Acute!$B$7),1,0)) -> 6 | E26: =IF(VALUE(MID(E$2,5,2))<=$D26,OFFSET('CCG-Prov(Acute)'!$B$1,MATCH($A26,'CCG-Prov(Acute)'!$A$2:$A$29012,0)+VALUE(RIGHT(E$2,1))-1,0),"") -> RW6 | F26: =IF(VALUE(MID(F$2,5,2))<=$D26,OFFSET('CCG-Prov(Acute)'!$B$1,MATCH($A26,'CCG-Prov(Acute)'!$A$2:$A$29012,0)+VALUE(RIGHT(F$2,1))-1,0),"") -> RW3 | G26: =IF(VALUE(MID(G$2,5,2))<=$D26,OFFSET('CCG-Prov(Acute)'!$B$1,MATCH($A26,'CCG-Prov(Acute)'!$A$2:$A$29012,0)+VALUE(RIGHT(G$2,1))-1,0),"") -> RM3 | H26: =IF(VALUE(MID(H$2,5,2))<=$D26,OFFSET('CCG-Prov(Acute)'!$B$1,MATCH($A26,'CCG-Prov(Acute)'!$A$2:$A$29012,0)+VALUE(RIGHT(H$2,1))-1,0),"") -> RMC | I26: =IF(VALUE(MID(I$2,5,2))<=$D26,OFFSET('CCG-Prov(Acute)'!$B$1,MATCH($A26,'CCG-Prov(Acute)'!$A$2:$A$29012,0)+VALUE(RIGHT(I$2,1))-1,0),"") -> RM2 | J26: =IF(VALUE(MID(J$2,5,2))<=$D26,OFFSET('CCG-Prov(Acute)'!$B$1,MATCH($A26,'CCG-Prov(Acute)'!$A$2:$A$29012,0)+VALUE(RIGHT(J$2,1))-1,0),"") -> RBV | K26: =IF(VALUE(MID(K$2,5,2))<=$D26,OFFSET('CCG-Prov(Acute)'!$B$1,MATCH($A26,'CCG-Prov(Acute)'!$A$2:$A$29012,0)+VALUE(RIGHT(K$2,1))-1,0),"") ->  | L26: =IF(VALUE(MID(L$2,5,2))<=$D26,OFFSET('CCG-Prov(Acute)'!$B$1,MATCH($A26,'CCG-Prov(Acute)'!$A$2:$A$29012,0)+VALUE(RIGHT(L$2,1))-1,0),"") ->  | M26: =IF(VALUE(MID(M$2,5,2))<=$D26,OFFSET('CCG-Prov(Acute)'!$B$1,MATCH($A26,'CCG-Prov(Acute)'!$A$2:$A$29012,0)+VALUE(RIGHT(M$2,1))-1,0),"") ->  | N26: =IF(VALUE(MID(N$2,5,2))<=$D26,OFFSET('CCG-Prov(Acute)'!$B$1,MATCH($A26,'CCG-Prov(Acute)'!$A$2:$A$29012,0)+VALUE(RIGHT(N$2,1))-1,0),"") ->  | Q26: 5M2 | R26: =VLOOKUP(Q26,provnames!$A$2:$B$331,2,0) -> Shropshire County PCT | S26: =SUM(IF(('CCG-Prov(Acute)'!$B$2:$B$28899=Q26),1,0)) -> 9 | U26: =SUM(IF(('CCG-Prov(Amb)'!$A$2:$A$335=A26),1,0)) -> 1 | V26: =SUM(IF(('CCG-Prov(Amb)'!$A$2:$A$335=A26)*('CCG-Prov(Amb)'!$C$2:$C$335>=Ambulance!$B$7),1,0)) -> 1 | W26: =IF(VALUE(MID(W$2,5,2))<=$V26,OFFSET('CCG-Prov(Amb)'!$B$1,MATCH($A26,'CCG-Prov(Amb)'!$A$2:$A$335,0)+VALUE(RIGHT(W$2,1))-1,0),"") -> RX7 | X26: =IF(VALUE(MID(X$2,5,2))<=$V26,OFFSET('CCG-Prov(Amb)'!$B$1,MATCH($A26,'CCG-Prov(Amb)'!$A$2:$A$335,0)+VALUE(RIGHT(X$2,1))-1,0),"") ->  | Y26: =IF(VALUE(MID(Y$2,5,2))<=$V26,OFFSET('CCG-Prov(Amb)'!$B$1,MATCH($A26,'CCG-Prov(Amb)'!$A$2:$A$335,0)+VALUE(RIGHT(Y$2,1))-1,0),"") ->  | Z26: =IF(VALUE(MID(Z$2,5,2))<=$V26,OFFSET('CCG-Prov(Amb)'!$B$1,MATCH($A26,'CCG-Prov(Amb)'!$A$2:$A$335,0)+VALUE(RIGHT(Z$2,1))-1,0),"") ->  | AA26: =IF(VALUE(MID(AA$2,5,2))<=$V26,OFFSET('CCG-Prov(Amb)'!$B$1,MATCH($A26,'CCG-Prov(Amb)'!$A$2:$A$335,0)+VALUE(RIGHT(AA$2,1))-1,0),"") ->  | AG26: =SUM(IF(('CCG-Prov(Births)'!$A$2:$A$6150=A26),1,0)) -> 24 | AH26: =SUM(IF(('CCG-Prov(Births)'!$A$2:$A$6150=A26)*('CCG-Prov(Births)'!$C$2:$C$6150>=Maternity!$B$7),1,0)) -> 4 | AI26: =IF(VALUE(MID(AI$2,5,2))<=$V26,OFFSET('CCG-Prov(Births)'!$B$1,MATCH($A26,'CCG-Prov(Births)'!$A$2:$A$6150,0)+VALUE(RIGHT(AI$2,1))-1,0),"") -> RW6 | AJ26: =IF(VALUE(MID(AJ$2,5,2))<=$V26,OFFSET('CCG-Prov(Births)'!$B$1,MATCH($A26,'CCG-Prov(Births)'!$A$2:$A$6150,0)+VALUE(RIGHT(AJ$2,1))-1,0),"") ->  | AK26: =IF(VALUE(MID(AK$2,5,2))<=$V26,OFFSET('CCG-Prov(Births)'!$B$1,MATCH($A26,'CCG-Prov(Births)'!$A$2:$A$6150,0)+VALUE(RIGHT(AK$2,1))-1,0),"") ->  | AL26: =IF(VALUE(MID(AL$2,5,2))<=$V26,OFFSET('CCG-Prov(Births)'!$B$1,MATCH($A26,'CCG-Prov(Births)'!$A$2:$A$6150,0)+VALUE(RIGHT(AL$2,1))-1,0),"") ->  | AM26: =IF(VALUE(MID(AM$2,5,2))<=$V26,OFFSET('CCG-Prov(Births)'!$B$1,MATCH($A26,'CCG-Prov(Births)'!$A$2:$A$6150,0)+VALUE(RIGHT(AM$2,1))-1,0),"") ->  | AO26: RBN | AP26: =VLOOKUP(AO26,provnames!$A$2:$B$331,2,0) -> St Helens & Knowsley Hospitals NHS Trust | AQ26: =SUM(IF(('CCG-Prov(Births)'!$B$2:$B$6150=AO26),1,0)) -> 20
A27: 02T | B27: Calderdale | C27: =SUM(IF(('CCG-Prov(Acute)'!$A$2:$A$29012=A27),1,0)) -> 137 | D27: =SUM(IF(('CCG-Prov(Acute)'!$A$2:$A$29012=A27)*('CCG-Prov(Acute)'!$C$2:$C$29012>=Acute!$B$7),1,0)) -> 5 | E27: =IF(VALUE(MID(E$2,5,2))<=$D27,OFFSET('CCG-Prov(Acute)'!$B$1,MATCH($A27,'CCG-Prov(Acute)'!$A$2:$A$29012,0)+VALUE(RIGHT(E$2,1))-1,0),"") -> RWY | F27: =IF(VALUE(MID(F$2,5,2))<=$D27,OFFSET('CCG-Prov(Acute)'!$B$1,MATCH($A27,'CCG-Prov(Acute)'!$A$2:$A$29012,0)+VALUE(RIGHT(F$2,1))-1,0),"") -> RAE | G27: =IF(VALUE(MID(G$2,5,2))<=$D27,OFFSET('CCG-Prov(Acute)'!$B$1,MATCH($A27,'CCG-Prov(Acute)'!$A$2:$A$29012,0)+VALUE(RIGHT(G$2,1))-1,0),"") -> RR8 | H27: =IF(VALUE(MID(H$2,5,2))<=$D27,OFFSET('CCG-Prov(Acute)'!$B$1,MATCH($A27,'CCG-Prov(Acute)'!$A$2:$A$29012,0)+VALUE(RIGHT(H$2,1))-1,0),"") -> NT3 | I27: =IF(VALUE(MID(I$2,5,2))<=$D27,OFFSET('CCG-Prov(Acute)'!$B$1,MATCH($A27,'CCG-Prov(Acute)'!$A$2:$A$29012,0)+VALUE(RIGHT(I$2,1))-1,0),"") -> RW6 | J27: =IF(VALUE(MID(J$2,5,2))<=$D27,OFFSET('CCG-Prov(Acute)'!$B$1,MATCH($A27,'CCG-Prov(Acute)'!$A$2:$A$29012,0)+VALUE(RIGHT(J$2,1))-1,0),"") ->  | K27: =IF(VALUE(MID(K$2,5,2))<=$D27,OFFSET('CCG-Prov(Acute)'!$B$1,MATCH($A27,'CCG-Prov(Acute)'!$A$2:$A$29012,0)+VALUE(RIGHT(K$2,1))-1,0),"") ->  | L27: =IF(VALUE(MID(L$2,5,2))<=$D27,OFFSET('CCG-Prov(Acute)'!$B$1,MATCH($A27,'CCG-Prov(Acute)'!$A$2:$A$29012,0)+VALUE(RIGHT(L$2,1))-1,0),"") ->  | M27: =IF(VALUE(MID(M$2,5,2))<=$D27,OFFSET('CCG-Prov(Acute)'!$B$1,MATCH($A27,'CCG-Prov(Acute)'!$A$2:$A$29012,0)+VALUE(RIGHT(M$2,1))-1,0),"") ->  | N27: =IF(VALUE(MID(N$2,5,2))<=$D27,OFFSET('CCG-Prov(Acute)'!$B$1,MATCH($A27,'CCG-Prov(Acute)'!$A$2:$A$29012,0)+VALUE(RIGHT(N$2,1))-1,0),"") ->  | Q27: 5M6 | R27: =VLOOKUP(Q27,provnames!$A$2:$B$331,2,0) -> Richmond & Twickenham PCT | S27: =SUM(IF(('CCG-Prov(Acute)'!$B$2:$B$28899=Q27),1,0)) -> 4 | U27: =SUM(IF(('CCG-Prov(Amb)'!$A$2:$A$335=A27),1,0)) -> 2 | V27: =SUM(IF(('CCG-Prov(Amb)'!$A$2:$A$335=A27)*('CCG-Prov(Amb)'!$C$2:$C$335>=Ambulance!$B$7),1,0)) -> 1 | W27: =IF(VALUE(MID(W$2,5,2))<=$V27,OFFSET('CCG-Prov(Amb)'!$B$1,MATCH($A27,'CCG-Prov(Amb)'!$A$2:$A$335,0)+VALUE(RIGHT(W$2,1))-1,0),"") -> RX8 | X27: =IF(VALUE(MID(X$2,5,2))<=$V27,OFFSET('CCG-Prov(Amb)'!$B$1,MATCH($A27,'CCG-Prov(Amb)'!$A$2:$A$335,0)+VALUE(RIGHT(X$2,1))-1,0),"") ->  | Y27: =IF(VALUE(MID(Y$2,5,2))<=$V27,OFFSET('CCG-Prov(Amb)'!$B$1,MATCH($A27,'CCG-Prov(Amb)'!$A$2:$A$335,0)+VALUE(RIGHT(Y$2,1))-1,0),"") ->  | Z27: =IF(VALUE(MID(Z$2,5,2))<=$V27,OFFSET('CCG-Prov(Amb)'!$B$1,MATCH($A27,'CCG-Prov(Amb)'!$A$2:$A$335,0)+VALUE(RIGHT(Z$2,1))-1,0),"") ->  | AA27: =IF(VALUE(MID(AA$2,5,2))<=$V27,OFFSET('CCG-Prov(Amb)'!$B$1,MATCH($A27,'CCG-Prov(Amb)'!$A$2:$A$335,0)+VALUE(RIGHT(AA$2,1))-1,0),"") ->  | AG27: =SUM(IF(('CCG-Prov(Births)'!$A$2:$A$6150=A27),1,0)) -> 23 | AH27: =SUM(IF(('CCG-Prov(Births)'!$A$2:$A$6150=A27)*('CCG-Prov(Births)'!$C$2:$C$6150>=Maternity!$B$7),1,0)) -> 1 | AI27: =IF(VALUE(MID(AI$2,5,2))<=$V27,OFFSET('CCG-Prov(Births)'!$B$1,MATCH($A27,'CCG-Prov(Births)'!$A$2:$A$6150,0)+VALUE(RIGHT(AI$2,1))-1,0),"") -> RWY | AJ27: =IF(VALUE(MID(AJ$2,5,2))<=$V27,OFFSET('CCG-Prov(Births)'!$B$1,MATCH($A27,'CCG-Prov(Births)'!$A$2:$A$6150,0)+VALUE(RIGHT(AJ$2,1))-1,0),"") ->  | AK27: =IF(VALUE(MID(AK$2,5,2))<=$V27,OFFSET('CCG-Prov(Births)'!$B$1,MATCH($A27,'CCG-Prov(Births)'!$A$2:$A$6150,0)+VALUE(RIGHT(AK$2,1))-1,0),"") ->  | AL27: =IF(VALUE(MID(AL$2,5,2))<=$V27,OFFSET('CCG-Prov(Births)'!$B$1,MATCH($A27,'CCG-Prov(Births)'!$A$2:$A$6150,0)+VALUE(RIGHT(AL$2,1))-1,0),"") ->  | AM27: =IF(VALUE(MID(AM$2,5,2))<=$V27,OFFSET('CCG-Prov(Births)'!$B$1,MATCH($A27,'CCG-Prov(Births)'!$A$2:$A$6150,0)+VALUE(RIGHT(AM$2,1))-1,0),"") ->  | AO27: RBT | AP27: =VLOOKUP(AO27,provnames!$A$2:$B$331,2,0) -> Mid Cheshire Hospitals NHS FT | AQ27: =SUM(IF(('CCG-Prov(Births)'!$B$2:$B$6150=AO27),1,0)) -> 26
A28: 06H | B28: Cambridgeshire & Peterborough | C28: =SUM(IF(('CCG-Prov(Acute)'!$A$2:$A$29012=A28),1,0)) -> 179 | D28: =SUM(IF(('CCG-Prov(Acute)'!$A$2:$A$29012=A28)*('CCG-Prov(Acute)'!$C$2:$C$29012>=Acute!$B$7),1,0)) -> 10 | E28: =IF(VALUE(MID(E$2,5,2))<=$D28,OFFSET('CCG-Prov(Acute)'!$B$1,MATCH($A28,'CCG-Prov(Acute)'!$A$2:$A$29012,0)+VALUE(RIGHT(E$2,1))-1,0),"") -> RGT | F28: =IF(VALUE(MID(F$2,5,2))<=$D28,OFFSET('CCG-Prov(Acute)'!$B$1,MATCH($A28,'CCG-Prov(Acute)'!$A$2:$A$29012,0)+VALUE(RIGHT(F$2,1))-1,0),"") -> RGN | G28: =IF(VALUE(MID(G$2,5,2))<=$D28,OFFSET('CCG-Prov(Acute)'!$B$1,MATCH($A28,'CCG-Prov(Acute)'!$A$2:$A$29012,0)+VALUE(RIGHT(G$2,1))-1,0),"") -> RQQ | H28: =IF(VALUE(MID(H$2,5,2))<=$D28,OFFSET('CCG-Prov(Acute)'!$B$1,MATCH($A28,'CCG-Prov(Acute)'!$A$2:$A$29012,0)+VALUE(RIGHT(H$2,1))-1,0),"") -> RCX | I28: =IF(VALUE(MID(I$2,5,2))<=$D28,OFFSET('CCG-Prov(Acute)'!$B$1,MATCH($A28,'CCG-Prov(Acute)'!$A$2:$A$29012,0)+VALUE(RIGHT(I$2,1))-1,0),"") -> RGM | J28: =IF(VALUE(MID(J$2,5,2))<=$D28,OFFSET('CCG-Prov(Acute)'!$B$1,MATCH($A28,'CCG-Prov(Acute)'!$A$2:$A$29012,0)+VALUE(RIGHT(J$2,1))-1,0),"") -> RYV | K28: =IF(VALUE(MID(K$2,5,2))<=$D28,OFFSET('CCG-Prov(Acute)'!$B$1,MATCH($A28,'CCG-Prov(Acute)'!$A$2:$A$29012,0)+VALUE(RIGHT(K$2,1))-1,0),"") -> NVC | L28: =IF(VALUE(MID(L$2,5,2))<=$D28,OFFSET('CCG-Prov(Acute)'!$B$1,MATCH($A28,'CCG-Prov(Acute)'!$A$2:$A$29012,0)+VALUE(RIGHT(L$2,1))-1,0),"") -> RGR | M28: =IF(VALUE(MID(M$2,5,2))<=$D28,OFFSET('CCG-Prov(Acute)'!$B$1,MATCH($A28,'CCG-Prov(Acute)'!$A$2:$A$29012,0)+VALUE(RIGHT(M$2,1))-1,0),"") -> RWE | N28: =IF(VALUE(MID(N$2,5,2))<=$D28,OFFSET('CCG-Prov(Acute)'!$B$1,MATCH($A28,'CCG-Prov(Acute)'!$A$2:$A$29012,0)+VALUE(RIGHT(N$2,1))-1,0),"") -> RA7 | Q28: 5M7 | R28: =VLOOKUP(Q28,provnames!$A$2:$B$331,2,0) -> Sutton & Merton PCT | S28: =SUM(IF(('CCG-Prov(Acute)'!$B$2:$B$28899=Q28),1,0)) -> 2 | U28: =SUM(IF(('CCG-Prov(Amb)'!$A$2:$A$335=A28),1,0)) -> 2 | V28: =SUM(IF(('CCG-Prov(Amb)'!$A$2:$A$335=A28)*('CCG-Prov(Amb)'!$C$2:$C$335>=Ambulance!$B$7),1,0)) -> 2 | W28: =IF(VALUE(MID(W$2,5,2))<=$V28,OFFSET('CCG-Prov(Amb)'!$B$1,MATCH($A28,'CCG-Prov(Amb)'!$A$2:$A$335,0)+VALUE(RIGHT(W$2,1))-1,0),"") -> RYC | X28: =IF(VALUE(MID(X$2,5,2))<=$V28,OFFSET('CCG-Prov(Amb)'!$B$1,MATCH($A28,'CCG-Prov(Amb)'!$A$2:$A$335,0)+VALUE(RIGHT(X$2,1))-1,0),"") -> RX9 | Y28: =IF(VALUE(MID(Y$2,5,2))<=$V28,OFFSET('CCG-Prov(Amb)'!$B$1,MATCH($A28,'CCG-Prov(Amb)'!$A$2:$A$335,0)+VALUE(RIGHT(Y$2,1))-1,0),"") ->  | Z28: =IF(VALUE(MID(Z$2,5,2))<=$V28,OFFSET('CCG-Prov(Amb)'!$B$1,MATCH($A28,'CCG-Prov(Amb)'!$A$2:$A$335,0)+VALUE(RIGHT(Z$2,1))-1,0),"") ->  | AA28: =IF(VALUE(MID(AA$2,5,2))<=$V28,OFFSET('CCG-Prov(Amb)'!$B$1,MATCH($A28,'CCG-Prov(Amb)'!$A$2:$A$335,0)+VALUE(RIGHT(AA$2,1))-1,0),"") ->  | AG28: =SUM(IF(('CCG-Prov(Births)'!$A$2:$A$6150=A28),1,0)) -> 63 | AH28: =SUM(IF(('CCG-Prov(Births)'!$A$2:$A$6150=A28)*('CCG-Prov(Births)'!$C$2:$C$6150>=Maternity!$B$7),1,0)) -> 5 | AI28: =IF(VALUE(MID(AI$2,5,2))<=$V28,OFFSET('CCG-Prov(Births)'!$B$1,MATCH($A28,'CCG-Prov(Births)'!$A$2:$A$6150,0)+VALUE(RIGHT(AI$2,1))-1,0),"") -> RGT | AJ28: =IF(VALUE(MID(AJ$2,5,2))<=$V28,OFFSET('CCG-Prov(Births)'!$B$1,MATCH($A28,'CCG-Prov(Births)'!$A$2:$A$6150,0)+VALUE(RIGHT(AJ$2,1))-1,0),"") -> RGN | AK28: =IF(VALUE(MID(AK$2,5,2))<=$V28,OFFSET('CCG-Prov(Births)'!$B$1,MATCH($A28,'CCG-Prov(Births)'!$A$2:$A$6150,0)+VALUE(RIGHT(AK$2,1))-1,0),"") ->  | AL28: =IF(VALUE(MID(AL$2,5,2))<=$V28,OFFSET('CCG-Prov(Births)'!$B$1,MATCH($A28,'CCG-Prov(Births)'!$A$2:$A$6150,0)+VALUE(RIGHT(AL$2,1))-1,0),"") ->  | AM28: =IF(VALUE(MID(AM$2,5,2))<=$V28,OFFSET('CCG-Prov(Births)'!$B$1,MATCH($A28,'CCG-Prov(Births)'!$A$2:$A$6150,0)+VALUE(RIGHT(AM$2,1))-1,0),"") ->  | AO28: RBZ | AP28: =VLOOKUP(AO28,provnames!$A$2:$B$331,2,0) -> Northern Devon Healthcare NHS Trust | AQ28: =SUM(IF(('CCG-Prov(Births)'!$B$2:$B$6150=AO28),1,0)) -> 43
A29: 07R | B29: Camden | C29: =SUM(IF(('CCG-Prov(Acute)'!$A$2:$A$29012=A29),1,0)) -> 149 | D29: =SUM(IF(('CCG-Prov(Acute)'!$A$2:$A$29012=A29)*('CCG-Prov(Acute)'!$C$2:$C$29012>=Acute!$B$7),1,0)) -> 5 | E29: =IF(VALUE(MID(E$2,5,2))<=$D29,OFFSET('CCG-Prov(Acute)'!$B$1,MATCH($A29,'CCG-Prov(Acute)'!$A$2:$A$29012,0)+VALUE(RIGHT(E$2,1))-1,0),"") -> RAL | F29: =IF(VALUE(MID(F$2,5,2))<=$D29,OFFSET('CCG-Prov(Acute)'!$B$1,MATCH($A29,'CCG-Prov(Acute)'!$A$2:$A$29012,0)+VALUE(RIGHT(F$2,1))-1,0),"") -> RRV | G29: =IF(VALUE(MID(G$2,5,2))<=$D29,OFFSET('CCG-Prov(Acute)'!$B$1,MATCH($A29,'CCG-Prov(Acute)'!$A$2:$A$29012,0)+VALUE(RIGHT(G$2,1))-1,0),"") -> RYJ | H29: =IF(VALUE(MID(H$2,5,2))<=$D29,OFFSET('CCG-Prov(Acute)'!$B$1,MATCH($A29,'CCG-Prov(Acute)'!$A$2:$A$29012,0)+VALUE(RIGHT(H$2,1))-1,0),"") -> RKE | I29: =IF(VALUE(MID(I$2,5,2))<=$D29,OFFSET('CCG-Prov(Acute)'!$B$1,MATCH($A29,'CCG-Prov(Acute)'!$A$2:$A$29012,0)+VALUE(RIGHT(I$2,1))-1,0),"") -> RJ1 | J29: =IF(VALUE(MID(J$2,5,2))<=$D29,OFFSET('CCG-Prov(Acute)'!$B$1,MATCH($A29,'CCG-Prov(Acute)'!$A$2:$A$29012,0)+VALUE(RIGHT(J$2,1))-1,0),"") ->  | K29: =IF(VALUE(MID(K$2,5,2))<=$D29,OFFSET('CCG-Prov(Acute)'!$B$1,MATCH($A29,'CCG-Prov(Acute)'!$A$2:$A$29012,0)+VALUE(RIGHT(K$2,1))-1,0),"") ->  | L29: =IF(VALUE(MID(L$2,5,2))<=$D29,OFFSET('CCG-Prov(Acute)'!$B$1,MATCH($A29,'CCG-Prov(Acute)'!$A$2:$A$29012,0)+VALUE(RIGHT(L$2,1))-1,0),"") ->  | M29: =IF(VALUE(MID(M$2,5,2))<=$D29,OFFSET('CCG-Prov(Acute)'!$B$1,MATCH($A29,'CCG-Prov(Acute)'!$A$2:$A$29012,0)+VALUE(RIGHT(M$2,1))-1,0),"") ->  | N29: =IF(VALUE(MID(N$2,5,2))<=$D29,OFFSET('CCG-Prov(Acute)'!$B$1,MATCH($A29,'CCG-Prov(Acute)'!$A$2:$A$29012,0)+VALUE(RIGHT(N$2,1))-1,0),"") ->  | Q29: 5M8 | R29: =VLOOKUP(Q29,provnames!$A$2:$B$331,2,0) -> North Somerset PCT | S29: =SUM(IF(('CCG-Prov(Acute)'!$B$2:$B$28899=Q29),1,0)) -> 1 | U29: =SUM(IF(('CCG-Prov(Amb)'!$A$2:$A$335=A29),1,0)) -> 1 | V29: =SUM(IF(('CCG-Prov(Amb)'!$A$2:$A$335=A29)*('CCG-Prov(Amb)'!$C$2:$C$335>=Ambulance!$B$7),1,0)) -> 1 | W29: =IF(VALUE(MID(W$2,5,2))<=$V29,OFFSET('CCG-Prov(Amb)'!$B$1,MATCH($A29,'CCG-Prov(Amb)'!$A$2:$A$335,0)+VALUE(RIGHT(W$2,1))-1,0),"") -> RRY | X29: =IF(VALUE(MID(X$2,5,2))<=$V29,OFFSET('CCG-Prov(Amb)'!$B$1,MATCH($A29,'CCG-Prov(Amb)'!$A$2:$A$335,0)+VALUE(RIGHT(X$2,1))-1,0),"") ->  | Y29: =IF(VALUE(MID(Y$2,5,2))<=$V29,OFFSET('CCG-Prov(Amb)'!$B$1,MATCH($A29,'CCG-Prov(Amb)'!$A$2:$A$335,0)+VALUE(RIGHT(Y$2,1))-1,0),"") ->  | Z29: =IF(VALUE(MID(Z$2,5,2))<=$V29,OFFSET('CCG-Prov(Amb)'!$B$1,MATCH($A29,'CCG-Prov(Amb)'!$A$2:$A$335,0)+VALUE(RIGHT(Z$2,1))-1,0),"") ->  | AA29: =IF(VALUE(MID(AA$2,5,2))<=$V29,OFFSET('CCG-Prov(Amb)'!$B$1,MATCH($A29,'CCG-Prov(Amb)'!$A$2:$A$335,0)+VALUE(RIGHT(AA$2,1))-1,0),"") ->  | AG29: =SUM(IF(('CCG-Prov(Births)'!$A$2:$A$6150=A29),1,0)) -> 40 | AH29: =SUM(IF(('CCG-Prov(Births)'!$A$2:$A$6150=A29)*('CCG-Prov(Births)'!$C$2:$C$6150>=Maternity!$B$7),1,0)) -> 4 | AI29: =IF(VALUE(MID(AI$2,5,2))<=$V29,OFFSET('CCG-Prov(Births)'!$B$1,MATCH($A29,'CCG-Prov(Births)'!$A$2:$A$6150,0)+VALUE(RIGHT(AI$2,1))-1,0),"") -> RRV | AJ29: =IF(VALUE(MID(AJ$2,5,2))<=$V29,OFFSET('CCG-Prov(Births)'!$B$1,MATCH($A29,'CCG-Prov(Births)'!$A$2:$A$6150,0)+VALUE(RIGHT(AJ$2,1))-1,0),"") ->  | AK29: =IF(VALUE(MID(AK$2,5,2))<=$V29,OFFSET('CCG-Prov(Births)'!$B$1,MATCH($A29,'CCG-Prov(Births)'!$A$2:$A$6150,0)+VALUE(RIGHT(AK$2,1))-1,0),"") ->  | AL29: =IF(VALUE(MID(AL$2,5,2))<=$V29,OFFSET('CCG-Prov(Births)'!$B$1,MATCH($A29,'CCG-Prov(Births)'!$A$2:$A$6150,0)+VALUE(RIGHT(AL$2,1))-1,0),"") ->  | AM29: =IF(VALUE(MID(AM$2,5,2))<=$V29,OFFSET('CCG-Prov(Births)'!$B$1,MATCH($A29,'CCG-Prov(Births)'!$A$2:$A$6150,0)+VALUE(RIGHT(AM$2,1))-1,0),"") ->  | AO29: RC1 | AP29: =VLOOKUP(AO29,provnames!$A$2:$B$331,2,0) -> Bedford Hospital NHS Trust | AQ29: =SUM(IF(('CCG-Prov(Births)'!$B$2:$B$6150=AO29),1,0)) -> 21
A30: 04Y | B30: Cannock Chase | C30: =SUM(IF(('CCG-Prov(Acute)'!$A$2:$A$29012=A30),1,0)) -> 113 | D30: =SUM(IF(('CCG-Prov(Acute)'!$A$2:$A$29012=A30)*('CCG-Prov(Acute)'!$C$2:$C$29012>=Acute!$B$7),1,0)) -> 5 | E30: =IF(VALUE(MID(E$2,5,2))<=$D30,OFFSET('CCG-Prov(Acute)'!$B$1,MATCH($A30,'CCG-Prov(Acute)'!$A$2:$A$29012,0)+VALUE(RIGHT(E$2,1))-1,0),"") -> RJD | F30: =IF(VALUE(MID(F$2,5,2))<=$D30,OFFSET('CCG-Prov(Acute)'!$B$1,MATCH($A30,'CCG-Prov(Acute)'!$A$2:$A$29012,0)+VALUE(RIGHT(F$2,1))-1,0),"") -> RBK | G30: =IF(VALUE(MID(G$2,5,2))<=$D30,OFFSET('CCG-Prov(Acute)'!$B$1,MATCH($A30,'CCG-Prov(Acute)'!$A$2:$A$29012,0)+VALUE(RIGHT(G$2,1))-1,0),"") -> RL4 | H30: =IF(VALUE(MID(H$2,5,2))<=$D30,OFFSET('CCG-Prov(Acute)'!$B$1,MATCH($A30,'CCG-Prov(Acute)'!$A$2:$A$29012,0)+VALUE(RIGHT(H$2,1))-1,0),"") -> RJE | I30: =IF(VALUE(MID(I$2,5,2))<=$D30,OFFSET('CCG-Prov(Acute)'!$B$1,MATCH($A30,'CCG-Prov(Acute)'!$A$2:$A$29012,0)+VALUE(RIGHT(I$2,1))-1,0),"") -> RJF | J30: =IF(VALUE(MID(J$2,5,2))<=$D30,OFFSET('CCG-Prov(Acute)'!$B$1,MATCH($A30,'CCG-Prov(Acute)'!$A$2:$A$29012,0)+VALUE(RIGHT(J$2,1))-1,0),"") ->  | K30: =IF(VALUE(MID(K$2,5,2))<=$D30,OFFSET('CCG-Prov(Acute)'!$B$1,MATCH($A30,'CCG-Prov(Acute)'!$A$2:$A$29012,0)+VALUE(RIGHT(K$2,1))-1,0),"") ->  | L30: =IF(VALUE(MID(L$2,5,2))<=$D30,OFFSET('CCG-Prov(Acute)'!$B$1,MATCH($A30,'CCG-Prov(Acute)'!$A$2:$A$29012,0)+VALUE(RIGHT(L$2,1))-1,0),"") ->  | M30: =IF(VALUE(MID(M$2,5,2))<=$D30,OFFSET('CCG-Prov(Acute)'!$B$1,MATCH($A30,'CCG-Prov(Acute)'!$A$2:$A$29012,0)+VALUE(RIGHT(M$2,1))-1,0),"") ->  | N30: =IF(VALUE(MID(N$2,5,2))<=$D30,OFFSET('CCG-Prov(Acute)'!$B$1,MATCH($A30,'CCG-Prov(Acute)'!$A$2:$A$29012,0)+VALUE(RIGHT(N$2,1))-1,0),"") ->  | Q30: 5MK | R30: =VLOOKUP(Q30,provnames!$A$2:$B$331,2,0) -> Telford & Wrekin PCT | S30: =SUM(IF(('CCG-Prov(Acute)'!$B$2:$B$28899=Q30),1,0)) -> 2 | U30: =SUM(IF(('CCG-Prov(Amb)'!$A$2:$A$335=A30),1,0)) -> 1 | V30: =SUM(IF(('CCG-Prov(Amb)'!$A$2:$A$335=A30)*('CCG-Prov(Amb)'!$C$2:$C$335>=Ambulance!$B$7),1,0)) -> 1 | W30: =IF(VALUE(MID(W$2,5,2))<=$V30,OFFSET('CCG-Prov(Amb)'!$B$1,MATCH($A30,'CCG-Prov(Amb)'!$A$2:$A$335,0)+VALUE(RIGHT(W$2,1))-1,0),"") -> RYA | X30: =IF(VALUE(MID(X$2,5,2))<=$V30,OFFSET('CCG-Prov(Amb)'!$B$1,MATCH($A30,'CCG-Prov(Amb)'!$A$2:$A$335,0)+VALUE(RIGHT(X$2,1))-1,0),"") ->  | Y30: =IF(VALUE(MID(Y$2,5,2))<=$V30,OFFSET('CCG-Prov(Amb)'!$B$1,MATCH($A30,'CCG-Prov(Amb)'!$A$2:$A$335,0)+VALUE(RIGHT(Y$2,1))-1,0),"") ->  | Z30: =IF(VALUE(MID(Z$2,5,2))<=$V30,OFFSET('CCG-Prov(Amb)'!$B$1,MATCH($A30,'CCG-Prov(Amb)'!$A$2:$A$335,0)+VALUE(RIGHT(Z$2,1))-1,0),"") ->  | AA30: =IF(VALUE(MID(AA$2,5,2))<=$V30,OFFSET('CCG-Prov(Amb)'!$B$1,MATCH($A30,'CCG-Prov(Amb)'!$A$2:$A$335,0)+VALUE(RIGHT(AA$2,1))-1,0),"") ->  | AG30: =SUM(IF(('CCG-Prov(Births)'!$A$2:$A$6150=A30),1,0)) -> 16 | AH30: =SUM(IF(('CCG-Prov(Births)'!$A$2:$A$6150=A30)*('CCG-Prov(Births)'!$C$2:$C$6150>=Maternity!$B$7),1,0)) -> 4 | AI30: =IF(VALUE(MID(AI$2,5,2))<=$V30,OFFSET('CCG-Prov(Births)'!$B$1,MATCH($A30,'CCG-Prov(Births)'!$A$2:$A$6150,0)+VALUE(RIGHT(AI$2,1))-1,0),"") -> RJD | AJ30: =IF(VALUE(MID(AJ$2,5,2))<=$V30,OFFSET('CCG-Prov(Births)'!$B$1,MATCH($A30,'CCG-Prov(Births)'!$A$2:$A$6150,0)+VALUE(RIGHT(AJ$2,1))-1,0),"") ->  | AK30: =IF(VALUE(MID(AK$2,5,2))<=$V30,OFFSET('CCG-Prov(Births)'!$B$1,MATCH($A30,'CCG-Prov(Births)'!$A$2:$A$6150,0)+VALUE(RIGHT(AK$2,1))-1,0),"") ->  | AL30: =IF(VALUE(MID(AL$2,5,2))<=$V30,OFFSET('CCG-Prov(Births)'!$B$1,MATCH($A30,'CCG-Prov(Births)'!$A$2:$A$6150,0)+VALUE(RIGHT(AL$2,1))-1,0),"") ->  | AM30: =IF(VALUE(MID(AM$2,5,2))<=$V30,OFFSET('CCG-Prov(Births)'!$B$1,MATCH($A30,'CCG-Prov(Births)'!$A$2:$A$6150,0)+VALUE(RIGHT(AM$2,1))-1,0),"") ->  | AO30: RC3 | AP30: =VLOOKUP(AO30,provnames!$A$2:$B$331,2,0) -> Ealing Hospital NHS Trust | AQ30: =SUM(IF(('CCG-Prov(Births)'!$B$2:$B$6150=AO30),1,0)) -> 43
A31: 09E | B31: Canterbury & Coastal | C31: =SUM(IF(('CCG-Prov(Acute)'!$A$2:$A$29012=A31),1,0)) -> 132 | D31: =SUM(IF(('CCG-Prov(Acute)'!$A$2:$A$29012=A31)*('CCG-Prov(Acute)'!$C$2:$C$29012>=Acute!$B$7),1,0)) -> 3 | E31: =IF(VALUE(MID(E$2,5,2))<=$D31,OFFSET('CCG-Prov(Acute)'!$B$1,MATCH($A31,'CCG-Prov(Acute)'!$A$2:$A$29012,0)+VALUE(RIGHT(E$2,1))-1,0),"") -> RVV | F31: =IF(VALUE(MID(F$2,5,2))<=$D31,OFFSET('CCG-Prov(Acute)'!$B$1,MATCH($A31,'CCG-Prov(Acute)'!$A$2:$A$29012,0)+VALUE(RIGHT(F$2,1))-1,0),"") -> NTY | G31: =IF(VALUE(MID(G$2,5,2))<=$D31,OFFSET('CCG-Prov(Acute)'!$B$1,MATCH($A31,'CCG-Prov(Acute)'!$A$2:$A$29012,0)+VALUE(RIGHT(G$2,1))-1,0),"") -> RJ1 | H31: =IF(VALUE(MID(H$2,5,2))<=$D31,OFFSET('CCG-Prov(Acute)'!$B$1,MATCH($A31,'CCG-Prov(Acute)'!$A$2:$A$29012,0)+VALUE(RIGHT(H$2,1))-1,0),"") ->  | I31: =IF(VALUE(MID(I$2,5,2))<=$D31,OFFSET('CCG-Prov(Acute)'!$B$1,MATCH($A31,'CCG-Prov(Acute)'!$A$2:$A$29012,0)+VALUE(RIGHT(I$2,1))-1,0),"") ->  | J31: =IF(VALUE(MID(J$2,5,2))<=$D31,OFFSET('CCG-Prov(Acute)'!$B$1,MATCH($A31,'CCG-Prov(Acute)'!$A$2:$A$29012,0)+VALUE(RIGHT(J$2,1))-1,0),"") ->  | K31: =IF(VALUE(MID(K$2,5,2))<=$D31,OFFSET('CCG-Prov(Acute)'!$B$1,MATCH($A31,'CCG-Prov(Acute)'!$A$2:$A$29012,0)+VALUE(RIGHT(K$2,1))-1,0),"") ->  | L31: =IF(VALUE(MID(L$2,5,2))<=$D31,OFFSET('CCG-Prov(Acute)'!$B$1,MATCH($A31,'CCG-Prov(Acute)'!$A$2:$A$29012,0)+VALUE(RIGHT(L$2,1))-1,0),"") ->  | M31: =IF(VALUE(MID(M$2,5,2))<=$D31,OFFSET('CCG-Prov(Acute)'!$B$1,MATCH($A31,'CCG-Prov(Acute)'!$A$2:$A$29012,0)+VALUE(RIGHT(M$2,1))-1,0),"") ->  | N31: =IF(VALUE(MID(N$2,5,2))<=$D31,OFFSET('CCG-Prov(Acute)'!$B$1,MATCH($A31,'CCG-Prov(Acute)'!$A$2:$A$29012,0)+VALUE(RIGHT(N$2,1))-1,0),"") ->  | Q31: 5MV | R31: =VLOOKUP(Q31,provnames!$A$2:$B$331,2,0) -> Wolverhampton City PCT | S31: =SUM(IF(('CCG-Prov(Acute)'!$B$2:$B$28899=Q31),1,0)) -> 12 | U31: =SUM(IF(('CCG-Prov(Amb)'!$A$2:$A$335=A31),1,0)) -> 1 | V31: =SUM(IF(('CCG-Prov(Amb)'!$A$2:$A$335=A31)*('CCG-Prov(Amb)'!$C$2:$C$335>=Ambulance!$B$7),1,0)) -> 1 | W31: =IF(VALUE(MID(W$2,5,2))<=$V31,OFFSET('CCG-Prov(Amb)'!$B$1,MATCH($A31,'CCG-Prov(Amb)'!$A$2:$A$335,0)+VALUE(RIGHT(W$2,1))-1,0),"") -> RYD | X31: =IF(VALUE(MID(X$2,5,2))<=$V31,OFFSET('CCG-Prov(Amb)'!$B$1,MATCH($A31,'CCG-Prov(Amb)'!$A$2:$A$335,0)+VALUE(RIGHT(X$2,1))-1,0),"") ->  | Y31: =IF(VALUE(MID(Y$2,5,2))<=$V31,OFFSET('CCG-Prov(Amb)'!$B$1,MATCH($A31,'CCG-Prov(Amb)'!$A$2:$A$335,0)+VALUE(RIGHT(Y$2,1))-1,0),"") ->  | Z31: =IF(VALUE(MID(Z$2,5,2))<=$V31,OFFSET('CCG-Prov(Amb)'!$B$1,MATCH($A31,'CCG-Prov(Amb)'!$A$2:$A$335,0)+VALUE(RIGHT(Z$2,1))-1,0),"") ->  | AA31: =IF(VALUE(MID(AA$2,5,2))<=$V31,OFFSET('CCG-Prov(Amb)'!$B$1,MATCH($A31,'CCG-Prov(Amb)'!$A$2:$A$335,0)+VALUE(RIGHT(AA$2,1))-1,0),"") ->  | AG31: =SUM(IF(('CCG-Prov(Births)'!$A$2:$A$6150=A31),1,0)) -> 15 | AH31: =SUM(IF(('CCG-Prov(Births)'!$A$2:$A$6150=A31)*('CCG-Prov(Births)'!$C$2:$C$6150>=Maternity!$B$7),1,0)) -> 1 | AI31: =IF(VALUE(MID(AI$2,5,2))<=$V31,OFFSET('CCG-Prov(Births)'!$B$1,MATCH($A31,'CCG-Prov(Births)'!$A$2:$A$6150,0)+VALUE(RIGHT(AI$2,1))-1,0),"") -> RVV | AJ31: =IF(VALUE(MID(AJ$2,5,2))<=$V31,OFFSET('CCG-Prov(Births)'!$B$1,MATCH($A31,'CCG-Prov(Births)'!$A$2:$A$6150,0)+VALUE(RIGHT(AJ$2,1))-1,0),"") ->  | AK31: =IF(VALUE(MID(AK$2,5,2))<=$V31,OFFSET('CCG-Prov(Births)'!$B$1,MATCH($A31,'CCG-Prov(Births)'!$A$2:$A$6150,0)+VALUE(RIGHT(AK$2,1))-1,0),"") ->  | AL31: =IF(VALUE(MID(AL$2,5,2))<=$V31,OFFSET('CCG-Prov(Births)'!$B$1,MATCH($A31,'CCG-Prov(Births)'!$A$2:$A$6150,0)+VALUE(RIGHT(AL$2,1))-1,0),"") ->  | AM31: =IF(VALUE(MID(AM$2,5,2))<=$V31,OFFSET('CCG-Prov(Births)'!$B$1,MATCH($A31,'CCG-Prov(Births)'!$A$2:$A$6150,0)+VALUE(RIGHT(AM$2,1))-1,0),"") ->  | AO31: RC9 | AP31: =VLOOKUP(AO31,provnames!$A$2:$B$331,2,0) -> Luton & Dunstable Hospital NHS FT | AQ31: =SUM(IF(('CCG-Prov(Births)'!$B$2:$B$6150=AO31),1,0)) -> 62
A32: 99F | B32: Castle Point & Rochford | C32: =SUM(IF(('CCG-Prov(Acute)'!$A$2:$A$29012=A32),1,0)) -> 129 | D32: =SUM(IF(('CCG-Prov(Acute)'!$A$2:$A$29012=A32)*('CCG-Prov(Acute)'!$C$2:$C$29012>=Acute!$B$7),1,0)) -> 4 | E32: =IF(VALUE(MID(E$2,5,2))<=$D32,OFFSET('CCG-Prov(Acute)'!$B$1,MATCH($A32,'CCG-Prov(Acute)'!$A$2:$A$29012,0)+VALUE(RIGHT(E$2,1))-1,0),"") -> RAJ | F32: =IF(VALUE(MID(F$2,5,2))<=$D32,OFFSET('CCG-Prov(Acute)'!$B$1,MATCH($A32,'CCG-Prov(Acute)'!$A$2:$A$29012,0)+VALUE(RIGHT(F$2,1))-1,0),"") -> RDD | G32: =IF(VALUE(MID(G$2,5,2))<=$D32,OFFSET('CCG-Prov(Acute)'!$B$1,MATCH($A32,'CCG-Prov(Acute)'!$A$2:$A$29012,0)+VALUE(RIGHT(G$2,1))-1,0),"") -> RQ8 | H32: =IF(VALUE(MID(H$2,5,2))<=$D32,OFFSET('CCG-Prov(Acute)'!$B$1,MATCH($A32,'CCG-Prov(Acute)'!$A$2:$A$29012,0)+VALUE(RIGHT(H$2,1))-1,0),"") -> NT3 | I32: =IF(VALUE(MID(I$2,5,2))<=$D32,OFFSET('CCG-Prov(Acute)'!$B$1,MATCH($A32,'CCG-Prov(Acute)'!$A$2:$A$29012,0)+VALUE(RIGHT(I$2,1))-1,0),"") ->  | J32: =IF(VALUE(MID(J$2,5,2))<=$D32,OFFSET('CCG-Prov(Acute)'!$B$1,MATCH($A32,'CCG-Prov(Acute)'!$A$2:$A$29012,0)+VALUE(RIGHT(J$2,1))-1,0),"") ->  | K32: =IF(VALUE(MID(K$2,5,2))<=$D32,OFFSET('CCG-Prov(Acute)'!$B$1,MATCH($A32,'CCG-Prov(Acute)'!$A$2:$A$29012,0)+VALUE(RIGHT(K$2,1))-1,0),"") ->  | L32: =IF(VALUE(MID(L$2,5,2))<=$D32,OFFSET('CCG-Prov(Acute)'!$B$1,MATCH($A32,'CCG-Prov(Acute)'!$A$2:$A$29012,0)+VALUE(RIGHT(L$2,1))-1,0),"") ->  | M32: =IF(VALUE(MID(M$2,5,2))<=$D32,OFFSET('CCG-Prov(Acute)'!$B$1,MATCH($A32,'CCG-Prov(Acute)'!$A$2:$A$29012,0)+VALUE(RIGHT(M$2,1))-1,0),"") ->  | N32: =IF(VALUE(MID(N$2,5,2))<=$D32,OFFSET('CCG-Prov(Acute)'!$B$1,MATCH($A32,'CCG-Prov(Acute)'!$A$2:$A$29012,0)+VALUE(RIGHT(N$2,1))-1,0),"") ->  | Q32: 5MX | R32: =VLOOKUP(Q32,provnames!$A$2:$B$331,2,0) -> Heart of Birmingham Teaching PCT | S32: =SUM(IF(('CCG-Prov(Acute)'!$B$2:$B$28899=Q32),1,0)) -> 4 | U32: =SUM(IF(('CCG-Prov(Amb)'!$A$2:$A$335=A32),1,0)) -> 1 | V32: =SUM(IF(('CCG-Prov(Amb)'!$A$2:$A$335=A32)*('CCG-Prov(Amb)'!$C$2:$C$335>=Ambulance!$B$7),1,0)) -> 1 | W32: =IF(VALUE(MID(W$2,5,2))<=$V32,OFFSET('CCG-Prov(Amb)'!$B$1,MATCH($A32,'CCG-Prov(Amb)'!$A$2:$A$335,0)+VALUE(RIGHT(W$2,1))-1,0),"") -> RYC | X32: =IF(VALUE(MID(X$2,5,2))<=$V32,OFFSET('CCG-Prov(Amb)'!$B$1,MATCH($A32,'CCG-Prov(Amb)'!$A$2:$A$335,0)+VALUE(RIGHT(X$2,1))-1,0),"") ->  | Y32: =IF(VALUE(MID(Y$2,5,2))<=$V32,OFFSET('CCG-Prov(Amb)'!$B$1,MATCH($A32,'CCG-Prov(Amb)'!$A$2:$A$335,0)+VALUE(RIGHT(Y$2,1))-1,0),"") ->  | Z32: =IF(VALUE(MID(Z$2,5,2))<=$V32,OFFSET('CCG-Prov(Amb)'!$B$1,MATCH($A32,'CCG-Prov(Amb)'!$A$2:$A$335,0)+VALUE(RIGHT(Z$2,1))-1,0),"") ->  | AA32: =IF(VALUE(MID(AA$2,5,2))<=$V32,OFFSET('CCG-Prov(Amb)'!$B$1,MATCH($A32,'CCG-Prov(Amb)'!$A$2:$A$335,0)+VALUE(RIGHT(AA$2,1))-1,0),"") ->  | AG32: =SUM(IF(('CCG-Prov(Births)'!$A$2:$A$6150=A32),1,0)) -> 18 | AH32: =SUM(IF(('CCG-Prov(Births)'!$A$2:$A$6150=A32)*('CCG-Prov(Births)'!$C$2:$C$6150>=Maternity!$B$7),1,0)) -> 2 | AI32: =IF(VALUE(MID(AI$2,5,2))<=$V32,OFFSET('CCG-Prov(Births)'!$B$1,MATCH($A32,'CCG-Prov(Births)'!$A$2:$A$6150,0)+VALUE(RIGHT(AI$2,1))-1,0),"") -> RAJ | AJ32: =IF(VALUE(MID(AJ$2,5,2))<=$V32,OFFSET('CCG-Prov(Births)'!$B$1,MATCH($A32,'CCG-Prov(Births)'!$A$2:$A$6150,0)+VALUE(RIGHT(AJ$2,1))-1,0),"") ->  | AK32: =IF(VALUE(MID(AK$2,5,2))<=$V32,OFFSET('CCG-Prov(Births)'!$B$1,MATCH($A32,'CCG-Prov(Births)'!$A$2:$A$6150,0)+VALUE(RIGHT(AK$2,1))-1,0),"") ->  | AL32: =IF(VALUE(MID(AL$2,5,2))<=$V32,OFFSET('CCG-Prov(Births)'!$B$1,MATCH($A32,'CCG-Prov(Births)'!$A$2:$A$6150,0)+VALUE(RIGHT(AL$2,1))-1,0),"") ->  | AM32: =IF(VALUE(MID(AM$2,5,2))<=$V32,OFFSET('CCG-Prov(Births)'!$B$1,MATCH($A32,'CCG-Prov(Births)'!$A$2:$A$6150,0)+VALUE(RIGHT(AM$2,1))-1,0),"") ->  | AO32: RCB | AP32: =VLOOKUP(AO32,provnames!$A$2:$B$331,2,0) -> York Teaching Hospital NHS FT | AQ32: =SUM(IF(('CCG-Prov(Births)'!$B$2:$B$6150=AO32),1,0)) -> 40
A33: 09A | B33: Central London (Westminster) | C33: =SUM(IF(('CCG-Prov(Acute)'!$A$2:$A$29012=A33),1,0)) -> 137 | D33: =SUM(IF(('CCG-Prov(Acute)'!$A$2:$A$29012=A33)*('CCG-Prov(Acute)'!$C$2:$C$29012>=Acute!$B$7),1,0)) -> 5 | E33: =IF(VALUE(MID(E$2,5,2))<=$D33,OFFSET('CCG-Prov(Acute)'!$B$1,MATCH($A33,'CCG-Prov(Acute)'!$A$2:$A$29012,0)+VALUE(RIGHT(E$2,1))-1,0),"") -> RYJ | F33: =IF(VALUE(MID(F$2,5,2))<=$D33,OFFSET('CCG-Prov(Acute)'!$B$1,MATCH($A33,'CCG-Prov(Acute)'!$A$2:$A$29012,0)+VALUE(RIGHT(F$2,1))-1,0),"") -> RQM | G33: =IF(VALUE(MID(G$2,5,2))<=$D33,OFFSET('CCG-Prov(Acute)'!$B$1,MATCH($A33,'CCG-Prov(Acute)'!$A$2:$A$29012,0)+VALUE(RIGHT(G$2,1))-1,0),"") -> RRV | H33: =IF(VALUE(MID(H$2,5,2))<=$D33,OFFSET('CCG-Prov(Acute)'!$B$1,MATCH($A33,'CCG-Prov(Acute)'!$A$2:$A$29012,0)+VALUE(RIGHT(H$2,1))-1,0),"") -> RJ1 | I33: =IF(VALUE(MID(I$2,5,2))<=$D33,OFFSET('CCG-Prov(Acute)'!$B$1,MATCH($A33,'CCG-Prov(Acute)'!$A$2:$A$29012,0)+VALUE(RIGHT(I$2,1))-1,0),"") -> RAL | J33: =IF(VALUE(MID(J$2,5,2))<=$D33,OFFSET('CCG-Prov(Acute)'!$B$1,MATCH($A33,'CCG-Prov(Acute)'!$A$2:$A$29012,0)+VALUE(RIGHT(J$2,1))-1,0),"") ->  | K33: =IF(VALUE(MID(K$2,5,2))<=$D33,OFFSET('CCG-Prov(Acute)'!$B$1,MATCH($A33,'CCG-Prov(Acute)'!$A$2:$A$29012,0)+VALUE(RIGHT(K$2,1))-1,0),"") ->  | L33: =IF(VALUE(MID(L$2,5,2))<=$D33,OFFSET('CCG-Prov(Acute)'!$B$1,MATCH($A33,'CCG-Prov(Acute)'!$A$2:$A$29012,0)+VALUE(RIGHT(L$2,1))-1,0),"") ->  | M33: =IF(VALUE(MID(M$2,5,2))<=$D33,OFFSET('CCG-Prov(Acute)'!$B$1,MATCH($A33,'CCG-Prov(Acute)'!$A$2:$A$29012,0)+VALUE(RIGHT(M$2,1))-1,0),"") ->  | N33: =IF(VALUE(MID(N$2,5,2))<=$D33,OFFSET('CCG-Prov(Acute)'!$B$1,MATCH($A33,'CCG-Prov(Acute)'!$A$2:$A$29012,0)+VALUE(RIGHT(N$2,1))-1,0),"") ->  | Q33: 5N5 | R33: =VLOOKUP(Q33,provnames!$A$2:$B$331,2,0) -> Doncaster PCT | S33: =SUM(IF(('CCG-Prov(Acute)'!$B$2:$B$28899=Q33),1,0)) -> 7 | U33: =SUM(IF(('CCG-Prov(Amb)'!$A$2:$A$335=A33),1,0)) -> 1 | V33: =SUM(IF(('CCG-Prov(Amb)'!$A$2:$A$335=A33)*('CCG-Prov(Amb)'!$C$2:$C$335>=Ambulance!$B$7),1,0)) -> 1 | W33: =IF(VALUE(MID(W$2,5,2))<=$V33,OFFSET('CCG-Prov(Amb)'!$B$1,MATCH($A33,'CCG-Prov(Amb)'!$A$2:$A$335,0)+VALUE(RIGHT(W$2,1))-1,0),"") -> RRY | X33: =IF(VALUE(MID(X$2,5,2))<=$V33,OFFSET('CCG-Prov(Amb)'!$B$1,MATCH($A33,'CCG-Prov(Amb)'!$A$2:$A$335,0)+VALUE(RIGHT(X$2,1))-1,0),"") ->  | Y33: =IF(VALUE(MID(Y$2,5,2))<=$V33,OFFSET('CCG-Prov(Amb)'!$B$1,MATCH($A33,'CCG-Prov(Amb)'!$A$2:$A$335,0)+VALUE(RIGHT(Y$2,1))-1,0),"") ->  | Z33: =IF(VALUE(MID(Z$2,5,2))<=$V33,OFFSET('CCG-Prov(Amb)'!$B$1,MATCH($A33,'CCG-Prov(Amb)'!$A$2:$A$335,0)+VALUE(RIGHT(Z$2,1))-1,0),"") ->  | AA33: =IF(VALUE(MID(AA$2,5,2))<=$V33,OFFSET('CCG-Prov(Amb)'!$B$1,MATCH($A33,'CCG-Prov(Amb)'!$A$2:$A$335,0)+VALUE(RIGHT(AA$2,1))-1,0),"") ->  | AG33: =SUM(IF(('CCG-Prov(Births)'!$A$2:$A$6150=A33),1,0)) -> 32 | AH33: =SUM(IF(('CCG-Prov(Births)'!$A$2:$A$6150=A33)*('CCG-Prov(Births)'!$C$2:$C$6150>=Maternity!$B$7),1,0)) -> 4 | AI33: =IF(VALUE(MID(AI$2,5,2))<=$V33,OFFSET('CCG-Prov(Births)'!$B$1,MATCH($A33,'CCG-Prov(Births)'!$A$2:$A$6150,0)+VALUE(RIGHT(AI$2,1))-1,0),"") -> RYJ | AJ33: =IF(VALUE(MID(AJ$2,5,2))<=$V33,OFFSET('CCG-Prov(Births)'!$B$1,MATCH($A33,'CCG-Prov(Births)'!$A$2:$A$6150,0)+VALUE(RIGHT(AJ$2,1))-1,0),"") ->  | AK33: =IF(VALUE(MID(AK$2,5,2))<=$V33,OFFSET('CCG-Prov(Births)'!$B$1,MATCH($A33,'CCG-Prov(Births)'!$A$2:$A$6150,0)+VALUE(RIGHT(AK$2,1))-1,0),"") ->  | AL33: =IF(VALUE(MID(AL$2,5,2))<=$V33,OFFSET('CCG-Prov(Births)'!$B$1,MATCH($A33,'CCG-Prov(Births)'!$A$2:$A$6150,0)+VALUE(RIGHT(AL$2,1))-1,0),"") ->  | AM33: =IF(VALUE(MID(AM$2,5,2))<=$V33,OFFSET('CCG-Prov(Births)'!$B$1,MATCH($A33,'CCG-Prov(Births)'!$A$2:$A$6150,0)+VALUE(RIGHT(AM$2,1))-1,0),"") ->  | AO33: RCC | AP33: =VLOOKUP(AO33,provnames!$A$2:$B$331,2,0) -> Scarborough & NE Yorkshire Health Care NHS Trust | AQ33: =SUM(IF(('CCG-Prov(Births)'!$B$2:$B$6150=AO33),1,0)) -> 35
A34: 00W | B34: Central Manchester | C34: =SUM(IF(('CCG-Prov(Acute)'!$A$2:$A$29012=A34),1,0)) -> 154 | D34: =SUM(IF(('CCG-Prov(Acute)'!$A$2:$A$29012=A34)*('CCG-Prov(Acute)'!$C$2:$C$29012>=Acute!$B$7),1,0)) -> 6 | E34: =IF(VALUE(MID(E$2,5,2))<=$D34,OFFSET('CCG-Prov(Acute)'!$B$1,MATCH($A34,'CCG-Prov(Acute)'!$A$2:$A$29012,0)+VALUE(RIGHT(E$2,1))-1,0),"") -> RW3 | F34: =IF(VALUE(MID(F$2,5,2))<=$D34,OFFSET('CCG-Prov(Acute)'!$B$1,MATCH($A34,'CCG-Prov(Acute)'!$A$2:$A$29012,0)+VALUE(RIGHT(F$2,1))-1,0),"") -> RM2 | G34: =IF(VALUE(MID(G$2,5,2))<=$D34,OFFSET('CCG-Prov(Acute)'!$B$1,MATCH($A34,'CCG-Prov(Acute)'!$A$2:$A$29012,0)+VALUE(RIGHT(G$2,1))-1,0),"") -> RM3 | H34: =IF(VALUE(MID(H$2,5,2))<=$D34,OFFSET('CCG-Prov(Acute)'!$B$1,MATCH($A34,'CCG-Prov(Acute)'!$A$2:$A$29012,0)+VALUE(RIGHT(H$2,1))-1,0),"") -> RW6 | I34: =IF(VALUE(MID(I$2,5,2))<=$D34,OFFSET('CCG-Prov(Acute)'!$B$1,MATCH($A34,'CCG-Prov(Acute)'!$A$2:$A$29012,0)+VALUE(RIGHT(I$2,1))-1,0),"") -> RM4 | J34: =IF(VALUE(MID(J$2,5,2))<=$D34,OFFSET('CCG-Prov(Acute)'!$B$1,MATCH($A34,'CCG-Prov(Acute)'!$A$2:$A$29012,0)+VALUE(RIGHT(J$2,1))-1,0),"") -> RBV | K34: =IF(VALUE(MID(K$2,5,2))<=$D34,OFFSET('CCG-Prov(Acute)'!$B$1,MATCH($A34,'CCG-Prov(Acute)'!$A$2:$A$29012,0)+VALUE(RIGHT(K$2,1))-1,0),"") ->  | L34: =IF(VALUE(MID(L$2,5,2))<=$D34,OFFSET('CCG-Prov(Acute)'!$B$1,MATCH($A34,'CCG-Prov(Acute)'!$A$2:$A$29012,0)+VALUE(RIGHT(L$2,1))-1,0),"") ->  | M34: =IF(VALUE(MID(M$2,5,2))<=$D34,OFFSET('CCG-Prov(Acute)'!$B$1,MATCH($A34,'CCG-Prov(Acute)'!$A$2:$A$29012,0)+VALUE(RIGHT(M$2,1))-1,0),"") ->  | N34: =IF(VALUE(MID(N$2,5,2))<=$D34,OFFSET('CCG-Prov(Acute)'!$B$1,MATCH($A34,'CCG-Prov(Acute)'!$A$2:$A$29012,0)+VALUE(RIGHT(N$2,1))-1,0),"") ->  | Q34: 5N6 | R34: =VLOOKUP(Q34,provnames!$A$2:$B$331,2,0) -> Derbyshire County PCT | S34: =SUM(IF(('CCG-Prov(Acute)'!$B$2:$B$28899=Q34),1,0)) -> 29 | U34: =SUM(IF(('CCG-Prov(Amb)'!$A$2:$A$335=A34),1,0)) -> 1 | V34: =SUM(IF(('CCG-Prov(Amb)'!$A$2:$A$335=A34)*('CCG-Prov(Amb)'!$C$2:$C$335>=Ambulance!$B$7),1,0)) -> 1 | W34: =IF(VALUE(MID(W$2,5,2))<=$V34,OFFSET('CCG-Prov(Amb)'!$B$1,MATCH($A34,'CCG-Prov(Amb)'!$A$2:$A$335,0)+VALUE(RIGHT(W$2,1))-1,0),"") -> RX7 | X34: =IF(VALUE(MID(X$2,5,2))<=$V34,OFFSET('CCG-Prov(Amb)'!$B$1,MATCH($A34,'CCG-Prov(Amb)'!$A$2:$A$335,0)+VALUE(RIGHT(X$2,1))-1,0),"") ->  | Y34: =IF(VALUE(MID(Y$2,5,2))<=$V34,OFFSET('CCG-Prov(Amb)'!$B$1,MATCH($A34,'CCG-Prov(Amb)'!$A$2:$A$335,0)+VALUE(RIGHT(Y$2,1))-1,0),"") ->  | Z34: =IF(VALUE(MID(Z$2,5,2))<=$V34,OFFSET('CCG-Prov(Amb)'!$B$1,MATCH($A34,'CCG-Prov(Amb)'!$A$2:$A$335,0)+VALUE(RIGHT(Z$2,1))-1,0),"") ->  | AA34: =IF(VALUE(MID(AA$2,5,2))<=$V34,OFFSET('CCG-Prov(Amb)'!$B$1,MATCH($A34,'CCG-Prov(Amb)'!$A$2:$A$335,0)+VALUE(RIGHT(AA$2,1))-1,0),"") ->  | AG34: =SUM(IF(('CCG-Prov(Births)'!$A$2:$A$6150=A34),1,0)) -> 25 | AH34: =SUM(IF(('CCG-Prov(Births)'!$A$2:$A$6150=A34)*('CCG-Prov(Births)'!$C$2:$C$6150>=Maternity!$B$7),1,0)) -> 3 | AI34: =IF(VALUE(MID(AI$2,5,2))<=$V34,OFFSET('CCG-Prov(Births)'!$B$1,MATCH($A34,'CCG-Prov(Births)'!$A$2:$A$6150,0)+VALUE(RIGHT(AI$2,1))-1,0),"") -> RW3 | AJ34: =IF(VALUE(MID(AJ$2,5,2))<=$V34,OFFSET('CCG-Prov(Births)'!$B$1,MATCH($A34,'CCG-Prov(Births)'!$A$2:$A$6150,0)+VALUE(RIGHT(AJ$2,1))-1,0),"") ->  | AK34: =IF(VALUE(MID(AK$2,5,2))<=$V34,OFFSET('CCG-Prov(Births)'!$B$1,MATCH($A34,'CCG-Prov(Births)'!$A$2:$A$6150,0)+VALUE(RIGHT(AK$2,1))-1,0),"") ->  | AL34: =IF(VALUE(MID(AL$2,5,2))<=$V34,OFFSET('CCG-Prov(Births)'!$B$1,MATCH($A34,'CCG-Prov(Births)'!$A$2:$A$6150,0)+VALUE(RIGHT(AL$2,1))-1,0),"") ->  | AM34: =IF(VALUE(MID(AM$2,5,2))<=$V34,OFFSET('CCG-Prov(Births)'!$B$1,MATCH($A34,'CCG-Prov(Births)'!$A$2:$A$6150,0)+VALUE(RIGHT(AM$2,1))-1,0),"") ->  | AO34: RCD | AP34: =VLOOKUP(AO34,provnames!$A$2:$B$331,2,0) -> Harrogate & District NHS FT | AQ34: =SUM(IF(('CCG-Prov(Births)'!$B$2:$B$6150=AO34),1,0)) -> 25
A35: 10H | B35: Chiltern | C35: =SUM(IF(('CCG-Prov(Acute)'!$A$2:$A$29012=A35),1,0)) -> 155 | D35: =SUM(IF(('CCG-Prov(Acute)'!$A$2:$A$29012=A35)*('CCG-Prov(Acute)'!$C$2:$C$29012>=Acute!$B$7),1,0)) -> 8 | E35: =IF(VALUE(MID(E$2,5,2))<=$D35,OFFSET('CCG-Prov(Acute)'!$B$1,MATCH($A35,'CCG-Prov(Acute)'!$A$2:$A$29012,0)+VALUE(RIGHT(E$2,1))-1,0),"") -> RXQ | F35: =IF(VALUE(MID(F$2,5,2))<=$D35,OFFSET('CCG-Prov(Acute)'!$B$1,MATCH($A35,'CCG-Prov(Acute)'!$A$2:$A$29012,0)+VALUE(RIGHT(F$2,1))-1,0),"") -> RD7 | G35: =IF(VALUE(MID(G$2,5,2))<=$D35,OFFSET('CCG-Prov(Acute)'!$B$1,MATCH($A35,'CCG-Prov(Acute)'!$A$2:$A$29012,0)+VALUE(RIGHT(G$2,1))-1,0),"") -> RTH | H35: =IF(VALUE(MID(H$2,5,2))<=$D35,OFFSET('CCG-Prov(Acute)'!$B$1,MATCH($A35,'CCG-Prov(Acute)'!$A$2:$A$29012,0)+VALUE(RIGHT(H$2,1))-1,0),"") -> RHW | I35: =IF(VALUE(MID(I$2,5,2))<=$D35,OFFSET('CCG-Prov(Acute)'!$B$1,MATCH($A35,'CCG-Prov(Acute)'!$A$2:$A$29012,0)+VALUE(RIGHT(I$2,1))-1,0),"") -> RAS | J35: =IF(VALUE(MID(J$2,5,2))<=$D35,OFFSET('CCG-Prov(Acute)'!$B$1,MATCH($A35,'CCG-Prov(Acute)'!$A$2:$A$29012,0)+VALUE(RIGHT(J$2,1))-1,0),"") -> NT4 | K35: =IF(VALUE(MID(K$2,5,2))<=$D35,OFFSET('CCG-Prov(Acute)'!$B$1,MATCH($A35,'CCG-Prov(Acute)'!$A$2:$A$29012,0)+VALUE(RIGHT(K$2,1))-1,0),"") -> RYJ | L35: =IF(VALUE(MID(L$2,5,2))<=$D35,OFFSET('CCG-Prov(Acute)'!$B$1,MATCH($A35,'CCG-Prov(Acute)'!$A$2:$A$29012,0)+VALUE(RIGHT(L$2,1))-1,0),"") -> 5QD | M35: =IF(VALUE(MID(M$2,5,2))<=$D35,OFFSET('CCG-Prov(Acute)'!$B$1,MATCH($A35,'CCG-Prov(Acute)'!$A$2:$A$29012,0)+VALUE(RIGHT(M$2,1))-1,0),"") ->  | N35: =IF(VALUE(MID(N$2,5,2))<=$D35,OFFSET('CCG-Prov(Acute)'!$B$1,MATCH($A35,'CCG-Prov(Acute)'!$A$2:$A$29012,0)+VALUE(RIGHT(N$2,1))-1,0),"") ->  | Q35: 5N8 | R35: =VLOOKUP(Q35,provnames!$A$2:$B$331,2,0) -> Nottinghamshire County Teaching PCT | S35: =SUM(IF(('CCG-Prov(Acute)'!$B$2:$B$28899=Q35),1,0)) -> 14 | U35: =SUM(IF(('CCG-Prov(Amb)'!$A$2:$A$335=A35),1,0)) -> 3 | V35: =SUM(IF(('CCG-Prov(Amb)'!$A$2:$A$335=A35)*('CCG-Prov(Amb)'!$C$2:$C$335>=Ambulance!$B$7),1,0)) -> 1 | W35: =IF(VALUE(MID(W$2,5,2))<=$V35,OFFSET('CCG-Prov(Amb)'!$B$1,MATCH($A35,'CCG-Prov(Amb)'!$A$2:$A$335,0)+VALUE(RIGHT(W$2,1))-1,0),"") -> RYE | X35: =IF(VALUE(MID(X$2,5,2))<=$V35,OFFSET('CCG-Prov(Amb)'!$B$1,MATCH($A35,'CCG-Prov(Amb)'!$A$2:$A$335,0)+VALUE(RIGHT(X$2,1))-1,0),"") ->  | Y35: =IF(VALUE(MID(Y$2,5,2))<=$V35,OFFSET('CCG-Prov(Amb)'!$B$1,MATCH($A35,'CCG-Prov(Amb)'!$A$2:$A$335,0)+VALUE(RIGHT(Y$2,1))-1,0),"") ->  | Z35: =IF(VALUE(MID(Z$2,5,2))<=$V35,OFFSET('CCG-Prov(Amb)'!$B$1,MATCH($A35,'CCG-Prov(Amb)'!$A$2:$A$335,0)+VALUE(RIGHT(Z$2,1))-1,0),"") ->  | AA35: =IF(VALUE(MID(AA$2,5,2))<=$V35,OFFSET('CCG-Prov(Amb)'!$B$1,MATCH($A35,'CCG-Prov(Amb)'!$A$2:$A$335,0)+VALUE(RIGHT(AA$2,1))-1,0),"") ->  | AG35: =SUM(IF(('CCG-Prov(Births)'!$A$2:$A$6150=A35),1,0)) -> 48 | AH35: =SUM(IF(('CCG-Prov(Births)'!$A$2:$A$6150=A35)*('CCG-Prov(Births)'!$C$2:$C$6150>=Maternity!$B$7),1,0)) -> 4 | AI35: =IF(VALUE(MID(AI$2,5,2))<=$V35,OFFSET('CCG-Prov(Births)'!$B$1,MATCH($A35,'CCG-Prov(Births)'!$A$2:$A$6150,0)+VALUE(RIGHT(AI$2,1))-1,0),"") -> RXQ | AJ35: =IF(VALUE(MID(AJ$2,5,2))<=$V35,OFFSET('CCG-Prov(Births)'!$B$1,MATCH($A35,'CCG-Prov(Births)'!$A$2:$A$6150,0)+VALUE(RIGHT(AJ$2,1))-1,0),"") ->  | AK35: =IF(VALUE(MID(AK$2,5,2))<=$V35,OFFSET('CCG-Prov(Births)'!$B$1,MATCH($A35,'CCG-Prov(Births)'!$A$2:$A$6150,0)+VALUE(RIGHT(AK$2,1))-1,0),"") ->  | AL35: =IF(VALUE(MID(AL$2,5,2))<=$V35,OFFSET('CCG-Prov(Births)'!$B$1,MATCH($A35,'CCG-Prov(Births)'!$A$2:$A$6150,0)+VALUE(RIGHT(AL$2,1))-1,0),"") ->  | AM35: =IF(VALUE(MID(AM$2,5,2))<=$V35,OFFSET('CCG-Prov(Births)'!$B$1,MATCH($A35,'CCG-Prov(Births)'!$A$2:$A$6150,0)+VALUE(RIGHT(AM$2,1))-1,0),"") ->  | AO35: RCF | AP35: =VLOOKUP(AO35,provnames!$A$2:$B$331,2,0) -> Airedale NHS FT | AQ35: =SUM(IF(('CCG-Prov(Births)'!$B$2:$B$6150=AO35),1,0)) -> 35
A36: 00X | B36: Chorley & South Ribble | C36: =SUM(IF(('CCG-Prov(Acute)'!$A$2:$A$29012=A36),1,0)) -> 119 | D36: =SUM(IF(('CCG-Prov(Acute)'!$A$2:$A$29012=A36)*('CCG-Prov(Acute)'!$C$2:$C$29012>=Acute!$B$7),1,0)) -> 5 | E36: =IF(VALUE(MID(E$2,5,2))<=$D36,OFFSET('CCG-Prov(Acute)'!$B$1,MATCH($A36,'CCG-Prov(Acute)'!$A$2:$A$29012,0)+VALUE(RIGHT(E$2,1))-1,0),"") -> RXN | F36: =IF(VALUE(MID(F$2,5,2))<=$D36,OFFSET('CCG-Prov(Acute)'!$B$1,MATCH($A36,'CCG-Prov(Acute)'!$A$2:$A$29012,0)+VALUE(RIGHT(F$2,1))-1,0),"") -> NVC | G36: =IF(VALUE(MID(G$2,5,2))<=$D36,OFFSET('CCG-Prov(Acute)'!$B$1,MATCH($A36,'CCG-Prov(Acute)'!$A$2:$A$29012,0)+VALUE(RIGHT(G$2,1))-1,0),"") -> RRF | H36: =IF(VALUE(MID(H$2,5,2))<=$D36,OFFSET('CCG-Prov(Acute)'!$B$1,MATCH($A36,'CCG-Prov(Acute)'!$A$2:$A$29012,0)+VALUE(RIGHT(H$2,1))-1,0),"") -> RXL | I36: =IF(VALUE(MID(I$2,5,2))<=$D36,OFFSET('CCG-Prov(Acute)'!$B$1,MATCH($A36,'CCG-Prov(Acute)'!$A$2:$A$29012,0)+VALUE(RIGHT(I$2,1))-1,0),"") -> RW3 | J36: =IF(VALUE(MID(J$2,5,2))<=$D36,OFFSET('CCG-Prov(Acute)'!$B$1,MATCH($A36,'CCG-Prov(Acute)'!$A$2:$A$29012,0)+VALUE(RIGHT(J$2,1))-1,0),"") ->  | K36: =IF(VALUE(MID(K$2,5,2))<=$D36,OFFSET('CCG-Prov(Acute)'!$B$1,MATCH($A36,'CCG-Prov(Acute)'!$A$2:$A$29012,0)+VALUE(RIGHT(K$2,1))-1,0),"") ->  | L36: =IF(VALUE(MID(L$2,5,2))<=$D36,OFFSET('CCG-Prov(Acute)'!$B$1,MATCH($A36,'CCG-Prov(Acute)'!$A$2:$A$29012,0)+VALUE(RIGHT(L$2,1))-1,0),"") ->  | M36: =IF(VALUE(MID(M$2,5,2))<=$D36,OFFSET('CCG-Prov(Acute)'!$B$1,MATCH($A36,'CCG-Prov(Acute)'!$A$2:$A$29012,0)+VALUE(RIGHT(M$2,1))-1,0),"") ->  | N36: =IF(VALUE(MID(N$2,5,2))<=$D36,OFFSET('CCG-Prov(Acute)'!$B$1,MATCH($A36,'CCG-Prov(Acute)'!$A$2:$A$29012,0)+VALUE(RIGHT(N$2,1))-1,0),"") ->  | Q36: 5N9 | R36: =VLOOKUP(Q36,provnames!$A$2:$B$331,2,0) -> Lincolnshire Teaching PCT | S36: =SUM(IF(('CCG-Prov(Acute)'!$B$2:$B$28899=Q36),1,0)) -> 26 | U36: =SUM(IF(('CCG-Prov(Amb)'!$A$2:$A$335=A36),1,0)) -> 1 | V36: =SUM(IF(('CCG-Prov(Amb)'!$A$2:$A$335=A36)*('CCG-Prov(Amb)'!$C$2:$C$335>=Ambulance!$B$7),1,0)) -> 1 | W36: =IF(VALUE(MID(W$2,5,2))<=$V36,OFFSET('CCG-Prov(Amb)'!$B$1,MATCH($A36,'CCG-Prov(Amb)'!$A$2:$A$335,0)+VALUE(RIGHT(W$2,1))-1,0),"") -> RX7 | X36: =IF(VALUE(MID(X$2,5,2))<=$V36,OFFSET('CCG-Prov(Amb)'!$B$1,MATCH($A36,'CCG-Prov(Amb)'!$A$2:$A$335,0)+VALUE(RIGHT(X$2,1))-1,0),"") ->  | Y36: =IF(VALUE(MID(Y$2,5,2))<=$V36,OFFSET('CCG-Prov(Amb)'!$B$1,MATCH($A36,'CCG-Prov(Amb)'!$A$2:$A$335,0)+VALUE(RIGHT(Y$2,1))-1,0),"") ->  | Z36: =IF(VALUE(MID(Z$2,5,2))<=$V36,OFFSET('CCG-Prov(Amb)'!$B$1,MATCH($A36,'CCG-Prov(Amb)'!$A$2:$A$335,0)+VALUE(RIGHT(Z$2,1))-1,0),"") ->  | AA36: =IF(VALUE(MID(AA$2,5,2))<=$V36,OFFSET('CCG-Prov(Amb)'!$B$1,MATCH($A36,'CCG-Prov(Amb)'!$A$2:$A$335,0)+VALUE(RIGHT(AA$2,1))-1,0),"") ->  | AG36: =SUM(IF(('CCG-Prov(Births)'!$A$2:$A$6150=A36),1,0)) -> 15 | AH36: =SUM(IF(('CCG-Prov(Births)'!$A$2:$A$6150=A36)*('CCG-Prov(Births)'!$C$2:$C$6150>=Maternity!$B$7),1,0)) -> 2 | AI36: =IF(VALUE(MID(AI$2,5,2))<=$V36,OFFSET('CCG-Prov(Births)'!$B$1,MATCH($A36,'CCG-Prov(Births)'!$A$2:$A$6150,0)+VALUE(RIGHT(AI$2,1))-1,0),"") -> RXN | AJ36: =IF(VALUE(MID(AJ$2,5,2))<=$V36,OFFSET('CCG-Prov(Births)'!$B$1,MATCH($A36,'CCG-Prov(Births)'!$A$2:$A$6150,0)+VALUE(RIGHT(AJ$2,1))-1,0),"") ->  | AK36: =IF(VALUE(MID(AK$2,5,2))<=$V36,OFFSET('CCG-Prov(Births)'!$B$1,MATCH($A36,'CCG-Prov(Births)'!$A$2:$A$6150,0)+VALUE(RIGHT(AK$2,1))-1,0),"") ->  | AL36: =IF(VALUE(MID(AL$2,5,2))<=$V36,OFFSET('CCG-Prov(Births)'!$B$1,MATCH($A36,'CCG-Prov(Births)'!$A$2:$A$6150,0)+VALUE(RIGHT(AL$2,1))-1,0),"") ->  | AM36: =IF(VALUE(MID(AM$2,5,2))<=$V36,OFFSET('CCG-Prov(Births)'!$B$1,MATCH($A36,'CCG-Prov(Births)'!$A$2:$A$6150,0)+VALUE(RIGHT(AM$2,1))-1,0),"") ->  | AO36: RCX | AP36: =VLOOKUP(AO36,provnames!$A$2:$B$331,2,0) -> The Queen Elizabeth Hospital, King's Lynn. NHS FT | AQ36: =SUM(IF(('CCG-Prov(Births)'!$B$2:$B$6150=AO36),1,0)) -> 41
A37: 07T | B37: City & Hackney | C37: =SUM(IF(('CCG-Prov(Acute)'!$A$2:$A$29012=A37),1,0)) -> 143 | D37: =SUM(IF(('CCG-Prov(Acute)'!$A$2:$A$29012=A37)*('CCG-Prov(Acute)'!$C$2:$C$29012>=Acute!$B$7),1,0)) -> 6 | E37: =IF(VALUE(MID(E$2,5,2))<=$D37,OFFSET('CCG-Prov(Acute)'!$B$1,MATCH($A37,'CCG-Prov(Acute)'!$A$2:$A$29012,0)+VALUE(RIGHT(E$2,1))-1,0),"") -> RQX | F37: =IF(VALUE(MID(F$2,5,2))<=$D37,OFFSET('CCG-Prov(Acute)'!$B$1,MATCH($A37,'CCG-Prov(Acute)'!$A$2:$A$29012,0)+VALUE(RIGHT(F$2,1))-1,0),"") -> RNJ | G37: =IF(VALUE(MID(G$2,5,2))<=$D37,OFFSET('CCG-Prov(Acute)'!$B$1,MATCH($A37,'CCG-Prov(Acute)'!$A$2:$A$29012,0)+VALUE(RIGHT(G$2,1))-1,0),"") -> RRV | H37: =IF(VALUE(MID(H$2,5,2))<=$D37,OFFSET('CCG-Prov(Acute)'!$B$1,MATCH($A37,'CCG-Prov(Acute)'!$A$2:$A$29012,0)+VALUE(RIGHT(H$2,1))-1,0),"") -> RP6 | I37: =IF(VALUE(MID(I$2,5,2))<=$D37,OFFSET('CCG-Prov(Acute)'!$B$1,MATCH($A37,'CCG-Prov(Acute)'!$A$2:$A$29012,0)+VALUE(RIGHT(I$2,1))-1,0),"") -> RKE | J37: =IF(VALUE(MID(J$2,5,2))<=$D37,OFFSET('CCG-Prov(Acute)'!$B$1,MATCH($A37,'CCG-Prov(Acute)'!$A$2:$A$29012,0)+VALUE(RIGHT(J$2,1))-1,0),"") -> RAL | K37: =IF(VALUE(MID(K$2,5,2))<=$D37,OFFSET('CCG-Prov(Acute)'!$B$1,MATCH($A37,'CCG-Prov(Acute)'!$A$2:$A$29012,0)+VALUE(RIGHT(K$2,1))-1,0),"") ->  | L37: =IF(VALUE(MID(L$2,5,2))<=$D37,OFFSET('CCG-Prov(Acute)'!$B$1,MATCH($A37,'CCG-Prov(Acute)'!$A$2:$A$29012,0)+VALUE(RIGHT(L$2,1))-1,0),"") ->  | M37: =IF(VALUE(MID(M$2,5,2))<=$D37,OFFSET('CCG-Prov(Acute)'!$B$1,MATCH($A37,'CCG-Prov(Acute)'!$A$2:$A$29012,0)+VALUE(RIGHT(M$2,1))-1,0),"") ->  | N37: =IF(VALUE(MID(N$2,5,2))<=$D37,OFFSET('CCG-Prov(Acute)'!$B$1,MATCH($A37,'CCG-Prov(Acute)'!$A$2:$A$29012,0)+VALUE(RIGHT(N$2,1))-1,0),"") ->  | Q37: 5NE | R37: =VLOOKUP(Q37,provnames!$A$2:$B$331,2,0) -> Cumbria Teaching PCT | S37: =SUM(IF(('CCG-Prov(Acute)'!$B$2:$B$28899=Q37),1,0)) -> 21 | U37: =SUM(IF(('CCG-Prov(Amb)'!$A$2:$A$335=A37),1,0)) -> 1 | V37: =SUM(IF(('CCG-Prov(Amb)'!$A$2:$A$335=A37)*('CCG-Prov(Amb)'!$C$2:$C$335>=Ambulance!$B$7),1,0)) -> 1 | W37: =IF(VALUE(MID(W$2,5,2))<=$V37,OFFSET('CCG-Prov(Amb)'!$B$1,MATCH($A37,'CCG-Prov(Amb)'!$A$2:$A$335,0)+VALUE(RIGHT(W$2,1))-1,0),"") -> RRY | X37: =IF(VALUE(MID(X$2,5,2))<=$V37,OFFSET('CCG-Prov(Amb)'!$B$1,MATCH($A37,'CCG-Prov(Amb)'!$A$2:$A$335,0)+VALUE(RIGHT(X$2,1))-1,0),"") ->  | Y37: =IF(VALUE(MID(Y$2,5,2))<=$V37,OFFSET('CCG-Prov(Amb)'!$B$1,MATCH($A37,'CCG-Prov(Amb)'!$A$2:$A$335,0)+VALUE(RIGHT(Y$2,1))-1,0),"") ->  | Z37: =IF(VALUE(MID(Z$2,5,2))<=$V37,OFFSET('CCG-Prov(Amb)'!$B$1,MATCH($A37,'CCG-Prov(Amb)'!$A$2:$A$335,0)+VALUE(RIGHT(Z$2,1))-1,0),"") ->  | AA37: =IF(VALUE(MID(AA$2,5,2))<=$V37,OFFSET('CCG-Prov(Amb)'!$B$1,MATCH($A37,'CCG-Prov(Amb)'!$A$2:$A$335,0)+VALUE(RIGHT(AA$2,1))-1,0),"") ->  | AG37: =SUM(IF(('CCG-Prov(Births)'!$A$2:$A$6150=A37),1,0)) -> 37 | AH37: =SUM(IF(('CCG-Prov(Births)'!$A$2:$A$6150=A37)*('CCG-Prov(Births)'!$C$2:$C$6150>=Maternity!$B$7),1,0)) -> 3 | AI37: =IF(VALUE(MID(AI$2,5,2))<=$V37,OFFSET('CCG-Prov(Births)'!$B$1,MATCH($A37,'CCG-Prov(Births)'!$A$2:$A$6150,0)+VALUE(RIGHT(AI$2,1))-1,0),"") -> RQX | AJ37: =IF(VALUE(MID(AJ$2,5,2))<=$V37,OFFSET('CCG-Prov(Births)'!$B$1,MATCH($A37,'CCG-Prov(Births)'!$A$2:$A$6150,0)+VALUE(RIGHT(AJ$2,1))-1,0),"") ->  | AK37: =IF(VALUE(MID(AK$2,5,2))<=$V37,OFFSET('CCG-Prov(Births)'!$B$1,MATCH($A37,'CCG-Prov(Births)'!$A$2:$A$6150,0)+VALUE(RIGHT(AK$2,1))-1,0),"") ->  | AL37: =IF(VALUE(MID(AL$2,5,2))<=$V37,OFFSET('CCG-Prov(Births)'!$B$1,MATCH($A37,'CCG-Prov(Births)'!$A$2:$A$6150,0)+VALUE(RIGHT(AL$2,1))-1,0),"") ->  | AM37: =IF(VALUE(MID(AM$2,5,2))<=$V37,OFFSET('CCG-Prov(Births)'!$B$1,MATCH($A37,'CCG-Prov(Births)'!$A$2:$A$6150,0)+VALUE(RIGHT(AM$2,1))-1,0),"") ->  | AO37: RD3 | AP37: =VLOOKUP(AO37,provnames!$A$2:$B$331,2,0) -> Poole Hospital NHS FT | AQ37: =SUM(IF(('CCG-Prov(Births)'!$B$2:$B$6150=AO37),1,0)) -> 48
A38: 09G | B38: Coastal West Sussex | C38: =SUM(IF(('CCG-Prov(Acute)'!$A$2:$A$29012=A38),1,0)) -> 162 | D38: =SUM(IF(('CCG-Prov(Acute)'!$A$2:$A$29012=A38)*('CCG-Prov(Acute)'!$C$2:$C$29012>=Acute!$B$7),1,0)) -> 10 | E38: =IF(VALUE(MID(E$2,5,2))<=$D38,OFFSET('CCG-Prov(Acute)'!$B$1,MATCH($A38,'CCG-Prov(Acute)'!$A$2:$A$29012,0)+VALUE(RIGHT(E$2,1))-1,0),"") -> RYR | F38: =IF(VALUE(MID(F$2,5,2))<=$D38,OFFSET('CCG-Prov(Acute)'!$B$1,MATCH($A38,'CCG-Prov(Acute)'!$A$2:$A$29012,0)+VALUE(RIGHT(F$2,1))-1,0),"") -> RXH | G38: =IF(VALUE(MID(G$2,5,2))<=$D38,OFFSET('CCG-Prov(Acute)'!$B$1,MATCH($A38,'CCG-Prov(Acute)'!$A$2:$A$29012,0)+VALUE(RIGHT(G$2,1))-1,0),"") -> RHU | H38: =IF(VALUE(MID(H$2,5,2))<=$D38,OFFSET('CCG-Prov(Acute)'!$B$1,MATCH($A38,'CCG-Prov(Acute)'!$A$2:$A$29012,0)+VALUE(RIGHT(H$2,1))-1,0),"") -> 5P6 | I38: =IF(VALUE(MID(I$2,5,2))<=$D38,OFFSET('CCG-Prov(Acute)'!$B$1,MATCH($A38,'CCG-Prov(Acute)'!$A$2:$A$29012,0)+VALUE(RIGHT(I$2,1))-1,0),"") -> RDR | J38: =IF(VALUE(MID(J$2,5,2))<=$D38,OFFSET('CCG-Prov(Acute)'!$B$1,MATCH($A38,'CCG-Prov(Acute)'!$A$2:$A$29012,0)+VALUE(RIGHT(J$2,1))-1,0),"") -> RA2 | K38: =IF(VALUE(MID(K$2,5,2))<=$D38,OFFSET('CCG-Prov(Acute)'!$B$1,MATCH($A38,'CCG-Prov(Acute)'!$A$2:$A$29012,0)+VALUE(RIGHT(K$2,1))-1,0),"") -> RHM | L38: =IF(VALUE(MID(L$2,5,2))<=$D38,OFFSET('CCG-Prov(Acute)'!$B$1,MATCH($A38,'CCG-Prov(Acute)'!$A$2:$A$29012,0)+VALUE(RIGHT(L$2,1))-1,0),"") -> NT4 | M38: =IF(VALUE(MID(M$2,5,2))<=$D38,OFFSET('CCG-Prov(Acute)'!$B$1,MATCH($A38,'CCG-Prov(Acute)'!$A$2:$A$29012,0)+VALUE(RIGHT(M$2,1))-1,0),"") -> RPC | N38: =IF(VALUE(MID(N$2,5,2))<=$D38,OFFSET('CCG-Prov(Acute)'!$B$1,MATCH($A38,'CCG-Prov(Acute)'!$A$2:$A$29012,0)+VALUE(RIGHT(N$2,1))-1,0),"") -> RGP | Q38: 5NG | R38: =VLOOKUP(Q38,provnames!$A$2:$B$331,2,0) -> Central Lancashire PCT | S38: =SUM(IF(('CCG-Prov(Acute)'!$B$2:$B$28899=Q38),1,0)) -> 7 | U38: =SUM(IF(('CCG-Prov(Amb)'!$A$2:$A$335=A38),1,0)) -> 2 | V38: =SUM(IF(('CCG-Prov(Amb)'!$A$2:$A$335=A38)*('CCG-Prov(Amb)'!$C$2:$C$335>=Ambulance!$B$7),1,0)) -> 2 | W38: =IF(VALUE(MID(W$2,5,2))<=$V38,OFFSET('CCG-Prov(Amb)'!$B$1,MATCH($A38,'CCG-Prov(Amb)'!$A$2:$A$335,0)+VALUE(RIGHT(W$2,1))-1,0),"") -> RYD | X38: =IF(VALUE(MID(X$2,5,2))<=$V38,OFFSET('CCG-Prov(Amb)'!$B$1,MATCH($A38,'CCG-Prov(Amb)'!$A$2:$A$335,0)+VALUE(RIGHT(X$2,1))-1,0),"") -> RYE | Y38: =IF(VALUE(MID(Y$2,5,2))<=$V38,OFFSET('CCG-Prov(Amb)'!$B$1,MATCH($A38,'CCG-Prov(Amb)'!$A$2:$A$335,0)+VALUE(RIGHT(Y$2,1))-1,0),"") ->  | Z38: =IF(VALUE(MID(Z$2,5,2))<=$V38,OFFSET('CCG-Prov(Amb)'!$B$1,MATCH($A38,'CCG-Prov(Amb)'!$A$2:$A$335,0)+VALUE(RIGHT(Z$2,1))-1,0),"") ->  | AA38: =IF(VALUE(MID(AA$2,5,2))<=$V38,OFFSET('CCG-Prov(Amb)'!$B$1,MATCH($A38,'CCG-Prov(Amb)'!$A$2:$A$335,0)+VALUE(RIGHT(AA$2,1))-1,0),"") ->  | AG38: =SUM(IF(('CCG-Prov(Births)'!$A$2:$A$6150=A38),1,0)) -> 41 | AH38: =SUM(IF(('CCG-Prov(Births)'!$A$2:$A$6150=A38)*('CCG-Prov(Births)'!$C$2:$C$6150>=Maternity!$B$7),1,0)) -> 2 | AI38: =IF(VALUE(MID(AI$2,5,2))<=$V38,OFFSET('CCG-Prov(Births)'!$B$1,MATCH($A38,'CCG-Prov(Births)'!$A$2:$A$6150,0)+VALUE(RIGHT(AI$2,1))-1,0),"") -> RYR | AJ38: =IF(VALUE(MID(AJ$2,5,2))<=$V38,OFFSET('CCG-Prov(Births)'!$B$1,MATCH($A38,'CCG-Prov(Births)'!$A$2:$A$6150,0)+VALUE(RIGHT(AJ$2,1))-1,0),"") -> RXH | AK38: =IF(VALUE(MID(AK$2,5,2))<=$V38,OFFSET('CCG-Prov(Births)'!$B$1,MATCH($A38,'CCG-Prov(Births)'!$A$2:$A$6150,0)+VALUE(RIGHT(AK$2,1))-1,0),"") ->  | AL38: =IF(VALUE(MID(AL$2,5,2))<=$V38,OFFSET('CCG-Prov(Births)'!$B$1,MATCH($A38,'CCG-Prov(Births)'!$A$2:$A$6150,0)+VALUE(RIGHT(AL$2,1))-1,0),"") ->  | AM38: =IF(VALUE(MID(AM$2,5,2))<=$V38,OFFSET('CCG-Prov(Births)'!$B$1,MATCH($A38,'CCG-Prov(Births)'!$A$2:$A$6150,0)+VALUE(RIGHT(AM$2,1))-1,0),"") ->  | AO38: RD7 | AP38: =VLOOKUP(AO38,provnames!$A$2:$B$331,2,0) -> Heatherwood & Wexham Park Hospitals NHS FT | AQ38: =SUM(IF(('CCG-Prov(Births)'!$B$2:$B$6150=AO38),1,0)) -> 36
A39: 03V | B39: Corby | C39: =SUM(IF(('CCG-Prov(Acute)'!$A$2:$A$29012=A39),1,0)) -> 79 | D39: =SUM(IF(('CCG-Prov(Acute)'!$A$2:$A$29012=A39)*('CCG-Prov(Acute)'!$C$2:$C$29012>=Acute!$B$7),1,0)) -> 1 | E39: =IF(VALUE(MID(E$2,5,2))<=$D39,OFFSET('CCG-Prov(Acute)'!$B$1,MATCH($A39,'CCG-Prov(Acute)'!$A$2:$A$29012,0)+VALUE(RIGHT(E$2,1))-1,0),"") -> RNQ | F39: =IF(VALUE(MID(F$2,5,2))<=$D39,OFFSET('CCG-Prov(Acute)'!$B$1,MATCH($A39,'CCG-Prov(Acute)'!$A$2:$A$29012,0)+VALUE(RIGHT(F$2,1))-1,0),"") ->  | G39: =IF(VALUE(MID(G$2,5,2))<=$D39,OFFSET('CCG-Prov(Acute)'!$B$1,MATCH($A39,'CCG-Prov(Acute)'!$A$2:$A$29012,0)+VALUE(RIGHT(G$2,1))-1,0),"") ->  | H39: =IF(VALUE(MID(H$2,5,2))<=$D39,OFFSET('CCG-Prov(Acute)'!$B$1,MATCH($A39,'CCG-Prov(Acute)'!$A$2:$A$29012,0)+VALUE(RIGHT(H$2,1))-1,0),"") ->  | I39: =IF(VALUE(MID(I$2,5,2))<=$D39,OFFSET('CCG-Prov(Acute)'!$B$1,MATCH($A39,'CCG-Prov(Acute)'!$A$2:$A$29012,0)+VALUE(RIGHT(I$2,1))-1,0),"") ->  | J39: =IF(VALUE(MID(J$2,5,2))<=$D39,OFFSET('CCG-Prov(Acute)'!$B$1,MATCH($A39,'CCG-Prov(Acute)'!$A$2:$A$29012,0)+VALUE(RIGHT(J$2,1))-1,0),"") ->  | K39: =IF(VALUE(MID(K$2,5,2))<=$D39,OFFSET('CCG-Prov(Acute)'!$B$1,MATCH($A39,'CCG-Prov(Acute)'!$A$2:$A$29012,0)+VALUE(RIGHT(K$2,1))-1,0),"") ->  | L39: =IF(VALUE(MID(L$2,5,2))<=$D39,OFFSET('CCG-Prov(Acute)'!$B$1,MATCH($A39,'CCG-Prov(Acute)'!$A$2:$A$29012,0)+VALUE(RIGHT(L$2,1))-1,0),"") ->  | M39: =IF(VALUE(MID(M$2,5,2))<=$D39,OFFSET('CCG-Prov(Acute)'!$B$1,MATCH($A39,'CCG-Prov(Acute)'!$A$2:$A$29012,0)+VALUE(RIGHT(M$2,1))-1,0),"") ->  | N39: =IF(VALUE(MID(N$2,5,2))<=$D39,OFFSET('CCG-Prov(Acute)'!$B$1,MATCH($A39,'CCG-Prov(Acute)'!$A$2:$A$29012,0)+VALUE(RIGHT(N$2,1))-1,0),"") ->  | Q39: 5NL | R39: =VLOOKUP(Q39,provnames!$A$2:$B$331,2,0) -> Liverpool PCT | S39: =SUM(IF(('CCG-Prov(Acute)'!$B$2:$B$28899=Q39),1,0)) -> 6 | U39: =SUM(IF(('CCG-Prov(Amb)'!$A$2:$A$335=A39),1,0)) -> 2 | V39: =SUM(IF(('CCG-Prov(Amb)'!$A$2:$A$335=A39)*('CCG-Prov(Amb)'!$C$2:$C$335>=Ambulance!$B$7),1,0)) -> 2 | W39: =IF(VALUE(MID(W$2,5,2))<=$V39,OFFSET('CCG-Prov(Amb)'!$B$1,MATCH($A39,'CCG-Prov(Amb)'!$A$2:$A$335,0)+VALUE(RIGHT(W$2,1))-1,0),"") -> RX9 | X39: =IF(VALUE(MID(X$2,5,2))<=$V39,OFFSET('CCG-Prov(Amb)'!$B$1,MATCH($A39,'CCG-Prov(Amb)'!$A$2:$A$335,0)+VALUE(RIGHT(X$2,1))-1,0),"") -> RYC | Y39: =IF(VALUE(MID(Y$2,5,2))<=$V39,OFFSET('CCG-Prov(Amb)'!$B$1,MATCH($A39,'CCG-Prov(Amb)'!$A$2:$A$335,0)+VALUE(RIGHT(Y$2,1))-1,0),"") ->  | Z39: =IF(VALUE(MID(Z$2,5,2))<=$V39,OFFSET('CCG-Prov(Amb)'!$B$1,MATCH($A39,'CCG-Prov(Amb)'!$A$2:$A$335,0)+VALUE(RIGHT(Z$2,1))-1,0),"") ->  | AA39: =IF(VALUE(MID(AA$2,5,2))<=$V39,OFFSET('CCG-Prov(Amb)'!$B$1,MATCH($A39,'CCG-Prov(Amb)'!$A$2:$A$335,0)+VALUE(RIGHT(AA$2,1))-1,0),"") ->  | AG39: =SUM(IF(('CCG-Prov(Births)'!$A$2:$A$6150=A39),1,0)) -> 11 | AH39: =SUM(IF(('CCG-Prov(Births)'!$A$2:$A$6150=A39)*('CCG-Prov(Births)'!$C$2:$C$6150>=Maternity!$B$7),1,0)) -> 1 | AI39: =IF(VALUE(MID(AI$2,5,2))<=$V39,OFFSET('CCG-Prov(Births)'!$B$1,MATCH($A39,'CCG-Prov(Births)'!$A$2:$A$6150,0)+VALUE(RIGHT(AI$2,1))-1,0),"") -> RNQ | AJ39: =IF(VALUE(MID(AJ$2,5,2))<=$V39,OFFSET('CCG-Prov(Births)'!$B$1,MATCH($A39,'CCG-Prov(Births)'!$A$2:$A$6150,0)+VALUE(RIGHT(AJ$2,1))-1,0),"") -> RNS | AK39: =IF(VALUE(MID(AK$2,5,2))<=$V39,OFFSET('CCG-Prov(Births)'!$B$1,MATCH($A39,'CCG-Prov(Births)'!$A$2:$A$6150,0)+VALUE(RIGHT(AK$2,1))-1,0),"") ->  | AL39: =IF(VALUE(MID(AL$2,5,2))<=$V39,OFFSET('CCG-Prov(Births)'!$B$1,MATCH($A39,'CCG-Prov(Births)'!$A$2:$A$6150,0)+VALUE(RIGHT(AL$2,1))-1,0),"") ->  | AM39: =IF(VALUE(MID(AM$2,5,2))<=$V39,OFFSET('CCG-Prov(Births)'!$B$1,MATCH($A39,'CCG-Prov(Births)'!$A$2:$A$6150,0)+VALUE(RIGHT(AM$2,1))-1,0),"") ->  | AO39: RD8 | AP39: =VLOOKUP(AO39,provnames!$A$2:$B$331,2,0) -> Milton Keynes Hospital NHS FT | AQ39: =SUM(IF(('CCG-Prov(Births)'!$B$2:$B$6150=AO39),1,0)) -> 34
A40: 05A | B40: Coventry & Rugby | C40: =SUM(IF(('CCG-Prov(Acute)'!$A$2:$A$29012=A40),1,0)) -> 174 | D40: =SUM(IF(('CCG-Prov(Acute)'!$A$2:$A$29012=A40)*('CCG-Prov(Acute)'!$C$2:$C$29012>=Acute!$B$7),1,0)) -> 6 | E40: =IF(VALUE(MID(E$2,5,2))<=$D40,OFFSET('CCG-Prov(Acute)'!$B$1,MATCH($A40,'CCG-Prov(Acute)'!$A$2:$A$29012,0)+VALUE(RIGHT(E$2,1))-1,0),"") -> RKB | F40: =IF(VALUE(MID(F$2,5,2))<=$D40,OFFSET('CCG-Prov(Acute)'!$B$1,MATCH($A40,'CCG-Prov(Acute)'!$A$2:$A$29012,0)+VALUE(RIGHT(F$2,1))-1,0),"") -> RLT | G40: =IF(VALUE(MID(G$2,5,2))<=$D40,OFFSET('CCG-Prov(Acute)'!$B$1,MATCH($A40,'CCG-Prov(Acute)'!$A$2:$A$29012,0)+VALUE(RIGHT(G$2,1))-1,0),"") -> RJC | H40: =IF(VALUE(MID(H$2,5,2))<=$D40,OFFSET('CCG-Prov(Acute)'!$B$1,MATCH($A40,'CCG-Prov(Acute)'!$A$2:$A$29012,0)+VALUE(RIGHT(H$2,1))-1,0),"") -> NT4 | I40: =IF(VALUE(MID(I$2,5,2))<=$D40,OFFSET('CCG-Prov(Acute)'!$B$1,MATCH($A40,'CCG-Prov(Acute)'!$A$2:$A$29012,0)+VALUE(RIGHT(I$2,1))-1,0),"") -> RRK | J40: =IF(VALUE(MID(J$2,5,2))<=$D40,OFFSET('CCG-Prov(Acute)'!$B$1,MATCH($A40,'CCG-Prov(Acute)'!$A$2:$A$29012,0)+VALUE(RIGHT(J$2,1))-1,0),"") -> RQ3 | K40: =IF(VALUE(MID(K$2,5,2))<=$D40,OFFSET('CCG-Prov(Acute)'!$B$1,MATCH($A40,'CCG-Prov(Acute)'!$A$2:$A$29012,0)+VALUE(RIGHT(K$2,1))-1,0),"") ->  | L40: =IF(VALUE(MID(L$2,5,2))<=$D40,OFFSET('CCG-Prov(Acute)'!$B$1,MATCH($A40,'CCG-Prov(Acute)'!$A$2:$A$29012,0)+VALUE(RIGHT(L$2,1))-1,0),"") ->  | M40: =IF(VALUE(MID(M$2,5,2))<=$D40,OFFSET('CCG-Prov(Acute)'!$B$1,MATCH($A40,'CCG-Prov(Acute)'!$A$2:$A$29012,0)+VALUE(RIGHT(M$2,1))-1,0),"") ->  | N40: =IF(VALUE(MID(N$2,5,2))<=$D40,OFFSET('CCG-Prov(Acute)'!$B$1,MATCH($A40,'CCG-Prov(Acute)'!$A$2:$A$29012,0)+VALUE(RIGHT(N$2,1))-1,0),"") ->  | Q40: 5NN | R40: =VLOOKUP(Q40,provnames!$A$2:$B$331,2,0) -> Western Cheshire PCT | S40: =SUM(IF(('CCG-Prov(Acute)'!$B$2:$B$28899=Q40),1,0)) -> 3 | U40: =SUM(IF(('CCG-Prov(Amb)'!$A$2:$A$335=A40),1,0)) -> 2 | V40: =SUM(IF(('CCG-Prov(Amb)'!$A$2:$A$335=A40)*('CCG-Prov(Amb)'!$C$2:$C$335>=Ambulance!$B$7),1,0)) -> 2 | W40: =IF(VALUE(MID(W$2,5,2))<=$V40,OFFSET('CCG-Prov(Amb)'!$B$1,MATCH($A40,'CCG-Prov(Amb)'!$A$2:$A$335,0)+VALUE(RIGHT(W$2,1))-1,0),"") -> RYA | X40: =IF(VALUE(MID(X$2,5,2))<=$V40,OFFSET('CCG-Prov(Amb)'!$B$1,MATCH($A40,'CCG-Prov(Amb)'!$A$2:$A$335,0)+VALUE(RIGHT(X$2,1))-1,0),"") -> RX9 | Y40: =IF(VALUE(MID(Y$2,5,2))<=$V40,OFFSET('CCG-Prov(Amb)'!$B$1,MATCH($A40,'CCG-Prov(Amb)'!$A$2:$A$335,0)+VALUE(RIGHT(Y$2,1))-1,0),"") ->  | Z40: =IF(VALUE(MID(Z$2,5,2))<=$V40,OFFSET('CCG-Prov(Amb)'!$B$1,MATCH($A40,'CCG-Prov(Amb)'!$A$2:$A$335,0)+VALUE(RIGHT(Z$2,1))-1,0),"") ->  | AA40: =IF(VALUE(MID(AA$2,5,2))<=$V40,OFFSET('CCG-Prov(Amb)'!$B$1,MATCH($A40,'CCG-Prov(Amb)'!$A$2:$A$335,0)+VALUE(RIGHT(AA$2,1))-1,0),"") ->  | AG40: =SUM(IF(('CCG-Prov(Births)'!$A$2:$A$6150=A40),1,0)) -> 46 | AH40: =SUM(IF(('CCG-Prov(Births)'!$A$2:$A$6150=A40)*('CCG-Prov(Births)'!$C$2:$C$6150>=Maternity!$B$7),1,0)) -> 3 | AI40: =IF(VALUE(MID(AI$2,5,2))<=$V40,OFFSET('CCG-Prov(Births)'!$B$1,MATCH($A40,'CCG-Prov(Births)'!$A$2:$A$6150,0)+VALUE(RIGHT(AI$2,1))-1,0),"") -> RKB | AJ40: =IF(VALUE(MID(AJ$2,5,2))<=$V40,OFFSET('CCG-Prov(Births)'!$B$1,MATCH($A40,'CCG-Prov(Births)'!$A$2:$A$6150,0)+VALUE(RIGHT(AJ$2,1))-1,0),"") -> RJC | AK40: =IF(VALUE(MID(AK$2,5,2))<=$V40,OFFSET('CCG-Prov(Births)'!$B$1,MATCH($A40,'CCG-Prov(Births)'!$A$2:$A$6150,0)+VALUE(RIGHT(AK$2,1))-1,0),"") ->  | AL40: =IF(VALUE(MID(AL$2,5,2))<=$V40,OFFSET('CCG-Prov(Births)'!$B$1,MATCH($A40,'CCG-Prov(Births)'!$A$2:$A$6150,0)+VALUE(RIGHT(AL$2,1))-1,0),"") ->  | AM40: =IF(VALUE(MID(AM$2,5,2))<=$V40,OFFSET('CCG-Prov(Births)'!$B$1,MATCH($A40,'CCG-Prov(Births)'!$A$2:$A$6150,0)+VALUE(RIGHT(AM$2,1))-1,0),"") ->  | AO40: RDD | AP40: =VLOOKUP(AO40,provnames!$A$2:$B$331,2,0) -> Basildon & Thurrock Univ Hospitals NHS FT | AQ40: =SUM(IF(('CCG-Prov(Births)'!$B$2:$B$6150=AO40),1,0)) -> 40
A41: 09H | B41: Crawley | C41: =SUM(IF(('CCG-Prov(Acute)'!$A$2:$A$29012=A41),1,0)) -> 113 | D41: =SUM(IF(('CCG-Prov(Acute)'!$A$2:$A$29012=A41)*('CCG-Prov(Acute)'!$C$2:$C$29012>=Acute!$B$7),1,0)) -> 5 | E41: =IF(VALUE(MID(E$2,5,2))<=$D41,OFFSET('CCG-Prov(Acute)'!$B$1,MATCH($A41,'CCG-Prov(Acute)'!$A$2:$A$29012,0)+VALUE(RIGHT(E$2,1))-1,0),"") -> RTP | F41: =IF(VALUE(MID(F$2,5,2))<=$D41,OFFSET('CCG-Prov(Acute)'!$B$1,MATCH($A41,'CCG-Prov(Acute)'!$A$2:$A$29012,0)+VALUE(RIGHT(F$2,1))-1,0),"") -> RPC | G41: =IF(VALUE(MID(G$2,5,2))<=$D41,OFFSET('CCG-Prov(Acute)'!$B$1,MATCH($A41,'CCG-Prov(Acute)'!$A$2:$A$29012,0)+VALUE(RIGHT(G$2,1))-1,0),"") -> RXH | H41: =IF(VALUE(MID(H$2,5,2))<=$D41,OFFSET('CCG-Prov(Acute)'!$B$1,MATCH($A41,'CCG-Prov(Acute)'!$A$2:$A$29012,0)+VALUE(RIGHT(H$2,1))-1,0),"") -> RDR | I41: =IF(VALUE(MID(I$2,5,2))<=$D41,OFFSET('CCG-Prov(Acute)'!$B$1,MATCH($A41,'CCG-Prov(Acute)'!$A$2:$A$29012,0)+VALUE(RIGHT(I$2,1))-1,0),"") -> RA2 | J41: =IF(VALUE(MID(J$2,5,2))<=$D41,OFFSET('CCG-Prov(Acute)'!$B$1,MATCH($A41,'CCG-Prov(Acute)'!$A$2:$A$29012,0)+VALUE(RIGHT(J$2,1))-1,0),"") ->  | K41: =IF(VALUE(MID(K$2,5,2))<=$D41,OFFSET('CCG-Prov(Acute)'!$B$1,MATCH($A41,'CCG-Prov(Acute)'!$A$2:$A$29012,0)+VALUE(RIGHT(K$2,1))-1,0),"") ->  | L41: =IF(VALUE(MID(L$2,5,2))<=$D41,OFFSET('CCG-Prov(Acute)'!$B$1,MATCH($A41,'CCG-Prov(Acute)'!$A$2:$A$29012,0)+VALUE(RIGHT(L$2,1))-1,0),"") ->  | M41: =IF(VALUE(MID(M$2,5,2))<=$D41,OFFSET('CCG-Prov(Acute)'!$B$1,MATCH($A41,'CCG-Prov(Acute)'!$A$2:$A$29012,0)+VALUE(RIGHT(M$2,1))-1,0),"") ->  | N41: =IF(VALUE(MID(N$2,5,2))<=$D41,OFFSET('CCG-Prov(Acute)'!$B$1,MATCH($A41,'CCG-Prov(Acute)'!$A$2:$A$29012,0)+VALUE(RIGHT(N$2,1))-1,0),"") ->  | Q41: 5NV | R41: =VLOOKUP(Q41,provnames!$A$2:$B$331,2,0) -> North Yorkshire & York PCT | S41: =SUM(IF(('CCG-Prov(Acute)'!$B$2:$B$28899=Q41),1,0)) -> 15 | U41: =SUM(IF(('CCG-Prov(Amb)'!$A$2:$A$335=A41),1,0)) -> 1 | V41: =SUM(IF(('CCG-Prov(Amb)'!$A$2:$A$335=A41)*('CCG-Prov(Amb)'!$C$2:$C$335>=Ambulance!$B$7),1,0)) -> 1 | W41: =IF(VALUE(MID(W$2,5,2))<=$V41,OFFSET('CCG-Prov(Amb)'!$B$1,MATCH($A41,'CCG-Prov(Amb)'!$A$2:$A$335,0)+VALUE(RIGHT(W$2,1))-1,0),"") -> RYD | X41: =IF(VALUE(MID(X$2,5,2))<=$V41,OFFSET('CCG-Prov(Amb)'!$B$1,MATCH($A41,'CCG-Prov(Amb)'!$A$2:$A$335,0)+VALUE(RIGHT(X$2,1))-1,0),"") ->  | Y41: =IF(VALUE(MID(Y$2,5,2))<=$V41,OFFSET('CCG-Prov(Amb)'!$B$1,MATCH($A41,'CCG-Prov(Amb)'!$A$2:$A$335,0)+VALUE(RIGHT(Y$2,1))-1,0),"") ->  | Z41: =IF(VALUE(MID(Z$2,5,2))<=$V41,OFFSET('CCG-Prov(Amb)'!$B$1,MATCH($A41,'CCG-Prov(Amb)'!$A$2:$A$335,0)+VALUE(RIGHT(Z$2,1))-1,0),"") ->  | AA41: =IF(VALUE(MID(AA$2,5,2))<=$V41,OFFSET('CCG-Prov(Amb)'!$B$1,MATCH($A41,'CCG-Prov(Amb)'!$A$2:$A$335,0)+VALUE(RIGHT(AA$2,1))-1,0),"") ->  | AG41: =SUM(IF(('CCG-Prov(Births)'!$A$2:$A$6150=A41),1,0)) -> 26 | AH41: =SUM(IF(('CCG-Prov(Births)'!$A$2:$A$6150=A41)*('CCG-Prov(Births)'!$C$2:$C$6150>=Maternity!$B$7),1,0)) -> 2 | AI41: =IF(VALUE(MID(AI$2,5,2))<=$V41,OFFSET('CCG-Prov(Births)'!$B$1,MATCH($A41,'CCG-Prov(Births)'!$A$2:$A$6150,0)+VALUE(RIGHT(AI$2,1))-1,0),"") -> RTP | AJ41: =IF(VALUE(MID(AJ$2,5,2))<=$V41,OFFSET('CCG-Prov(Births)'!$B$1,MATCH($A41,'CCG-Prov(Births)'!$A$2:$A$6150,0)+VALUE(RIGHT(AJ$2,1))-1,0),"") ->  | AK41: =IF(VALUE(MID(AK$2,5,2))<=$V41,OFFSET('CCG-Prov(Births)'!$B$1,MATCH($A41,'CCG-Prov(Births)'!$A$2:$A$6150,0)+VALUE(RIGHT(AK$2,1))-1,0),"") ->  | AL41: =IF(VALUE(MID(AL$2,5,2))<=$V41,OFFSET('CCG-Prov(Births)'!$B$1,MATCH($A41,'CCG-Prov(Births)'!$A$2:$A$6150,0)+VALUE(RIGHT(AL$2,1))-1,0),"") ->  | AM41: =IF(VALUE(MID(AM$2,5,2))<=$V41,OFFSET('CCG-Prov(Births)'!$B$1,MATCH($A41,'CCG-Prov(Births)'!$A$2:$A$6150,0)+VALUE(RIGHT(AM$2,1))-1,0),"") ->  | AO41: RDE | AP41: =VLOOKUP(AO41,provnames!$A$2:$B$331,2,0) -> Colchester Hospital Univ NHS FT | AQ41: =SUM(IF(('CCG-Prov(Births)'!$B$2:$B$6150=AO41),1,0)) -> 30
